{"text_format":"1","workbook":"xlsx","n_sheets":19,"sheets":["AER only","Instructions","Contents","Business & other details","2.1 Expenditure summary","2.2 Repex","2.3 Augex","2.5 Connections","2.6 Non-network","2.7 Vegetation management","2.8 Maintenance","2.10 Overheads","2.11 Labour","2.12 Input tables","5.2 Asset Age Profile","5.3 MD - Network level","5.4 MD & utilisation-Spatial","Amendments","Unlocked worksheet"],"not_rendered":{"charts":0,"images":6,"macros":1,"external_links":1,"defined_names":550,"comments":3,"pivot_tables":0},"unopened":[],"bounds":{"document_bytes":16777216,"sheet_cells":100000,"rows_first":2000,"rows_last":500,"rows_between":2000,"halvings":0,"cell_chars":16384,"cell_head_chars":4096},"cells_cut":0,"cells_raw":0,"read":"whole","date_system":"1900"}

{"sheet":"AER only","index":0,"n_rows":97,"n_cols":40,"rows_kept":97,"cut":false,"hidden":true,"merged":[[80,4,80,11],[0,1,0,11],[3,28,3,38],[4,28,4,31],[4,34,4,38],[43,23,43,27],[44,1,44,5],[44,15,44,22],[44,23,44,27],[45,2,45,3],[45,34,47,34],[48,34,52,34],[56,34,57,34],[62,23,62,26]]}
[null,"Data in these columns used for data validation and database purposes."]
[null,"Date last modified:"]
[]
[null,null,null,null,null,null,null,null,null,null,null,null,null,null,null,null,null,null,null,null,null,null,null,null,null,null,null,null,"FOR ELECTRICITY BUSINESSES ONLY"]
[null,null,null,null,null,null,null,null,null,null,null,null,null,null,null,null,null,null,null,null,null,null,null,null,null,null,null,null,"Feeder Types",null,null,null,"TasNetworks (D)","MAIFI flag","Feeder Names"]
[null,null,null,null,null,null,null,null,null,null,null,null,null,null,null,null,null,null,null,null,null,null,null,null,null,null,null,null,"CBD","Urban","Short rural","long rural","EXTRA"]
[null,"dms_TradingName_List","dms_TradingNameFull_List","dms_ABN_List","dms_JurisdictionList","dms_Sector_List","dms_Segment_List","dms_FormControl_List","dms_RPT_List","dms_RPTMonth_List","dms_CRCPlength_List","dms_FRCPlength_List","dms_663_List","dms_DeterminationRef_List",null,"dms_Addr1_List","dms_Addr2_List","dms_Suburb_List","dms_State_List","dms_PostCode_List","dms_PAddr1_List","dms_PAddr2_List","dms_PSuburb_List","dms_PState_List","dms_PPostCode_List","dms_ContactName1_List","dms_ContactPh1_List","dms_ContactEmail_List","dms_CBD_flag","dms_Urban_flag","dms_ShortRural_flag","dms_LongRural_flag","dms_FeederType_5_flag","dms_MAIFI_flag_List","dms_FeederName_1","dms_FeederName_2","dms_FeederName_3","dms_FeederName_4","dms_FeederName_5"]
[null,"ActewAGL Distribution","ActewAGL Distribution",76670568688,"ACT","Electricity","Distribution","Revenue cap","Financial","June",5,5,5,"2014-19 Distribution Determination",null,"40 Bunda Street",null,"CANBERRA","ACT","2600","GPO BOX 366",null,"CANBERRA","ACT",2601,"Robert Walker","02 6248 3847","robert.walker@actewagle.com.au","NO","YES","YES","NO","NO",null,"CBD","Urban","Short rural","Long rural",null,"ActewAGL Distribution"]
[null,"ActewAGL Distribution (Tx Assets)","ActewAGL Distribution (Tx Assets)",76670568688,"ACT","Electricity","Distribution","Revenue cap","Financial","June",5,5,5,"distribution determination",null,"40 Bunda Street",null,"CANBERRA","ACT","2600","GPO BOX 366",null,"CANBERRA","ACT",2601,"Robert Walker","02 6248 3847","robert.walker@actewagle.com.au",null,null,null,null,null,null,"CBD","Urban","Short rural","Long rural",null,"ActewAGL Distribution (Tx Assets)"]
[null,"ActewAGL Gas","ActewAGL Gas",76670568688,"ACT","Gas","Distribution","Weighted average price cap","Financial","June",5,5,"x",null,null,"40 Bunda Street",null,"CANBERRA","ACT","2600","GPO BOX 366",null,"CANBERRA","ACT",2601,"Philip Deamer","02 6248 3438","GasAAReview@actewagl.com.au",null,null,null,null,null,null,null,null,null,null,null,"ActewAGL Gas"]
[null,"AGN","AGN",78551685,"SA","Gas","Distribution","Revenue cap","Financial","June",5,5,5,"distribution determination",null,null,null,null,"SA",null,null,null,null,null,null,null,null,null,null,null,null,null,null,null,"CBD","Urban","Short rural","Long rural",null,"AGN"]
[null,"Amadeus","APT Pipelines (NT) Pty Ltd",39009737393,"NT","Gas","Transmission","Weighted average price cap","Financial","June",5,5,"x","n/a",null,"Level 19, HSBC Building","580 George Street","SYDNEY","NSW","2000","Level 19, HSBC Building","580 George Street","SYDNEY","NSW","2000","Alexandra Curran","02 9275 0020","alexandra.curran@apa.com.au",null,null,null,null,null,null,null,null,null,null,null,"Amadeus"]
[null,"APA GasNet","APA VTS Australia Limited",79096457868,"Vic","Gas","Transmission",null,"Calendar","December",5,5,"x",null,null,"Level 19, HSBC Building","580 George Street","SYDNEY","NSW","2000","PO Box R41",null,"ROYAL EXCHANGE","NSW","1225",null,"02 9693 0000",null,null,null,null,null,null,null,null,null,null,null,null,"APA GasNet"]
[null,"Ausgrid","Ausgrid",67505337385,"NSW","Electricity","Distribution","Revenue cap","Financial","June",5,5,5,"2014-19 Distribution Determination",null,"570 George St",null,"SYDNEY","NSW",2000,null,null,null,null,null,"John Thomson","(02) 9269 2312","john.thomson@ausgrid.com.au","YES","YES","YES","YES","NO",null,"CBD","Urban","Short rural","Long rural",null,"Ausgrid"]
[null,"Ausgrid (Tx Assets)","Ausgrid (Tx Assets)",67505337385,"NSW","Electricity","Distribution","Revenue cap","Financial","June",5,5,5,"distribution determination",null,null,null,null,"NSW",null,null,null,null,null,null,null,null,null,null,null,null,null,null,null,"CBD","Urban","Short rural","Long rural",null,"Ausgrid (Tx Assets)"]
[null,"AusNet (D)","AusNet Services (D)",91064651118,"Vic","Electricity","Distribution","Revenue cap","Calendar","December",5,5,2,"2016-20 Distribution Determination",null,"Level 32","2 Southbank Boulevard","SOUTHBANK","Vic","3006","Locked Bag 14051",null,"MELBOURNE CITY MAIL CENTRE","VIC",8001,"Hannah Williams","03 9683 4088","hwilliams@powercor.com.au",null,"YES","YES","YES","NO",null,"CBD","Urban","Short rural","Long rural",null,"AusNet (D)"]
[null,"AusNet (Gas)",null,null,null,"Gas","Distribution",null,"Calendar","December",5,5,"X",null,null,null,null,null,null,null,null,null,null,null,null,null,null,null,null,null,null,null,null,null,null,null,null,null,null,"AusNet (Gas)"]
[null,"AusNet (T)","AusNet (T)",78079798173,"Vic","Electricity","Transmission","Revenue cap","Financial","March",5,5,2,"transmission determination",null,"Level 32","2 Southbank Boulevard","SOUTHBANK","Vic","3006",null,null,null,null,null,"Tom Hallam","03 9695 6617","Thomas.hallam@SP-Ausnet.com.au",null,null,null,null,null,null,"CBD","Urban","Short rural","Long rural",null,"AusNet (T)"]
[null,"Australian Distribution Co.","Australian Distribution Co.",11222333444,"-","Electricity","Distribution","Revenue cap","Financial","June",5,5,2,"distribution determination",null,null,null,null,"-",null,null,null,null,null,null,null,null,null,null,null,null,null,null,null,"CBD","Urban","Short rural","Long rural",null,"Australian Distribution Co."]
[null,"Australian Transmission Co.","Australian Transmission Co.",11222333444,"-","Electricity","Transmission","Revenue cap","Financial","June",5,5,5,"transmission determination",null,null,null,null,"-",null,null,null,null,null,null,null,null,null,null,null,null,null,null,null,"CBD","Urban","Short rural","Long rural",null,"Australian Transmission Co."]
[null,"CitiPower","CitiPower",76064651056,"Vic","Electricity","Distribution","Revenue cap","Calendar","December",5,5,2,"2016-20 Distribution Determination",null,"40 Market Street",null,"MELBOURNE","Vic","3000","Locked Bag 14090",null,"MELBOURNE","VIC",8001,"Hannah Williams","03 9683 4088","hwilliams@powercor.com.au","YES","YES","NO","NO","NO",null,"CBD","Urban","Short rural","Long rural",null,"CitiPower"]
[null,"Directlink","Directlink",16779340889,"Qld","Electricity","Transmission","Revenue cap","Financial","June",9,5,5,"transmission determination",null,null,null,null,"NSW",null,null,null,null,null,null,null,null,null,null,null,null,null,null,null,"CBD","Urban","Short rural","Long rural",null,"Directlink"]
[null,"ElectraNet","ElectraNet",41094482416,"SA","Electricity","Transmission","Revenue cap","Financial","June",5,5,5,"transmission determination",null,"52-55 East Terrace","Rymill Park","ADELAIDE","SA","5000","PO Box 7096","Hutt Street Post Office","ADELAIDE","SA",null,"Bill Jackson","08 8404 7969","jackson.bill@electranet.com.au",null,null,null,null,null,null,"CBD","Urban","Short rural","Long rural",null,"ElectraNet"]
[null,"Endeavour Energy","Endeavour Energy",59253130878,"NSW","Electricity","Distribution","Revenue cap","Financial","June",5,5,5,"2014-19 Distribution Determination",null,"51 Huntingwood Drive",null,"HUNTINGWOOD","NSW","2148","PO Box 811",null,"SEVEN HILLS","NSW",null,"Jon Hocking","02 9853 4386 / 0407 348 156","Jon.Hocking@Endeavourenergy.com.au","NO","YES","YES","YES","NO",null,"CBD","Urban","Short rural","Long rural",null,"Endeavour Energy"]
[null,"Energex","Energex",40078849055,"Qld","Electricity","Distribution","Revenue cap","Financial","June",5,5,5,"2015-20 Distribution Determination",null,"26 Reddacliff Street",null,"NEWSTEAD","Qld","4006","26 Reddacliff Street",null,"NEWSTEAD","QLD","4006","Nicola Roscoe","07 3664 5891","nicolaroscoe@energex.com.au","YES","YES","YES","NO","NO",null,"CBD","Urban","Short rural","Long rural",null,"Energex"]
[null,"Ergon Energy","Ergon Energy",50087646062,"Qld","Electricity","Distribution","Revenue cap","Financial","June",5,5,5,"2015-20 Distribution Determination",null,"22 Walker Street",null,"TOWNSVILLE","Qld","4810","Po Box 264",null,"FORTITUDE VALLEY","QLD",4006,"Jenny Doyle, Group Manager Regulatory Affairs","(07) 3851 6416","jenny.doyle@ergon.com.au","NO","YES","YES","YES","NO",null,"CBD","Urban","Short rural","Long rural",null,"Ergon Energy"]
[null,"Envestra (Victoria and Albury)","Australian Gas Networks Limited",19078551685,"SA","Gas","Distribution",null,"Calendar","December",5,5,"x",null,null,"Level 10","81 Flinders Street","ADELAIDE","SA","5000",null,null,null,null,null,null,"08 8227 1500",null,null,null,null,null,null,null,null,null,null,null,null,"Envestra (Victoria and Albury)"]
[null,"Essential Energy","Essential Energy",37428185226,"NSW","Electricity","Distribution","Revenue cap","Financial","June",5,5,5,"2014-19 Distribution Determination",null,"8 Buller Street",null,"PORT MACQUARIE","NSW",null,"PO Box 5730",null,"PORT MACQUARIE","NSW",null,"Catherine Waddell","02 6338 3553","catherine.waddell@essentialenergy.com.au",null,null,"YES","YES","NO",null,"CBD","Urban","Short rural","Long rural",null,"Essential Energy"]
[null,"Jemena Electricity","Jemena Electricity",82064651083,"Vic","Electricity","Distribution","Revenue cap","Calendar","December",5,5,2,"2016-20 Distribution Determination",null,"Level 16","567 Collins Street","MELBOURNE","VIC","3000","PO Box 16182",null,"MELBOURNE","VIC",8001,"Robert McMillan","03 9173 7000","robert.mcmillan@jemena.com.au",null,null,"YES","NO","NO",null,"CBD","Urban","Short rural","Long rural",null,"Jemena Electricity"]
[null,"Multinet Gas","Multinet Gas (DB No.1) Pty Ltd (ACN 086 026 986), Multinet Gas (DB No.2) Pty Ltd (ACN 086 230 122)",86026986,"Vic","Gas","Distribution",null,"Calendar","December",5,5,"x",null,null,null,null,null,null,null,null,null,null,null,null,null,null,null,null,null,null,null,null,null,null,null,null,null,null,"Multinet Gas"]
[null,"Murraylink","Murraylink",79181207909,"SA","Electricity","Transmission","Revenue cap","Financial","June",5,5,5,"transmission determination",null,null,null,null,null,null,null,null,null,null,null,null,null,null,null,null,null,null,null,null,"CBD","Urban","Short rural","Long rural",null,"Murraylink"]
[null,"Powercor Australia","Powercor Australia",89064651109,"Vic","Electricity","Distribution","Revenue cap","Calendar","December",5,5,2,"2016-20 Distribution Determination",null,"40 Market Street",null,"MELBOURNE","Vic","3000","Locked bag 14090",null,"MELBOURNE","VIC",8001,"Hannah Williams","03 9683 4088","hwilliams@powercor.com.au",null,null,"YES","YES","NO",null,"CBD","Urban","Short rural","Long rural",null,"Powercor Australia"]
[null,"Powerlink","Queensland Electricity Transmission Corporation Limited trading as Powerlink Queensland",82078849233,"Qld","Electricity","Transmission","Revenue cap","Financial","June",5,5,5,"transmission determination",null,"33 Harold St",null,"VIRGINIA","Qld","4014","PO Box 1193",null,"VIRGINIA","QLD",4014,"Jennifer Harris","07 3860 2667","jharris@powerlink.com.au",null,null,null,null,null,null,"CBD","Urban","Short rural","Long rural",null,"Powerlink"]
[null,"Roma to Brisbane Pipeline","APT Petroleum Pipelines Limited t/a Roma to Brisbane Pipeline","009 737 393","Qld","Gas","Distribution","?","Financial","June",5,5,"x","n/a",null,null,null,null,null,null,null,null,null,null,null,null,null,null,null,null,null,null,null,null,"CBD","Urban","Short rural","Long rural",null,"Roma to Brisbane Pipeline"]
[null,"SA Power Networks","SA Power Networks",13332330749,"SA","Electricity","Distribution","Revenue cap","Financial","June",5,5,5,"2015-20 Distribution Determination",null,"1 Anzac Highway",null,"KESWICK","SA","5035","GPO Box 77",null,"ADELAIDE","SA",null,"Damien O'Connor","08 8404 5066","damien.oconnor@sapowernetworks.com.au",null,null,"YES","YES","NO",null,"CBD","Urban","Short rural","Long rural",null,"SA Power Networks"]
[null,"TasNetworks (D)","TasNetworks (D)",24167357299,"Tas","Electricity","Distribution","Revenue cap","Financial","June",5,5,5,"distribution determination",null,"21 Kirksway Place",null,"HOBART","Tas","7000","GPO Box 191",null,"HOBART","Tas",null,"Leigh Mayne","03 6270 3691","rrp2012@auroraenergy.com.au",null,null,"YES","YES","YES",null,"Critical Infrastructure","High density commercial","Urban","High density rural","Low density rural","TasNetworks (D)"]
[null,"TasNetworks (T)","TasNetworks (T)",24167357299,"Tas","Electricity","Transmission","Revenue cap","Financial","March",5,5,5,"transmission determination",null,"1-7 Maria Street",null,"LENAH VALLEY","Tas","7008","PO Box 606",null,"MOONAH","Tas",null,"Heath Dillon","03 6274 3664","heath.dillon@transend.com.au",null,null,null,null,null,null,"CBD","Urban","Short rural","Long rural",null,"TasNetworks (T)"]
[null,"TransGrid","TransGrid",609169959,"NSW","Electricity","Transmission","Revenue cap","Financial","June",5,4,5,"transmission determination",null,"180 Thomas Street",null,"HAYMARKET","NSW","2000","PO Box A1000",null,"SYDNEY SOUTH","NSW",null,"Andrew Kingsmill","02 9284 3149","andrew.kingsmill@transgrid.com.au",null,null,null,null,null,null,"CBD","Urban","Short rural","Long rural",null,"TransGrid"]
[null,"United Energy","United Energy",70064651029,"Vic","Electricity","Distribution","Revenue cap","Calendar","December",5,5,2,"2016-20 Distribution Determination",null,"Level 3","6 Nexus Court","MULGRAVE","Vic","3149","PO Box 449",null,"MOUNT WAVERLEY","VIC",3170,"Mathew Abraham","03 8846 9758","mathew.abraham@ue.com.au",null,null,"YES","NO","NO",null,"CBD","Urban","Short rural","Long rural",null,"United Energy"]
[null,"Western Power (D)","Western Power (D)",18540492861,"WA","Electricity","Distribution","Revenue cap","Financial","June",12,4,"x","distribution determination",null,"363 Wellington Street",null,"PERTH","WA","6000","GPO Box L921",null,"PERTH","WA",6842,"Judy Hunter","08 9326 6239","judy.hunter@westernpower.com.au",null,null,"YES","YES","NO","NO","CBD","Urban","Short rural","Long rural",null,"Western Power (D)"]
[null,"Western Power (T)","Western Power (T)",18540492861,"WA","Electricity","Transmission","Revenue cap","Financial","June",12,4,"x","transmission determination",null,"363 Wellington Street",null,"PERTH","WA","6000","GPO Box L921",null,"PERTH","WA",6842,"Judy Hunter","08 9326 6239","judy.hunter@westernpower.com.au",null,null,"YES","YES","NO",null,"CBD","Urban","Short rural","Long rural",null,"Western Power (T)"]
[]
[]
[null,null,null,null,null,null,null,null,null,null,null,null,null,null,null,null,null,null,null,null,null,null,null,"For EB & Reset RINs only"]
[null,"The Reg Year Ending (dms_RYE) must be set to the last year of the regulatory period. For forecast data is is usually (FRCP_y5) for actual it is a single year (CRY). For historical actual data the RYE will need to be set manually in the business details sheet by setting the dms_Multiyear_flag to 1 and putting the correct value in 'dms_Specified_FinalYear. See cells C67:C68",null,null,null,null,{"$f":"IF(dms_RPT=\"financial\",VALUE(LEFT(CRCP_y1,4)-1)&\"-\"&TEXT(VALUE(RIGHT(CRCP_y1,2)-1),\"00\"),VALUE(LEFT(CRCP_y1,4)-1))","v":"2009-10"},null,null,null,null,null,"Drop down selector box for CA & Reset RINs.","Drop down selector box for CA & Reset RINs.",null,"For CA & Reset RINs only",null,null,null,null,null,null,null,"for DNSP only",null,null,null,null,null,null,null,null,null,null,"Reason for interruption","dms_Reason_Interruption_Detailed","dms_Reason_Interruption"]
[null,"dms_Model_List ","DELETE NR 'CRY' IF NOT AN ANNUAL RIN (EB, CA , ARR)",null,"dms_RYE_Formula_Result",null,null,null,null,null,null,null,"dms_0203_ProjectType","dms_0203_02_ProjectType",null,"dms_020303_01_UOM","dms_020501_01_UOM","dms_020501_02_UOM","dms_020501_03_UOM","dms_020501_04_UOM","dms_020603_01_UOM","dms_040102_01_UOM","dms_040102_04_UOM","dms_030601_01_UOM","dms_030601_02_UOM","dms_030701_01_UOM","dms_030702_01_UOM","dms_030703_01_UOM",null,null,null,null,null,null,"Animal","Animal impact","Animal"]
[null,"ARR","ANNUAL REPORTING STATEMENT",null,{"$f":"LEFT(dms_SingleYear_FinalYear_Result,2)&RIGHT(dms_SingleYear_FinalYear_Result,2)","v":"2016"},"=LEFT(dms_SingleYear_FinalYear_Result,2)&RIGHT(dms_SingleYear_FinalYear_Result,2)",null,"Formula errors are OK",null,null,null,null,"New line on new route - single circuit","Demand growth",null,"Circuit line length in km","0's","0's","0's","0's","0's","0's","days","minutes/customer","minutes/customer","Customer / km","%","km",null,null,null,null,null,null,null,"Animal nesting/burrowing, etc and other","Asset failure"]
[null,"CA","CATEGORY ANALYSIS",null,{"$f":"LEFT(dms_SingleYear_FinalYear_Result,2)&RIGHT(dms_SingleYear_FinalYear_Result,2)","v":"2016"},"=LEFT(dms_SingleYear_FinalYear_Result,2)&RIGHT(dms_SingleYear_FinalYear_Result,2)",null,"Formula errors are OK",null,null,null,null,"New line on new route - dual circuit","Voltage issues",null,"Circuit line length in km","0's","0's","0's","0's","0's","0's","0's","minutes/customer","minutes/customer","MWh/customer","Number of spans",null,null,null,null,null,null,null,null,"Other","Other"]
[null,"CPI","CPI",null,null,null,null,null,null,null,null,null,"New line on new route - other","Reactive power issue",null,"Circuit line length in km","MVA added","MVA added","MVA added","MVA added","0's","0's","$0s","interruptions/customer","interruptions/customer","kVA / customer","Number of spans",null,null,null,null,null,null,null,"Asset failure","LV","Overloads"]
[null,"EB","ECONOMIC BENCHMARKING",null,{"$f":"LEFT(dms_SingleYear_FinalYear_Result,2)&RIGHT(dms_SingleYear_FinalYear_Result,2)","v":"2016"},"=LEFT(dms_SingleYear_FinalYear_Result,2)&RIGHT(dms_SingleYear_FinalYear_Result,2)",null,"Formula errors are OK",null,null,null,null,"Line rebuild over existing route - single circuit","Fault level issues",null,"Circuit line length in km","0's","0's","0's","0's","0's","$0s","0's","interruptions/customer","interruptions/customer",null,"Number of spans",null,null,null,null,null,null,null,null,"Distribution substation","Planned"]
[null,"PTRM","POST TAX REVENUE MODEL",null,{"$f":"LEFT(dms_MultiYear_FinalYear_Result,2)&RIGHT(dms_MultiYear_FinalYear_Result,2)","v":"2019"},"=LEFT(dms_MultiYear_FinalYear_Result,2)&RIGHT(dms_MultiYear_FinalYear_Result,2)",null,null,null,null,null,null,"Line rebuild over existing route - dual circuit","Net market benefit",null,"Number","total spend $0s","total spend $0s","total spend $0s","total spend $0s","(per cent)",null,null,null,null,null,"Number of spans",null,null,null,null,null,null,null,null,"HV","Network business"]
[null,"Reset","REGULATORY REPORTING STATEMENT",null,{"$f":"LEFT(dms_MultiYear_FinalYear_Result,2)&RIGHT(dms_MultiYear_FinalYear_Result,2)","v":"2019"},"=LEFT(dms_MultiYear_FinalYear_Result,2)&RIGHT(dms_MultiYear_FinalYear_Result,2)",null,"Formula errors are OK",null,null,null,null,"Reconductor - Single circuit","Safety",null,"Number","net circuit km added","net circuit km added","net circuit km added","net circuit km added",null,null,null,null,null,null,"Years",null,null,null,null,null,null,null,null,"Zone substation","Third party"]
[null,"RFM","ROLL FORWARD MODEL",null,{"$f":"LEFT(dms_CRCP_FinalYear_Result,2)&RIGHT(dms_CRCP_FinalYear_Result,2)","v":"2016"},"=LEFT(dms_CRCP_FinalYear_Result,2)&RIGHT(dms_CRCP_FinalYear_Result,2)",null,null,null,null,null,null,"Reconductor - Dual circuit","Environment",null,"Number","total spend $0s","total spend $0s","total spend $0s","total spend $0s",null,null,null,null,null,null,"Years",null,null,null,null,null,null,null,null,"Subtransmission","Unknown"]
[null,"WACC","WEIGHTED AVERAGE COST OF CAPITAL",null,{"$f":"LEFT(dms_MultiYear_FinalYear_Result,2)&RIGHT(dms_MultiYear_FinalYear_Result,2)","v":"2019"},"=LEFT(dms_MultiYear_FinalYear_Result,2)&RIGHT(dms_MultiYear_FinalYear_Result,2)",null,null,null,null,null,null,"Other","Other",null,null,"net circuit km added","net circuit km added","net circuit km added","net circuit km added",null,null,null,null,null,null,"Trees",null,null,null,null,null,null,null,"Other","insert description of 'other'","Vegetation"]
[null,null,null,null,null,null,null,null,null,null,null,null,null,null,null,null,"total spend $0s","total spend $0s","total spend $0s","total spend $0s",null,null,null,null,null,null,"Trees",null,null,null,null,null,null,null,"Overloads","-","Weather"]
[null,null,null,null,null,null,null,null,null,null,null,null,null,null,null,null,"0's",null,"$0s",null,null,null,null,null,null,null,"Defects",null,null,null,null,null,null,null,"Planned","-","2 - STPIS Exclusion (3.3)(a)"]
[null,null,null,null,null,null,null,null,null,null,null,null,null,null,null,null,"0's",null,null,null,null,null,null,null,null,null,"Defects",null,null,null,null,null,null,null,"Network business","Network error","3 - STPIS Exclusion (3.3)(a)"]
[null,null,null,null,null,null,null,null,null,null,null,null,null,null,null,null,"0's",null,null,null,null,null,null,null,null,null,"Spans",null,null,null,null,null,null,null,null,"Switching and protection error","4 - STPIS Exclusion (3.3)(a)"]
[null,null,null,null,null,null,null,null,null,null,null,null,null,null,null,null,"$0s",null,null,null,null,null,null,null,null,null,"km",null,null,null,null,null,null,null,"Third party","Fire","5 - STPIS Exclusion (3.3)(a)"]
[null,null,null,null,null,null,null,null,null,null,null,null,null,null,null,null,null,null,null,null,null,null,null,null,null,null,"Spans",null,null,"",null,null,null,null,null,"Other","6 - STPIS Exclusion (3.3)(a)"]
[null,null,null,null,null,null,null,null,null,null,null,null,null,null,null,null,null,null,null,null,null,null,null,null,null,null,null,null,null,null,null,null,null,null,null,"Dig-in","7 - STPIS Exclusion (3.3)(a)"]
[null,null,null,null,null,null,null,null,null,null,null,null,null,null,null,null,null,null,null,null,null,null,null,null,null,null,null,null,null,null,null,null,null,null,null,"Unauthorised access"]
[null,"For all files either AER or business needs to be able to specify the type of submission","For PTRM & RFM templates we must provide a choice in case they change their form of control - otherwise it is drawn from the business specific lookup table above.",null,"These are indeces and lookup values for various dates. All step from the value placed in FRCP_y1 on the business and other details worksheet",null,null,null,null,null,null,null,null,null,null,null,null,null,null,null,null,null,null,"for TNSP only",null,null,null,null,null,null,null,null,null,null,null,"Vehicle impact"]
[null,"dms_SourceList","dms_FormControl_Choices",null,"dms_FRCPlength_Num_List","dms_FinalYear_List","dms_CRCPlength_Num_List","dms_CFinalYear_List","dms_FRCP_years",null,"dms_CRCP_years",null,"dms_CRCP_index",null,null,null,null,null,null,null,null,null,null,"dms_030601_01_UOM",null,"dms_030701_01_UOM","dms_030702_01_UOM",null,null,null,null,null,null,null,"Unknown","Unknown"]
[null,"After appeal","Revenue cap",null,1,"dms_FRCP_y1",1,"CRCP_y1",{"$f":"FRCP_y1","v":"2015-16"},"dms_FRCP_y1",{"$f":"IF(dms_RPT=\"financial\",VALUE(LEFT(dms_FRCP_y1,4)-1)&\"-\"&TEXT(VALUE(MID(dms_FRCP_y1,3,2)),\"00\"),VALUE(LEFT(dms_FRCP_y1,4)-1))","v":"2014-15"},"dms_CRCP_yZ",1,null,null,null,null,null,null,null,null,null,null,"%",null,"Number of spans","km",null,null,null,null,null,null,null,"Vegetation","Blow-in/Fall-in - NSP responsibility"]
[null,"Draft decision","Revenue yield",null,2,"dms_FRCP_y2",2,"CRCP_y2",{"$f":"IF(dms_RPT=\"financial\",VALUE(LEFT(dms_FRCP_y1,4)+1)&\"-\"&TEXT(VALUE(RIGHT(dms_FRCP_y1,2)+1),\"00\"),VALUE(LEFT(dms_FRCP_y1,4)+1))","v":"2016-17"},"dms_FRCP_y2",{"$f":"IF(dms_RPT=\"financial\",VALUE(LEFT(dms_CRCP_yZ,4)-1)&\"-\"&TEXT(VALUE(MID(dms_CRCP_yZ,3,2)),\"00\"),VALUE(LEFT(dms_CRCP_yZ,4)-1))","v":"2013-14"},"dms_CRCP_yY",2,null,null,null,null,null,null,null,null,null,null,"number",null,"Years","%",null,null,null,null,null,null,null,null,"Grow-in - NSP responsibility"]
[null,"Final decision","Weighted average price cap",null,3,"dms_FRCP_y3",3,"CRCP_y3",{"$f":"IF(dms_RPT=\"financial\",VALUE(LEFT(dms_FRCP_y2,4)+1)&\"-\"&TEXT(VALUE(RIGHT(dms_FRCP_y2,2)+1),\"00\"),VALUE(LEFT(dms_FRCP_y2,4)+1))","v":"2017-18"},"dms_FRCP_y3",{"$f":"IF(dms_RPT=\"financial\",VALUE(LEFT(dms_CRCP_yY,4)-1)&\"-\"&TEXT(VALUE(MID(dms_CRCP_yY,3,2)),\"00\"),VALUE(LEFT(dms_CRCP_yY,4)-1))","v":"2012-13"},"dms_CRCP_yX",3,null,null,null,null,null,null,null,null,null,null,"number",null,"Trees","km",null,null,null,null,null,null,null,null,"Blow-in/Fall-in - Other responsible party"]
[null,"PTRM update 1",null,null,4,"dms_FRCP_y4",4,"CRCP_y4",{"$f":"IF(dms_RPT=\"financial\",VALUE(LEFT(dms_FRCP_y3,4)+1)&\"-\"&TEXT(VALUE(RIGHT(dms_FRCP_y3,2)+1),\"00\"),VALUE(LEFT(dms_FRCP_y3,4)+1))","v":"2018-19"},"dms_FRCP_y4",{"$f":"IF(dms_RPT=\"financial\",VALUE(LEFT(dms_CRCP_yX,4)-1)&\"-\"&TEXT(VALUE(MID(dms_CRCP_yX,3,2)),\"00\"),VALUE(LEFT(dms_CRCP_yX,4)-1))","v":"2011-12"},"dms_CRCP_yW",4,null,null,null,null,null,null,null,null,null,null,"%",null,"Defects","number",null,null,null,null,null,null,null,null,"Grow-in - Other responsible party"]
[null,"PTRM update 2",null,null,5,"dms_FRCP_y5",5,"CRCP_y5",{"$f":"IF(dms_RPT=\"financial\",VALUE(LEFT(dms_FRCP_y4,4)+1)&\"-\"&TEXT(VALUE(RIGHT(dms_FRCP_y4,2)+1),\"00\"),VALUE(LEFT(dms_FRCP_y4,4)+1))","v":"2019-20"},"dms_FRCP_y5",{"$f":"IF(dms_RPT=\"financial\",VALUE(LEFT(dms_CRCP_yW,4)-1)&\"-\"&TEXT(VALUE(MID(dms_CRCP_yW,3,2)),\"00\"),VALUE(LEFT(dms_CRCP_yW,4)-1))","v":"2010-11"},"dms_CRCP_yV",5,null,null,null,null,null,null,null,null,null,null,"number",null,"Number of spans",null,null,null,null,null,null,null,null,"Weather"]
[null,"PTRM update 3",null,null,6,"dms_FRCP_y6",6,"CRCP_y6",{"$f":"IF(dms_RPT=\"financial\",VALUE(LEFT(dms_FRCP_y5,4)+1)&\"-\"&TEXT(VALUE(RIGHT(dms_FRCP_y5,2)+1),\"00\"),VALUE(LEFT(dms_FRCP_y5,4)+1))","v":"2020-21"},"dms_FRCP_y6",{"$f":"IF(dms_RPT=\"financial\",VALUE(LEFT(dms_CRCP_yV,4)-1)&\"-\"&TEXT(VALUE(MID(dms_CRCP_yV,3,2)),\"00\"),VALUE(LEFT(dms_CRCP_yV,4)-1))","v":"2009-10"},"dms_CRCP_yU",6,null,null,null,null,null,null,null,null,null,null,"number",null,"km",null,null,null,null,null,null,null,null,"2 - STPIS Exclusion (3.3)(a)"]
[null,"PTRM update 4",null,null,7,"dms_FRCP_y7",7,"CRCP_y7",{"$f":"IF(dms_RPT=\"financial\",VALUE(LEFT(dms_FRCP_y6,4)+1)&\"-\"&TEXT(VALUE(RIGHT(dms_FRCP_y6,2)+1),\"00\"),VALUE(LEFT(dms_FRCP_y6,4)+1))","v":"2021-22"},"dms_FRCP_y7",{"$f":"IF(dms_RPT=\"financial\",VALUE(LEFT(dms_CRCP_yU,4)-1)&\"-\"&TEXT(VALUE(MID(dms_CRCP_yU,3,2)),\"00\"),VALUE(LEFT(dms_CRCP_yU,4)-1))","v":"2008-09"},"dms_CRCP_yT",7,null,null,null,null,null,null,null,null,null,null,"%",null,"km",null,null,null,null,null,null,null,null,"3 - STPIS Exclusion (3.3)(a)"]
[null,"PTRM update 5",null,null,8,"dms_FRCP_y8",8,"CRCP_y8",{"$f":"IF(dms_RPT=\"financial\",VALUE(LEFT(dms_FRCP_y7,4)+1)&\"-\"&TEXT(VALUE(RIGHT(dms_FRCP_y7,2)+1),\"00\"),VALUE(LEFT(dms_FRCP_y7,4)+1))","v":"2022-23"},"dms_FRCP_y8",{"$f":"IF(dms_RPT=\"financial\",VALUE(LEFT(dms_CRCP_yT,4)-1)&\"-\"&TEXT(VALUE(MID(dms_CRCP_yT,3,2)),\"00\"),VALUE(LEFT(dms_CRCP_yT,4)-1))","v":"2007-08"},"dms_CRCP_yS",8,null,null,null,null,null,null,null,null,null,null,"number",null,"Number of spans",null,null,null,null,null,null,null,null,"4 - STPIS Exclusion (3.3)(a)"]
[null,"PTRM update 6",null,null,9,"dms_FRCP_y9",9,"CRCP_y9",{"$f":"IF(dms_RPT=\"financial\",VALUE(LEFT(dms_FRCP_y8,4)+1)&\"-\"&TEXT(VALUE(RIGHT(dms_FRCP_y8,2)+1),\"00\"),VALUE(LEFT(dms_FRCP_y8,4)+1))","v":"2023-24"},"dms_FRCP_y9",{"$f":"IF(dms_RPT=\"financial\",VALUE(LEFT(dms_CRCP_yS,4)-1)&\"-\"&TEXT(VALUE(MID(dms_CRCP_yS,3,2)),\"00\"),VALUE(LEFT(dms_CRCP_yS,4)-1))","v":"2006-07"},"dms_CRCP_yR",9,null,null,null,null,null,null,null,null,null,null,"number",null,null,null,null,null,null,null,null,null,null,"5 - STPIS Exclusion (3.3)(a)"]
[null,"PTRM update 7",null,null,10,"dms_FRCP_y10",10,"CRCP_y10",{"$f":"IF(dms_RPT=\"financial\",VALUE(LEFT(dms_FRCP_y9,4)+1)&\"-\"&TEXT(VALUE(RIGHT(dms_FRCP_y9,2)+1),\"00\"),VALUE(LEFT(dms_FRCP_y9,4)+1))","v":"2024-25"},"dms_FRCP_y10",{"$f":"IF(dms_RPT=\"financial\",VALUE(LEFT(dms_CRCP_yR,4)-1)&\"-\"&TEXT(VALUE(MID(dms_CRCP_yR,3,2)),\"00\"),VALUE(LEFT(dms_CRCP_yR,4)-1))","v":"2005-06"},"dms_CRCP_yQ",10,null,null,null,null,null,null,null,null,null,null,"%",null,null,null,null,null,null,null,null,null,null,"6 - STPIS Exclusion (3.3)(a)"]
[null,"Regulatory proposal",null,null,11,"dms_FRCP_y11",11,"CRCP_y11",{"$f":"IF(dms_RPT=\"financial\",VALUE(LEFT(dms_FRCP_y10,4)+1)&\"-\"&TEXT(VALUE(RIGHT(dms_FRCP_y10,2)+1),\"00\"),VALUE(LEFT(dms_FRCP_y10,4)+1))","v":"2025-26"},"dms_FRCP_y11",{"$f":"IF(dms_RPT=\"financial\",VALUE(LEFT(dms_CRCP_yQ,4)-1)&\"-\"&TEXT(VALUE(MID(dms_CRCP_yQ,3,2)),\"00\"),VALUE(LEFT(dms_CRCP_yQ,4)-1))","v":"2004-05"},"dms_CRCP_yP",11,null,null,null,null,null,null,null,null,null,null,"number",null,null,null,null,null,null,null,null,null,null,"7 - STPIS Exclusion (3.3)(a)"]
[null,"Reporting",null,null,12,"dms_FRCP_y12",12,"CRCP_y12",{"$f":"IF(dms_RPT=\"financial\",VALUE(LEFT(dms_FRCP_y11,4)+1)&\"-\"&TEXT(VALUE(RIGHT(dms_FRCP_y11,2)+1),\"00\"),VALUE(LEFT(dms_FRCP_y11,4)+1))","v":"2026-27"},"dms_FRCP_y12",{"$f":"IF(dms_RPT=\"financial\",VALUE(LEFT(dms_CRCP_yP,4)-1)&\"-\"&TEXT(VALUE(MID(dms_CRCP_yP,3,2)),\"00\"),VALUE(LEFT(dms_CRCP_yP,4)-1))","v":"2003-04"},"dms_CRCP_yO",12,null,null,null,null,null,null,null,null,null,null,"%"]
[null,"Revised regulatory proposal",null,null,13,"dms_FRCP_y13",13,"CRCP_y13",{"$f":"IF(dms_RPT=\"financial\",VALUE(LEFT(dms_FRCP_y12,4)+1)&\"-\"&TEXT(VALUE(RIGHT(dms_FRCP_y12,2)+1),\"00\"),VALUE(LEFT(dms_FRCP_y12,4)+1))","v":"2027-28"},"dms_FRCP_y13",{"$f":"IF(dms_RPT=\"financial\",VALUE(LEFT(dms_CRCP_yO,4)-1)&\"-\"&TEXT(VALUE(MID(dms_CRCP_yO,3,2)),\"00\"),VALUE(LEFT(dms_CRCP_yO,4)-1))","v":"2002-03"},"dms_CRCP_yN",13,null,null,null,null,null,null,null,null,null,null,"number"]
[null,"RFM annual update",null,null,14,"dms_FRCP_y14",14,"CRCP_y14",{"$f":"IF(dms_RPT=\"financial\",VALUE(LEFT(dms_FRCP_y13,4)+1)&\"-\"&TEXT(VALUE(RIGHT(dms_FRCP_y13,2)+1),\"00\"),VALUE(LEFT(dms_FRCP_y13,4)+1))","v":"2028-29"},"dms_FRCP_y14",{"$f":"IF(dms_RPT=\"financial\",VALUE(LEFT(dms_CRCP_yN,4)-1)&\"-\"&TEXT(VALUE(MID(dms_CRCP_yN,3,2)),\"00\"),VALUE(LEFT(dms_CRCP_yN,4)-1))","v":"2001-02"},"dms_CRCP_yM",14,null,null,null,null,null,null,null,null,null,null,"%"]
[null,null,null,null,15,"dms_FRCP_y15",15,"CRCP_y15",{"$f":"IF(dms_RPT=\"financial\",VALUE(LEFT(dms_FRCP_y14,4)+1)&\"-\"&TEXT(VALUE(RIGHT(dms_FRCP_y14,2)+1),\"00\"),VALUE(LEFT(dms_FRCP_y14,4)+1))","v":"2029-30"},"dms_FRCP_y15",{"$f":"IF(dms_RPT=\"financial\",VALUE(LEFT(dms_CRCP_yM,4)-1)&\"-\"&TEXT(VALUE(MID(dms_CRCP_yM,3,2)),\"00\"),VALUE(LEFT(dms_CRCP_yM,4)-1))","v":"2000-01"},"dms_CRCP_yL",15,null,null,null,null,null,null,null,null,null,null,"number"]
[]
[null,"dms_DataQuality_List",null,null,"These are drop down lists for businesses to select the correct FRCP_y1 on the business and other details worksheet.\nThis also populates the column headings in the worksheets"]
[null,"Actual",null,null,"dms_RCP_fyear_list","dms_CRY_ListF","dms_CRY_ListC","dms_RCP_cyear_list","dms_FRCP_fyear_list","dms_FRCP_ListF","dms_FRCP_ListC","dms_FRCP_cyear_list"]
[null,"Estimate",null,null,"dms_fy1","2006-07",2007,"dms_cy1","dms_frcp_fy1","2016-17","2017","dms_crcp_cy1"]
[null,"Consolidated",null,null,"dms_fy2","2007-08","2008","dms_cy2","dms_frcp_fy2","2017-18","2018","dms_crcp_cy2"]
[null,"Recast",null,null,"dms_fy3","2008-09","2009","dms_cy3","dms_frcp_fy3","2018-19","2019","dms_crcp_cy3"]
[null,"Public",null,null,"dms_fy4","2009-10","2010","dms_cy4","dms_frcp_fy4","2019-20","2020","dms_crcp_cy4"]
[null,null,null,null,"dms_fy5","2010-11","2011","dms_cy5","dms_frcp_fy5","2020-21","2021","dms_crcp_cy5"]
[null,null,null,null,"dms_fy6","2011-12","2012","dms_cy6","dms_frcp_fy6","2021-22","2022","dms_crcp_cy6"]
[null,null,null,null,"dms_fy7","2012-13","2013","dms_cy7","dms_frcp_fy7","2022-23","2023","dms_crcp_cy7"]
[null,null,null,null,"dms_fy8","2013-14","2014","dms_cy8","dms_frcp_fy8","2023-24","2024","dms_crcp_cy8"]
[null,null,null,null,"dms_fy9","2014-15","2015","dms_cy9","dms_frcp_fy9","2024-25","2025","dms_crcp_cy9"]
[null,null,null,null,"dms_fy10","2015-16","2016","dms_cy10","dms_frcp_fy10","2025-26","2026","dms_crcp_cy10"]
[null,null,null,null,"dms_fy11","2016-17","2017","dms_cy11","dms_frcp_fy11","2026-27","2027","dms_crcp_cy11"]
[null,null,null,null,"dms_fy12","2017-18","2018","dms_cy12","dms_frcp_fy12","2027-28","2028","dms_crcp_cy12"]
[null,null,null,null,"dms_fy13","2018-19",2019,"dms_cy13","dms_frcp_fy13","2028-29","2029","dms_crcp_cy13"]
[null,null,null,null,"dms_fy14","2019-20","2020","dms_cy14","dms_frcp_fy14","2029-30","2030","dms_crcp_cy14"]
[null,null,null,null,"dms_fy15","2020-21","2021","dms_cy15","dms_frcp_fy15","2030-31","2031","dms_crcp_cy15"]

{"sheet":"Instructions","index":1,"n_rows":27,"n_cols":4,"rows_kept":27,"cut":false,"hidden":false,"merged":[[25,2,25,3],[26,2,26,4],[8,2,8,4],[10,2,10,4],[12,2,12,4],[20,2,20,4],[22,2,22,4],[24,2,24,4],[7,2,7,3],[1,1,1,5],[2,1,2,5],[3,2,3,4],[4,2,4,4],[5,2,5,4]]}
[]
[null,"Transmission Network Service Provider"]
[null,"Historical Reporting RIN Template"]
[null,null,"This template is to be used by Powerlink to fulfil its reporting obligations to the AER."]
[null,null,"INSTRUCTIONS"]
[null,null,"Complete the Business & other details worksheet before entering data or values in any other worksheets. The Business & other details worksheet is linked to other worksheets within the workbook and automatically generates certain column headings and conditional formatting."]
[]
[null,null,"Identifying CONFIDENTIAL INFORMATION:\n\nPlease use the macro at the top of each \nworksheet to identify confidential information. \n\n"]
[null,null,"-Do this by selecting the cell or cells that contain confidential information and then run the Mark selection CONFIDENTIAL macro. This will format the cells a specific colour that is identified by the AER's database which in turn marks that information as confidential.\n\n-To reverse this, select the cell or cells and run the Return selection to NON-CONFIDENTIAL macro."]
[]
[null,null,"UNITS OF MEASURE\n\nAll amounts are to be unrounded and reported on a one for one basis: that is 1000 is to be entered as '1000'. Applicable units of measure may be identified in the table column headings or row descriptors.\n\n\n"]
[]
[null,null,"COLOUR CODING OF INPUT / NON-INPUT CELLS:"]
[null,null,null,"Yellow = Input cell (mandatory)"]
[null,null,null,"Darker yellow = input cell (mandatory)"]
[null,null,null,"Orange = input cell (if data available)"]
[null,null,null,"Grey = Not applicable/No inputs required"]
[null,null,null,". \nPLEASE DO NOT ENTER TEXT into cells that are to contain numeric data."]
[]
[]
[null,null,"WORKSHEET NAVIGATION\n\nMany tables in the worksheets have been \"grouped\" to allow for easy navigation. To ungroup or group data use the outline symbols in the left margin of excel (for Row groupings) or above the columns (for column groupings). \n\n\n\n"]
[]
[null,null,"RETURNING COMPLETED RESPONSES\n\nPlease return four (4) files to the AER: \n1. A confidential version which must contain a complete set of all responses with confidential information marked using the Mark selected cells CONFIDENTIAL macro and which has been completed using the locked template file provided by the AER. \n\n2. An actual and an estimate version with confidential information marked using the Mark selection CONFIDENTIAL macro and which has been completed using the locked template file provided by the AER.\n\n3. A public version with confidential information either removed completely or aggregated in some form together with writtten consent to disclose the public version of the response.\n\n\nUse the drop down box on the Business and other details worksheet to identify the file as either confidential ('consolidated') or public. "]
[]
[null,null,"SUBMITTING AMENDED DATA TO THE AER\n\nIf an NSP wishes to correct data previously submitted to the AER it should resubmit that data using the original completed submission as the starting point. Please make any necessary changes to the data. Data that is not being amended should be left unchanged. \n\nNSPs must identify the reason for the amendments in the Amendment Reason box on the  Business and other details worksheet. NSPs may provide further details regarding any amendments in the Amendments worksheet. \n\n."]
[null,null,"NSP may use Amended Data macro \nto highlight cells that contain amended data.\nNB: if data is also CONFIDENTIAL, re-apply \nthe Confidentiality macro after applying the \nAmended macro"]
[null,null,"Please resubmit two (2) files - a confidential version and a public version of the amended submission to the AER"]

{"sheet":"Contents","index":2,"n_rows":26,"n_cols":12,"rows_kept":26,"cut":false,"hidden":false,"merged":[]}
[null,"REGULATORY REPORTING STATEMENT"]
[null,{"$f":"INDEX(dms_TradingNameFull_List,MATCH(dms_TradingName,dms_TradingName_List))","v":"TransGrid"}]
[null,{"$f":"CONCATENATE((LOOKUP(dms_Model,dms_Model_List,dms_Worksheet_List))&\" \"&CRY)","v":"CATEGORY ANALYSIS 2015-16"}]
[null,"CONTENTS"]
[]
[]
[null,null,null,null,"1. Business details",null,null,null,null,null,null,"2. Expenditure"]
[]
[]
[]
[]
[]
[]
[]
[]
[]
[]
[]
[]
[]
[]
[]
[]
[]
[]
[null,null,null,null,"4. Network information",null,null,null,null,null,null,"5. Network information"]

{"sheet":"Business & other details","index":3,"n_rows":88,"n_cols":27,"rows_kept":88,"cut":false,"hidden":false,"merged":[[54,0,87,0],[82,4,82,8],[24,2,24,3],[24,4,24,7],[32,1,32,8],[49,2,49,3],[51,2,51,8],[23,4,23,7],[7,1,7,8],[11,1,11,8],[13,2,13,4],[14,2,14,4],[17,2,17,3],[17,4,17,7],[18,4,18,7],[19,2,19,3],[19,4,19,7],[22,2,22,3],[22,4,22,7]]}
[null,"REGULATORY REPORTING STATEMENT"]
[null,{"$f":"INDEX(dms_TradingNameFull_List,MATCH(dms_TradingName,dms_TradingName_List))","v":"TransGrid"}]
[null,{"$f":"CONCATENATE((LOOKUP(dms_Model,dms_Model_List,dms_Worksheet_List))&\" \"&CRY)","v":"CATEGORY ANALYSIS 2015-16"}]
[null,"BUSINESS & OTHER DETAILS"]
[]
[]
[null,"Instructions"]
[null,"Complete the following business details regulatory template before entering data or values in any other regulatory template. This regulatory template is linked to other cells within the spreadsheet and automatically generates column headings."]
[]
[null,"SUBMISSION PARTICULARS INPUT SHEETS"]
[]
[null,"ENTITY DETAILS"]
[]
[null,"Short name","TransGrid"]
[null,"ACN / ABN",{"$f":"INDEX(dms_ABN_List,MATCH(dms_TradingName,dms_TradingName_List))","v":609169959}]
[]
[]
[null,"Business address","Address 1",null,{"$f":"INDEX(dms_Addr1_List,MATCH(dms_TradingName,dms_TradingName_List))","v":"180 Thomas Street"}]
[null,null,null,"Address 2",{"$f":"IF(ISBLANK(INDEX(dms_Addr2_List,MATCH(dms_TradingName,dms_TradingName_List))),\"\",INDEX(dms_Addr2_List,MATCH(dms_TradingName,dms_TradingName_List)))","v":""}]
[null,null,"Suburb",null,{"$f":"INDEX(dms_Suburb_List,MATCH(dms_TradingName,dms_TradingName_List))","v":"HAYMARKET"}]
[null,null,null,"State",{"$f":"INDEX(dms_State_List,MATCH(dms_TradingName,dms_TradingName_List))","v":"NSW"},"p/code",{"$f":"INDEX(dms_PostCode_List,MATCH(dms_TradingName,dms_TradingName_List))","v":"2000"}]
[]
[null,"Postal address","Address 1",null,{"$f":"INDEX(dms_PAddr1_List,MATCH(dms_TradingName,dms_TradingName_List))","v":"PO Box A1000"}]
[null,null,null,"Address 2",{"$f":"IF(ISBLANK(INDEX(dms_PAddr2_List,MATCH(dms_TradingName,dms_TradingName_List))),\"\",INDEX(dms_PAddr2_List,MATCH(dms_TradingName,dms_TradingName_List)))","v":""}]
[null,null,"Suburb",null,{"$f":"INDEX(dms_PSuburb_List,MATCH(dms_TradingName,dms_TradingName_List))","v":"SYDNEY SOUTH"}]
[null,null,null,"State",{"$f":"INDEX(dms_PState_List,MATCH(dms_TradingName,dms_TradingName_List))","v":"NSW"},"p/code",1235]
[]
[]
[null,"Contact name/s","Garrie Chubb"]
[null,"Contact phone/s","02 9620 0407",null,null,null,null,null,null,null,null,null,null,null,null,null,null,null,null,null,null,null,null,null,null,null,"Tom Hallam"]
[null,"Contact email address/s","garrie.chubb@transgrid.com.au",null,null,null,null,null,null,null,null,null,null,null,null,null,null,null,null,null,null,null,null,null,null,null,"Tom Hallam"]
[]
[null,"REGULATORY CONTROL PERIODS"]
[]
[null,"Forthcoming regulatory control period","2015-16",{"$f":"dms_FRCP_y2","v":"2016-17"},{"$f":"dms_FRCP_y3","v":"2017-18"},{"$f":"dms_FRCP_y4","v":"2018-19"},{"$f":"dms_FRCP_y5","v":"2019-20"},{"$f":"dms_FRCP_y6","v":"2020-21"},{"$f":"IF(dms_RPT=\"financial\",VALUE(LEFT(FRCP_y6,4)+1)&\"-\"&VALUE(MID(FRCP_y6,3,2)+2),VALUE(LEFT(FRCP_y6,4)+1))","v":"2021-22"}]
[]
[]
[null,"Current regulatory control period",{"$f":"dms_CRCP_FirstYear_Result","v":"2010-11"},{"$f":"IF(dms_RPT=\"financial\",VALUE(LEFT(CRCP_y1,4)+1)&\"-\"&TEXT(VALUE(RIGHT(CRCP_y1,2)+1),\"0#\"),VALUE(LEFT(CRCP_y1,4)+1))","v":"2011-12"},{"$f":"IF(dms_RPT=\"financial\",VALUE(LEFT(CRCP_y2,4)+1)&\"-\"&TEXT(VALUE(RIGHT(CRCP_y2,2)+1),\"0#\"),VALUE(LEFT(CRCP_y2,4)+1))","v":"2012-13"},{"$f":"IF(dms_RPT=\"financial\",VALUE(LEFT(CRCP_y3,4)+1)&\"-\"&TEXT(VALUE(RIGHT(CRCP_y3,2)+1),\"0#\"),VALUE(LEFT(CRCP_y3,4)+1))","v":"2013-14"},{"$f":"IF(dms_RPT=\"financial\",VALUE(LEFT(CRCP_y4,4)+1)&\"-\"&TEXT(VALUE(RIGHT(CRCP_y4,2)+1),\"0#\"),VALUE(LEFT(CRCP_y4,4)+1))","v":"2014-15"},{"$f":"IF(dms_RPT=\"financial\",VALUE(LEFT(CRCP_y5,4)+1)&\"-\"&TEXT(VALUE(RIGHT(CRCP_y5,2)+1),\"0#\"),VALUE(LEFT(CRCP_y5,4)+1))","v":"2015-16"}]
[]
[]
[null,"Previous regulatory control period",{"$f":"IF(dms_RPT=\"financial\",VALUE(LEFT(PRCP_y2,4)-1)&\"-\"&TEXT(VALUE(MID(PRCP_y2,3,2)),\"0#\"),VALUE(LEFT(PRCP_y2,4)-1))","v":"2005-06"},{"$f":"IF(dms_RPT=\"financial\",VALUE(LEFT(PRCP_y3,4)-1)&\"-\"&TEXT(VALUE(MID(PRCP_y3,3,2)),\"0#\"),VALUE(LEFT(PRCP_y3,4)-1))","v":"2006-07"},{"$f":"IF(dms_RPT=\"financial\",VALUE(LEFT(PRCP_y4,4)-1)&\"-\"&TEXT(VALUE(MID(PRCP_y4,3,2)),\"0#\"),VALUE(LEFT(PRCP_y4,4)-1))","v":"2007-08"},{"$f":"IF(dms_RPT=\"financial\",VALUE(LEFT(PRCP_y5,4)-1)&\"-\"&TEXT(VALUE(RIGHT(PRCP_y5,2)-1),\"0#\"),VALUE(LEFT(PRCP_y5,4)-1))","v":"2008-09"},{"$f":"IF(dms_RPT=\"financial\",VALUE(LEFT(CRCP_y1,4)-1)&\"-\"&TEXT(VALUE(RIGHT(CRCP_y1,2)-1),\"0#\"),VALUE(LEFT(CRCP_y1,4)-1))","v":"2009-10"}]
[]
[]
[null,"Current regulatory year","2015-16","CRY"]
[]
[]
[null,null,"DELETE NR 'CRY' IF NOT AN ANNUAL RIN (EB, CA , ARR)"]
[null,null,"APPLY NR 'CRY' IF AN ANNUAL RIN (EB, CA , ARR)"]
[]
[null,"Source","Reporting",null,"Please select the correct submission type from the dropdown list."]
[null,"Data quality (actual, estimate, public, consolidated)","Public"]
[null,"Amended RIN submission - amendment reason"]
[null,"Submission Date","2016-10-28","dms_SubmissionDate","Please enter date this file submitted to AER (dd/mm/yyyy)"]
[null,"EBSS - First application of scheme in forthcoming period?","No"]
["HIDE THESE ROWS","Sector",{"$f":"INDEX(dms_Sector_List,MATCH(dms_TradingName,dms_TradingName_List))","v":"Electricity"},"dms_Sector","=INDEX(dms_Sector_List,MATCH(dms_TradingName,dms_TradingName_List))"]
[null,"Segment",{"$f":"INDEX(dms_Segment_List,MATCH(dms_TradingName,dms_TradingName_List))","v":"Transmission"},"dms_Segment","=INDEX(dms_Segment_List,MATCH(dms_TradingName,dms_TradingName_List))"]
[null,"Regulatory Year Ending",{"$f":"IF(dms_MultiYear_Flag=1,LEFT(dms_Specified_FinalYear,2)&RIGHT(dms_Specified_FinalYear,2),INDEX(dms_RYE_Formula_Result,MATCH(dms_Model,dms_Model_List)))","v":"2016"},"dms_RYE","=IF(dms_MultiYear_Flag=1,LEFT(dms_Specified_FinalYear,2)&RIGHT(dms_Specified_FinalYear,2),INDEX(dms_RYE_Formula_Result,MATCH(dms_Model,dms_Model_List)))"]
[null,"Reporting Period Type",{"$f":"INDEX(dms_RPT_List,MATCH(dms_TradingName,dms_TradingName_List))","v":"Financial"},"dms_RPT","=INDEX(dms_RPT_List,MATCH(dms_TradingName,dms_TradingName_List))"]
[null,"Model or RIN Type","CA","dms_Model","Drop down selection"]
[null,"Security Classification","Public","dms_Classification","Always Public"]
[null,"Template - version no.",5,"dms_TemplateNumber"]
[null,"Dollar $ real month",{"$f":"INDEX(dms_RPTMonth_List,MATCH(dms_TradingName,dms_TradingName_List))","v":"June"},"dms_RPTMonth","=INDEX(dms_RPTMonth_List,MATCH(dms_TradingName,dms_TradingName_List))"]
[null,"Dollar $ real  (the last month before the FRCP_y1)",{"$f":"IF(SUM(dms_SingleYear_Model)>0,CONCATENATE(dms_RPTMonth)&\" \"&VALUE((LEFT(CRY,2))&RIGHT(CRY,2)),CONCATENATE(dms_RPTMonth)&\" \"&VALUE((LEFT(dms_CRCP_FinalYear_Result,2))&RIGHT(dms_CRCP_FinalYear_Result,2)))","v":"June 2016"},"dms_DollarReal","=IF(SUM(dms_SingleYear_Model)>0,CONCATENATE(dms_RPTMonth)&\" \"&VALUE((LEFT(CRY,2))&RIGHT(CRY,2)),CONCATENATE(dms_RPTMonth)&\" \"&VALUE((LEFT(dms_CRCP_FinalYear_Result,2))&RIGHT(dms_CRCP_FinalYear_Result,2)))"]
[null,"Form of control",{"$f":"INDEX(dms_FormControl_List,MATCH(dms_TradingName,dms_TradingName_List))","v":"Revenue cap"},"dms_FormControl","=INDEX(dms_FormControl_List,MATCH(dms_TradingName,dms_TradingName_List))"]
[null,"RIN response - version no.",1,"dms_RINversion"]
[null,"Jurisdiction",{"$f":"INDEX(dms_JurisdictionList,MATCH(dms_TradingName,dms_TradingName_List))","v":"NSW"},"dms_Jurisdiction","=INDEX(dms_JurisdictionList,MATCH(dms_TradingName,dms_TradingName_List))"]
[null,"Backcast Multiyear EB, CA or ARR?",0,"dms_MultiYear_Flag","1=y, 0-n"]
[null,null,2013,"dms_Specified_FinalYear","The result here is returned to dms_CRCP_FinalYear_Result if dms_MultiYear_Flag is set to 1"]
[null,"Single Year Model T/F",{"$f":"IF(dms_Model=\"EB\",1,0)","v":0},"dms_EB"]
[null,null,{"$f":"IF(dms_Model=\"CA\",1,0)","v":1},"dms_CA","=dms_SingleYear_Model"]
[null,null,{"$f":"IF(dms_Model=\"ARR\",1,0)","v":0},"dms_ARR"]
[null,"Single Year Final Year Reference","CRY","dms_SingleYear_FinalYear_Ref","This is the reference for EB, CA & ARR RINs"]
[null,"Single Year Final Year Result",{"$f":"INDIRECT(dms_SingleYear_FinalYear_Ref)","v":"2015-16"},"dms_SingleYear_FinalYear_Result","=INDIRECT(dms_SingleYear_FinalYear_Ref)",null,null,null,"Formula errors OK"]
[null,"FRCP length in years",{"$f":"INDEX(dms_FRCPlength_List,MATCH(dms_TradingName,dms_TradingName_List))","v":4},"dms_FRCPlength_Num","=INDEX(dms_FRCPlength_List,MATCH(dms_TradingName,dms_TradingName_List))"]
[null,"Multi Year Final Year Reference",{"$f":"INDEX(dms_FinalYear_List,MATCH(dms_FRCPlength_Num,dms_FRCPlength_Num_List))","v":"dms_FRCP_y4"},"dms_MultiYear_FinalYear_Ref","=INDEX(dms_FinalYear_List,MATCH(dms_FRCPlength_Num,dms_FRCPlength_Num_List))"]
[null,"Multi Year Final Year Result",{"$f":"IF(dms_MultiYear_Flag=0,INDIRECT(dms_MultiYear_FinalYear_Ref),dms_Specified_FinalYear)","v":"2018-19"},"dms_MultiYear_FinalYear_Result","=IF(dms_MultiYear_Flag=0,INDIRECT(dms_MultiYear_FinalYear_Ref),dms_Specified_FinalYear)",null,null,null,"Formula errors OK"]
[null,"CRCP length in years",{"$f":"INDEX(dms_CRCPlength_List,MATCH(dms_TradingName,dms_TradingName_List))","v":5},"dms_CRCPlength_Num","=INDEX(dms_CRCPlength_List,MATCH(dms_TradingName,dms_TradingName_List))"]
[null,"CRCP Final Year Reference",{"$f":"INDEX(dms_CFinalYear_List,MATCH(dms_CRCPlength_Num,dms_CRCPlength_Num_List))","v":"CRCP_y5"},"dms_CRCP_FinalYear_Ref","=INDEX(dms_CFinalYear_List,MATCH(dms_CRCPlength_Num,dms_CRCPlength_Num_List))"]
[null,"CRCP First Year Result",{"$f":"INDEX(dms_CRCP_years,MATCH(dms_CRCPlength_Num,dms_CRCP_index))","v":"2010-11"},"dms_CRCP_FirstYear_Result","=INDEX(dms_CRCP_years,MATCH(dms_CRCPlength_Num,dms_CRCP_index))"]
[null,"CRCP Final Year Result",{"$f":"IF(dms_MultiYear_Flag=0,(IF(SUM(dms_SingleYear_Model)>0,CRY,dms_CRCP_yZ)),dms_Specified_FinalYear)","v":"2015-16"},"dms_CRCP_FinalYear_Result","=IF(dms_MultiYear_Flag=0,(IF(SUM(dms_SingleYear_Model)>0,CRY,dms_CRCP_yZ)),dms_Specified_FinalYear)"]
[null,"Table 6.6.3 - Public lighting repair - no. business days",{"$f":"INDEX(dms_663_List,MATCH(dms_TradingName,dms_TradingName_List))","v":5},"dms_663"]
[null,"Distribution Determination Reference",{"$f":"INDEX(dms_DeterminationRef_List,MATCH(dms_TradingName,dms_TradingName_List))","v":"transmission determination"}]
[null,"Backcast templates only - unit of measure ","$0s","dms_Backcast_UOM","If the cover sheet is for Backcast data ensure to apply dms_Backcast_UOM named range to this field. Otherwise, do not apply this named range."]
[null,"EB/CA Unit of Measure for Monetary Values","$0s","dms_dollar_nom_UOM","If the cover sheet is attached to an EB files make sure this field is set"]
[]
[null,"discard this record?","NO","dms_DISCARD","If record is to be discarded from DB set this flag to YES"]
[]
[null,"USES NAMED RANGES FLAG","yes","dms_Defined_Names_Used"]

{"sheet":"2.1 Expenditure summary","index":4,"n_rows":59,"n_cols":3,"rows_kept":59,"cut":false,"hidden":false,"merged":[]}
[null,"REGULATORY REPORTING STATEMENT"]
[null,{"$f":"INDEX(dms_TradingNameFull_List,MATCH(dms_TradingName,dms_TradingName_List))","v":"TransGrid"}]
[null,{"$f":"CONCATENATE((LOOKUP(dms_Model,dms_Model_List,dms_Worksheet_List))&\" \"&CRY)","v":"CATEGORY ANALYSIS 2015-16"}]
[null,"2.1 EXPENDITURE SUMMARY AND RECONCILIATION"]
[]
[null,"There are TWO tables on this worksheet. Each has been grouped for ease of navigation. See the Instructions sheet on how to group or ungroup tables. "]
[]
[null,"2.1.1 - PRESCRIBED TRANSMISSION SERVICES CAPEX (as incurred)"]
[null,null,"Actual \n($0's)"]
[null,null,{"$f":"CRY","v":"2015-16"}]
[null,"Replacement expenditure",136643902]
[null,"Connections",1761176]
[null,"Augmentation Expenditure",53100579]
[null,"Non-network",20695883]
[null,"Capitalised network overheads",26897318]
[null,"Capitalised corporate overheads",2254525]
[]
[]
[]
[]
[]
[]
[]
[]
[]
[]
[]
[]
[]
[]
[]
[null,"balancing item",5526957.6900000004]
[null,"TOTAL  CAPEX",{"$f":"+SUM(C11:C32)","v":246880340.69}]
[]
[null,"2.1.2 - PRESCRIBED TRANSMISSION SERVICE OPEX "]
[null,null,"Actual \n($0's)"]
[null,null,{"$f":"CRY","v":"2015-16"}]
[null,"Vegetation management",{"$f":"SUM(dms_020702_01_Values)","v":13321189.240000021}]
[null,"Maintenance",53555714.799999975]
[null,"Non-network",0]
[null,"Network overheads",23101357]
[null,"Corporate overheads",79556227]
[]
[]
[]
[]
[]
[]
[]
[]
[]
[]
[]
[]
[]
[]
[]
[null,"balancing item"]
[null,"TOTAL OPEX",{"$f":"SUM(C38:C58)","v":169534488.03999999}]

{"sheet":"2.2 Repex","index":5,"n_rows":249,"n_cols":6,"rows_kept":249,"cut":false,"hidden":false,"merged":[[167,1,178,1],[84,1,119,1],[10,1,24,1],[25,1,39,1],[40,1,61,1],[62,1,83,1],[120,1,144,1],[145,1,166,1]]}
[null,"REGULATORY REPORTING STATEMENT"]
[null,{"$f":"INDEX(dms_TradingNameFull_List,MATCH(dms_TradingName,dms_TradingName_List))","v":"TransGrid"}]
[null,{"$f":"CONCATENATE((LOOKUP(dms_Model,dms_Model_List,dms_Worksheet_List))&\" \"&CRY)","v":"CATEGORY ANALYSIS 2015-16"}]
[null,"2.2 REPEX"]
[]
[null,"There are TWO tables (with three sub-tables each) on this worksheet. Each table has been grouped (and sub-grouped) for ease of navigation. See the Instructions sheet on how to group or ungroup data."]
[]
[null,"2.2.1 - REPLACEMENT EXPENDITURE, VOLUMES AND ASSET FAILURES BY ASSET CATEGORY"]
[null,null,null,"EXPENDITURE ($0's)","ASSET REPLACEMENTS ","ASSET FAILURES  "]
[null,"ASSET GROUP","ASSET CATEGORY",{"$f":"CRY","v":"2015-16"},{"$f":"CRY","v":"2015-16"},{"$f":"CRY","v":"2015-16"}]
[null,"TRANSMISSION TOWERS\nHighest operating voltage; Circuit configuration","< = 33 kV ; Single Circuit",null,0,0]
[null,null,"> 33 kV & < = 66 kV ; Single Circuit",null,0,0]
[null,null,"> 66 kV & < = 132 kV ; Single Circuit",null,26,0]
[null,null,"> 132 kV & < = 275 kV ; Single Circuit",null,0,0]
[null,null,"> 275 kV & < = 330 kV ; Single Circuit",null,0,0]
[null,null,"> 330 kV & < = 500 kV ; Single Circuit",null,0,0]
[null,null,"> 500 kV ; Single Circuit",null,0,0]
[null,null,"< = 33 kV ; Multiple Circuit",null,0,0]
[null,null,"> 33 kV & < = 66 kV ; Multiple Circuit",null,0,0]
[null,null,"> 66 kV & < = 132 kV ; Multiple Circuit",null,0,0]
[null,null,"> 132 kV & < = 275 kV ; Multiple Circuit",null,0,0]
[null,null,"> 275 kV & < = 330 kV ; Multiple Circuit",null,0,0]
[null,null,"> 330 kV & < = 500 kV ; Multiple Circuit",null,0,0]
[null,null,"> 500 kV ; Multiple Circuit",null,0,0]
[null,null,"Other",null,1,0]
[null,"TRANSMISSION TOWER SUPPORT STRUCTURES BY:\nHighest operating voltage; Circuit configuration","< = 33 kV ; Single Circuit",null,0,0]
[null,null,"> 33 kV & < = 66 kV ; Single Circuit",null,0,0]
[null,null,"> 66 kV & < = 132 kV ; Single Circuit",null,53,0]
[null,null,"> 132 kV & < = 275 kV ; Single Circuit",null,0,0]
[null,null,"> 275 kV & < = 330 kV ; Single Circuit",null,0,2]
[null,null,"> 330 kV & < = 500 kV ; Single Circuit",null,0,0]
[null,null,"> 500 kV ; Single Circuit",null,0,0]
[null,null,"< = 33 kV ; Multiple Circuit",null,0,0]
[null,null,"> 33 kV & < = 66 kV ; Multiple Circuit",null,0,0]
[null,null,"> 66 kV & < = 132 kV ; Multiple Circuit",null,0,1]
[null,null,"> 132 kV & < = 275 kV ; Multiple Circuit",null,0,0]
[null,null,"> 275 kV & < = 330 kV ; Multiple Circuit",null,0,0]
[null,null,"> 330 kV & < = 500 kV ; Multiple Circuit",null,0,0]
[null,null,"> 500 kV ; Multiple Circuit",null,0,0]
[null,null,"Other",null,0,0]
[null,"CONDUCTORS BY: \nVoltage; Maximum continuous rating","< = 33 kV ; < = 100 MVA",null,0,0]
[null,null,"< = 33 kV ; > 100 MVA & < = 400 MVA",null,0,0]
[null,null,"< = 33 kV ; > 400 MVA",null,0,0]
[null,null,"> 33 kV & < = 66 kV ; < = 100 MVA",null,0,0]
[null,null,"> 33 kV & < = 66 kV ; > 100 MVA & < = 400 MVA",null,0,0]
[null,null,"> 33 kV & < = 66 kV ; > 400 MVA",null,0,0]
[null,null,"> 66 kV & < = 132 kV ; < = 100 MVA",null,0,0]
[null,null,"> 66 kV & < = 132 kV ; > 100 MVA & < = 400 MVA",null,1.4219999999999999,0]
[null,null,"> 66 kV & < = 132 kV ; > 400 MVA",null,0,0]
[null,null,"> 132 kV & < = 275 kV ; < = 200 MVA",null,0,0]
[null,null,"> 132 kV & < = 275 kV ; > 200 MVA & < = 600 MVA",null,0,0]
[null,null,"> 132 kV & < = 275 kV ; > 600 MVA",null,0,0]
[null,null,"> 275 kV & < = 330 kV ; < = 800 MVA",null,0,0]
[null,null,"> 275 kV & < = 330 kV ; > 800 MVA & < = 1200 MVA",null,0,0]
[null,null,"> 275 kV & < = 330 kV ; > 1200 MVA",null,0,0]
[null,null,"> 330 kV & < = 500 kV ; < = 1000 MVA",null,0,0]
[null,null,"> 330 kV & < = 500 kV ; > 1000 MVA & < = 1500 MVA",null,0,0]
[null,null,"> 330 kV & < = 500 kV ; > 1500 MVA",null,0,0]
[null,null,"> 500 kV ; < = 2000 MVA",null,0,0]
[null,null,"> 500 kV ; > 2000 MVA & < = 3000 MVA",null,0,0]
[null,null,"> 500 kV ; > 3000 MVA",null,0,0]
[null,null,"Other",null,0,0]
[null,"TRANSMISSION CABLES BY: \nHighest operating voltage; Insulation type","< = 33 kV ; Oil Filled",null,0,0]
[null,null,"> 33 kV & < = 66 kV ; Oil Filled",null,0,0]
[null,null,"> 66 kV & < = 132 kV ; Oil Filled",null,0,0]
[null,null,"> 132 kV & < = 275 kV ; Oil Filled",null,0,0]
[null,null,"> 275 kV & < = 330 kV ; Oil Filled",null,0,0]
[null,null,"> 330 kV & < = 500 kV ; Oil Filled",null,0,0]
[null,null,"> 500 kV ; Oil Filled",null,0,0]
[null,null,"< = 33 kV ; XLPE Insulated",null,0,0]
[null,null,"> 33 kV & < = 66 kV ; XLPE Insulated",null,0,0]
[null,null,"> 66 kV & < = 132 kV ; XLPE Insulated",null,0,0]
[null,null,"> 132 kV & < = 275 kV ; XLPE Insulated",null,0,0]
[null,null,"> 275 kV & < = 330 kV ; XLPE Insulated",null,0,0]
[null,null,"> 330 kV & < = 500 kV ; XLPE Insulated",null,0,0]
[null,null,"> 500 kV ; XLPE Insulated",null,0,0]
[null,null,"< = 33 kV ; Other Insulated",null,0,0]
[null,null,"> 33 kV & < = 66 kV ; Other Insulated",null,0,0]
[null,null,"> 66 kV & < = 132 kV ; Other Insulated",null,0,0]
[null,null,"> 132 kV & < = 275 kV ; Other Insulated",null,0,0]
[null,null,"> 275 kV & < = 330 kV ; Other Insulated",null,0,0]
[null,null,"> 330 kV & < = 500 kV ; Other Insulated",null,0,0]
[null,null,"> 500 kV ; Other Insulated",null,0,0]
[null,null,"Other",null,0,0]
[null,"SUBSTATION SWITCHBAYS BY: \nHighest operating voltage; Switch type","< = 33 kV ; Air Insulated circuit Breaker",null,0,0]
[null,null,"> 33 kV & < = 66 kV ; Air Insulated circuit Breaker",null,17,2]
[null,null,"> 66 kV & < = 132 kV ; Air Insulated circuit Breaker",null,17,1]
[null,null,"> 132 kV & < = 275 kV ; Air Insulated circuit Breaker",null,0,1]
[null,null,"> 275 kV & < = 330 kV ; Air Insulated circuit Breaker",null,8,8]
[null,null,"> 330 kV & < = 500 kV ; Air Insulated circuit Breaker",null,3,0]
[null,null,"> 500 kV ; Air Insulated circuit Breaker",null,0,0]
[null,null,"< = 33 kV ; Air Insulated Isolators / Earth Switch",null,1,0]
[null,null,"> 33 kV & < = 66 kV ; Air Insulated Isolators / Earth Switch",null,33,1]
[null,null,"> 66 kV & < = 132 kV ; Air Insulated Isolators / Earth Switch",null,46,3]
[null,null,"> 132 kV & < = 275 kV ; Air Insulated Isolators / Earth Switch",null,0,0]
[null,null,"> 275 kV & < = 330 kV ; Air Insulated Isolators / Earth Switch",null,57,2]
[null,null,"> 330 kV & < = 500 kV ; Air Insulated Isolators / Earth Switch",null,0,0]
[null,null,"> 500 kV ; Air Insulated Isolators / Earth Switch",null,0,0]
[null,null,"< = 33 kV ; VT",null,0,0]
[null,null,"> 33 kV & < = 66 kV ; VT",null,66,0]
[null,null,"> 66 kV & < = 132 kV ; VT",null,24,2]
[null,null,"> 132 kV & < = 275 kV ; VT",null,6,0]
[null,null,"> 275 kV & < = 330 kV ; VT",null,0,1]
[null,null,"> 330 kV & < = 500 kV ; VT",null,0,0]
[null,null,"> 500 kV ; VT",null,0,0]
[null,null,"< = 33 kV ; CT",null,0,0]
[null,null,"> 33 kV & < = 66 kV ; CT",null,0,0]
[null,null,"> 66 kV & < = 132 kV ; CT",null,9,0]
[null,null,"> 132 kV & < = 275 kV ; CT",null,0,0]
[null,null,"> 275 kV & < = 330 kV ; CT",null,36,2]
[null,null,"> 330 kV & < = 500 kV ; CT",null,0,0]
[null,null,"> 500 kV ; CT",null,0,0]
[null,null,"< = 33 kV ; GIS Module",null,0,0]
[null,null,"> 33 kV & < = 66 kV ; GIS Module",null,0,0]
[null,null,"> 66 kV & < = 132 kV ; GIS Module",null,0,1]
[null,null,"> 132 kV & < = 275 kV ; GIS Module",null,0,0]
[null,null,"> 275 kV & < = 330 kV ; GIS Module",null,0,0]
[null,null,"> 330 kV & < = 500 kV ; GIS Module",null,0,0]
[null,null,"> 500 kV ; GIS Module",null,0,0]
[null,null,"Other",null,5,2]
[null,"SUBSTATION POWER TRANSFORMERS BY: \nHighest operating voltage;  Ampere rating","< = 33 kV ; < = 10 MVA",null,0,0]
[null,null,"< = 33 kV ; > 10 MVA & < = 30 MVA",null,0,0]
[null,null,"< = 33 kV ; > 30 MVA",null,0,0]
[null,null,"> 33 kV & < = 66 kV ; < = 10 MVA",null,0,0]
[null,null,"> 33 kV & < = 66 kV ; > 10 MVA & < = 30 MVA",null,0,0]
[null,null,"> 33 kV & < = 66 kV ; > 30 MVA",null,0,0]
[null,null,"> 66 kV & < = 132 kV ; < = 30 MVA",null,0,0]
[null,null,"> 66 kV & < = 132 kV ; > 30 MVA & < = 60 MVA",null,2,0]
[null,null,"> 66 kV & < = 132 kV ; > 60 MVA",null,2,0]
[null,null,"> 132 kV & < = 220 kV ; < = 50 MVA",null,0,0]
[null,null,"> 132 kV & < = 220 kV ; > 50 MVA & < = 100 MVA",null,0,0]
[null,null,"> 132 kV & < = 220 kV ; > 100 MVA",null,0,0]
[null,null,"> 220 kV & < = 275 kV ; < = 50 MVA",null,0,0]
[null,null,"> 220 kV & < = 275 kV ; > 50 MVA & < = 100 MVA",null,0,0]
[null,null,"> 220 kV & < = 275 kV ; > 100 MVA",null,0,0]
[null,null,"> 275 kV & < = 330 kV ; < = 100 MVA",null,0,0]
[null,null,"> 275 kV & < = 330 kV ; > 100 MVA & < = 250 MVA",null,0,0]
[null,null,"> 275 kV & < = 330 kV ; > 250 MVA",null,0,1]
[null,null,"> 330 kV & < = 500 kV ; < = 150 MVA",null,0,0]
[null,null,"> 330 kV & < = 500 kV ; > 150 MVA & < = 300 MVA",null,0,0]
[null,null,"> 330 kV & < = 500 kV ; > 300 MVA",null,0,0]
[null,null,"> 500 kV ; < = 1000 MVA",null,0,0]
[null,null,"> 500 kV ; > 1000 MVA & < = 1500 MVA",null,0,0]
[null,null,"> 500 kV ; > 1500 MVA",null,0,0]
[null,null,"Other",null,2,0]
[null,"SUBSTATION REACTIVE PLANT BY: \nHighest operating voltage; Function","< = 33 kV ; SVCS",null,0,5]
[null,null,"> 33 kV & < = 66 kV ; SVCS",null,0,0]
[null,null,"> 66 kV & < = 132 kV ; SVCS",null,0,1]
[null,null,"> 132 kV & < = 275 kV ; SVCS",null,0,0]
[null,null,"> 275 kV & < = 330 kV ; SVCS",null,0,2]
[null,null,"> 330 kV & < = 500 kV ; SVCS",null,0,0]
[null,null,"> 500 kV ; SVCS",null,0,0]
[null,null,"< = 33 kV ; Capacitors",null,0,0]
[null,null,"> 33 kV & < = 66 kV ; Capacitors",null,0,1]
[null,null,"> 66 kV & < = 132 kV ; Capacitors",null,1,1]
[null,null,"> 132 kV & < = 275 kV ; Capacitors",null,0,0]
[null,null,"> 275 kV & < = 330 kV ; Capacitors",null,0,0]
[null,null,"> 330 kV & < = 500 kV ; Capacitors",null,0,0]
[null,null,"> 500 kV ; Capacitors",null,0,0]
[null,null,"< = 33 kV ; Oil Filled Reactors",null,0,0]
[null,null,"> 33 kV & < = 66 kV ; Oil Filled Reactors",null,0,0]
[null,null,"> 66 kV & < = 132 kV ; Oil Filled Reactors",null,0,1]
[null,null,"> 132 kV & < = 275 kV ; Oil Filled Reactors",null,3,0]
[null,null,"> 275 kV & < = 330 kV ; Oil Filled Reactors",null,0,1]
[null,null,"> 330 kV & < = 500 kV ; Oil Filled Reactors",null,0,0]
[null,null,"> 500 kV ; Oil Filled Reactors",null,0,0]
[null,null,"Other",null,null,3]
[null,"SCADA, NETWORK CONTROL AND PROTECTION SYSTEMS BY:\nFunction","Communications Network Assets",null,74,3]
[null,null,"Master Station Assets",null,0]
[null,null,"Control equipment / systems",null,94,9]
[null,null,"Infrastructure: protection and control",null,9]
[null,null,"Metering systems",null,25,0]
[null,null,"OPGW",null,86.5]
[null,null,"Protection schemes / systems",null,212,17]
[null,null,"Site establishment",null,18]
[null,null,"Station SCADA and control systems",null,0]
[null,null,"Telecommunications Network / Systems",null,0]
[null,null,"Total secondary systems",null,0]
[null,null,"Other",null,40]
[null,"OTHER BY: \nTNSP defined","Oil containment",null,4]
[null,null,"Fences and Gates",null,7]
[null,null,"Buildings",null,9]
[null,null,"Substation civil works",null,3]
[null,null,"Buildings REFURBISHMENT",null,1]
[null,null,"Other - Busbar",null,3]
[null,null,"Other  - Gantries",null,1]
[null,null,"Other - Line traps 132kV",null,10]
[null,null,"Other - Aux tx",null,4]
[null,null,"Other - earthgrid",null,1]
[null,null,"Other - Fire prot & Security",null,2]
[null,null,"Other - misc power & lighting",null,3]
[null,null,"Other - property",null,2]
[null,null,"> 275 kV & < = 330 kV ; Single Circuit REFURBISHMENT",null,11]
[null,null,"> 275 kV & < = 330 kV ; SVCS REFURBISHMENT (valves, cooling & associated secondaries only)",null,1]
[]
[]
[]
[]
[]
[]
[]
[]
[]
[]
[]
[]
[]
[]
[]
[]
[null,"2.2.2 - SELECTED ASSET CHARACTERISTICS"]
[null,null,null,"ASSET VOLUMES CURRENTLY IN COMMISSION","ASSET REPLACEMENTS "]
[null,"ASSET GROUP","ASSET CATEGORY",{"$f":"CRY","v":"2015-16"},{"$f":"CRY","v":"2015-16"}]
[null,"CONDUCTORS BY: \nCONDUCTOR LENGTH MATERIAL TYPE","AAAC",1187.2678989999999,0.73]
[null,null,"AAC",1.0051999819999999]
[null,null,"ACAR"]
[null,null,"ACSR",11768.650799999999,0.69199999999999995]
[null,null,"HD Cu"]
[]
[]
[]
[]
[]
[]
[]
[]
[]
[]
[]
[]
[]
[]
[]
[]
[]
[]
[]
[]
[]
[]
[]
[]
[]
[]
[]
[]
[null,"SUBSTATION REACTIVE PLANT BY:\nREACTIVE CAPACITY","Total MVAr by SVCs",765,0]
[null,null,"Total MVAr by Capacitors",6883,1]
[null,null,"Total MVAr by Oil Filled Reactors",2018,3]

{"sheet":"2.3 Augex","index":6,"n_rows":212,"n_cols":35,"rows_kept":212,"cut":false,"hidden":false,"merged":[[139,3,141,3],[139,6,141,6],[139,5,141,5],[139,4,141,4],[139,7,140,10],[140,16,140,17],[140,20,141,20],[138,11,138,24],[28,2,34,2],[28,3,34,3],[28,4,34,4],[28,5,34,5],[28,6,34,6],[28,7,34,7],[60,2,66,2],[60,3,66,3],[60,4,66,4],[60,5,66,5],[60,6,66,6],[60,7,66,7],[60,8,66,8],[52,8,58,8],[52,9,58,9],[52,10,58,10],[92,4,98,4],[92,5,98,5],[92,6,98,6],[10,18,10,21],[9,11,9,24],[10,23,10,24],[11,20,11,21],[20,6,26,6],[20,7,26,7],[20,8,26,8],[20,9,26,9],[20,10,26,10],[92,7,98,7],[92,8,98,8],[5,1,5,3],[9,32,9,33],[10,1,11,1],[10,2,11,2],[10,3,11,3],[10,4,11,4],[10,5,11,5],[10,6,11,6],[10,7,10,8],[10,9,10,10],[10,11,10,14],[9,1,9,10],[9,25,9,26],[9,27,11,27],[9,28,11,28],[9,29,9,31],[10,15,10,17],[11,25,11,26],[11,29,11,31],[11,32,11,33],[12,1,18,1],[12,2,18,2],[20,1,26,1],[20,2,26,2],[20,3,26,3],[20,4,26,4],[20,5,26,5],[12,9,18,9],[12,10,18,10],[12,3,18,3],[12,4,18,4],[12,5,18,5],[12,6,18,6],[12,7,18,7],[12,8,18,8],[12,33,18,33],[12,27,18,27],[12,28,18,28],[20,29,26,29],[20,30,26,30],[20,31,26,31],[12,25,18,25],[12,26,18,26],[12,29,18,29],[12,30,18,30],[12,31,18,31],[12,32,18,32],[20,26,26,26],[20,25,26,25],[20,28,26,28],[28,30,34,30],[28,31,34,31],[28,32,34,32],[28,33,34,33],[28,27,34,27],[28,28,34,28],[20,32,26,32],[20,33,26,33],[20,27,26,27],[28,29,34,29],[36,1,42,1],[36,2,42,2],[36,3,42,3],[36,4,42,4],[36,5,42,5],[28,9,34,9],[28,10,34,10],[28,25,34,25],[28,26,34,26],[28,1,34,1],[28,8,34,8],[36,32,42,32],[36,33,42,33],[36,27,42,27],[36,28,42,28],[36,29,42,29],[36,30,42,30],[36,31,42,31],[44,2,50,2],[44,3,50,3],[44,4,50,4],[44,5,50,5],[44,6,50,6],[44,7,50,7],[44,8,50,8],[36,26,42,26],[36,6,42,6],[36,7,42,7],[36,8,42,8],[36,9,42,9],[36,10,42,10],[36,25,42,25],[44,29,50,29],[44,30,50,30],[44,31,50,31],[44,32,50,32],[44,33,50,33],[52,1,58,1],[52,2,58,2],[52,3,58,3],[52,4,58,4],[52,5,58,5],[44,9,50,9],[44,10,50,10],[44,25,50,25],[44,26,50,26],[44,27,50,27],[44,28,50,28],[52,32,58,32],[52,33,58,33],[52,27,58,27],[52,28,58,28],[52,29,58,29],[52,30,58,30],[52,31,58,31],[44,1,50,1],[52,26,58,26],[52,6,58,6],[52,7,58,7],[52,25,58,25],[60,29,66,29],[60,30,66,30],[60,31,66,31],[60,32,66,32],[60,33,66,33],[68,1,74,1],[68,2,74,2],[68,3,74,3],[68,4,74,4],[68,5,74,5],[60,9,66,9],[60,10,66,10],[60,25,66,25],[60,26,66,26],[60,27,66,27],[60,28,66,28],[68,32,74,32],[68,33,74,33],[68,27,74,27],[68,28,74,28],[68,29,74,29],[68,30,74,30],[68,31,74,31],[60,1,66,1],[76,2,82,2],[76,3,82,3],[76,4,82,4],[76,5,82,5],[76,6,82,6],[76,7,82,7],[76,8,82,8],[68,26,74,26],[68,6,74,6],[68,7,74,7],[68,8,74,8],[68,9,74,9],[68,10,74,10],[68,25,74,25],[76,29,82,29],[76,30,82,30],[76,31,82,31],[76,32,82,32],[76,33,82,33],[84,1,90,1],[84,2,90,2],[84,3,90,3],[84,4,90,4],[84,5,90,5],[76,9,82,9],[76,10,82,10],[76,25,82,25],[76,26,82,26],[76,27,82,27],[76,28,82,28],[84,32,90,32],[84,33,90,33],[84,27,90,27],[84,28,90,28],[84,29,90,29],[84,30,90,30],[84,31,90,31],[76,1,82,1],[84,26,90,26],[84,6,90,6],[84,7,90,7],[84,8,90,8],[84,9,90,9],[84,10,90,10],[84,25,90,25],[92,29,98,29],[92,30,98,30],[92,31,98,31],[92,32,98,32],[92,33,98,33],[100,1,106,1],[100,2,106,2],[100,3,106,3],[100,4,106,4],[100,5,106,5],[92,9,98,9],[92,10,98,10],[92,25,98,25],[92,26,98,26],[92,27,98,27],[92,28,98,28],[100,32,106,32],[100,33,106,33],[100,27,106,27],[100,28,106,28],[100,29,106,29],[100,30,106,30],[100,31,106,31],[92,1,98,1],[92,2,98,2],[92,3,98,3],[108,2,114,2],[108,3,114,3],[108,4,114,4],[108,5,114,5],[108,6,114,6],[108,7,114,7],[108,8,114,8],[100,26,106,26],[100,6,106,6],[100,7,106,7],[100,8,106,8],[100,9,106,9],[100,10,106,10],[100,25,106,25],[108,29,114,29],[108,30,114,30],[108,31,114,31],[108,32,114,32],[108,33,114,33],[116,1,122,1],[116,2,122,2],[116,3,122,3],[116,4,122,4],[116,5,122,5],[108,9,114,9],[108,10,114,10],[108,25,114,25],[108,26,114,26],[108,27,114,27],[108,28,114,28],[116,32,122,32],[116,33,122,33],[116,27,122,27],[116,28,122,28],[116,29,122,29],[116,30,122,30],[116,31,122,31],[108,1,114,1],[124,1,130,1],[124,2,130,2],[124,3,130,3],[124,4,130,4],[124,5,130,5],[124,6,130,6],[124,7,130,7],[124,8,130,8],[116,26,122,26],[116,6,122,6],[116,7,122,7],[116,8,122,8],[116,9,122,9],[116,10,122,10],[116,25,122,25],[124,29,130,29],[124,30,130,30],[124,31,130,31],[124,32,130,32],[124,33,130,33],[132,3,132,10],[124,9,130,9],[124,10,130,10],[124,25,130,25],[124,26,130,26],[124,27,130,27],[124,28,130,28],[139,1,141,1],[133,3,133,10],[138,1,138,10],[138,32,138,33],[138,27,141,27],[141,29,141,31],[141,32,141,33],[139,29,140,29],[139,30,140,30],[139,31,140,31],[139,32,140,32],[139,33,140,33],[138,28,141,28],[138,29,138,31],[140,21,141,21],[138,25,138,26],[139,25,140,25],[139,26,140,26],[141,25,141,26],[139,23,140,24],[139,22,140,22],[140,18,140,19],[139,11,140,14],[139,15,139,21],[158,29,164,29],[158,30,164,30],[150,27,156,27],[150,28,156,28],[150,29,156,29],[150,30,156,30],[150,31,156,31],[142,33,148,33],[142,28,148,28],[142,29,148,29],[142,30,148,30],[142,31,148,31],[142,32,148,32],[158,31,164,31],[158,32,164,32],[158,33,164,33],[150,32,156,32],[150,33,156,33],[174,29,180,29],[174,30,180,30],[174,31,180,31],[174,32,180,32],[182,29,188,29],[182,30,188,30],[166,32,172,32],[166,33,172,33],[174,1,180,1],[166,27,172,27],[166,28,172,28],[166,29,172,29],[166,30,172,30],[166,31,172,31],[166,1,172,1],[174,33,180,33],[190,31,196,31],[190,32,196,32],[190,33,196,33],[190,27,196,27],[190,28,196,28],[190,29,196,29],[190,30,196,30],[182,31,188,31],[182,32,188,32],[182,33,188,33],[182,27,188,27],[142,4,148,4],[150,4,156,4],[158,4,164,4],[166,4,172,4],[174,4,180,4],[182,4,188,4],[190,4,196,4],[190,1,196,1],[182,28,188,28],[158,1,164,1],[142,27,148,27],[150,1,156,1],[142,1,148,1],[158,27,164,27],[158,28,164,28],[182,1,188,1],[174,27,180,27],[174,28,180,28]]}
[null,"REGULATORY REPORTING STATEMENT"]
[null,{"$f":"INDEX(dms_TradingNameFull_List,MATCH(dms_TradingName,dms_TradingName_List))","v":"TransGrid"}]
[null,{"$f":"CONCATENATE((LOOKUP(dms_Model,dms_Model_List,dms_Worksheet_List))&\" \"&CRY)","v":"CATEGORY ANALYSIS 2015-16"}]
[null,"2.3 AUGEX PROJECTS"]
[]
[null,"There are THREE tables on this worksheet - each has been 'grouped' for easy navigation. Both ROWS and COLUMNS have been grouped.  See the Instructions sheet on how to group or ungroup tables. "]
[]
[null,"2.3.1 - AUGEX ASSET DATA - SUBSTATIONS"]
[null,"NOTE: TNSP MUST PROVIDE EXPENDITURE INFORMATION ON A PROJECT CLOSE BASIS."]
[null,"SUBSTATION AND PROJECT SUMMARY",null,null,null,null,null,null,null,null,null,"PLANT AND EQUIPMENT EXPENDITURE AND VOLUME",null,null,null,null,null,null,null,null,null,null,null,null,null,"OTHER EXPENDITURE",null,"TOTAL DIRECT EXPENDITURE\n($0's)","YEARS INCURRED","RELATED PARTY CONTRACTS",null,null,"LAND AND EASEMENTS"]
[null,"SUBSTATION ID","SUBSTATION TYPE","PROJECT ID","PROJECT TYPE","PROJECT TRIGGER","VOLTAGE (KV)","SUBSTATION RATING\nNORMAL CYCLIC\n(MVA)",null,"SUBSTATION RATING\nN-1 EMERGENCY\n(MVA)",null,"TRANSFORMERS",null,null,null,"SWITCHGEAR",null,null,"REACTIVE PLANT",null,null,null,"OTHER PLANT ITEM","INSTALLATION (LABOUR)",null,"CIVIL WORKS","OTHER DIRECT",null,null,"RELATED PARTY MARGINS","TOTAL","ALL NON RELATED PARTYCONTRACTS","LAND PURCHASES","EASEMENTS","Comments"]
[null,null,null,null,null,null,null,"PRE","POST","PRE","POST","Units Added","MVA Added","OLTC INCLUDED?","Expenditure ($0's)","Insulation","Units Added","Expenditure\n($0's)","Plant Type","Units Added","Expenditure\n($0's)",null,"Expenditure\n($0's)","Volume","Expenditure\n($0's)","Expenditure ($0's)",null,null,null,"Expenditure ($0's)",null,null,"Expenditure\n($0's)"]
[null,"<Enter substation ID>",null,null,null,null,""]
[]
[]
[]
[]
[]
[]
[null,"Project Totals",null,null,null,null,null,null,null,null,null,{"$f":"SUM(L13:L19)","v":0},{"$f":"SUM(M13:M19)","v":0},null,{"$f":"SUM(O13:O19)","v":0},null,{"$f":"SUM(Q13:Q19)","v":0},{"$f":"SUM(R13:R19)","v":0},null,{"$f":"SUM(T13:T19)","v":0},{"$f":"SUM(U13:U19)","v":0},null,{"$f":"SUM(W13:W19)","v":0},{"$f":"SUM(X13:X19)","v":0},{"$f":"SUM(Y13:Y19)","v":0},{"$f":"SUM(Z13)","v":0},{"$f":"SUM(AA13)","v":0},{"$f":"O20+R20+U20+W20+SUM(Y20:AA20)","v":0},null,{"$f":"SUM(AD13)","v":0},{"$f":"SUM(AE13)","v":0},{"$f":"SUM(AF13)","v":0},{"$f":"SUM(AG13)","v":0},{"$f":"SUM(AH13)","v":0}]
[null,"<Enter substation ID>",null,null,null,null,""]
[]
[]
[]
[]
[]
[]
[null,"Project Totals",null,null,null,null,null,null,null,null,null,{"$f":"SUM(L21:L27)","v":0},{"$f":"SUM(M21:M27)","v":0},null,{"$f":"SUM(O21:O27)","v":0},null,{"$f":"SUM(Q21:Q27)","v":0},{"$f":"SUM(R21:R27)","v":0},null,{"$f":"SUM(T21:T27)","v":0},{"$f":"SUM(U21:U27)","v":0},null,{"$f":"SUM(W21:W27)","v":0},{"$f":"SUM(X21:X27)","v":0},{"$f":"SUM(Y21:Y27)","v":0},{"$f":"SUM(Z21)","v":0},{"$f":"SUM(AA21)","v":0},{"$f":"O28+R28+U28+W28+SUM(Y28:AA28)","v":0},null,{"$f":"SUM(AD21)","v":0},{"$f":"SUM(AE21)","v":0},{"$f":"SUM(AF21)","v":0},{"$f":"SUM(AG21)","v":0},{"$f":"SUM(AH21)","v":0}]
[null,"<Enter substation ID>",null,null,null,null,""]
[]
[]
[]
[]
[]
[]
[null,"Project Totals",null,null,null,null,null,null,null,null,null,{"$f":"SUM(L29:L35)","v":0},{"$f":"SUM(M29:M35)","v":0},null,{"$f":"SUM(O29:O35)","v":0},null,{"$f":"SUM(Q29:Q35)","v":0},{"$f":"SUM(R29:R35)","v":0},null,{"$f":"SUM(T29:T35)","v":0},{"$f":"SUM(U29:U35)","v":0},null,{"$f":"SUM(W29:W35)","v":0},{"$f":"SUM(X29:X35)","v":0},{"$f":"SUM(Y29:Y35)","v":0},{"$f":"SUM(Z29)","v":0},{"$f":"SUM(AA29)","v":0},{"$f":"O36+R36+U36+W36+SUM(Y36:AA36)","v":0},null,{"$f":"SUM(AD29)","v":0},{"$f":"SUM(AE29)","v":0},{"$f":"SUM(AF29)","v":0},{"$f":"SUM(AG29)","v":0},{"$f":"SUM(AH29)","v":0}]
[null,"<Enter substation ID>",null,null,null,null,""]
[]
[]
[]
[]
[]
[]
[null,"Project Totals",null,null,null,null,null,null,null,null,null,{"$f":"SUM(L37:L43)","v":0},{"$f":"SUM(M37:M43)","v":0},null,{"$f":"SUM(O37:O43)","v":0},null,{"$f":"SUM(Q37:Q43)","v":0},{"$f":"SUM(R37:R43)","v":0},null,{"$f":"SUM(T37:T43)","v":0},{"$f":"SUM(U37:U43)","v":0},null,{"$f":"SUM(W37:W43)","v":0},{"$f":"SUM(X37:X43)","v":0},{"$f":"SUM(Y37:Y43)","v":0},{"$f":"SUM(Z37)","v":0},{"$f":"SUM(AA37)","v":0},{"$f":"O44+R44+U44+W44+SUM(Y44:AA44)","v":0},null,{"$f":"SUM(AD37)","v":0},{"$f":"SUM(AE37)","v":0},{"$f":"SUM(AF37)","v":0},{"$f":"SUM(AG37)","v":0},{"$f":"SUM(AH37)","v":0}]
[null,"<Enter substation ID>",null,null,null,null,""]
[]
[]
[]
[]
[]
[]
[null,"Project Totals",null,null,null,null,null,null,null,null,null,{"$f":"SUM(L45:L51)","v":0},{"$f":"SUM(M45:M51)","v":0},null,{"$f":"SUM(O45:O51)","v":0},null,{"$f":"SUM(Q45:Q51)","v":0},{"$f":"SUM(R45:R51)","v":0},null,{"$f":"SUM(T45:T51)","v":0},{"$f":"SUM(U45:U51)","v":0},null,{"$f":"SUM(W45:W51)","v":0},{"$f":"SUM(X45:X51)","v":0},{"$f":"SUM(Y45:Y51)","v":0},{"$f":"SUM(Z45)","v":0},{"$f":"SUM(AA45)","v":0},{"$f":"O52+R52+U52+W52+SUM(Y52:AA52)","v":0},null,{"$f":"SUM(AD45)","v":0},{"$f":"SUM(AE45)","v":0},{"$f":"SUM(AF45)","v":0},{"$f":"SUM(AG45)","v":0},{"$f":"SUM(AH45)","v":0}]
[null,"<Enter substation ID>",null,null,null,null,""]
[]
[]
[]
[]
[]
[]
[null,"Project Totals",null,null,null,null,null,null,null,null,null,{"$f":"SUM(L53:L59)","v":0},{"$f":"SUM(M53:M59)","v":0},null,{"$f":"SUM(O53:O59)","v":0},null,{"$f":"SUM(Q53:Q59)","v":0},{"$f":"SUM(R53:R59)","v":0},null,{"$f":"SUM(T53:T59)","v":0},{"$f":"SUM(U53:U59)","v":0},null,{"$f":"SUM(W53:W59)","v":0},{"$f":"SUM(X53:X59)","v":0},{"$f":"SUM(Y53:Y59)","v":0},{"$f":"SUM(Z53)","v":0},{"$f":"SUM(AA53)","v":0},{"$f":"O60+R60+U60+W60+SUM(Y60:AA60)","v":0},null,{"$f":"SUM(AD53)","v":0},{"$f":"SUM(AE53)","v":0},{"$f":"SUM(AF53)","v":0},{"$f":"SUM(AG53)","v":0},{"$f":"SUM(AH53)","v":0}]
[null,"<Enter substation ID>",null,null,null,null,""]
[]
[]
[]
[]
[]
[]
[null,"Project Totals",null,null,null,null,null,null,null,null,null,{"$f":"SUM(L61:L67)","v":0},{"$f":"SUM(M61:M67)","v":0},null,{"$f":"SUM(O61:O67)","v":0},null,{"$f":"SUM(Q61:Q67)","v":0},{"$f":"SUM(R61:R67)","v":0},null,{"$f":"SUM(T61:T67)","v":0},{"$f":"SUM(U61:U67)","v":0},null,{"$f":"SUM(W61:W67)","v":0},{"$f":"SUM(X61:X67)","v":0},{"$f":"SUM(Y61:Y67)","v":0},{"$f":"SUM(Z61)","v":0},{"$f":"SUM(AA61)","v":0},{"$f":"O68+R68+U68+W68+SUM(Y68:AA68)","v":0},null,{"$f":"SUM(AD61)","v":0},{"$f":"SUM(AE61)","v":0},{"$f":"SUM(AF61)","v":0},{"$f":"SUM(AG61)","v":0},{"$f":"SUM(AH61)","v":0}]
[null,"<Enter substation ID>",null,null,null,null,""]
[]
[]
[]
[]
[]
[]
[null,"Project Totals",null,null,null,null,null,null,null,null,null,{"$f":"SUM(L69:L75)","v":0},{"$f":"SUM(M69:M75)","v":0},null,{"$f":"SUM(O69:O75)","v":0},null,{"$f":"SUM(Q69:Q75)","v":0},{"$f":"SUM(R69:R75)","v":0},null,{"$f":"SUM(T69:T75)","v":0},{"$f":"SUM(U69:U75)","v":0},null,{"$f":"SUM(W69:W75)","v":0},{"$f":"SUM(X69:X75)","v":0},{"$f":"SUM(Y69:Y75)","v":0},{"$f":"SUM(Z69)","v":0},{"$f":"SUM(AA69)","v":0},{"$f":"O76+R76+U76+W76+SUM(Y76:AA76)","v":0},null,{"$f":"SUM(AD69)","v":0},{"$f":"SUM(AE69)","v":0},{"$f":"SUM(AF69)","v":0},{"$f":"SUM(AG69)","v":0},{"$f":"SUM(AH69)","v":0}]
[null,"<Enter substation ID>",null,null,null,null,""]
[]
[]
[]
[]
[]
[]
[null,"Project Totals",null,null,null,null,null,null,null,null,null,{"$f":"SUM(L77:L83)","v":0},{"$f":"SUM(M77:M83)","v":0},null,{"$f":"SUM(O77:O83)","v":0},null,{"$f":"SUM(Q77:Q83)","v":0},{"$f":"SUM(R77:R83)","v":0},null,{"$f":"SUM(T77:T83)","v":0},{"$f":"SUM(U77:U83)","v":0},null,{"$f":"SUM(W77:W83)","v":0},{"$f":"SUM(X77:X83)","v":0},{"$f":"SUM(Y77:Y83)","v":0},{"$f":"SUM(Z77)","v":0},{"$f":"SUM(AA77)","v":0},{"$f":"O84+R84+U84+W84+SUM(Y84:AA84)","v":0},null,{"$f":"SUM(AD77)","v":0},{"$f":"SUM(AE77)","v":0},{"$f":"SUM(AF77)","v":0},{"$f":"SUM(AG77)","v":0},{"$f":"SUM(AH77)","v":0}]
[null,"<Enter substation ID>",null,null,null,null,""]
[]
[]
[]
[]
[]
[]
[null,"Project Totals",null,null,null,null,null,null,null,null,null,{"$f":"SUM(L85:L91)","v":0},{"$f":"SUM(M85:M91)","v":0},null,{"$f":"SUM(O85:O91)","v":0},null,{"$f":"SUM(Q85:Q91)","v":0},{"$f":"SUM(R85:R91)","v":0},null,{"$f":"SUM(T85:T91)","v":0},{"$f":"SUM(U85:U91)","v":0},null,{"$f":"SUM(W85:W91)","v":0},{"$f":"SUM(X85:X91)","v":0},{"$f":"SUM(Y85:Y91)","v":0},{"$f":"SUM(Z85)","v":0},{"$f":"SUM(AA85)","v":0},{"$f":"O92+R92+U92+W92+SUM(Y92:AA92)","v":0},null,{"$f":"SUM(AD85)","v":0},{"$f":"SUM(AE85)","v":0},{"$f":"SUM(AF85)","v":0},{"$f":"SUM(AG85)","v":0},{"$f":"SUM(AH85)","v":0}]
[null,"<Enter substation ID>",null,null,null,null,""]
[]
[]
[]
[]
[]
[]
[null,"Project Totals",null,null,null,null,null,null,null,null,null,{"$f":"SUM(L93:L99)","v":0},{"$f":"SUM(M93:M99)","v":0},null,{"$f":"SUM(O93:O99)","v":0},null,{"$f":"SUM(Q93:Q99)","v":0},{"$f":"SUM(R93:R99)","v":0},null,{"$f":"SUM(T93:T99)","v":0},{"$f":"SUM(U93:U99)","v":0},null,{"$f":"SUM(W93:W99)","v":0},{"$f":"SUM(X93:X99)","v":0},{"$f":"SUM(Y93:Y99)","v":0},{"$f":"SUM(Z93)","v":0},{"$f":"SUM(AA93)","v":0},{"$f":"O100+R100+U100+W100+SUM(Y100:AA100)","v":0},null,{"$f":"SUM(AD93)","v":0},{"$f":"SUM(AE93)","v":0},{"$f":"SUM(AF93)","v":0},{"$f":"SUM(AG93)","v":0},{"$f":"SUM(AH93)","v":0}]
[null,"<Enter substation ID>",null,null,null,null,""]
[]
[]
[]
[]
[]
[]
[null,"Project Totals",null,null,null,null,null,null,null,null,null,{"$f":"SUM(L101:L107)","v":0},{"$f":"SUM(M101:M107)","v":0},null,{"$f":"SUM(O101:O107)","v":0},null,{"$f":"SUM(Q101:Q107)","v":0},{"$f":"SUM(R101:R107)","v":0},null,{"$f":"SUM(T101:T107)","v":0},{"$f":"SUM(U101:U107)","v":0},null,{"$f":"SUM(W101:W107)","v":0},{"$f":"SUM(X101:X107)","v":0},{"$f":"SUM(Y101:Y107)","v":0},{"$f":"SUM(Z101)","v":0},{"$f":"SUM(AA101)","v":0},{"$f":"O108+R108+U108+W108+SUM(Y108:AA108)","v":0},null,{"$f":"SUM(AD101)","v":0},{"$f":"SUM(AE101)","v":0},{"$f":"SUM(AF101)","v":0},{"$f":"SUM(AG101)","v":0},{"$f":"SUM(AH101)","v":0}]
[null,"<Enter substation ID>",null,null,null,null,""]
[]
[]
[]
[]
[]
[]
[null,"Project Totals",null,null,null,null,null,null,null,null,null,{"$f":"SUM(L109:L115)","v":0},{"$f":"SUM(M109:M115)","v":0},null,{"$f":"SUM(O109:O115)","v":0},null,{"$f":"SUM(Q109:Q115)","v":0},{"$f":"SUM(R109:R115)","v":0},null,{"$f":"SUM(T109:T115)","v":0},{"$f":"SUM(U109:U115)","v":0},null,{"$f":"SUM(W109:W115)","v":0},{"$f":"SUM(X109:X115)","v":0},{"$f":"SUM(Y109:Y115)","v":0},{"$f":"SUM(Z109)","v":0},{"$f":"SUM(AA109)","v":0},{"$f":"O116+R116+U116+W116+SUM(Y116:AA116)","v":0},null,{"$f":"SUM(AD109)","v":0},{"$f":"SUM(AE109)","v":0},{"$f":"SUM(AF109)","v":0},{"$f":"SUM(AG109)","v":0},{"$f":"SUM(AH109)","v":0}]
[null,"<Enter substation ID>",null,null,null,null,""]
[]
[]
[]
[]
[]
[]
[null,"Project Totals",null,null,null,null,null,null,null,null,null,{"$f":"SUM(L117:L123)","v":0},{"$f":"SUM(M117:M123)","v":0},null,{"$f":"SUM(O117:O123)","v":0},null,{"$f":"SUM(Q117:Q123)","v":0},{"$f":"SUM(R117:R123)","v":0},null,{"$f":"SUM(T117:T123)","v":0},{"$f":"SUM(U117:U123)","v":0},null,{"$f":"SUM(W117:W123)","v":0},{"$f":"SUM(X117:X123)","v":0},{"$f":"SUM(Y117:Y123)","v":0},{"$f":"SUM(Z117)","v":0},{"$f":"SUM(AA117)","v":0},{"$f":"O124+R124+U124+W124+SUM(Y124:AA124)","v":0},null,{"$f":"SUM(AD117)","v":0},{"$f":"SUM(AE117)","v":0},{"$f":"SUM(AF117)","v":0},{"$f":"SUM(AG117)","v":0},{"$f":"SUM(AH117)","v":0}]
[null,"<Enter substation ID>",null,null,null,null,""]
[]
[]
[]
[]
[]
[]
[null,"Project Totals",null,null,null,null,null,null,null,null,null,{"$f":"SUM(L125:L131)","v":0},{"$f":"SUM(M125:M131)","v":0},null,{"$f":"SUM(O125:O131)","v":0},null,{"$f":"SUM(Q125:Q131)","v":0},{"$f":"SUM(R125:R131)","v":0},null,{"$f":"SUM(T125:T131)","v":0},{"$f":"SUM(U125:U131)","v":0},null,{"$f":"SUM(W125:W131)","v":0},{"$f":"SUM(X125:X131)","v":0},{"$f":"SUM(Y125:Y131)","v":0},{"$f":"SUM(Z125)","v":0},{"$f":"SUM(AA125)","v":0},{"$f":"O132+R132+U132+W132+SUM(Y132:AA132)","v":0},null,{"$f":"SUM(AD125)","v":0},{"$f":"SUM(AE125)","v":0},{"$f":"SUM(AF125)","v":0},{"$f":"SUM(AG125)","v":0},{"$f":"SUM(AH125)","v":0}]
[null,null,null,"Non material projects",null,null,null,null,null,null,null,null,null,null,null,null,null,null,null,null,null,null,null,null,null,null,null,888159.445760987]
[null,null,null,"Non material projects"]
[]
[]
[null,"2.3.2 - AUGEX ASSET DATA - LINES"]
[null,"NOTE: TNSP MUST PROVIDE EXPENDITURE INFORMATION ON A PROJECT CLOSE BASIS."]
[null,"LINE AND PROJECT SUMMARY",null,null,null,null,null,null,null,null,null,"PLANT AND EQUIPMENT EXPENDITURE AND VOLUME",null,null,null,null,null,null,null,null,null,null,null,null,null,"OTHER EXPENDITURE",null,"TOTAL DIRECT EXPENDITURE ($0's)","YEARS INCURRED","ALL RELATED PARTY CONTRACTS",null,null,"LAND AND EASEMENTS"]
[null,"LINE ID",null,"PROJECT ID","PROJECT TYPE","PROJECT TRIGGER","VOLTAGE (KV)","ROUTE LINE LENGTH ADDED",null,null,null,"TOWERS/POLES (INCLUDING STRUCTURES, AND CIVIL WORKS)",null,null,null,"LINES AND CABLES",null,null,null,null,null,null,"OTHER PLANT ITEM","INSTALLATION (LABOUR)",null,"CIVIL WORKS","OTHER DIRECT",null,null,"RELATED PARTY MARGINS","TOTAL","ALL NON RELATED PARTYCONTRACTS","LAND PURCHASES","EASEMENTS"]
[null,null,null,null,null,null,null,null,null,null,null,null,null,null,null,"Type","Rating (MVA)",null,"N-1 Emergency Rating (MVA)",null,"Circuit KM Added","Expenditure\n($0's)"]
[null,null,null,null,null,null,null,"KM ADDED",null,null,null,"Configuration","Towers/Poles Added","Towers/Poles Upgraded","Expenditure\n($0's)",null,"PRE","POST","PRE","POST",null,null,"Expenditure ($0's)","Volume","Expenditure\n($0's)","Expenditure ($0's)",null,null,null,"Expenditure ($0's)",null,null,"Expenditure\n($0's)"]
[null,"<Enter line ID>"]
[]
[]
[]
[]
[]
[]
[null,"Project Totals",null,null,null,null,null,null,null,null,null,null,{"$f":"SUM(M143:M149)","v":0},{"$f":"SUM(N143:N149)","v":0},{"$f":"SUM(O143:O149)","v":0},null,null,null,null,null,{"$f":"SUM(U143:U149)","v":0},0,0,0,0,0,0,{"$f":"O150+R150+U150+W150+SUM(Y150:AA150)","v":0},null,{"$f":"SUM(AD143:AD149)","v":0},{"$f":"SUM(AE143:AE149)","v":0},{"$f":"SUM(AF143:AF149)","v":0},{"$f":"SUM(AG143:AG149)","v":0},{"$f":"SUM(AH143:AH149)","v":0}]
[null,"<Enter line ID>"]
[]
[]
[]
[]
[]
[]
[null,"Project Totals",null,null,null,null,null,null,null,null,null,null,{"$f":"SUM(M151:M157)","v":0},{"$f":"SUM(N151:N157)","v":0},{"$f":"SUM(O151:O157)","v":0},null,null,null,null,null,{"$f":"SUM(U151:U157)","v":0},{"$f":"SUM(V151:V157)","v":0},{"$f":"SUM(W151:W157)","v":0},0,0,0,0,{"$f":"O158+R158+U158+W158+SUM(Y158:AA158)","v":0},null,{"$f":"SUM(AD151:AD157)","v":0},{"$f":"SUM(AE151:AE157)","v":0},{"$f":"SUM(AF151:AF157)","v":0},{"$f":"SUM(AG151:AG157)","v":0},{"$f":"SUM(AH151:AH157)","v":0}]
[null,"<Enter line ID>"]
[]
[]
[]
[]
[]
[]
[null,"Project Totals",null,null,null,null,null,null,null,null,null,null,{"$f":"SUM(M159:M165)","v":0},{"$f":"SUM(N159:N165)","v":0},{"$f":"SUM(O159:O165)","v":0},null,null,null,null,null,{"$f":"SUM(U159:U165)","v":0},{"$f":"SUM(V159:V165)","v":0},{"$f":"SUM(W159:W165)","v":0},0,0,0,0,{"$f":"O166+R166+U166+W166+SUM(Y166:AA166)","v":0},null,{"$f":"SUM(AD159:AD165)","v":0},{"$f":"SUM(AE159:AE165)","v":0},{"$f":"SUM(AF159:AF165)","v":0},{"$f":"SUM(AG159:AG165)","v":0},{"$f":"SUM(AH159:AH165)","v":0}]
[null,"<Enter line ID>"]
[]
[]
[]
[]
[]
[]
[null,"Project Totals",null,null,null,null,null,null,null,null,null,null,{"$f":"SUM(M167:M173)","v":0},{"$f":"SUM(N167:N173)","v":0},{"$f":"SUM(O167:O173)","v":0},null,null,null,null,null,{"$f":"SUM(U167:U173)","v":0},{"$f":"SUM(V167:V173)","v":0},{"$f":"SUM(W167:W173)","v":0},0,0,0,0,{"$f":"O174+R174+U174+W174+SUM(Y174:AA174)","v":0},null,{"$f":"SUM(AD167:AD173)","v":0},{"$f":"SUM(AE167:AE173)","v":0},{"$f":"SUM(AF167:AF173)","v":0},{"$f":"SUM(AG167:AG173)","v":0},{"$f":"SUM(AH167:AH173)","v":0}]
[null,"<Enter line ID>"]
[]
[]
[]
[]
[]
[]
[null,"Project Totals",null,null,null,null,null,null,null,null,null,null,{"$f":"SUM(M175:M181)","v":0},{"$f":"SUM(N175:N181)","v":0},{"$f":"SUM(O175:O181)","v":0},null,null,null,null,null,{"$f":"SUM(U175:U181)","v":0},{"$f":"SUM(V175:V181)","v":0},{"$f":"SUM(W175:W181)","v":0},0,0,0,0,{"$f":"O182+R182+U182+W182+SUM(Y182:AA182)","v":0},null,{"$f":"SUM(AD175:AD181)","v":0},{"$f":"SUM(AE175:AE181)","v":0},{"$f":"SUM(AF175:AF181)","v":0},{"$f":"SUM(AG175:AG181)","v":0},{"$f":"SUM(AH175:AH181)","v":0}]
[null,"<Enter line ID>"]
[]
[]
[]
[]
[]
[]
[null,"Project Totals",null,null,null,null,null,null,null,null,null,null,{"$f":"SUM(M183:M189)","v":0},{"$f":"SUM(N183:N189)","v":0},{"$f":"SUM(O183:O189)","v":0},null,null,null,null,null,{"$f":"SUM(U183:U189)","v":0},{"$f":"SUM(V183:V189)","v":0},{"$f":"SUM(W183:W189)","v":0},0,0,0,0,{"$f":"O190+R190+U190+W190+SUM(Y190:AA190)","v":0},null,{"$f":"SUM(AD183:AD189)","v":0},{"$f":"SUM(AE183:AE189)","v":0},{"$f":"SUM(AF183:AF189)","v":0},{"$f":"SUM(AG183:AG189)","v":0},{"$f":"SUM(AH183:AH189)","v":0}]
[null,"<Enter line ID>"]
[]
[]
[]
[]
[]
[]
[null,"Project Totals",null,null,null,null,null,null,null,null,null,null,{"$f":"SUM(M191:M197)","v":0},{"$f":"SUM(N191:N197)","v":0},{"$f":"SUM(O191:O197)","v":0},null,null,null,null,null,{"$f":"SUM(U191:U197)","v":0},{"$f":"SUM(V191:V197)","v":0},{"$f":"SUM(W191:W197)","v":0},0,0,0,0,{"$f":"O198+R198+U198+W198+SUM(Y198:AA198)","v":0},null,{"$f":"SUM(AD191:AD197)","v":0},{"$f":"SUM(AE191:AE197)","v":0},{"$f":"SUM(AF191:AF197)","v":0},{"$f":"SUM(AG191:AG197)","v":0},{"$f":"SUM(AH191:AH197)","v":0}]
[null,null,null,"Non material projects",null,null,null,null,null,null,null,null,null,null,null,null,null,null,null,null,null,null,null,null,null,null,null,55498.233703289457]
[null,null,null,"Non material projects"]
[null,null,null,"Non material projects"]
[]
[]
[]
[null,"2.3.3 - AUGEX - TOTAL EXPENDITURE"]
[]
[null,null,"EXPENDITURE\n($0's)"]
[null,"AUGMENTATION CAPEX (as incurred)",{"$f":"CRY","v":"2015-16"}]
[null,"Substations",1480084.0999999999]
[null,"Lines",1507154.25]
[null,"Other assets",50113341.080000006]
[null,"Total augmentation capex",{"$f":"SUM(C209:C211)","v":53100579.430000007}]

{"sheet":"2.5 Connections","index":7,"n_rows":91,"n_cols":6,"rows_kept":91,"cut":false,"hidden":false,"merged":[]}
[null,"REGULATORY REPORTING STATEMENT"]
[null,{"$f":"INDEX(dms_TradingNameFull_List,MATCH(dms_TradingName,dms_TradingName_List))","v":"TransGrid"}]
[null,{"$f":"CONCATENATE((LOOKUP(dms_Model,dms_Model_List,dms_Worksheet_List))&\" \"&CRY)","v":"CATEGORY ANALYSIS 2015-16"}]
[null,"2.5 CONNECTIONS EXPENDITURE"]
[]
[null,"There are TWO tables on this worksheet. Each has been grouped (or sub-grouped).  See the Instructions sheet on how to group or ungroup data."]
[]
[null,"2.5.1 - EXPENDITURE ON CONNECTION PROJECTS"]
[null,null,"EXPENDITURE \n($0's)"]
[null,"CONNECTION PROJECT",{"$f":"CRY","v":"2015-16"}]
[null,"DIRECT MATERIALS EXPENDITURE"]
[null,"Establishment of a New 66 kV Line Switchbay (4J) at Beryl 132/66 kV Substation for Essential Energy's 86J feeder to Dunedoo."]
[null,"Extension of 66 kV busbar and a new transformer switchbay (2L) at Molong 132/66 kV Substation for connection of Essential Energy's new 66 kV No.4 transformer."]
[null,"Commissioning of pre-existing 132 kV line switchbay (1E) at Queanbeyan Substation for connection to Essential Energy's 975 132 kV line to its Googong Town Substation"]
[null,"Protection modifications on Macarthur 66 kV line switchbays for Endeavour Energy's lines 852 to (bay 4E), 853 to Ambarvale (bay 4F), and supervising Endeaovur's HV connection of its new feeder 85M to Ambarvale (bay 4K)."]
[null,"Supervising Ausgrid's Connection of two 132 kV tee-connected Ausgrid feeders, 241 Chullora to Potts Hill and 296 Sefton to Bankstown, to Rookwood Road 330/132 kV Substation line switchbays (2F) and (2J) respectively."]
[null,"Establishment of a New 132 kV Line Switchbay (2P) at Vineyard 330/132 kV Substation for connection of Endeavour Energy's new 132 kV line 21R to their Marsden Park Zone Substation."]
[]
[]
[]
[]
[]
[]
[]
[]
[]
[]
[]
[]
[]
[]
[]
[]
[]
[]
[]
[null,"DIRECT LABOUR EXPENDITURE"]
[null,{"$f":"IF(ISBLANK(B12),\"\",B12)","v":"Establishment of a New 66 kV Line Switchbay (4J) at Beryl 132/66 kV Substation for Essential Energy's 86J feeder to Dunedoo."}]
[null,{"$f":"IF(ISBLANK(B13),\"\",B13)","v":"Extension of 66 kV busbar and a new transformer switchbay (2L) at Molong 132/66 kV Substation for connection of Essential Energy's new 66 kV No.4 transformer."}]
[null,"Commissioning of pre-existing 132 kV line switchbay (1E) at Queanbeyan Substation for connection to Essential Energy's 975 132 kV line to its Googong Town Substation"]
[null,"Protection modifications on Macarthur 66 kV line switchbays for Endeavour Energy's lines 852 to (bay 4E), 853 to Ambarvale (bay 4F), and supervising Endeaovur's HV connection of its new feeder 85M to Ambarvale (bay 4K)."]
[null,"Supervising Ausgrid's Connection of two 132 kV tee-connected Ausgrid feeders, 241 Chullora to Potts Hill and 296 Sefton to Bankstown, to Rookwood Road 330/132 kV Substation line switchbays (2F) and (2J) respectively."]
[null,"Establishment of a New 132 kV Line Switchbay (2P) at Vineyard 330/132 kV Substation for connection of Endeavour Energy's new 132 kV line 21R to their Marsden Park Zone Substation."]
[null,""]
[null,""]
[null,""]
[null,""]
[null,""]
[null,""]
[null,""]
[null,""]
[null,""]
[null,""]
[null,""]
[null,""]
[null,""]
[null,""]
[null,""]
[null,""]
[null,""]
[null,""]
[]
[]
[]
[]
[null,"2.5.2 - DESCRIPTION OF CONNECTION PROJECTS"]
[null,null,"CONNECTION RATING (MVA)","CONNECTION \nVOLTAGE (KV)","UNDERGROUND / OVERHEAD","YEAR CONNECTION PROJECT COMPLETED "]
[null,{"$f":"IF(ISBLANK(B12),\"\",B12)","v":"Establishment of a New 66 kV Line Switchbay (4J) at Beryl 132/66 kV Substation for Essential Energy's 86J feeder to Dunedoo."},142.89419162443235,66,"Overhead",2016]
[null,"Extension of 66 kV busbar and a new transformer switchbay (2L) at Molong 132/66 kV Substation for connection of Essential Energy's new 66 kV No.4 transformer.",228.63070659909181,66,"Overhead",2016]
[null,"Commissioning of pre-existing 132 kV line switchbay (1E) at Queanbeyan Substation for connection to Essential Energy's 975 132 kV line to its Googong Town Substation",41,132,"Overhead",2016]
[null,"Protection modifications on Macarthur 66 kV line switchbays for Endeavour Energy's lines 852 to (bay 4E), 853 to Ambarvale (bay 4F), and supervising Endeaovur's HV connection of its new feeder 85M to Ambarvale (bay 4K).","60 (852)\n66 (853)\n86 (85M)",66,"Overhead",2016]
[null,"Supervising Ausgrid's Connection of two 132 kV tee-connected Ausgrid feeders, 241 Chullora to Potts Hill and 296 Sefton to Bankstown, to Rookwood Road 330/132 kV Substation line switchbays (2F) and (2J) respectively.","439 (241)\n329 (296)",132,"Overhead",2016]
[null,"Establishment of a New 132 kV Line Switchbay (2P) at Vineyard 330/132 kV Substation for connection of Endeavour Energy's new 132 kV line 21R to their Marsden Park Zone Substation.",571.57676649772941,132,"Overhead",2016]
[null,""]
[null,""]
[null,""]
[null,""]
[null,""]
[null,""]
[null,""]
[null,""]
[null,""]
[null,""]
[null,""]
[null,""]
[null,""]
[null,""]
[null,""]
[null,""]
[null,""]
[null,""]

{"sheet":"2.6 Non-network","index":8,"n_rows":93,"n_cols":5,"rows_kept":93,"cut":false,"hidden":false,"merged":[[78,1,82,1],[83,1,87,1],[88,1,92,1],[5,1,5,2],[68,1,72,1],[60,2,60,3],[61,2,61,3],[62,2,62,3],[73,1,77,1]]}
[null,"REGULATORY REPORTING STATEMENT"]
[null,{"$f":"INDEX(dms_TradingNameFull_List,MATCH(dms_TradingName,dms_TradingName_List))","v":"TransGrid"}]
[null,{"$f":"CONCATENATE((LOOKUP(dms_Model,dms_Model_List,dms_Worksheet_List))&\" \"&CRY)","v":"CATEGORY ANALYSIS 2015-16"}]
[null,"2.6 NON NETWORK EXPENDITURE"]
[]
[null,"There are THREE tables on this worksheet - each has been 'grouped' (and sub-grouped) for easy navigation. See the Instructions sheet on how to group or ungroup tables. "]
[]
[null,"2.6.1 - NON-NETWORK EXPENDITURE"]
[null,null,null,null,"EXPENDITURE\n($0's)"]
[null,"SERVICE SUBCATEGORY","ASSET CATEGORY",null,{"$f":"CRY","v":"2015-16"}]
[null,"OPEX"]
[null,"IT & COMMUNICATIONS","Client device expenditure",null,117925]
[null,null,"Recurrent expenditure",null,13964065]
[null,null,"Non-recurrent expenditure",null,91563]
[null,"MOTOR VEHICLES","Car",null,263500.45485855825]
[null,null,"Light commercial vehicle",null,2433580.9124082932]
[null,null,"Elevated work platform (LCV)  ",null,25274.384004179803]
[null,null,"Elevated work platform (HCV)",null,866.11857881398851]
[null,null,"Heavy commercial vehicle",null,808605.64962080773]
[null,"BUILDINGS AND PROPERTY","Total buildings and property expenditure"]
[null,"OTHER","Other expenditure"]
[null,"OTHER - DNSP nominated","Miscellaneous plant",null,359926.06147309218]
[]
[]
[]
[]
[]
[]
[]
[]
[]
[]
[null,"CAPEX"]
[null,"IT & COMMUNICATIONS","Client device expenditure",null,141114.25999999998]
[null,null,"Recurrent expenditure",null,3041103]
[null,null,"Non-recurrent expenditure",null,7983654]
[null,"MOTOR VEHICLES","Car",null,903395.35]
[null,null,"Light commercial vehicle",null,3934707.0799999987]
[null,null,"Elevated work platform (LCV)  ",null,523332.29000000004]
[null,null,"Elevated work platform (HCV)",null,0]
[null,null,"Heavy commercial vehicle",null,1110825.1800000002]
[null,"BUILDINGS AND PROPERTY","Total buildings and property expenditure",null,1023911.5999999994]
[null,"OTHER","Other expenditure",null,32192.22]
[null,"OTHER - DNSP nominated","Miscellaneous Plant",null,2001648.7300000002]
[]
[]
[]
[]
[]
[]
[]
[]
[]
[]
[]
[]
[]
[null,"2.6.2 - ANNUAL DESCRIPTOR METRICS - IT & COMMUNICATIONS EXPENDITURE"]
[null,null,null,null,"VOLUMES\n(0's)"]
[null,"NON-NETWORK CATEGORY","DESCRIPTOR METRIC",null,{"$f":"CRY","v":"2015-16"}]
[null,"IT & COMMUNICATIONS","Employee numbers",null,955]
[null,null,"User numbers",null,932]
[null,null,"Number of devices",null,2267]
[]
[]
[null,"2.6.3 - ANNUAL DESCRIPTOR METRICS - MOTOR VEHICLES"]
[null,null,null,null,"VOLUMES / %"]
[null,"ASSET CATEGORY","DESCRIPTOR METRIC","UNITS",{"$f":"CRY","v":"2015-16"}]
[null,"CAR","Average kilometres travelled","0's",18859]
[null,null,"Number purchased","0's",25]
[null,null,"Number leased","0's",0]
[null,null,"Number in fleet","0's",72]
[null,null,"Proportion of total fleet expenditure allocated as regulatory expenditure","(per cent)",1]
[null,"LIGHT COMMERCIAL VEHICLE","Average kilometres travelled","0's",20956]
[null,null,"Number purchased","0's",80]
[null,null,"Number leased","0's",0]
[null,null,"Number in fleet","0's",440]
[null,null,"Proportion of total fleet expenditure allocated as regulatory expenditure","(per cent)",1]
[null,"ELEVATED WORK PLATFORM (LCV) ","Average kilometres travelled","0's",0]
[null,null,"Number purchased","0's",6]
[null,null,"Number leased","0's",0]
[null,null,"Number in fleet","0's",35]
[null,null,"Proportion of total fleet expenditure allocated as regulatory expenditure","(per cent)",1]
[null,"ELEVATED WORK PLATFORM (HCV)","Average kilometres travelled","0's",0]
[null,null,"Number purchased","0's",0]
[null,null,"Number leased","0's",0]
[null,null,"Number in fleet","0's",9]
[null,null,"Proportion of total fleet expenditure allocated as regulatory expenditure","(per cent)",1]
[null,"HEAVY COMMERCIAL VEHICLE ","Average kilometres travelled","0's",9749]
[null,null,"Number purchased","0's",3]
[null,null,"Number leased","0's",0]
[null,null,"Number in fleet","0's",60]
[null,null,"Proportion of total fleet expenditure allocated as regulatory expenditure","(per cent)",1]

{"sheet":"2.7 Vegetation management","index":9,"n_rows":158,"n_cols":5,"rows_kept":158,"cut":false,"hidden":false,"merged":[[5,1,5,2],[149,1,149,3]]}
[null,"REGULATORY REPORTING STATEMENT"]
[null,{"$f":"INDEX(dms_TradingNameFull_List,MATCH(dms_TradingName,dms_TradingName_List))","v":"TransGrid"}]
[null,{"$f":"CONCATENATE((LOOKUP(dms_Model,dms_Model_List,dms_Worksheet_List))&\" \"&CRY)","v":"CATEGORY ANALYSIS 2015-16"}]
[null,"2.7 VEGETATION MANAGEMENT"]
[]
[null,"There are THREE tables on this worksheet. Each has been 'grouped' for easy navigation. See the Instructions sheet on how to group or ungroup data."]
[]
[null,"2.7.1 - DESCRIPTOR METRICS BY ZONE"]
[null,null,null,null,"VOLUMES"]
[null,"ZONES","ASSET / ENVIRONMENTAL FACTOR","UNITS",{"$f":"CRY","v":"2015-16"}]
[null,"ZONE 1","Route line length within zone","km",11291]
[null,null,"Number of maintenance spans","0's",3882]
[null,null,"Total length of maintenance spans","km",1421.5254]
[null,null,"Average number of trees per maintenance span","0's",3052]
[null,null,"Length of vegetation corridors","km",3600]
[null,null,"Average width of vegetation corridors","metres",56]
[null,null,"Average frequency of cutting cycle","years",3.9]
[null,"ZONE 2","Route line length within zone","km"]
[null,null,"Number of maintenance spans","0's"]
[null,null,"Total length of maintenance spans","km"]
[null,null,"Average number of trees per maintenance span","0's"]
[null,null,"Length of vegetation corridors","km"]
[null,null,"Average width of vegetation corridors","metres"]
[null,null,"Average frequency of cutting cycle","years"]
[null,"ZONE 3","Route line length within zone","km"]
[null,null,"Number of maintenance spans","0's"]
[null,null,"Total length of maintenance spans","km"]
[null,null,"Average number of trees per maintenance span","0's"]
[null,null,"Length of vegetation corridors","km"]
[null,null,"Average width of vegetation corridors","metres"]
[null,null,"Average frequency of cutting cycle","years"]
[null,"ZONE 4","Route line length within zone","km"]
[null,null,"Number of maintenance spans","0's"]
[null,null,"Total length of maintenance spans","km"]
[null,null,"Average number of trees per maintenance span","0's"]
[null,null,"Length of vegetation corridors","km"]
[null,null,"Average width of vegetation corridors","metres"]
[null,null,"Average frequency of cutting cycle","years"]
[null,"ZONE 5","Route line length within zone","km"]
[null,null,"Number of maintenance spans","0's"]
[null,null,"Total length of maintenance spans","km"]
[null,null,"Average number of trees per maintenance span","0's"]
[null,null,"Length of vegetation corridors","km"]
[null,null,"Average width of vegetation corridors","metres"]
[null,null,"Average frequency of cutting cycle","years"]
[null,"ZONE 6","Route line length within zone","km"]
[null,null,"Number of maintenance spans","0's"]
[null,null,"Total length of maintenance spans","km"]
[null,null,"Average number of trees per maintenance span","0's"]
[null,null,"Length of vegetation corridors","km"]
[null,null,"Average width of vegetation corridors","metres"]
[null,null,"Average frequency of cutting cycle","years"]
[null,"ZONE 7","Route line length within zone","km"]
[null,null,"Number of maintenance spans","0's"]
[null,null,"Total length of maintenance spans","km"]
[null,null,"Average number of trees per maintenance span","0's"]
[null,null,"Length of vegetation corridors","km"]
[null,null,"Average width of vegetation corridors","metres"]
[null,null,"Average frequency of cutting cycle","years"]
[null,"ZONE 8","Route line length within zone","km"]
[null,null,"Number of maintenance spans","0's"]
[null,null,"Total length of maintenance spans","km"]
[null,null,"Average number of trees per maintenance span","0's"]
[null,null,"Length of vegetation corridors","km"]
[null,null,"Average width of vegetation corridors","metres"]
[null,null,"Average frequency of cutting cycle","years"]
[null,"ZONE 9","Route line length within zone","km"]
[null,null,"Number of maintenance spans","0's"]
[null,null,"Total length of maintenance spans","km"]
[null,null,"Average number of trees per maintenance span","0's"]
[null,null,"Length of vegetation corridors","km"]
[null,null,"Average width of vegetation corridors","metres"]
[null,null,"Average frequency of cutting cycle","years"]
[null,"ZONE 10","Route line length within zone","km"]
[null,null,"Number of maintenance spans","0's"]
[null,null,"Total length of maintenance spans","km"]
[null,null,"Average number of trees per maintenance span","0's"]
[null,null,"Length of vegetation corridors","km"]
[null,null,"Average width of vegetation corridors","metres"]
[null,null,"Average frequency of cutting cycle","years"]
[]
[]
[null,"2.7.2 - EXPENDITURE METRICS BY ZONE"]
[null,null,null,null,"EXPENDITURE\n($0's)"]
[null,"ZONES","SERVICE SUBCATEGORY",null,{"$f":"CRY","v":"2015-16"}]
[null,{"$f":"B11","v":"ZONE 1"},"Tree trimming",null,6641063.6702016704]
[null,null,"Vegetation corridor clearance ",null,3117870.267700315]
[null,null,"Inspection ",null,774803.44158117473]
[null,null,"Audit "]
[null,null,"Contractor liaison expenditure ",null,2255041.8620209317]
[null,null,"Other vegetation management expenditure",null,{"$f":"1154010.75849593-621600.76","v":532409.99849592987}]
[null,{"$f":"B18","v":"ZONE 2"},"Tree trimming"]
[null,null,"Vegetation corridor clearance "]
[null,null,"Inspection "]
[null,null,"Audit "]
[null,null,"Contractor liaison expenditure "]
[null,null,"Other vegetation management expenditure"]
[null,{"$f":"B25","v":"ZONE 3"},"Tree trimming"]
[null,null,"Vegetation corridor clearance "]
[null,null,"Inspection "]
[null,null,"Audit "]
[null,null,"Contractor liaison expenditure "]
[null,null,"Other vegetation management expenditure"]
[null,{"$f":"B32","v":"ZONE 4"},"Tree trimming"]
[null,null,"Vegetation corridor clearance "]
[null,null,"Inspection "]
[null,null,"Audit "]
[null,null,"Contractor liaison expenditure "]
[null,null,"Other vegetation management expenditure"]
[null,{"$f":"B39","v":"ZONE 5"},"Tree trimming"]
[null,null,"Vegetation corridor clearance "]
[null,null,"Inspection "]
[null,null,"Audit "]
[null,null,"Contractor liaison expenditure "]
[null,null,"Other vegetation management expenditure"]
[null,{"$f":"B46","v":"ZONE 6"},"Tree trimming"]
[null,null,"Vegetation corridor clearance "]
[null,null,"Inspection "]
[null,null,"Audit "]
[null,null,"Contractor liaison expenditure "]
[null,null,"Other vegetation management expenditure"]
[null,{"$f":"B53","v":"ZONE 7"},"Tree trimming"]
[null,null,"Vegetation corridor clearance "]
[null,null,"Inspection "]
[null,null,"Audit "]
[null,null,"Contractor liaison expenditure "]
[null,null,"Other vegetation management expenditure"]
[null,{"$f":"B60","v":"ZONE 8"},"Tree trimming"]
[null,null,"Vegetation corridor clearance "]
[null,null,"Inspection "]
[null,null,"Audit "]
[null,null,"Contractor liaison expenditure "]
[null,null,"Other vegetation management expenditure"]
[null,{"$f":"B67","v":"ZONE 9"},"Tree trimming"]
[null,null,"Vegetation corridor clearance "]
[null,null,"Inspection "]
[null,null,"Audit "]
[null,null,"Contractor liaison expenditure "]
[null,null,"Other vegetation management expenditure"]
[null,{"$f":"B74","v":"ZONE 10"},"Tree trimming"]
[null,null,"Vegetation corridor clearance "]
[null,null,"Inspection "]
[null,null,"Audit "]
[null,null,"Contractor liaison expenditure "]
[null,null,"Other vegetation management expenditure"]
[]
[]
[null,"2.7.3 - DESCRIPTOR METRICS ACROSS ALL ZONES - UNPLANNED VEGETATION EVENTS"]
[null,null,null,null,"VOLUMES\n(0's)"]
[null,"DESCRIPTOR METRIC",null,null,{"$f":"CRY","v":"2015-16"}]
[null,"Number of fire starts caused by vegetation grow-ins (NSP responsibility)",null,"",1]
[null,"Number of fire starts caused by vegetation blow-ins and fall-ins (NSP responsibility)",null,"",1]
[null,"Number of outages caused by vegetation grow-ins (NSP responsibility)",null,"",2]
[null,"Number of outages caused by vegetation blow-ins and fall-ins (NSP responsibility)",null,"",3]
[null,"Number of fire starts caused by vegetation grow-ins (other party responsibility)",null,"",0]
[null,"Number of fire starts caused by vegetation blow-ins and fall-ins (other party responsibility)",null,"",0]
[null,"Number of outages caused by vegetation grow-ins (other party responsibility)",null,"",0]
[null,"Number of outages caused by vegetation blow-ins and fall-ins (other party responsibility)",null,"",0]

{"sheet":"2.8 Maintenance","index":10,"n_rows":81,"n_cols":10,"rows_kept":81,"cut":false,"hidden":false,"merged":[[5,1,5,2],[8,5,8,6],[8,7,9,7],[8,8,10,8],[8,9,10,9],[9,1,10,1],[9,2,10,2],[9,4,10,4],[9,3,10,3],[46,5,46,6],[15,1,17,1],[53,1,55,1],[47,1,48,1],[11,1,14,1],[49,1,52,1],[47,2,48,4]]}
[null,"REGULATORY REPORTING STATEMENT"]
[null,{"$f":"INDEX(dms_TradingNameFull_List,MATCH(dms_TradingName,dms_TradingName_List))","v":"TransGrid"}]
[null,{"$f":"CONCATENATE((LOOKUP(dms_Model,dms_Model_List,dms_Worksheet_List))&\" \"&CRY)","v":"CATEGORY ANALYSIS 2015-16"}]
[null,"2.8 MAINTENANCE"]
[]
[null,"There are TWO tables on this worksheet. Each has been 'grouped' for easy navigation. See the Instructions sheet on how to group or ungroup data."]
[]
[null,"2.8.1 - DESCRIPTOR METRICS FOR ROUTINE AND NON-ROUTINE MAINTENANCE"]
[null,null,null,null,null,"ASSET QUANTITY",null,"AVERAGE AGE OF ASSET GROUP ","INSPECTION CYCLE \n(YEARS)","MAINTENANCE CYCLE \n(YEARS)"]
[null,"MAINTENANCE ACTIVITY","MAINTENANCE ASSET CATEGORY","MEASURE \n/ ASSET QUANTITY","UNITS","AT YEAR END","INSPECTED/ MAINTAINED"]
[null,null,null,null,null,{"$f":"CRY","v":"2015-16"},{"$f":"CRY","v":"2015-16"},{"$f":"CRY","v":"2015-16"}]
[null,"Transmission lines maintenance","Transmission towers","Number of towers","0's",37414,9800,37.200000000000003,2.4,5.5]
[null,null,"Transmission tower support structures","Number of towers","0's",null,null,null,0,0]
[null,null,"Conductors","Route length","km",11291,3384.1816984329998,39.488251050000002,7.7,0]
[null,null,"Transmission cables","Route length","km",66.831000000000003,66.831000000000003,13.81646477913992,0.11780297401196516,1.6839608873321668]
[null,"Substations equipment & property maintenance","Substation switchbays (incl. Reactive plant)","Number of switchbays","0's",2348,648,23.15,0.5,4]
[null,null,"Substation power transformers","Number of transformers","0's",221,184,19.8,0.5,4]
[null,null,"Substation property","Number of substation properties maintained","0's",93,93,32.9,8.3299999999999999E-2,0.25]
[null,"SCADA & network control maintenance","SCADA & network control maintenance","NO. OF CONTROL IEDs and HMIs","0's",1735,108,6.48,0,0]
[null,"Protection systems maintenance","Protection systems maintenance","NO.OF MAIN RELAYS","0's",3263,1268,16.600000000000001,0,5.94]
[null,"Other maintenance activity ","TELECOMMUNICATIONS SYSTEMS","NO. OF TERMINAL EQUIPMENT/BASE STATION/MUX","0's",1865,1420,5.0999999999999996,0.47,3]
[null,null,"METERING SYSTEMS","NO. OF METERS","0's",802,633,5.8,2.5,5]
[]
[]
[]
[]
[]
[]
[]
[]
[]
[]
[]
[]
[]
[]
[]
[]
[]
[]
[]
[]
[]
[]
[]
[null,"2.8.2 - COST METRICS FOR ROUTINE AND NON-ROUTINE MAINTENANCE"]
[null,null,null,null,null,"DIRECT EXPENDITURE\n($0's)"]
[null,"ASSET CATEGORIES","ASSET SUBCATEGORIES",null,null," ROUTINE MAINTENANCE","NON-ROUTINE MAINTENANCE"]
[null,null,null,null,null,{"$f":"CRY","v":"2015-16"},{"$f":"CRY","v":"2015-16"}]
[null,"Transmission lines maintenance","Transmission towers",null,null,3795057.0180909135,9324785.2777877096]
[null,null,"Transmission tower support structures",null,null,0,0]
[null,null,"Conductors",null,null,0,411053.19718813099]
[null,null,"Transmission cables",null,null,778918.02540721395,366201.25132726872]
[null,"Substations equipment & property maintenance","Substation switchbays (incl. Reactive plant)",null,null,4144270.7910253573,6998796.526208492]
[null,null,"Substation power transformers",null,null,1691489.6475561494,1946701.2494431164]
[null,null,"Substation property",null,null,4712042.3309432045,9818165.4482077286]
[null,"SCADA & network control maintenance","SCADA & network control maintenance",null,null,305503.5994398027,657256.90592871513]
[null,"Protection systems maintenance","Protection systems maintenance",null,null,1504411.2788255699,1864408.3339080161]
[null,"Other maintenance activity ",{"$f":"IF(ISBLANK(C21),\"\",C21)","v":"TELECOMMUNICATIONS SYSTEMS"},{"$f":"IF(ISBLANK(D21),\"\",D21)","v":"NO. OF TERMINAL EQUIPMENT/BASE STATION/MUX"},"0's",778644.48801788734,3429586.7255965075]
[null,null,{"$f":"IF(ISBLANK(C22),\"\",C22)","v":"METERING SYSTEMS"},"NO. OF METERS","0's",795527.95640173089,232894.70869648602]
[null,null,"","",""]
[null,null,"","",""]
[null,null,"","",""]
[null,null,"","",""]
[null,null,"","",""]
[null,null,"","",""]
[null,null,"","",""]
[null,null,"","",""]
[null,null,"","",""]
[null,null,"","",""]
[null,null,"","",""]
[null,null,"","",""]
[null,null,"","",""]
[null,null,"","",""]
[null,null,"","",""]
[null,null,"","",""]
[null,null,"","",""]
[null,null,"","",""]
[null,null,"","",""]
[null,null,"","",""]
[null,null,"","",""]

{"sheet":"2.10 Overheads","index":11,"n_rows":128,"n_cols":4,"rows_kept":128,"cut":false,"hidden":false,"merged":[[5,1,5,2],[65,1,65,3],[41,1,41,3],[13,1,13,3],[42,1,62,1],[174,60,174,69],[174,71,174,80],[176,34,176,35],[174,16,174,25],[174,27,174,36],[174,38,174,47],[174,49,174,58],[176,16,176,20],[176,21,176,22],[176,23,176,24],[176,27,176,31],[176,32,176,33],[176,76,176,77],[176,78,176,79],[176,38,176,42],[176,43,176,44],[176,60,176,64],[176,65,176,66],[176,67,176,68],[176,71,176,75],[204,7,204,13],[204,15,204,22],[204,24,204,31],[204,33,204,40],[204,42,204,49],[176,45,176,46],[176,49,176,53],[176,54,176,55],[176,56,176,57],[204,51,204,58],[100,1,100,3],[8,1,8,2],[207,56,207,57],[207,7,207,10],[207,11,207,12],[207,15,207,19],[207,20,207,21],[207,24,207,28],[207,29,207,30],[207,33,207,37],[207,38,207,39],[207,42,207,46],[207,47,207,48],[207,51,207,55]]}
[null,"REGULATORY REPORTING STATEMENT"]
[null,{"$f":"INDEX(dms_TradingNameFull_List,MATCH(dms_TradingName,dms_TradingName_List))","v":"TransGrid"}]
[null,{"$f":"CONCATENATE((LOOKUP(dms_Model,dms_Model_List,dms_Worksheet_List))&\" \"&CRY)","v":"CATEGORY ANALYSIS 2015-16"}]
[null,"2.10 OVERHEADS"]
[]
[null,"There are TWO tables on this worksheet. Each has been 'grouped' (and sub-grouped) for easy navigation. See the Instructions sheet on how to group or ungroup data."]
[]
[null,"Instructions"]
[null,"Enter each expenditure category currently reported under annual Information Guidelines."]
[]
[null,"2.10.1 - NETWORK OVERHEADS EXPENDITURE"]
[null,null,null,"EXPENDITURE\n($0's)"]
[null,null,null,{"$f":"CRY","v":"2015-16"}]
[null,"MAINTENANCE SUPPORT"]
[null,"Prescribed Services","Maintenance support",9371385]
[]
[]
[]
[]
[]
[]
[]
[]
[]
[]
[]
[]
[]
[]
[]
[]
[]
[]
[]
[]
[]
[]
[]
[]
[null,"Negotiated Services","Total",36832]
[null,"Unregulated Services","Total",409982]
[null,"NETWORK MONITORING AND CONTROL"]
[null,"Prescribed Services","Operations",10117364]
[]
[]
[]
[]
[]
[]
[]
[]
[]
[]
[]
[]
[]
[]
[]
[]
[]
[]
[]
[]
[null,"Negotiated Services","Total",39763]
[null,"Unregulated Services","Total",442618]
[null,"ASEET MANAGEMENT SUPPORT"]
[null,"Prescribed Services","Asset Management",20695925]
[null,null,"Grid Planning",9814001]
[null,null,"Network Support",0]
[]
[]
[]
[]
[]
[]
[]
[]
[]
[]
[]
[]
[]
[]
[]
[]
[]
[]
[]
[]
[]
[]
[]
[null,"Negotiated Services","Total",119910]
[null,"Unregulated Services","Total",1334758]
[]
[]
[]
[null,"2.10.2 - CORPORATE OVERHEADS EXPENDITURE"]
[null,null,null,"EXPENDITURE\n($0's)"]
[null,null,null,{"$f":"CRY","v":"2015-16"}]
[null,"CORPORATE OVERHEADS"]
[null,"Prescribed Services","Insurance",8465238.7600000035]
[null,null,"Rates, Taxes & Charges",4498407.54]
[null,null,"Property Management",3697102.2730657058]
[null,null,"Environmental",4315609.5914515918]
[null,null,"Corporate Governance",12649909.726919202]
[null,null,"Customer Relations",5439887.0184396021]
[null,null,"Regulatory",1607776.5299999998]
[null,null,"Finance",10640816.939999999]
[null,null,"Information technology",15486069.68649137]
[null,null,"HR & Payroll",12728351.733197099]
[null,null,"Self Insurance",2281581.8999999994]
[]
[]
[]
[]
[]
[]
[]
[]
[]
[]
[]
[]
[]
[]
[null,"Negotiated Services","Total",321533]
[null,"Unregulated Services","Total",3579083]

{"sheet":"2.11 Labour","index":12,"n_rows":54,"n_cols":7,"rows_kept":54,"cut":false,"hidden":false,"merged":[[5,1,5,2],[33,3,33,4],[33,5,33,6],[8,5,9,5],[8,6,9,6],[8,3,9,3],[8,4,9,4]]}
[null,"REGULATORY REPORTING STATEMENT"]
[null,{"$f":"INDEX(dms_TradingNameFull_List,MATCH(dms_TradingName,dms_TradingName_List))","v":"TransGrid"}]
[null,{"$f":"CONCATENATE((LOOKUP(dms_Model,dms_Model_List,dms_Worksheet_List))&\" \"&CRY)","v":"CATEGORY ANALYSIS 2015-16"}]
[null,"2.11 LABOUR"]
[]
[null,"There are TWO tables on this worksheet. Each table has been 'grouped' (and sub-grouped) for easy navigation.  See the Instructions sheet on how to group or ungroup data."]
[]
[null,"2.11.1 - COST METRICS PER ANNUM"]
[null,null,null,"ASL \n(0's)","TOTAL LABOUR EXPENDITURE \n($0's)","AVERAGE PRODUCTIVE WORK HOURS \nPER ASL \n(0's)","STAND-DOWN OCCURENCES \nPER ASL\n(0's)"]
[]
[null,null,null,{"$f":"CRY","v":"2015-16"},{"$f":"CRY","v":"2015-16"},{"$f":"CRY","v":"2015-16"},{"$f":"CRY","v":"2015-16"}]
[null,"CORPORATE OVERHEADS","Executive manager",3.3884615384615384,5416240.7251529917,1681.408906521739,0]
[null,null,"Senior manager",10.846153846153847,4349618.7566969218,1588.0130252066117,0]
[null,null,"Manager",37.142664835164837,9689261.2165000401,1504.3859800591767,0]
[null,null,"Professional",27.295547619047621,8518632.1640036404,1377.6020068617263,0]
[null,null,"Semi professional",53.263555442025776,8867747.553396767,1494.2943509284344,1.8774563427115577E-2]
[null,null,"Support staff",4.9999010989010992,658974.65940138197,1569.8831071992402,0]
[null,null,"Intern, junior staff, apprentice",5.0020824175824181,434906.3348482548,1507.7884211280339,0]
[null,"NETWORK OVERHEADS","Executive manager",3,1773842.4953796207,1672.4634333333333,0]
[null,null,"Senior manager",14,5229316.5187146105,1573.6379142857143,0]
[null,null,"Manager",100.61602197802199,25092235.045901418,1529.4162201605932,0]
[null,null,"Professional",106.72391396047892,23709003.906882484,1450.6875253471189,9.369971198491759E-3]
[null,null,"Semi professional",129.68230234211916,19884496.02272715,1498.299617333076,3.0844609694293274E-2]
[null,null,"Support staff",35.461452509403884,4000180.9994612923,1360.7059507963463,0]
[null,null,"Intern, junior staff, apprentice",9.7414285499376767,1135440.4909333813,1395.7069401210715,0]
[null,"TOTAL DIRECT NETWORK LABOUR","Skilled electrical worker",377.56338461538382,32674126.347640041,1565.0164883820266,0.62241204940831252]
[null,null,"Skilled non electical worker",40.98369780219781,3360009.665239593,1528.1414455758977,0.14639967405962673]
[null,null,"Apprentice",26.318697802197804,1034098.2912113968,1644.0574012455859,0.1899790041885151]
[null,null,"Unskilled worker",17.295835164835168,1716741.4259089814,1477.0865013897824,1.6767042310255722]
[]
[]
[null,"2.11.2 - DESCRIPTOR METRICS"]
[null,"AVERAGE PRODUCTIVE WORK HOURS PER ASL"]
[null,null,null,"ORDINARY TIME (0's)",null,"OVERTIME (0's)"]
[null,null,null,"PER ASL","HOURLY RATE \nPER ASL","PER ASL","HOURLY RATE \nPER ASL"]
[null,null,null,{"$f":"CRY","v":"2015-16"},{"$f":"CRY","v":"2015-16"},{"$f":"CRY","v":"2015-16"},{"$f":"CRY","v":"2015-16"}]
[null,"CORPORATE OVERHEADS","Executive manager",1681.408906521739,539.27559432961402,0,0]
[null,null,"Senior manager",1588.0130252066117,131.25042219206244,0,0]
[null,null,"Manager",1503.1936302195295,101.3191805511338,1.2450139288372521,6.3807857142857145]
[null,null,"Professional",1370.9931917561319,587.8689390714793,6.900715365557315,29.098728361477463]
[null,null,"Semi professional",1484.3231206961166,55.923480819164681,10.411642719346254,39.7911576595871]
[null,null,"Support staff",1568.5422977309001,42.692556941549832,1.4000307699070307,15.345142857142857]
[null,null,"Intern, junior staff, apprentice",1505.6027082062687,29.552584573882637,2.2822521893759329,19.698223516237402]
[null,"NETWORK OVERHEADS","Executive manager",1672.4634333333333,229.61358450769231,0,0]
[null,null,"Senior manager",1573.6379142857143,145.05098155737832,0,0]
[null,null,"Manager",1516.7136031400589,162.7633658019499,13.2636702730865,33.379973018770492]
[null,null,"Professional",1435.0668206979019,155.25884586821351,15.652750192902808,40.597050867800093]
[null,null,"Semi professional",1478.4256187405874,64.898635880235744,19.927741749659113,45.741632229987353]
[null,null,"Support staff",1357.4211883869109,52.47889439298023,3.4298448464394022,20.861139880863345]
[null,null,"Intern, junior staff, apprentice",1392.1374151006203,42.544744918609268,3.7271849435642537,7.2013648979023639]
[null,"TOTAL DIRECT NETWORK LABOUR","Skilled electrical worker",1455.4482888648722,74.84486938805685,114.40764280792997,87.746495157195653]
[null,null,"Skilled non electical worker",1472.2234450594985,67.320945629155887,58.387804653230333,67.766565088157606]
[null,null,"Apprentice",1593.3203102530124,29.369272982819819,52.978063060012055,48.601251535769798]
[null,null,"Unskilled worker",1365.8793152793528,99.556287425171888,116.11902068542334,57.078562441387739]

{"sheet":"2.12 Input tables","index":13,"n_rows":83,"n_cols":9,"rows_kept":83,"cut":false,"hidden":false,"merged":[[9,1,28,1],[29,1,46,1]]}
[null,"REGULATORY REPORTING STATEMENT"]
[null,{"$f":"INDEX(dms_TradingNameFull_List,MATCH(dms_TradingName,dms_TradingName_List))","v":"TransGrid"}]
[null,{"$f":"CONCATENATE((LOOKUP(dms_Model,dms_Model_List,dms_Worksheet_List))&\" \"&CRY)","v":"CATEGORY ANALYSIS 2015-16"}]
[null,"2.12 INPUT TABLES"]
[]
[]
[null,"2.12  INPUT TABLES"]
[null,null,null,"DIRECT MATERIAL EXPENDITURE ($0's)","DIRECT LABOUR EXPENDITURE ($0's)","CONTRACT \nEXPENDITURE ($0's)","OTHER \nEXPENDITURE ($0's)","RELATED PARTY CONTRACT \nEXPENDITURE ($0's)","RELATED PARTY CONTRACT MARGIN"]
[null,null,null,{"$f":"CRY","v":"2015-16"},"2015-16","2015-16","2015-16","2015-16","2015-16"]
[null,"VEGETATION MANAGEMENT",{"$f":"'2.7 Vegetation management'!B11","v":"ZONE 1"},62856.624648675956,3319885.0848670034,19531.72232221438,9918915.4915204756,0,0]
[null,null,{"$f":"'2.7 Vegetation management'!B18","v":"ZONE 2"}]
[null,null,{"$f":"'2.7 Vegetation management'!B25","v":"ZONE 3"}]
[null,null,{"$f":"'2.7 Vegetation management'!B32","v":"ZONE 4"}]
[null,null,{"$f":"'2.7 Vegetation management'!B39","v":"ZONE 5"}]
[null,null,{"$f":"'2.7 Vegetation management'!B46","v":"ZONE 6"}]
[null,null,{"$f":"'2.7 Vegetation management'!B53","v":"ZONE 7"}]
[null,null,{"$f":"'2.7 Vegetation management'!B60","v":"ZONE 8"}]
[null,null,{"$f":"'2.7 Vegetation management'!B67","v":"ZONE 9"}]
[null,null,{"$f":"'2.7 Vegetation management'!B74","v":"ZONE 10"}]
[]
[]
[]
[]
[]
[]
[]
[]
[]
[]
[null,"ROUTINE MAINTENANCE","Transmission Lines Maintenance",295780.36670687469,2861438.6989069041,0,936715.68946670857,0,0]
[null,null,"Substations Equipment & Propoerty Maintenance",742162.37028489099,8812772.4494607821,14091.307840252051,3398020.2251696838,0,0]
[null,null,"SCADA & Network Control Maintenance",2825.4659025802043,243725.71681251976,328.64874420845098,19.407486939790822,0,0]
[null,null,"Protection Systems Maintenance",13913.625828216442,1200194.426464851,1618.3864231572691,95.569552369985374,0,0]
[null,null,"Other Maintenance Activities -  Telecommunications Systems",7201.333978259926,621189.68919602211,837.63508397659427,49.464336131086661,0,0]
[null,null,"Other Maintenance Activities - Metering Systems",7357.4816122757429,634659.04092110577,855.79765454010931,50.536878951395984,0,0]
[]
[]
[]
[]
[]
[]
[]
[]
[]
[]
[]
[]
[null,"NON-ROUTINE MAINTENANCE","Transmission Lines Maintenance",3317075.2824982945,5345673.406226092,129410.7738917837,765800.39894497546,0,0]
[null,null,"Substations Equipment & Propoerty Maintenance",2630392.8435203512,11744631.560539203,814206.48878303333,2706096.3444017838,0,0]
[null,null,"Scada & Network Control Maintenance",221199.07531883966,425209.37578711036,951.43828125141511,22903.432052241362,0,0]
[null,null,"Protection Systems Maintenance",627464.53594801843,1206170.5198108573,2698.8981702029437,64969.039059326489,0,0]
[null,null,"Other Maintenance Activities -  Telecommunications Systems",1154223.5700905563,2218755.5849840161,4964.6341790710876,119510.81202559148,0,0]
[null,null,"Other Maintenance Activities - Metering Systems",78380.453283362804,150670.17602352012,337.13596518492324,8115.6821447457532,0,0]
[]
[]
[]
[]
[]
[]
[]
[]
[]
[]
[null,"OVERHEADS","Network Overheads",1749756.7296434802,29594406.017653227,390381.02679179161,18264130.476346944,0,0]
[null,null,"Corporate Overheads",2863054.1807267657,48424096.012610607,638764.24184999627,29884837.264377195,0,0]
[null,"AUGMENTATION","Subtransmission Substations, Switching Stations , Zone Substations",-21964.559999999961,413153.83999999991,555951.81999999995,532943,0,0]
[null,null,"Subtransmission Lines",19489.399999999994,318933.42000000004,132786.33000000002,1035945.0999999999,0,0]
[null,null,"HV Feeders"]
[null,null,"Other Assets",1700460.5,47465.66,0,48365414.920000009,0,0]
[null,"CONNECTIONS","All New Customer Connections",643273.76,1102720.7600000002,-179676.41,194857.66]
[null,"REPLACEMENT","Transmission Towers",582363.83363910369,712896.05126637011,1677868.409980007,170451.47964092757,0,0]
[null,null,"Transmission Tower Support Structures",170675.03205187013,208930.48189345771,491737.68718203821,49954.701975934295,0,0]
[null,null,"Conductors",19857.333199391884,24308.196369384794,57211.643575988855,5812.0227082246984,0,0]
[null,null,"Transmission Cables",0,0,0,0,0,0]
[null,null,"Substation Switchbays",5131315.1273385473,6281458.5672742799,14784007.962880094,1501879.4187359391,1332153.2405000001,0]
[null,null,"Substation Power Transformers",1283161.1163569565,1570771.4664786467,3696959.4911078159,375567.1253381584,549313.34900000005,0]
[null,null,"Substation Reactive Plant",1033275.8422012957,1264876.3972364496,2977006.4593321425,302428.45796221227,216437.783,0]
[null,null,"SCADA network control and protection systems",10742184.500794001,13149959.647625746,30949676.107855164,3144119.083244578,971172.53749999998,0]
[null,null,"Other ",5715013.1144188363,6995987.8118556635,16465720.248086765,1672721.3903940257,364669,0]
[null,"NON-NETWORK EXPENDITURE","IT and communications",938113.01000000024,2343857.9700000002,0,7883899.9899999993,0,0]
[null,null,"Motor Vehicles",7106841.2999999989,0,0,57882.5,0,0]
[null,null,"Buildings And Property",123271.39000000001,223482.8,86779.10999999987,590378.29999999981,0,0]
[null,null,"Other",1338513.7999999998,2863.2499999999995,0,0,0,0]

{"sheet":"5.2 Asset Age Profile","index":14,"n_rows":180,"n_cols":112,"rows_kept":180,"cut":false,"hidden":false,"merged":[[5,1,5,2],[8,3,8,4],[25,1,39,1],[40,1,61,1],[62,1,83,1],[179,1,204,1],[84,1,119,1],[120,1,144,1],[145,1,166,1],[167,1,178,1]]}
[null,"REGULATORY REPORTING STATEMENT"]
[null,{"$f":"INDEX(dms_TradingNameFull_List,MATCH(dms_TradingName,dms_TradingName_List))","v":"TransGrid"}]
[null,{"$f":"CONCATENATE((LOOKUP(dms_Model,dms_Model_List,dms_Worksheet_List))&\" \"&CRY)","v":"CATEGORY ANALYSIS 2015-16"}]
[null,"5.2 ASSET AGE PROFILE"]
[null,"."]
[null,"There is ONE table on this worksheet. Both ROWS and COLUMNS have been 'grouped' for easy navigation. See the Instructions sheet on how to group or ungroup data."]
[]
[null,"TABLE 5.2.1 - ASSET AGE PROFILE"]
[null,null,null,"ECONOMIC LIFE (YEARS)",null,"INSTALLED ASSETS -˃ QUANTITY CURRENTLY IN COMMISSION BY YEAR"]
[null,"ASSET GROUP","ASSET CATEGORY","MEAN ","STANDARD DEVIATION ",{"$f":"CRY","v":"2015-16"},{"$f":"IF(dms_RPT=\"financial\",(VALUE(LEFT(F10,4)-1)&\"-\"&MID(F10,3,2)),VALUE(LEFT(F10,4)-1))","v":"2014-15"},{"$f":"IF(dms_RPT=\"financial\",(VALUE(LEFT(G10,4)-1)&\"-\"&MID(G10,3,2)),VALUE(LEFT(G10,4)-1))","v":"2013-14"},"2012-13","2011-12","2010-11","2009-10","2008-09","2007-08","2006-07","2005-06","2004-05","2003-04","2002-03","2001-02","2000-01","1999-00","1998-99","1997-98","1996-97","1995-96","1994-95","1993-94","1992-93","1991-92","1990-91","1989-90","1988-89","1987-88","1986-87","1985-86","1984-85","1983-84",{"$f":"IF(dms_RPT=\"financial\",(VALUE(LEFT(AL10,4)-1)&\"-\"&MID(AL10,3,2)),VALUE(LEFT(AL10,4)-1))","v":"1982-83"},"1981-82","1980-81","1979-80","1978-79","1977-78","1976-77","1975-76","1974-75","1973-74","1972-73","1971-72","1970-71","1969-70","1968-69","1967-68","1966-67","1965-66","1964-65","1963-64","1962-63","1961-62","1960-61","1959-60","1958-59","1957-58","1956-57","1955-56","1954-55","1953-54","1952-53","1951-52",{"$f":"IF(dms_RPT=\"financial\",(VALUE(LEFT(BR10,4)-1)&\"-\"&MID(BR10,3,2)),VALUE(LEFT(BR10,4)-1))","v":"1950-51"},"1949-50","1948-49","1947-48","1946-47","1945-46","1944-45","1943-44","1942-43","1941-42","1940-41","1939-40","1938-39","1937-38","1936-37","1935-36","1934-35","1933-34","1932-33","1931-32","1930-31","1929-30","1928-29","1927-28","1926-27","1925-26","1924-25","1923-24","1922-23","1921-22","1920-21","1919-20",{"$f":"IF(dms_RPT=\"financial\",(VALUE(LEFT(CX10,4)-1)&\"-\"&MID(CX10,3,2)),VALUE(LEFT(CX10,4)-1))","v":"1918-19"},"1917-18","1916-17",{"$f":"IF(dms_RPT=\"financial\",(VALUE(LEFT(DA10,4)-1)&\"-\"&MID(DA10,3,2)),VALUE(LEFT(DA10,4)-1))","v":"1915-16"},{"$f":"IF(dms_RPT=\"financial\",(VALUE(LEFT(DB10,4)-1)&\"-\"&MID(DB10,3,2)),VALUE(LEFT(DB10,4)-1))","v":"1914-15"},{"$f":"IF(dms_RPT=\"financial\",(VALUE(LEFT(DC10,4)-1)&\"-\"&MID(DC10,3,2)),VALUE(LEFT(DC10,4)-1))","v":"1913-14"},{"$f":"IF(dms_RPT=\"financial\",(VALUE(LEFT(DD10,4)-1)&\"-\"&MID(DD10,3,2)),VALUE(LEFT(DD10,4)-1))","v":"1912-13"},{"$f":"IF(dms_RPT=\"financial\",(VALUE(LEFT(DE10,4)-1)&\"-\"&MID(DE10,3,2)),VALUE(LEFT(DE10,4)-1))","v":"1911-12"},{"$f":"IF(dms_RPT=\"financial\",(VALUE(LEFT(DF10,4)-1)&\"-\"&MID(DF10,3,2)),VALUE(LEFT(DF10,4)-1))","v":"1910-11"},{"$f":"IF(dms_RPT=\"financial\",(VALUE(LEFT(DG10,4)-1)&\"-\"&MID(DG10,3,2)),VALUE(LEFT(DG10,4)-1))","v":"1909-10"}]
[null,"TRANSMISSION TOWERS\nHighest operating voltage; Circuit configuration","< = 33 kV; Single Circuit"]
[null,null,"> 33 kV & < = 66 kV ; Single Circuit",70,0,null,null,null,null,2,null,null,null,null,null,null,null,null,null,3]
[null,null,"> 66 kV & < = 132 kV ; Single Circuit",66.623090059999996,2.6027702480000001,102,80,84,159,297,433,201,655,686,207,617,176,60,42,248,105,78,9,662,null,1,null,null,2,299,4,681,293,null,null,649,359,153,1193,null,null,81,621,234,5,549,749,499,null,528,1576,1119,135,1511,1,611,10,749,1744,null,null,631,null,null,458,117,null,374,201,null,null,null,null,null,null,null,null,null,null,null,null,36]
[null,null,"> 132 kV & < = 275 kV ; Single Circuit",74.988331389999999,0.24133147399999999,4,null,null,null,null,null,null,null,null,null,null,null,null,null,null,null,null,null,null,null,null,null,null,null,null,null,null,null,null,1003,null,null,null,null,null,null,null,707]
[null,null,"> 275 kV & < = 330 kV ; Single Circuit",71.462872860000004,9.9396170619999999,null,28,6,6,48,24,5,285,null,null,6,13,2,2,null,null,9,null,null,10,null,24,1,1,17,230,1,null,null,387,37,2,345,530,522,1,57,272,null,3,299,14,246,498,231,417,null,286,null,275,341,null,525,567,684,846,1,462,111,777]
[null,null,"> 330 kV & < = 500 kV  ; Single Circuit",75,0,null,null,null,null,null,null,null,null,null,null,null,null,null,null,null,null,null,null,null,null,null,null,null,null,null,null,null,null,null,null,1]
[null,null,"> 500 kV  ; Single Circuit"]
[null,null,"< = 33 kV; Multiple Circuit"]
[null,null,"> 33 kV & < = 66 kV ; Multiple Circuit"]
[null,null,"> 66 kV & < = 132 kV ; Multiple Circuit",70.025510199999999,4.9373212139999998,1,null,283,68,259,7,95,46,15,null,2,2,null,null,435,95,11,null,null,null,null,null,null,null,null,null,null,null,null,null,3,null,null,null,2,null,null,null,null,null,1,null,null,null,null,null,34,null,47,null,null,null,55,7,null,4,null,null,null,36,null,null,null,60]
[null,null,"> 132 kV & < = 275 kV ; Multiple Circuit"]
[null,null,"> 275 kV & < = 330 kV ; Multiple Circuit",69.275392240000002,12.94594158,null,null,17,null,null,null,1,6,null,null,5,null,null,32,null,null,542,null,2,null,null,4,5,null,47,null,null,null,1,null,2,2,156,138,20,52,14,null,22,186,20,249,null,null,null,33,522,null,null,null,1,null,1,342]
[null,null,"> 330 kV & < = 500 kV  ; Multiple Circuit",74.22619048,5.1485038799999998,null,null,32,null,null,null,2,1,null,null,null,null,null,null,null,null,null,null,null,null,null,null,null,null,327,null,null,null,null,null,494,null,null,null,320]
[null,null,"> 500 kV  ; Multiple Circuit"]
[null,null,"Other"]
[null,"TRANSMISSION TOWER SUPPORT STRUCTURES BY:\nHighest operating voltage; Circuit configuration","< = 33 kV; Single Circuit"]
[null,null,"> 33 kV & < = 66 kV ; Single Circuit"]
[null,null,"> 66 kV & < = 132 kV ; Single Circuit"]
[null,null,"> 132 kV & < = 275 kV ; Single Circuit"]
[null,null,"> 275 kV & < = 330 kV ; Single Circuit"]
[null,null,"> 330 kV & < = 500 kV  ; Single Circuit"]
[null,null,"> 500 kV  ; Single Circuit"]
[null,null,"< = 33 kV; Multiple Circuit"]
[null,null,"> 33 kV & < = 66 kV ; Multiple Circuit"]
[null,null,"> 66 kV & < = 132 kV ; Multiple Circuit"]
[null,null,"> 132 kV & < = 275 kV ; Multiple Circuit"]
[null,null,"> 275 kV & < = 330 kV ; Multiple Circuit"]
[null,null,"> 330 kV & < = 500 kV  ; Multiple Circuit"]
[null,null,"> 500 kV  ; Multiple Circuit"]
[null,null,"Other"]
[null,"CONDUCTORS BY: \nVoltage; Maximum continuous rating","< = 33 kV ; < = 100 MVA"]
[null,null,"< = 33 kV ; > 100 MVA & < = 400 MVA"]
[null,null,"< = 33 kV ; > 400 MVA"]
[null,null,"> 33 kV & < = 66 kV  ; < = 100 MVA",80,0,null,null,null,null,null,10.395,null,null,null,null,null,null,null,null,10.808]
[null,null,"> 33 kV & < = 66 kV  ; > 100 MVA & < = 400 MVA"]
[null,null,"> 33 kV & < = 66 kV  ; > 400 MVA"]
[null,null,"> 66 kV & < = 132 kV  ; < = 100 MVA",80,0,0.39900000000000002,33.168999999999997,null,null,null,null,17.241,null,null,null,4.8000000000000001E-2,0.34599999999999997,null,null,null,null,null,null,null,null,null,null,null,null,null,null,null,null,null,1.8440000000000001,null,null,null,null,null,null,null,null,null,null,null,null,null,null,null,null,null,null,null,null,null,null,143.90799999999999,null,null,null,114.31399999999999,null,null,19.82]
[null,null,"> 66 kV & < = 132 kV  ; > 100 MVA & < = 400 MVA",77.900000000000006,6.2,1.0780000000000001,0.68400000000000005,59.106000000000002,33.003,147.14599999999999,92.909000000000006,172.15100000000001,2.504,4.976,0.65200000000000002,0.55600000000000005,2.33,null,null,88.299000000000007,169.13800000000001,6.4189999999999996,143.21,4,null,null,null,null,null,104.836,0.372,166.68100000000001,null,null,null,145.476,87.715999999999994,59.62,207.84399999999999,4.9969999999999999,4.0179999999999998,11.47,192.24700000000001,66.11,36.79,143.63900000000001,169.80600000000001,140.52099999999999,null,124.068,446.56900000000002,277.96899999999999,183.22,402.80099999999999,3.1840000000000002,202.51499999999999,9.6000000000000002E-2,47.414000000000001,468.97399999999999,89.817999999999998,1.48,45.459000000000003,92.980999999999995,null,157.018,123.608,null,170.16200000000001,64.893000000000001]
[null,null,"> 66 kV & < = 132 kV  ; > 400 MVA",78.7,5,null,1.0269999999999999,null,0.51700000000000002,null,null,null,null,33.017000000000003,null,null,null,null,null,null,null,null,null,null,null,null,null,null,null,null,null,null,1.7729999999999999]
[null,null,"> 132 kV & < = 275 kV  ; < = 200 MVA"]
[null,null,"> 132 kV & < = 275 kV  ; > 200 MVA & < = 600 MVA",80,0,2.359,null,null,null,null,null,null,null,null,null,null,null,null,null,null,null,null,null,null,null,null,null,null,null,null,null,null,null,null,397.77499999999998,null,null,null,null,null,null,null,281.01499999999999]
[null,null,"> 132 kV & < = 275 kV  ; > 600 MVA"]
[null,null,"> 275 kV & < = 330 kV  ; < = 800 MVA"]
[null,null,"> 275 kV & < = 330 kV  ; > 800 MVA & < = 1200 MVA",79.599999999999994,2.8,null,null,0.106,null,null,0.113,118.215,3.3319999999999999,null,0.14699999999999999,3.8690000000000002,null,null,null,null,null,0.122,null,null,2.641,null,null,null,null,3.1539999999999999,169.28100000000001,null,null,null,151.631,null,null,169.875,134.66499999999999,111.005,null,22.187000000000001,99.486000000000004,null,null,null,null,229.483,75.484999999999999,100.48399999999999,143.33199999999999,16.437999999999999,124.114,null,131.78100000000001,170.744,null,17.131,2.33,217.881,293.95,null,92.206000000000003,118.64100000000001,344.98]
[null,null,"> 275 kV & < = 330 kV  ; > 1200 MVA",75.599999999999994,8.3000000000000007,8.9190000000000005,0.17399999999999999,14.786,null,15.711,null,0.16300000000000001,1.4870000000000001,0.223,null,4.0579999999999998,null,null,26.407,null,null,442.173,null,null,0.06,null,7.23,2.6320000000000001,null,39.747,12.401999999999999,null,null,null,null,1.1990000000000001,0.72199999999999998,62.414999999999999,90.186000000000007,48.747,38.898000000000003,10.226000000000001,null,5.2130000000000001,109.99299999999999,21.943000000000001,196.631,null,82.001999999999995,null,23.501999999999999,362.52,37.994,null,1.038,115.482,null,192.73599999999999,265.495,115.464,27.864000000000001,null,35.707999999999998]
[null,null,"> 330 kV & < = 500 kV   ; < = 1000 MVA"]
[null,null,"> 330 kV & < = 500 kV   ; > 1000 MVA & < = 1500 MVA"]
[null,null,"> 330 kV & < = 500 kV   ; > 1500 MVA",79.5,3,null,null,22.808,null,null,null,null,9.0999999999999998E-2,0.46700000000000003,0.54500000000000004,null,null,null,null,null,null,null,null,null,null,null,null,null,null,281.99700000000001,null,null,null,null,null,431.41899999999998,null,null,null,286.33499999999998]
[null,null,"> 500 kV   ; < = 2000 MVA"]
[null,null,"> 500 kV   ; > 2000 MVA & < = 3000 MVA"]
[null,null,"> 500 kV   ; > 3000 MVA"]
[null,null,"Other"]
[null,"TRANSMISSION CABLES BY: \nHighest operating voltage; Insulation type","< = 33 kV; Oil Filled"]
[null,null,"> 33 kV & < = 66 kV ; Oil Filled"]
[null,null,"> 66 kV & < = 132 kV ; Oil Filled"]
[null,null,"> 132 kV & < = 275 kV ; Oil Filled"]
[null,null,"> 275 kV & < = 330 kV ; Oil Filled",40,0,null,null,null,null,null,null,null,null,null,null,null,27.5,null,null,null,null,null,null,null,null,null,null,null,null,null,null,null,null,null,null,null,null,null,null,null,null,null,19.7]
[null,null,"> 330 kV & < = 500 kV  ; Oil Filled"]
[null,null,"> 500 kV  ; Oil Filled"]
[null,null,"< = 33 kV; XLPE Insulated"]
[null,null,"> 33 kV & < = 66 kV ; XLPE Insulated"]
[null,null,"> 66 kV & < = 132 kV ; XLPE Insulated",40,0,null,null,3.617,0.34,null,null,null,null,null,null,null,0.28000000000000003]
[null,null,"> 132 kV & < = 275 kV ; XLPE Insulated"]
[null,null,"> 275 kV & < = 330 kV ; XLPE Insulated",40,0,null,30.786999999999999]
[null,null,"> 330 kV & < = 500 kV  ; XLPE Insulated"]
[null,null,"> 500 kV  ; XLPE Insulated"]
[null,null,"< = 33 kV; Other Insulated"]
[null,null,"> 33 kV & < = 66 kV ; Other Insulated"]
[null,null,"> 66 kV & < = 132 kV ; Other Insulated"]
[null,null,"> 132 kV & < = 275 kV ; Other Insulated"]
[null,null,"> 275 kV & < = 330 kV ; Other Insulated"]
[null,null,"> 330 kV & < = 500 kV  ; Other Insulated"]
[null,null,"> 500 kV  ; Other Insulated"]
[null,null,"Other"]
[null,"SUBSTATION SWITCHBAYS BY: \nHighest operating voltage; Switch type","< = 33 kV; Air Insulated circuit Breaker",40,6.32,7,null,null,3,4,3,null,null,1,3,13,5,5,5,8,4,null,5,null,7,1,2,7,1,null,null,1,1,2,null,4,null,2,null,null,null,null,null,null,null,null,null,null,2,null,null,null,null,2,1]
[null,null,"> 33 kV & < = 66 kV ; Air Insulated circuit Breaker",40,6.32,16,4,13,9,6,15,10,16,2,16,14,6,5,9,15,2,3,2,2,12,4,2,6,4,1,3,null,null,2,null,null,6,37,2,6,null,null,10,3,2,null,null,null,null,1,4,10,2,null,7,null,null,null,9]
[null,null,"> 66 kV & < = 132 kV ; Air Insulated circuit Breaker",40,6.32,13,11,13,29,37,22,25,20,13,16,30,20,13,23,44,22,23,11,27,20,22,12,14,13,3,1,15,4,4,1,1,7,24,10,8,10,3,2,null,1,null,null,null,null,1,null,4,null,1]
[null,null,"> 132 kV & < = 275 kV ; Air Insulated circuit Breaker",40,6.32,null,null,null,null,null,null,null,null,null,null,null,null,null,null,null,null,null,null,null,null,null,null,null,null,null,null,null,null,9,null,3,null,null,null,null,null,null,2]
[null,null,"> 275 kV & < = 330 kV ; Air Insulated circuit Breaker",40,6.32,4,12,22,18,7,26,9,33,6,3,27,3,5,11,5,21,10,16,23,8,17,5,45,10,15,1,1,2,12,11,14,9,7,2,null,1,null,null,null,null,null,null,null,null,null,null,null,null,null,null,null,null,null,null,null,null,6]
[null,null,"> 330 kV & < = 500 kV  ; Air Insulated circuit Breaker",40,6.32,null,null,null,null,null,4,3,19,null,null,null,null,null,null,null,1,null,null,null,null,null,null,7,null,null,null,null,null,null,null,null,1,2]
[null,null,"> 500 kV  ; Air Insulated circuit Breaker"]
[null,null,"< = 33 kV; Air Insulated Isolators / Earth Switch",40,6.32,null,3,2,2,9,8,null,null,null,null,null,76,null,null,1,null,null,null,null,2,null,8,47,1,null,1,null,14,5,null,10,null,3,null,2,null,null,14,null,null,null,null,null,null,null,null,7,3,null,2,null,4]
[null,null,"> 33 kV & < = 66 kV ; Air Insulated Isolators / Earth Switch",40,6.32,45,9,28,1,null,50,18,43,1,28,3,140,2,1,15,null,null,1,1,null,2,28,15,12,1,12,null,1,1,1,null,13,70,9,11,2,null,6,17,10,1,1,null,null,1,6,10,39,5,22,1,1,null,28,null,null,null,1]
[null,null,"> 66 kV & < = 132 kV ; Air Insulated Isolators / Earth Switch",40,6.32,24,27,39,36,76,88,50,58,28,35,59,198,13,51,63,24,13,5,27,5,31,36,103,97,null,1,40,23,11,8,10,26,79,68,33,16,9,52,16,12,null,69,133,26,40,4,82,45,15,85,3,22,null,19,3,2,null,7,null,1]
[null,null,"> 132 kV & < = 275 kV ; Air Insulated Isolators / Earth Switch",40,6.32,null,null,1,8,null,null,null,null,null,null,null,24,null,null,3,null,null,null,null,null,null,null,null,null,null,null,null,null,10,null,2,null,null,null,null,null,null,3]
[null,null,"> 275 kV & < = 330 kV ; Air Insulated Isolators / Earth Switch",40,6.32,3,2,40,16,24,129,44,71,44,30,105,78,27,36,3,25,6,null,36,null,24,null,357,45,23,null,25,7,13,7,59,105,55,3,5,13,1,8,37,27,33,79,14,30,45,null,null,27,22,47,null,10,null,null,null,null,50]
[null,null,"> 330 kV & < = 500 kV  ; Air Insulated Isolators / Earth Switch",40,6.32,null,null,4,8,7,50,27,118,null,null,null,null,null,null,null,null,null,null,null,null,null,null,45,2,11,null,null,null,null,null,null,1,36]
[null,null,"> 500 kV  ; Air Insulated Isolators / Earth Switch"]
[null,null,"< = 33 kV; VT",40,6.3,3,3,4,6,2,null,null,null,null,null,1,12,null,2,null,4,null,null,null,null,2,1,12,null,null,null,1,2,null,null,4,null,null,null,null,1,null,2,null,null,null,1,null,null,null,null,6,2,null,null,null,1]
[null,null,"> 33 kV & < = 66 kV ; VT",40,6.3,57,18,33,18,9,41,45,42,11,12,9,24,24,9,18,null,null,null,2,3,null,12,15,3,3,6,null,null,null,3,null,9,63,7,null,null,3,6,11,4,null,1,null,null,1,3,4,1,null,5,null,2,null,6,null,null,null,null,null,2]
[null,null,"> 66 kV & < = 132 kV ; VT",40,6.3,24,39,35,23,112,85,81,75,35,7,48,33,8,29,44,9,14,22,32,19,37,8,34,29,2,2,8,10,15,5,null,21,33,28,9,18,null,11,1,3,null,3,3,10,3,null,6,9,5,3,null,null,null,null,null,3,null,3]
[null,null,"> 132 kV & < = 275 kV ; VT",40,6.3,null,null,null,null,null,null,null,null,null,2,null,null,null,null,6,null,null,null,null,null,null,null,null,null,null,1,null,null,11,null,3,null,null,null,null,null,null,1]
[null,null,"> 275 kV & < = 330 kV ; VT",40,6.3,null,38,11,null,25,53,25,41,24,20,36,36,3,19,null,42,3,4,21,7,5,7,83,7,9,1,null,6,7,3,7,25,10,11,null,3,3,3,12,6,null,7,8,18,null,null,null,null,null,2,null,null,null,null,null,null,18]
[null,null,"> 330 kV & < = 500 kV  ; VT",40,6.3,null,null,1,null,null,6,6,24,null,null,null,null,null,null,null,null,null,null,null,null,null,null,5,null,null,null,null,null,1,null,null,1,4]
[null,null,"> 500 kV  ; VT"]
[null,null,"< = 33 kV; CT",40,6.3,0,0,0,0,0,16,0,9,0,0,0,39,0,3,6,3,0,0,1,14,0,6,13,4,2,2,0,3,15,0,2,0,9,0,4,2,0,8,0,0,0,0,0,0,0,0,8,3,6,0,0,0,0,0,0,0,0,0,1]
[null,null,"> 33 kV & < = 66 kV ; CT",40,6.3,6,6,0,15,0,18,45,27,15,57,22,36,33,27,33,25,22,14,12,43,6,5,40,9,7,13,0,1,0,0,0,0,23,9,5,0,0,0,0,0,3,0,0,0,0,7,20,0,0,0,0,0,0,27,0,0,0,0,0]
[null,null,"> 66 kV & < = 132 kV ; CT",40,6.3,9,18,24,42,31,88,53,34,36,44,81,57,46,39,77,16,37,30,50,25,32,52,61,57,1,4,21,4,17,10,6,18,18,11,6,12,9,6,0,12,0,8,29,18,14,3,18,0,0,17,0,1,0,0,0,0,3,0,0]
[null,null,"> 132 kV & < = 275 kV ; CT",40,6.3,0,0,3,0,0,0,0,0,0,0,0,0,0,0,0,0,0,0,0,0,0,0,0,0,0,1,0,1,17,0,5,0,0,0,0,0,0,6,0,0,0,0,0,0,0,0,0,0,0,0,0,0,0,0,0,0,0,0,0]
[null,null,"> 275 kV & < = 330 kV ; CT",40,6.3,12,21,38,45,93,143,47,90,57,52,119,41,62,42,21,30,76,27,18,12,1,2,55,3,40,0,3,4,17,5,18,18,13,4,1,4,4,2,0,0,0,13,3,21,0,1,0,8,0,5,0,0,0,20,0,0,0,0,0]
[null,null,"> 330 kV & < = 500 kV  ; CT",40,6.3,0,0,0,0,0,12,9,63,0,0,0,0,0,0,0,21,15,0,0,0,0,0,0,0,0,0,0,0,0,0,0,0,0,0,0,0,0,0,0,0,0,0,0,0,0,0,0,0,0,0,0,0,0,0,0,0,0,0,0]
[null,null,"> 500 kV  ; CT"]
[null,null,"< = 33 kV; GIS Module"]
[null,null,"> 33 kV & < = 66 kV ; GIS Module"]
[null,null,"> 66 kV & < = 132 kV ; GIS Module",40,6.3,0,12,0,44,0,0,0,0,0,0,0,23]
[null,null,"> 132 kV & < = 275 kV ; GIS Module",40,6.3]
[null,null,"> 275 kV & < = 330 kV ; GIS Module",40,6.3,0,9,11,0,0,0,0,0,0,0,0,4]
[null,null,"> 330 kV & < = 500 kV  ; GIS Module"]
[null,null,"> 500 kV  ; GIS Module"]
[null,null,"Other"]
[null,"SUBSTATION POWER TRANSFORMERS BY: \nHighest operating voltage;  Ampere rating","< = 33 kV ; < = 10 MVA"]
[null,null,"< = 33 kV ; > 10 MVA & < =  30 MVA"]
[null,null,"< = 33 kV ; > 30 MVA"]
[null,null,"> 33 kV & < = 66 kV  ; < = 10 MVA"]
[null,null,"> 33 kV & < = 66 kV  ; > 10 MVA & < =  30 MVA"]
[null,null,"> 33 kV & < = 66 kV  ; > 30 MVA"]
[null,null,"> 66 kV & < = 132 kV  ; < = 30 MVA"]
[null,null,"> 66 kV & < = 132 kV  ; > 30 MVA & < =  60 MVA",45,6.71,null,null,5,4,2,null,4,5,3,1,6,null,2,1,1,2,1,null,null,null,null,null,null,1,null,1,null,2,2,null,null,3,2,2,null,null,null,null,2,null,null,1,null,null,null,null,null,2,1,null,null,null,null,null,null,null,null,null,null,null,null,1]
[null,null,"> 66 kV & < = 132 kV  ; > 60 MVA",45,6.71,null,null,2,null,null,null,3,2,null,null,null,null,null,null,null,null,1,null,null,null,null,null,null,null,null,null,null,null,null,null,null,null,2,4,null,2,null,null,null,null,null,null,null,null,null,null,2,null,null,null,null,null,null,null,1,1]
[null,null,"> 132 kV & < = 220 kV  ; < = 50 MVA",null,null,null,null,null,null,null,null,null,null,null,null,null,null,null,null,null,null,1]
[null,null,"> 132 kV & < = 220 kV  ; > 50 MVA & < =  100 MVA",45,6.71,null,null,null,null,null,null,null,null,null,null,null,null,null,null,null,null,null,null,null,null,null,null,null,null,null,null,null,null,null,null,null,null,null,null,null,null,null,2]
[null,null,"> 132 kV & < = 220 kV  ; > 100 MVA"]
[null,null,"> 220 kV & < = 275 kV  ; < = 50 MVA"]
[null,null,"> 220 kV & < = 275 kV  ; > 50 MVA & < =  100 MVA"]
[null,null,"> 220 kV & < = 275 kV  ; > 100 MVA"]
[null,null,"> 275 kV & < = 330 kV  ; < = 100 MVA"]
[null,null,"> 275 kV & < = 330 kV  ; > 100 MVA & < =  250 MVA",45,6.71,null,null,null,null,null,null,null,1,null,null,1,null,9,null,null,1,1,null,null,null,null,2,null,null,null,null,null,null,2,null,null,null,null,2,null,null,null,null,null,null,null,null,9,null,null,null,null,null,2,6,null,null,null,null,1]
[null,null,"> 275 kV & < = 330 kV  ; > 250 MVA",45,6.71,null,null,5,4,4,4,3,5,2,5,4,3,4,2,1,null,3,null,null,null,null,null,1,null,2,null,null,1,1,1,null,2,1,3,2,6,null,3,null,null,null,null,null,null,null,null,null,null,null,2]
[null,null,"> 330 kV & < = 500 kV   ; < = 150 MVA"]
[null,null,"> 330 kV & < = 500 kV   ; > 150 MVA & < =  300 MVA"]
[null,null,"> 330 kV & < = 500 kV   ; > 300 MVA",45,6.71,null,null,null,null,null,null,9,12,null,null,null,null,null,null,null,null,null,null,null,null,null,null,null,null,null,null,null,null,null,null,null,null,5,1,3]
[null,null,"> 500 kV   ; < = 1000 MVA"]
[null,null,"> 500 kV   ; > 1000 MVA & < =  1500 MVA"]
[null,null,"> 500 kV   ; > 1500 MVA"]
[null,null,"Other"]
[null,"SUBSTATION REACTIVE PLANT BY: \nHighest operating voltage; Function","< = 33 kV;  SVCS",20,4.47,null,null,null,null,null,null,null,null,null,null,null,1,null,null,null,2,null,null,null,null,null,null,null,null,null,null,null,null,null,null,2]
[null,null,"> 33 kV & < = 66 kV ;  SVCS"]
[null,null,"> 66 kV & < = 132 kV ;  SVCS"]
[null,null,"> 132 kV & < = 275 kV ;  SVCS"]
[null,null,"> 275 kV & < = 330 kV ;  SVCS"]
[null,null,"> 330 kV & < = 500 kV  ;  SVCS"]
[null,null,"> 500 kV  ;  SVCS"]
[null,null,"< = 33 kV;  Capacitors",30,5.48,null,null,null,3,null,null,null,null,2,null,null,null,null,null,2,null,null,null,null,null,null,null,3,null,null,null,null,null,null,null,2,null,2,null,2]
[null,null,"> 33 kV & < = 66 kV ;  Capacitors",30,5.48,null,null,null,1,null,3,null,null,1,11,null,null,2,4,4,null,null,1,1,null,1,null,2,null,null,1,null,null,null,null,null,1,null,1,2]
[null,null,"> 66 kV & < = 132 kV ;  Capacitors",30,5.48,1,3,1,4,null,null,null,null,2,2,1,1,3,4,3,3,4,null,1,2,4,1,3,3,null,2,null,null,1,null,null,1,2,1]
[null,null,"> 132 kV & < = 275 kV ;  Capacitors"]
[null,null,"> 275 kV & < = 330 kV ;  Capacitors",null,null,null,null,1,null,null,null,null,4,2,null,3,1,null,2,null,1]
[null,null,"> 330 kV & < = 500 kV  ;  Capacitors"]
[null,null,"> 500 kV  ;  Capacitors"]
[null,null,"< = 33 kV;  Oil Filled Reactors"]
[null,null,"> 33 kV & < = 66 kV ;  Oil Filled Reactors"]
[null,null,"> 66 kV & < = 132 kV ;  Oil Filled Reactors",30,5.48,null,null,1,null,null,null,null,1,null,null,null,null,null,null,null,null,null,null,null,null,null,null,null,null,null,null,null,null,null,1,null,null,null,null,null,null,null,1]
[null,null,"> 132 kV & < = 275 kV ;  Oil Filled Reactors",30,5.48,1,null,null,null,null,null,null,null,null,null,null,null,null,null,null,null,null,null,null,null,null,null,null,null,null,null,null,null,2,null,null,null,null,null,null,null,null,2]
[null,null,"> 275 kV & < = 330 kV ;  Oil Filled Reactors",30,5.48,null,null,2,null,null,2,1,2,null,null,null,null,3,2,null,6,null,null,null,null,null,null,null,9,null,null,null,null,null,null,null,null,1]
[null,null,"> 330 kV & < = 500 kV  ;  Oil Filled Reactors"]
[null,null,"> 500 kV  ;  Oil Filled Reactors"]
[null,null,"Other",30,5.48,null,null,null,null,null,null,null,null,null,null,null,3]
[null,"SCADA, NETWORK CONTROL AND PROTECTION SYSTEMS BY:\nFunction","Communications Network Assets",15,3.87,77,528,177,95,96,76,92,66,193,193,66,72,49,13,19,29,8,10,3,3,0,0,0,0,0,0,0,0,0,0,0,0,0,0,0,0,0,0,0,0,0,0,0,0,0,0,0,0,0,0,0,0,0,0,0,0,0,0,0,0,0,0,0,0,0,0]
[null,null,"Master Station Assets"]
[null,null,"Control equipment / systems",15,3.87,103,119,338,178,63,7,158,85,127,118,61,65,91,15,26,37,50,56,24,13,1,0,0,0,0,0,0,0,0,null,null,null,null,null,null,null,null,null,null,null,null,null,null,null,null,null,null,null,null,null,null,null,null,null,null,null,null,null,null,null,null,null,0,0,0,0]
[null,null,"Infrastructure: protection and control"]
[null,null,"Metering systems",15,3.87,45,85,128,64,40,59,60,38,36,67,48,46,35,14,13,2,11,11,0,0,0,0,0,0,0,0,0,0,0,0,0,0,0,0,0,0,0,0,0,0,0,0,0,0,0,0,0,0,0,0,0,0,0,0,0,0,0,0,0,0,0,0,0,0,0,0]
[null,null,"OPGW"]
[null,null,"Protection schemes / systems",24.06,4.91,215,137,240,223,145,141,197,195,122,110,51,72,18,50,20,84,88,8,21,11,12,64,4,8,28,12,12,3,34,4,35,48,162,78,52,25,8,103,6,9,19,26,0,24,14,20,103,36,22,55,8,28,0,13,8,12,14,0,0,0,0,0,6,0,0,0]
[null,null,"Site establishment"]
[null,null,"Station SCADA and control systems"]
[null,null,"Telecommunications Network / Systems"]
[null,null,"Total secondary systems"]
[null,null,"Other"]
[null,"OTHER BY: \nTNSP defined","<NSP to enter description for Asset Category not listed above>"]

{"sheet":"5.3 MD - Network level","index":15,"n_rows":15,"n_cols":4,"rows_kept":15,"cut":false,"hidden":false,"merged":[]}
[null,"REGULATORY REPORTING STATEMENT"]
[null,{"$f":"INDEX(dms_TradingNameFull_List,MATCH(dms_TradingName,dms_TradingName_List))","v":"TransGrid"}]
[null,{"$f":"CONCATENATE((LOOKUP(dms_Model,dms_Model_List,dms_Worksheet_List))&\" \"&CRY)","v":"CATEGORY ANALYSIS 2015-16"}]
[null,"5.3 MAXIMUM DEMAND AT NETWORK LEVEL"]
[]
[]
[null,"5.3.1 - RAW AND WEATHER CORRECTED COINCIDENT MD AT NETWORK LEVEL \n(Summed at transmission connection point)"]
[null,null,"UNIT",{"$f":"CRY","v":"2015-16"}]
[null,"Raw network coincident MD","MW",11900]
[null,"Date MD occurred",null,"2016-06-27T18:14:59.993"]
[null,"Half hour time period MD occurred",null,42548.760416582205]
[null,"Winter/summer peaking",null,"Winter"]
[null,"Embedded generation","MW"]
[null,"Weather corrected (10% POE) network coincident MD","MW",12900]
[null,"Weather corrected (50% POE) network coincident MD","MW",12000]

{"sheet":"5.4 MD & utilisation-Spatial","index":16,"n_rows":4431,"n_cols":6,"rows_kept":4431,"cut":false,"hidden":false,"merged":[[5,1,5,2],[4425,2,4426,2],[4425,3,4426,3],[4427,2,4428,2],[4427,3,4428,3],[4429,2,4430,2],[4429,3,4430,3],[4419,2,4420,2],[4419,3,4420,3],[4421,2,4422,2],[4421,3,4422,3],[4423,2,4424,2],[4423,3,4424,3],[4413,2,4414,2],[4413,3,4414,3],[4415,2,4416,2],[4415,3,4416,3],[4417,2,4418,2],[4417,3,4418,3],[4407,2,4408,2],[4407,3,4408,3],[4409,2,4410,2],[4409,3,4410,3],[4411,2,4412,2],[4411,3,4412,3],[4401,2,4402,2],[4401,3,4402,3],[4403,2,4404,2],[4403,3,4404,3],[4405,2,4406,2],[4405,3,4406,3],[4395,2,4396,2],[4395,3,4396,3],[4397,2,4398,2],[4397,3,4398,3],[4399,2,4400,2],[4399,3,4400,3],[4389,2,4390,2],[4389,3,4390,3],[4391,2,4392,2],[4391,3,4392,3],[4393,2,4394,2],[4393,3,4394,3],[4383,2,4384,2],[4383,3,4384,3],[4385,2,4386,2],[4385,3,4386,3],[4387,2,4388,2],[4387,3,4388,3],[4377,2,4378,2],[4377,3,4378,3],[4379,2,4380,2],[4379,3,4380,3],[4381,2,4382,2],[4381,3,4382,3],[4371,2,4372,2],[4371,3,4372,3],[4373,2,4374,2],[4373,3,4374,3],[4375,2,4376,2],[4375,3,4376,3],[4365,2,4366,2],[4365,3,4366,3],[4367,2,4368,2],[4367,3,4368,3],[4369,2,4370,2],[4369,3,4370,3],[4359,2,4360,2],[4359,3,4360,3],[4361,2,4362,2],[4361,3,4362,3],[4363,2,4364,2],[4363,3,4364,3],[4353,2,4354,2],[4353,3,4354,3],[4355,2,4356,2],[4355,3,4356,3],[4357,2,4358,2],[4357,3,4358,3],[4347,2,4348,2],[4347,3,4348,3],[4349,2,4350,2],[4349,3,4350,3],[4351,2,4352,2],[4351,3,4352,3],[4341,2,4342,2],[4341,3,4342,3],[4343,2,4344,2],[4343,3,4344,3],[4345,2,4346,2],[4345,3,4346,3],[4335,2,4336,2],[4335,3,4336,3],[4337,2,4338,2],[4337,3,4338,3],[4339,2,4340,2],[4339,3,4340,3],[4329,2,4330,2],[4329,3,4330,3],[4331,2,4332,2],[4331,3,4332,3],[4333,2,4334,2],[4333,3,4334,3],[4323,2,4324,2],[4323,3,4324,3],[4325,2,4326,2],[4325,3,4326,3],[4327,2,4328,2],[4327,3,4328,3],[4317,2,4318,2],[4317,3,4318,3],[4319,2,4320,2],[4319,3,4320,3],[4321,2,4322,2],[4321,3,4322,3],[4311,2,4312,2],[4311,3,4312,3],[4313,2,4314,2],[4313,3,4314,3],[4315,2,4316,2],[4315,3,4316,3],[4305,2,4306,2],[4305,3,4306,3],[4307,2,4308,2],[4307,3,4308,3],[4309,2,4310,2],[4309,3,4310,3],[4299,2,4300,2],[4299,3,4300,3],[4301,2,4302,2],[4301,3,4302,3],[4303,2,4304,2],[4303,3,4304,3],[4293,2,4294,2],[4293,3,4294,3],[4295,2,4296,2],[4295,3,4296,3],[4297,2,4298,2],[4297,3,4298,3],[4287,2,4288,2],[4287,3,4288,3],[4289,2,4290,2],[4289,3,4290,3],[4291,2,4292,2],[4291,3,4292,3],[4281,2,4282,2],[4281,3,4282,3],[4283,2,4284,2],[4283,3,4284,3],[4285,2,4286,2],[4285,3,4286,3],[4275,2,4276,2],[4275,3,4276,3],[4277,2,4278,2],[4277,3,4278,3],[4279,2,4280,2],[4279,3,4280,3],[4269,2,4270,2],[4269,3,4270,3],[4271,2,4272,2],[4271,3,4272,3],[4273,2,4274,2],[4273,3,4274,3],[4263,2,4264,2],[4263,3,4264,3],[4265,2,4266,2],[4265,3,4266,3],[4267,2,4268,2],[4267,3,4268,3],[4257,2,4258,2],[4257,3,4258,3],[4259,2,4260,2],[4259,3,4260,3],[4261,2,4262,2],[4261,3,4262,3],[4251,2,4252,2],[4251,3,4252,3],[4253,2,4254,2],[4253,3,4254,3],[4255,2,4256,2],[4255,3,4256,3],[4245,2,4246,2],[4245,3,4246,3],[4247,2,4248,2],[4247,3,4248,3],[4249,2,4250,2],[4249,3,4250,3],[4239,2,4240,2],[4239,3,4240,3],[4241,2,4242,2],[4241,3,4242,3],[4243,2,4244,2],[4243,3,4244,3],[4233,2,4234,2],[4233,3,4234,3],[4235,2,4236,2],[4235,3,4236,3],[4237,2,4238,2],[4237,3,4238,3],[4227,2,4228,2],[4227,3,4228,3],[4229,2,4230,2],[4229,3,4230,3],[4231,2,4232,2],[4231,3,4232,3],[4221,2,4222,2],[4221,3,4222,3],[4223,2,4224,2],[4223,3,4224,3],[4225,2,4226,2],[4225,3,4226,3],[4215,2,4216,2],[4215,3,4216,3],[4217,2,4218,2],[4217,3,4218,3],[4219,2,4220,2],[4219,3,4220,3],[4209,2,4210,2],[4209,3,4210,3],[4211,2,4212,2],[4211,3,4212,3],[4213,2,4214,2],[4213,3,4214,3],[4203,2,4204,2],[4203,3,4204,3],[4205,2,4206,2],[4205,3,4206,3],[4207,2,4208,2],[4207,3,4208,3],[4197,2,4198,2],[4197,3,4198,3],[4199,2,4200,2],[4199,3,4200,3],[4201,2,4202,2],[4201,3,4202,3],[4191,2,4192,2],[4191,3,4192,3],[4193,2,4194,2],[4193,3,4194,3],[4195,2,4196,2],[4195,3,4196,3],[4185,2,4186,2],[4185,3,4186,3],[4187,2,4188,2],[4187,3,4188,3],[4189,2,4190,2],[4189,3,4190,3],[4179,2,4180,2],[4179,3,4180,3],[4181,2,4182,2],[4181,3,4182,3],[4183,2,4184,2],[4183,3,4184,3],[4173,2,4174,2],[4173,3,4174,3],[4175,2,4176,2],[4175,3,4176,3],[4177,2,4178,2],[4177,3,4178,3],[4167,2,4168,2],[4167,3,4168,3],[4169,2,4170,2],[4169,3,4170,3],[4171,2,4172,2],[4171,3,4172,3],[4161,2,4162,2],[4161,3,4162,3],[4163,2,4164,2],[4163,3,4164,3],[4165,2,4166,2],[4165,3,4166,3],[4155,2,4156,2],[4155,3,4156,3],[4157,2,4158,2],[4157,3,4158,3],[4159,2,4160,2],[4159,3,4160,3],[4149,2,4150,2],[4149,3,4150,3],[4151,2,4152,2],[4151,3,4152,3],[4153,2,4154,2],[4153,3,4154,3],[4143,2,4144,2],[4143,3,4144,3],[4145,2,4146,2],[4145,3,4146,3],[4147,2,4148,2],[4147,3,4148,3],[4137,2,4138,2],[4137,3,4138,3],[4139,2,4140,2],[4139,3,4140,3],[4141,2,4142,2],[4141,3,4142,3],[4131,2,4132,2],[4131,3,4132,3],[4133,2,4134,2],[4133,3,4134,3],[4135,2,4136,2],[4135,3,4136,3],[4125,2,4126,2],[4125,3,4126,3],[4127,2,4128,2],[4127,3,4128,3],[4129,2,4130,2],[4129,3,4130,3],[4119,2,4120,2],[4119,3,4120,3],[4121,2,4122,2],[4121,3,4122,3],[4123,2,4124,2],[4123,3,4124,3],[4113,2,4114,2],[4113,3,4114,3],[4115,2,4116,2],[4115,3,4116,3],[4117,2,4118,2],[4117,3,4118,3],[4107,2,4108,2],[4107,3,4108,3],[4109,2,4110,2],[4109,3,4110,3],[4111,2,4112,2],[4111,3,4112,3],[4101,2,4102,2],[4101,3,4102,3],[4103,2,4104,2],[4103,3,4104,3],[4105,2,4106,2],[4105,3,4106,3],[4095,2,4096,2],[4095,3,4096,3],[4097,2,4098,2],[4097,3,4098,3],[4099,2,4100,2],[4099,3,4100,3],[4089,2,4090,2],[4089,3,4090,3],[4091,2,4092,2],[4091,3,4092,3],[4093,2,4094,2],[4093,3,4094,3],[4083,2,4084,2],[4083,3,4084,3],[4085,2,4086,2],[4085,3,4086,3],[4087,2,4088,2],[4087,3,4088,3],[4077,2,4078,2],[4077,3,4078,3],[4079,2,4080,2],[4079,3,4080,3],[4081,2,4082,2],[4081,3,4082,3],[4071,2,4072,2],[4071,3,4072,3],[4073,2,4074,2],[4073,3,4074,3],[4075,2,4076,2],[4075,3,4076,3],[4065,2,4066,2],[4065,3,4066,3],[4067,2,4068,2],[4067,3,4068,3],[4069,2,4070,2],[4069,3,4070,3],[4059,2,4060,2],[4059,3,4060,3],[4061,2,4062,2],[4061,3,4062,3],[4063,2,4064,2],[4063,3,4064,3],[4053,2,4054,2],[4053,3,4054,3],[4055,2,4056,2],[4055,3,4056,3],[4057,2,4058,2],[4057,3,4058,3],[4047,2,4048,2],[4047,3,4048,3],[4049,2,4050,2],[4049,3,4050,3],[4051,2,4052,2],[4051,3,4052,3],[4041,2,4042,2],[4041,3,4042,3],[4043,2,4044,2],[4043,3,4044,3],[4045,2,4046,2],[4045,3,4046,3],[4035,2,4036,2],[4035,3,4036,3],[4037,2,4038,2],[4037,3,4038,3],[4039,2,4040,2],[4039,3,4040,3],[4029,2,4030,2],[4029,3,4030,3],[4031,2,4032,2],[4031,3,4032,3],[4033,2,4034,2],[4033,3,4034,3],[4023,2,4024,2],[4023,3,4024,3],[4025,2,4026,2],[4025,3,4026,3],[4027,2,4028,2],[4027,3,4028,3],[4017,2,4018,2],[4017,3,4018,3],[4019,2,4020,2],[4019,3,4020,3],[4021,2,4022,2],[4021,3,4022,3],[4011,2,4012,2],[4011,3,4012,3],[4013,2,4014,2],[4013,3,4014,3],[4015,2,4016,2],[4015,3,4016,3],[4005,2,4006,2],[4005,3,4006,3],[4007,2,4008,2],[4007,3,4008,3],[4009,2,4010,2],[4009,3,4010,3],[3999,2,4000,2],[3999,3,4000,3],[4001,2,4002,2],[4001,3,4002,3],[4003,2,4004,2],[4003,3,4004,3],[3993,2,3994,2],[3993,3,3994,3],[3995,2,3996,2],[3995,3,3996,3],[3997,2,3998,2],[3997,3,3998,3],[3987,2,3988,2],[3987,3,3988,3],[3989,2,3990,2],[3989,3,3990,3],[3991,2,3992,2],[3991,3,3992,3],[3981,2,3982,2],[3981,3,3982,3],[3983,2,3984,2],[3983,3,3984,3],[3985,2,3986,2],[3985,3,3986,3],[3975,2,3976,2],[3975,3,3976,3],[3977,2,3978,2],[3977,3,3978,3],[3979,2,3980,2],[3979,3,3980,3],[3969,2,3970,2],[3969,3,3970,3],[3971,2,3972,2],[3971,3,3972,3],[3973,2,3974,2],[3973,3,3974,3],[3963,2,3964,2],[3963,3,3964,3],[3965,2,3966,2],[3965,3,3966,3],[3967,2,3968,2],[3967,3,3968,3],[3957,2,3958,2],[3957,3,3958,3],[3959,2,3960,2],[3959,3,3960,3],[3961,2,3962,2],[3961,3,3962,3],[3951,2,3952,2],[3951,3,3952,3],[3953,2,3954,2],[3953,3,3954,3],[3955,2,3956,2],[3955,3,3956,3],[3945,2,3946,2],[3945,3,3946,3],[3947,2,3948,2],[3947,3,3948,3],[3949,2,3950,2],[3949,3,3950,3],[3939,2,3940,2],[3939,3,3940,3],[3941,2,3942,2],[3941,3,3942,3],[3943,2,3944,2],[3943,3,3944,3],[3933,2,3934,2],[3933,3,3934,3],[3935,2,3936,2],[3935,3,3936,3],[3937,2,3938,2],[3937,3,3938,3],[3927,2,3928,2],[3927,3,3928,3],[3929,2,3930,2],[3929,3,3930,3],[3931,2,3932,2],[3931,3,3932,3],[3921,2,3922,2],[3921,3,3922,3],[3923,2,3924,2],[3923,3,3924,3],[3925,2,3926,2],[3925,3,3926,3],[3915,2,3916,2],[3915,3,3916,3],[3917,2,3918,2],[3917,3,3918,3],[3919,2,3920,2],[3919,3,3920,3],[3909,2,3910,2],[3909,3,3910,3],[3911,2,3912,2],[3911,3,3912,3],[3913,2,3914,2],[3913,3,3914,3],[3903,2,3904,2],[3903,3,3904,3],[3905,2,3906,2],[3905,3,3906,3],[3907,2,3908,2],[3907,3,3908,3],[3897,2,3898,2],[3897,3,3898,3],[3899,2,3900,2],[3899,3,3900,3],[3901,2,3902,2],[3901,3,3902,3],[3891,2,3892,2],[3891,3,3892,3],[3893,2,3894,2],[3893,3,3894,3],[3895,2,3896,2],[3895,3,3896,3],[3885,2,3886,2],[3885,3,3886,3],[3887,2,3888,2],[3887,3,3888,3],[3889,2,3890,2],[3889,3,3890,3],[3879,2,3880,2],[3879,3,3880,3],[3881,2,3882,2],[3881,3,3882,3],[3883,2,3884,2],[3883,3,3884,3],[3873,2,3874,2],[3873,3,3874,3],[3875,2,3876,2],[3875,3,3876,3],[3877,2,3878,2],[3877,3,3878,3],[3867,2,3868,2],[3867,3,3868,3],[3869,2,3870,2],[3869,3,3870,3],[3871,2,3872,2],[3871,3,3872,3],[3861,2,3862,2],[3861,3,3862,3],[3863,2,3864,2],[3863,3,3864,3],[3865,2,3866,2],[3865,3,3866,3],[3855,2,3856,2],[3855,3,3856,3],[3857,2,3858,2],[3857,3,3858,3],[3859,2,3860,2],[3859,3,3860,3],[3849,2,3850,2],[3849,3,3850,3],[3851,2,3852,2],[3851,3,3852,3],[3853,2,3854,2],[3853,3,3854,3],[3843,2,3844,2],[3843,3,3844,3],[3845,2,3846,2],[3845,3,3846,3],[3847,2,3848,2],[3847,3,3848,3],[3837,2,3838,2],[3837,3,3838,3],[3839,2,3840,2],[3839,3,3840,3],[3841,2,3842,2],[3841,3,3842,3],[3831,2,3832,2],[3831,3,3832,3],[3833,2,3834,2],[3833,3,3834,3],[3835,2,3836,2],[3835,3,3836,3],[3825,2,3826,2],[3825,3,3826,3],[3827,2,3828,2],[3827,3,3828,3],[3829,2,3830,2],[3829,3,3830,3],[3819,2,3820,2],[3819,3,3820,3],[3821,2,3822,2],[3821,3,3822,3],[3823,2,3824,2],[3823,3,3824,3],[3813,2,3814,2],[3813,3,3814,3],[3815,2,3816,2],[3815,3,3816,3],[3817,2,3818,2],[3817,3,3818,3],[3807,2,3808,2],[3807,3,3808,3],[3809,2,3810,2],[3809,3,3810,3],[3811,2,3812,2],[3811,3,3812,3],[3801,2,3802,2],[3801,3,3802,3],[3803,2,3804,2],[3803,3,3804,3],[3805,2,3806,2],[3805,3,3806,3],[3795,2,3796,2],[3795,3,3796,3],[3797,2,3798,2],[3797,3,3798,3],[3799,2,3800,2],[3799,3,3800,3],[3789,2,3790,2],[3789,3,3790,3],[3791,2,3792,2],[3791,3,3792,3],[3793,2,3794,2],[3793,3,3794,3],[3783,2,3784,2],[3783,3,3784,3],[3785,2,3786,2],[3785,3,3786,3],[3787,2,3788,2],[3787,3,3788,3],[3777,2,3778,2],[3777,3,3778,3],[3779,2,3780,2],[3779,3,3780,3],[3781,2,3782,2],[3781,3,3782,3],[3771,2,3772,2],[3771,3,3772,3],[3773,2,3774,2],[3773,3,3774,3],[3775,2,3776,2],[3775,3,3776,3],[3765,2,3766,2],[3765,3,3766,3],[3767,2,3768,2],[3767,3,3768,3],[3769,2,3770,2],[3769,3,3770,3],[3759,2,3760,2],[3759,3,3760,3],[3761,2,3762,2],[3761,3,3762,3],[3763,2,3764,2],[3763,3,3764,3],[3753,2,3754,2],[3753,3,3754,3],[3755,2,3756,2],[3755,3,3756,3],[3757,2,3758,2],[3757,3,3758,3],[3747,2,3748,2],[3747,3,3748,3],[3749,2,3750,2],[3749,3,3750,3],[3751,2,3752,2],[3751,3,3752,3],[3741,2,3742,2],[3741,3,3742,3],[3743,2,3744,2],[3743,3,3744,3],[3745,2,3746,2],[3745,3,3746,3],[3735,2,3736,2],[3735,3,3736,3],[3737,2,3738,2],[3737,3,3738,3],[3739,2,3740,2],[3739,3,3740,3],[3729,2,3730,2],[3729,3,3730,3],[3731,2,3732,2],[3731,3,3732,3],[3733,2,3734,2],[3733,3,3734,3],[3723,2,3724,2],[3723,3,3724,3],[3725,2,3726,2],[3725,3,3726,3],[3727,2,3728,2],[3727,3,3728,3],[3717,2,3718,2],[3717,3,3718,3],[3719,2,3720,2],[3719,3,3720,3],[3721,2,3722,2],[3721,3,3722,3],[3711,2,3712,2],[3711,3,3712,3],[3713,2,3714,2],[3713,3,3714,3],[3715,2,3716,2],[3715,3,3716,3],[3705,2,3706,2],[3705,3,3706,3],[3707,2,3708,2],[3707,3,3708,3],[3709,2,3710,2],[3709,3,3710,3],[3699,2,3700,2],[3699,3,3700,3],[3701,2,3702,2],[3701,3,3702,3],[3703,2,3704,2],[3703,3,3704,3],[3693,2,3694,2],[3693,3,3694,3],[3695,2,3696,2],[3695,3,3696,3],[3697,2,3698,2],[3697,3,3698,3],[3687,2,3688,2],[3687,3,3688,3],[3689,2,3690,2],[3689,3,3690,3],[3691,2,3692,2],[3691,3,3692,3],[3681,2,3682,2],[3681,3,3682,3],[3683,2,3684,2],[3683,3,3684,3],[3685,2,3686,2],[3685,3,3686,3],[3675,2,3676,2],[3675,3,3676,3],[3677,2,3678,2],[3677,3,3678,3],[3679,2,3680,2],[3679,3,3680,3],[3669,2,3670,2],[3669,3,3670,3],[3671,2,3672,2],[3671,3,3672,3],[3673,2,3674,2],[3673,3,3674,3],[3663,2,3664,2],[3663,3,3664,3],[3665,2,3666,2],[3665,3,3666,3],[3667,2,3668,2],[3667,3,3668,3],[3657,2,3658,2],[3657,3,3658,3],[3659,2,3660,2],[3659,3,3660,3],[3661,2,3662,2],[3661,3,3662,3],[3651,2,3652,2],[3651,3,3652,3],[3653,2,3654,2],[3653,3,3654,3],[3655,2,3656,2],[3655,3,3656,3],[3645,2,3646,2],[3645,3,3646,3],[3647,2,3648,2],[3647,3,3648,3],[3649,2,3650,2],[3649,3,3650,3],[3639,2,3640,2],[3639,3,3640,3],[3641,2,3642,2],[3641,3,3642,3],[3643,2,3644,2],[3643,3,3644,3],[3633,2,3634,2],[3633,3,3634,3],[3635,2,3636,2],[3635,3,3636,3],[3637,2,3638,2],[3637,3,3638,3],[3627,2,3628,2],[3627,3,3628,3],[3629,2,3630,2],[3629,3,3630,3],[3631,2,3632,2],[3631,3,3632,3],[3621,2,3622,2],[3621,3,3622,3],[3623,2,3624,2],[3623,3,3624,3],[3625,2,3626,2],[3625,3,3626,3],[3615,2,3616,2],[3615,3,3616,3],[3617,2,3618,2],[3617,3,3618,3],[3619,2,3620,2],[3619,3,3620,3],[3609,2,3610,2],[3609,3,3610,3],[3611,2,3612,2],[3611,3,3612,3],[3613,2,3614,2],[3613,3,3614,3],[3603,2,3604,2],[3603,3,3604,3],[3605,2,3606,2],[3605,3,3606,3],[3607,2,3608,2],[3607,3,3608,3],[3597,2,3598,2],[3597,3,3598,3],[3599,2,3600,2],[3599,3,3600,3],[3601,2,3602,2],[3601,3,3602,3],[3591,2,3592,2],[3591,3,3592,3],[3593,2,3594,2],[3593,3,3594,3],[3595,2,3596,2],[3595,3,3596,3],[3585,2,3586,2],[3585,3,3586,3],[3587,2,3588,2],[3587,3,3588,3],[3589,2,3590,2],[3589,3,3590,3],[3579,2,3580,2],[3579,3,3580,3],[3581,2,3582,2],[3581,3,3582,3],[3583,2,3584,2],[3583,3,3584,3],[3573,2,3574,2],[3573,3,3574,3],[3575,2,3576,2],[3575,3,3576,3],[3577,2,3578,2],[3577,3,3578,3],[3567,2,3568,2],[3567,3,3568,3],[3569,2,3570,2],[3569,3,3570,3],[3571,2,3572,2],[3571,3,3572,3],[3561,2,3562,2],[3561,3,3562,3],[3563,2,3564,2],[3563,3,3564,3],[3565,2,3566,2],[3565,3,3566,3],[3555,2,3556,2],[3555,3,3556,3],[3557,2,3558,2],[3557,3,3558,3],[3559,2,3560,2],[3559,3,3560,3],[3549,2,3550,2],[3549,3,3550,3],[3551,2,3552,2],[3551,3,3552,3],[3553,2,3554,2],[3553,3,3554,3],[3543,2,3544,2],[3543,3,3544,3],[3545,2,3546,2],[3545,3,3546,3],[3547,2,3548,2],[3547,3,3548,3],[3537,2,3538,2],[3537,3,3538,3],[3539,2,3540,2],[3539,3,3540,3],[3541,2,3542,2],[3541,3,3542,3],[3531,2,3532,2],[3531,3,3532,3],[3533,2,3534,2],[3533,3,3534,3],[3535,2,3536,2],[3535,3,3536,3],[3525,2,3526,2],[3525,3,3526,3],[3527,2,3528,2],[3527,3,3528,3],[3529,2,3530,2],[3529,3,3530,3],[3519,2,3520,2],[3519,3,3520,3],[3521,2,3522,2],[3521,3,3522,3],[3523,2,3524,2],[3523,3,3524,3],[3513,2,3514,2],[3513,3,3514,3],[3515,2,3516,2],[3515,3,3516,3],[3517,2,3518,2],[3517,3,3518,3],[3507,2,3508,2],[3507,3,3508,3],[3509,2,3510,2],[3509,3,3510,3],[3511,2,3512,2],[3511,3,3512,3],[3501,2,3502,2],[3501,3,3502,3],[3503,2,3504,2],[3503,3,3504,3],[3505,2,3506,2],[3505,3,3506,3],[3495,2,3496,2],[3495,3,3496,3],[3497,2,3498,2],[3497,3,3498,3],[3499,2,3500,2],[3499,3,3500,3],[3489,2,3490,2],[3489,3,3490,3],[3491,2,3492,2],[3491,3,3492,3],[3493,2,3494,2],[3493,3,3494,3],[3483,2,3484,2],[3483,3,3484,3],[3485,2,3486,2],[3485,3,3486,3],[3487,2,3488,2],[3487,3,3488,3],[3477,2,3478,2],[3477,3,3478,3],[3479,2,3480,2],[3479,3,3480,3],[3481,2,3482,2],[3481,3,3482,3],[3471,2,3472,2],[3471,3,3472,3],[3473,2,3474,2],[3473,3,3474,3],[3475,2,3476,2],[3475,3,3476,3],[3465,2,3466,2],[3465,3,3466,3],[3467,2,3468,2],[3467,3,3468,3],[3469,2,3470,2],[3469,3,3470,3],[3459,2,3460,2],[3459,3,3460,3],[3461,2,3462,2],[3461,3,3462,3],[3463,2,3464,2],[3463,3,3464,3],[3453,2,3454,2],[3453,3,3454,3],[3455,2,3456,2],[3455,3,3456,3],[3457,2,3458,2],[3457,3,3458,3],[3447,2,3448,2],[3447,3,3448,3],[3449,2,3450,2],[3449,3,3450,3],[3451,2,3452,2],[3451,3,3452,3],[3441,2,3442,2],[3441,3,3442,3],[3443,2,3444,2],[3443,3,3444,3],[3445,2,3446,2],[3445,3,3446,3],[3435,2,3436,2],[3435,3,3436,3],[3437,2,3438,2],[3437,3,3438,3],[3439,2,3440,2],[3439,3,3440,3],[3429,2,3430,2],[3429,3,3430,3],[3431,2,3432,2]],"merged_total":4624,"flags":["merged_cut"]}
[null,"REGULATORY REPORTING STATEMENT"]
[null,{"$f":"INDEX(dms_TradingNameFull_List,MATCH(dms_TradingName,dms_TradingName_List))","v":"TransGrid"}]
[null,{"$f":"CONCATENATE((LOOKUP(dms_Model,dms_Model_List,dms_Worksheet_List))&\" \"&CRY)","v":"CATEGORY ANALYSIS 2015-16"}]
[null,"5.4 MAXIMUM DEMAND AND UTILISATION AT SPATIAL LEVEL"]
[]
[null,"There is ONE table on this worksheet. It has been sub-grouped into blocks of approximately 1000 rows for ease of navigation. See the Instructions sheet on how to group or ungroup data."]
[]
[null,"TABLE 5.4.1 NON-COINCIDENT & COINCIDENT MAXIMUM DEMAND"]
[null,"CONNECTION POINT","FORECASTING ELEMENTS","UNIT","MAX DEMAND",{"$f":"CRY","v":"2015-16"}]
[null,"Broken Hill Mine","Connection Point Rating","MVA","Non-Coincident"]
[null,null,null,null,"Coincident"]
[null,null,"Raw Adjusted MD","MW","Non-Coincident"]
[null,null,null,null,"Coincident"]
[null,null,"Raw Adjusted MD","MVA","Non-Coincident"]
[null,null,null,null,"Coincident"]
[null,null,"Date MD occurred",null,"Non-Coincident"]
[null,null,null,null,"Coincident"]
[null,null,"Half hour time period MD occurred",null,"Non-Coincident"]
[null,null,null,null,"Coincident"]
[null,null,"Winter/Summer Peaking",null,"Non-Coincident"]
[null,null,null,null,"Coincident"]
[null,null,"Adjustments - Embedded generation","MW","Non-Coincident"]
[null,null,null,null,"Coincident"]
[null,null,"Weather Corrected MD 10% POE","MW","Non-Coincident"]
[null,null,null,null,"Coincident"]
[null,null,"Weather Corrected MD 10% POE","MVA","Non-Coincident"]
[null,null,null,null,"Coincident"]
[null,null,"Weather Corrected MD 50% POE","MW","Non-Coincident"]
[null,null,null,null,"Coincident"]
[null,null,"Weather Corrected MD 50% POE","MVA","Non-Coincident"]
[null,null,null,null,"Coincident"]
[null,"Broken Hill Town","Connection Point Rating","MVA","Non-Coincident",200]
[null,null,null,null,"Coincident",200]
[null,null,"Raw Adjusted MD","MW","Non-Coincident",37]
[null,null,null,null,"Coincident",29.9]
[null,null,"Raw Adjusted MD","MVA","Non-Coincident",37]
[null,null,null,null,"Coincident",29.9]
[null,null,"Date MD occurred",null,"Non-Coincident","2016-01-13T15:59:59.996"]
[null,null,null,null,"Coincident","2016-06-27T18:14:59.993"]
[null,null,"Half hour time period MD occurred",null,"Non-Coincident",42382.666666620877]
[null,null,null,null,"Coincident",42548.760416582205]
[null,null,"Winter/Summer Peaking",null,"Non-Coincident","Summer"]
[null,null,null,null,"Coincident","Winter"]
[null,null,"Adjustments - Embedded generation","MW","Non-Coincident",0]
[null,null,null,null,"Coincident",0]
[null,null,"Weather Corrected MD 10% POE","MW","Non-Coincident",36.1]
[null,null,null,null,"Coincident",29.9]
[null,null,"Weather Corrected MD 10% POE","MVA","Non-Coincident",36.1]
[null,null,null,null,"Coincident",29.9]
[null,null,"Weather Corrected MD 50% POE","MW","Non-Coincident",34.799999999999997]
[null,null,null,null,"Coincident",29.9]
[null,null,"Weather Corrected MD 50% POE","MVA","Non-Coincident",34.799999999999997]
[null,null,null,null,"Coincident",29.9]
[null,"Tuggerah","Connection Point Rating","MVA","Non-Coincident",750]
[null,null,null,null,"Coincident",750]
[null,null,"Raw Adjusted MD","MW","Non-Coincident",296]
[null,null,null,null,"Coincident",276]
[null,null,"Raw Adjusted MD","MVA","Non-Coincident",296]
[null,null,null,null,"Coincident",276]
[null,null,"Date MD occurred",null,"Non-Coincident","2016-01-14T14:14:59.996"]
[null,null,null,null,"Coincident","2016-06-27T18:14:59.993"]
[null,null,"Half hour time period MD occurred",null,"Non-Coincident",42383.593749953994]
[null,null,null,null,"Coincident",42548.760416582205]
[null,null,"Winter/Summer Peaking",null,"Non-Coincident","Summer"]
[null,null,null,null,"Coincident","Winter"]
[null,null,"Adjustments - Embedded generation","MW","Non-Coincident",0]
[null,null,null,null,"Coincident",0]
[null,null,"Weather Corrected MD 10% POE","MW","Non-Coincident",311]
[null,null,null,null,"Coincident",292]
[null,null,"Weather Corrected MD 10% POE","MVA","Non-Coincident",311]
[null,null,null,null,"Coincident",292]
[null,null,"Weather Corrected MD 50% POE","MW","Non-Coincident",299]
[null,null,null,null,"Coincident",268]
[null,null,"Weather Corrected MD 50% POE","MVA","Non-Coincident",299]
[null,null,null,null,"Coincident",268]
[null,"Vales Pt 132 kV","Connection Point Rating","MVA","Non-Coincident",400]
[null,null,null,null,"Coincident",400]
[null,null,"Raw Adjusted MD","MW","Non-Coincident",115]
[null,null,null,null,"Coincident",86.5]
[null,null,"Raw Adjusted MD","MVA","Non-Coincident",115]
[null,null,null,null,"Coincident",86.5]
[null,null,"Date MD occurred",null,"Non-Coincident","2015-12-01T15:14:59.997"]
[null,null,null,null,"Coincident","2016-06-27T18:14:59.993"]
[null,null,"Half hour time period MD occurred",null,"Non-Coincident",42339.635416630896]
[null,null,null,null,"Coincident",42548.760416582205]
[null,null,"Winter/Summer Peaking",null,"Non-Coincident","Summer"]
[null,null,null,null,"Coincident","Winter"]
[null,null,"Adjustments - Embedded generation","MW","Non-Coincident",0]
[null,null,null,null,"Coincident",0]
[null,null,"Weather Corrected MD 10% POE","MW","Non-Coincident",121]
[null,null,null,null,"Coincident",91.3]
[null,null,"Weather Corrected MD 10% POE","MVA","Non-Coincident",121]
[null,null,null,null,"Coincident",91.3]
[null,null,"Weather Corrected MD 50% POE","MW","Non-Coincident",116]
[null,null,null,null,"Coincident",84]
[null,null,"Weather Corrected MD 50% POE","MVA","Non-Coincident",116]
[null,null,null,null,"Coincident",84.1]
[null,"Munmorah 132 kV","Connection Point Rating","MVA","Non-Coincident",375]
[null,null,null,null,"Coincident",375]
[null,null,"Raw Adjusted MD","MW","Non-Coincident",134]
[null,null,null,null,"Coincident",106]
[null,null,"Raw Adjusted MD","MVA","Non-Coincident",134]
[null,null,null,null,"Coincident",106]
[null,null,"Date MD occurred",null,"Non-Coincident","2015-08-28T08:14:59.999"]
[null,null,null,null,"Coincident","2016-06-27T18:14:59.993"]
[null,null,"Half hour time period MD occurred",null,"Non-Coincident",42244.343749986416]
[null,null,null,null,"Coincident",42548.760416582205]
[null,null,"Winter/Summer Peaking",null,"Non-Coincident","Winter"]
[null,null,null,null,"Coincident","Winter"]
[null,null,"Adjustments - Embedded generation","MW","Non-Coincident",0]
[null,null,null,null,"Coincident",0]
[null,null,"Weather Corrected MD 10% POE","MW","Non-Coincident",141]
[null,null,null,null,"Coincident",112]
[null,null,"Weather Corrected MD 10% POE","MVA","Non-Coincident",141]
[null,null,null,null,"Coincident",112]
[null,null,"Weather Corrected MD 50% POE","MW","Non-Coincident",136]
[null,null,null,null,"Coincident",103]
[null,null,"Weather Corrected MD 50% POE","MVA","Non-Coincident",136]
[null,null,null,null,"Coincident",103]
[null,"Munmorah 33 kV","Connection Point Rating","MVA","Non-Coincident",160]
[null,null,null,null,"Coincident",160]
[null,null,"Raw Adjusted MD","MW","Non-Coincident",28]
[null,null,null,null,"Coincident",28]
[null,null,"Raw Adjusted MD","MVA","Non-Coincident",28]
[null,null,null,null,"Coincident",28]
[null,null,"Date MD occurred",null,"Non-Coincident","2016-06-27T18:14:59.993"]
[null,null,null,null,"Coincident","2016-06-27T18:14:59.993"]
[null,null,"Half hour time period MD occurred",null,"Non-Coincident",42548.760416582205]
[null,null,null,null,"Coincident",42548.760416582205]
[null,null,"Winter/Summer Peaking",null,"Non-Coincident","Winter"]
[null,null,null,null,"Coincident","Winter"]
[null,null,"Adjustments - Embedded generation","MW","Non-Coincident",0]
[null,null,null,null,"Coincident",0]
[null,null,"Weather Corrected MD 10% POE","MW","Non-Coincident",29.4]
[null,null,null,null,"Coincident",29.5]
[null,null,"Weather Corrected MD 10% POE","MVA","Non-Coincident",29.4]
[null,null,null,null,"Coincident",29.5]
[null,null,"Weather Corrected MD 50% POE","MW","Non-Coincident",28.3]
[null,null,null,null,"Coincident",27.2]
[null,null,"Weather Corrected MD 50% POE","MVA","Non-Coincident",28.3]
[null,null,null,null,"Coincident",27.2]
[null,"Macksville","Connection Point Rating","MVA","Non-Coincident",60]
[null,null,null,null,"Coincident",60]
[null,null,"Raw Adjusted MD","MW","Non-Coincident",9.7899999999999991]
[null,null,null,null,"Coincident",9.7899999999999991]
[null,null,"Raw Adjusted MD","MVA","Non-Coincident",9.91]
[null,null,null,null,"Coincident",9.91]
[null,null,"Date MD occurred",null,"Non-Coincident","2016-06-27T18:14:59.993"]
[null,null,null,null,"Coincident","2016-06-27T18:14:59.993"]
[null,null,"Half hour time period MD occurred",null,"Non-Coincident",42548.760416582205]
[null,null,null,null,"Coincident",42548.760416582205]
[null,null,"Winter/Summer Peaking",null,"Non-Coincident","Winter"]
[null,null,null,null,"Coincident","Winter"]
[null,null,"Adjustments - Embedded generation","MW","Non-Coincident",0]
[null,null,null,null,"Coincident",0]
[null,null,"Weather Corrected MD 10% POE","MW","Non-Coincident",10.4]
[null,null,null,null,"Coincident",10.9]
[null,null,"Weather Corrected MD 10% POE","MVA","Non-Coincident",10.6]
[null,null,null,null,"Coincident",11]
[null,null,"Weather Corrected MD 50% POE","MW","Non-Coincident",10]
[null,null,null,null,"Coincident",9.81]
[null,null,"Weather Corrected MD 50% POE","MVA","Non-Coincident",10.1]
[null,null,null,null,"Coincident",9.93]
[null,"Nambucca Heads","Connection Point Rating","MVA","Non-Coincident",120]
[null,null,null,null,"Coincident",120]
[null,null,"Raw Adjusted MD","MW","Non-Coincident",8.27]
[null,null,null,null,"Coincident",8.27]
[null,null,"Raw Adjusted MD","MVA","Non-Coincident",8.27]
[null,null,null,null,"Coincident",8.27]
[null,null,"Date MD occurred",null,"Non-Coincident","2016-06-27T18:14:59.993"]
[null,null,null,null,"Coincident","2016-06-27T18:14:59.993"]
[null,null,"Half hour time period MD occurred",null,"Non-Coincident",42548.760416582205]
[null,null,null,null,"Coincident",42548.760416582205]
[null,null,"Winter/Summer Peaking",null,"Non-Coincident","Winter"]
[null,null,null,null,"Coincident","Winter"]
[null,null,"Adjustments - Embedded generation","MW","Non-Coincident",0]
[null,null,null,null,"Coincident",0]
[null,null,"Weather Corrected MD 10% POE","MW","Non-Coincident",9.01]
[null,null,null,null,"Coincident",8.0500000000000007]
[null,null,"Weather Corrected MD 10% POE","MVA","Non-Coincident",9.01]
[null,null,null,null,"Coincident",8.0500000000000007]
[null,null,"Weather Corrected MD 50% POE","MW","Non-Coincident",8.56]
[null,null,null,null,"Coincident",7.72]
[null,null,"Weather Corrected MD 50% POE","MVA","Non-Coincident",8.56]
[null,null,null,null,"Coincident",7.72]
[null,"Raleigh","Connection Point Rating","MVA","Non-Coincident",120]
[null,null,null,null,"Coincident",120]
[null,null,"Raw Adjusted MD","MW","Non-Coincident",9.99]
[null,null,null,null,"Coincident",9.99]
[null,null,"Raw Adjusted MD","MVA","Non-Coincident",10.1]
[null,null,null,null,"Coincident",10.1]
[null,null,"Date MD occurred",null,"Non-Coincident","2016-06-27T18:14:59.993"]
[null,null,null,null,"Coincident","2016-06-27T18:14:59.993"]
[null,null,"Half hour time period MD occurred",null,"Non-Coincident",42548.760416582205]
[null,null,null,null,"Coincident",42548.760416582205]
[null,null,"Winter/Summer Peaking",null,"Non-Coincident","Winter"]
[null,null,null,null,"Coincident","Winter"]
[null,null,"Adjustments - Embedded generation","MW","Non-Coincident",0]
[null,null,null,null,"Coincident",0]
[null,null,"Weather Corrected MD 10% POE","MW","Non-Coincident",10.5]
[null,null,null,null,"Coincident",10.7]
[null,null,"Weather Corrected MD 10% POE","MVA","Non-Coincident",10.7]
[null,null,null,null,"Coincident",10.8]
[null,null,"Weather Corrected MD 50% POE","MW","Non-Coincident",10.1]
[null,null,null,null,"Coincident",9.4499999999999993]
[null,null,"Weather Corrected MD 50% POE","MVA","Non-Coincident",10.199999999999999]
[null,null,null,null,"Coincident",9.56]
[null,"Boambee Sth","Connection Point Rating","MVA","Non-Coincident",120]
[null,null,null,null,"Coincident",120]
[null,null,"Raw Adjusted MD","MW","Non-Coincident",17.899999999999999]
[null,null,null,null,"Coincident",17.600000000000001]
[null,null,"Raw Adjusted MD","MVA","Non-Coincident",17.899999999999999]
[null,null,null,null,"Coincident",17.600000000000001]
[null,null,"Date MD occurred",null,"Non-Coincident","2016-06-26T17:59:59.993"]
[null,null,null,null,"Coincident","2016-06-27T18:14:59.993"]
[null,null,"Half hour time period MD occurred",null,"Non-Coincident",42547.749999915774]
[null,null,null,null,"Coincident",42548.760416582205]
[null,null,"Winter/Summer Peaking",null,"Non-Coincident","Winter"]
[null,null,null,null,"Coincident","Winter"]
[null,null,"Adjustments - Embedded generation","MW","Non-Coincident",0]
[null,null,null,null,"Coincident",0]
[null,null,"Weather Corrected MD 10% POE","MW","Non-Coincident",18.600000000000001]
[null,null,null,null,"Coincident",15.7]
[null,null,"Weather Corrected MD 10% POE","MVA","Non-Coincident",18.7]
[null,null,null,null,"Coincident",15.7]
[null,null,"Weather Corrected MD 50% POE","MW","Non-Coincident",17.8]
[null,null,null,null,"Coincident",14.5]
[null,null,"Weather Corrected MD 50% POE","MVA","Non-Coincident",17.8]
[null,null,null,null,"Coincident",14.5]
[null,"Coffs Harbour","Connection Point Rating","MVA","Non-Coincident",240]
[null,null,null,null,"Coincident",240]
[null,null,"Raw Adjusted MD","MW","Non-Coincident",56.4]
[null,null,null,null,"Coincident",55.2]
[null,null,"Raw Adjusted MD","MVA","Non-Coincident",56.4]
[null,null,null,null,"Coincident",55.2]
[null,null,"Date MD occurred",null,"Non-Coincident","2015-07-15T18:15:00"]
[null,null,null,null,"Coincident","2016-06-27T18:14:59.993"]
[null,null,"Half hour time period MD occurred",null,"Non-Coincident",42200.76041666323]
[null,null,null,null,"Coincident",42548.760416582205]
[null,null,"Winter/Summer Peaking",null,"Non-Coincident","Winter"]
[null,null,null,null,"Coincident","Winter"]
[null,null,"Adjustments - Embedded generation","MW","Non-Coincident",0]
[null,null,null,null,"Coincident",0]
[null,null,"Weather Corrected MD 10% POE","MW","Non-Coincident",58.8]
[null,null,null,null,"Coincident",62.7]
[null,null,"Weather Corrected MD 10% POE","MVA","Non-Coincident",58.8]
[null,null,null,null,"Coincident",62.7]
[null,null,"Weather Corrected MD 50% POE","MW","Non-Coincident",56.3]
[null,null,null,null,"Coincident",57.7]
[null,null,"Weather Corrected MD 50% POE","MVA","Non-Coincident",56.3]
[null,null,null,null,"Coincident",57.7]
[null,"Dorrigo","Connection Point Rating","MVA","Non-Coincident",10]
[null,null,null,null,"Coincident",10]
[null,null,"Raw Adjusted MD","MW","Non-Coincident",2.85]
[null,null,null,null,"Coincident",2.58]
[null,null,"Raw Adjusted MD","MVA","Non-Coincident",2.85]
[null,null,null,null,"Coincident",2.58]
[null,null,"Date MD occurred",null,"Non-Coincident","2015-08-14T00:29:59.999"]
[null,null,null,null,"Coincident","2016-06-27T18:14:59.993"]
[null,null,"Half hour time period MD occurred",null,"Non-Coincident",42230.020833323084]
[null,null,null,null,"Coincident",42548.760416582205]
[null,null,"Winter/Summer Peaking",null,"Non-Coincident","Winter"]
[null,null,null,null,"Coincident","Winter"]
[null,null,"Adjustments - Embedded generation","MW","Non-Coincident",0]
[null,null,null,null,"Coincident",0]
[null,null,"Weather Corrected MD 10% POE","MW","Non-Coincident",3.06]
[null,null,null,null,"Coincident",2.95]
[null,null,"Weather Corrected MD 10% POE","MVA","Non-Coincident",3.06]
[null,null,null,null,"Coincident",2.95]
[null,null,"Weather Corrected MD 50% POE","MW","Non-Coincident",2.94]
[null,null,null,null,"Coincident",2.85]
[null,null,"Weather Corrected MD 50% POE","MVA","Non-Coincident",2.94]
[null,null,null,null,"Coincident",2.85]
[null,"Koolkhan","Connection Point Rating","MVA","Non-Coincident",180]
[null,null,null,null,"Coincident",180]
[null,null,"Raw Adjusted MD","MW","Non-Coincident",52.1]
[null,null,null,null,"Coincident",46.4]
[null,null,"Raw Adjusted MD","MVA","Non-Coincident",52.6]
[null,null,null,null,"Coincident",46.4]
[null,null,"Date MD occurred",null,"Non-Coincident","2015-11-26T17:29:59.997"]
[null,null,null,null,"Coincident","2016-06-27T18:14:59.993"]
[null,null,"Half hour time period MD occurred",null,"Non-Coincident",42334.729166632038]
[null,null,null,null,"Coincident",42548.760416582205]
[null,null,"Winter/Summer Peaking",null,"Non-Coincident","Summer"]
[null,null,null,null,"Coincident","Winter"]
[null,null,"Adjustments - Embedded generation","MW","Non-Coincident",0]
[null,null,null,null,"Coincident",0]
[null,null,"Weather Corrected MD 10% POE","MW","Non-Coincident",52.8]
[null,null,null,null,"Coincident",50]
[null,null,"Weather Corrected MD 10% POE","MVA","Non-Coincident",53.4]
[null,null,null,null,"Coincident",50]
[null,null,"Weather Corrected MD 50% POE","MW","Non-Coincident",50.5]
[null,null,null,null,"Coincident",45.5]
[null,null,"Weather Corrected MD 50% POE","MVA","Non-Coincident",51]
[null,null,null,null,"Coincident",45.5]
[null,"Lismore  330 kV","Connection Point Rating","MVA","Non-Coincident",750]
[null,null,null,null,"Coincident",750]
[null,null,"Raw Adjusted MD","MW","Non-Coincident",239]
[null,null,null,null,"Coincident",79.5]
[null,null,"Raw Adjusted MD","MVA","Non-Coincident",239]
[null,null,null,null,"Coincident",79.7]
[null,null,"Date MD occurred",null,"Non-Coincident","2015-08-05T18:59:59.999"]
[null,null,null,null,"Coincident","2016-06-27T18:14:59.993"]
[null,null,"Half hour time period MD occurred",null,"Non-Coincident",42221.791666658333]
[null,null,null,null,"Coincident",42548.760416582205]
[null,null,"Winter/Summer Peaking",null,"Non-Coincident","Winter"]
[null,null,null,null,"Coincident","Winter"]
[null,null,"Adjustments - Embedded generation","MW","Non-Coincident",0]
[null,null,null,null,"Coincident",0]
[null,null,"Weather Corrected MD 10% POE","MW","Non-Coincident",239]
[null,null,null,null,"Coincident",79.5]
[null,null,"Weather Corrected MD 10% POE","MVA","Non-Coincident",239]
[null,null,null,null,"Coincident",79.7]
[null,null,"Weather Corrected MD 50% POE","MW","Non-Coincident",239]
[null,null,null,null,"Coincident",79.5]
[null,null,"Weather Corrected MD 50% POE","MVA","Non-Coincident",239]
[null,null,null,null,"Coincident",79.7]
[null,"Casino","Connection Point Rating","MVA","Non-Coincident",60]
[null,null,null,null,"Coincident",60]
[null,null,"Raw Adjusted MD","MW","Non-Coincident",25.2]
[null,null,null,null,"Coincident",21.5]
[null,null,"Raw Adjusted MD","MVA","Non-Coincident",26.2]
[null,null,null,null,"Coincident",21.7]
[null,null,"Date MD occurred",null,"Non-Coincident","2016-02-18T17:29:59.995"]
[null,null,null,null,"Coincident","2016-06-27T18:14:59.993"]
[null,null,"Half hour time period MD occurred",null,"Non-Coincident",42418.72916661248]
[null,null,null,null,"Coincident",42548.760416582205]
[null,null,"Winter/Summer Peaking",null,"Non-Coincident","Summer"]
[null,null,null,null,"Coincident","Winter"]
[null,null,"Adjustments - Embedded generation","MW","Non-Coincident",0]
[null,null,null,null,"Coincident",0]
[null,null,"Weather Corrected MD 10% POE","MW","Non-Coincident",26.7]
[null,null,null,null,"Coincident",26.2]
[null,null,"Weather Corrected MD 10% POE","MVA","Non-Coincident",27.6]
[null,null,null,null,"Coincident",26.4]
[null,null,"Weather Corrected MD 50% POE","MW","Non-Coincident",25.8]
[null,null,null,null,"Coincident",23.5]
[null,null,"Weather Corrected MD 50% POE","MVA","Non-Coincident",26.7]
[null,null,null,null,"Coincident",23.6]
[null,"Tenterfield","Connection Point Rating","MVA","Non-Coincident",30]
[null,null,null,null,"Coincident",30]
[null,null,"Raw Adjusted MD","MW","Non-Coincident",6.53]
[null,null,null,null,"Coincident",5.42]
[null,null,"Raw Adjusted MD","MVA","Non-Coincident",6.63]
[null,null,null,null,"Coincident",5.44]
[null,null,"Date MD occurred",null,"Non-Coincident","2015-07-14T18:30:00"]
[null,null,null,null,"Coincident","2016-06-27T18:14:59.993"]
[null,null,"Half hour time period MD occurred",null,"Non-Coincident",42199.770833330127]
[null,null,null,null,"Coincident",42548.760416582205]
[null,null,"Winter/Summer Peaking",null,"Non-Coincident","Winter"]
[null,null,null,null,"Coincident","Winter"]
[null,null,"Adjustments - Embedded generation","MW","Non-Coincident",0]
[null,null,null,null,"Coincident",0]
[null,null,"Weather Corrected MD 10% POE","MW","Non-Coincident",6.48]
[null,null,null,null,"Coincident",5.71]
[null,null,"Weather Corrected MD 10% POE","MVA","Non-Coincident",6.57]
[null,null,null,null,"Coincident",5.74]
[null,null,"Weather Corrected MD 50% POE","MW","Non-Coincident",6.15]
[null,null,null,null,"Coincident",5.51]
[null,null,"Weather Corrected MD 50% POE","MVA","Non-Coincident",6.24]
[null,null,null,null,"Coincident",5.53]
[null,"Muswellbrook","Connection Point Rating","MVA","Non-Coincident",750]
[null,null,null,null,"Coincident",750]
[null,null,"Raw Adjusted MD","MW","Non-Coincident",228]
[null,null,null,null,"Coincident",189]
[null,null,"Raw Adjusted MD","MVA","Non-Coincident",231]
[null,null,null,null,"Coincident",201]
[null,null,"Date MD occurred",null,"Non-Coincident","2015-07-07T08:15:00"]
[null,null,null,null,"Coincident","2016-06-27T18:14:59.993"]
[null,null,"Half hour time period MD occurred",null,"Non-Coincident",42192.343749998523]
[null,null,null,null,"Coincident",42548.760416582205]
[null,null,"Winter/Summer Peaking",null,"Non-Coincident","Winter"]
[null,null,null,null,"Coincident","Winter"]
[null,null,"Adjustments - Embedded generation","MW","Non-Coincident",0]
[null,null,null,null,"Coincident",0]
[null,null,"Weather Corrected MD 10% POE","MW","Non-Coincident",239]
[null,null,null,null,"Coincident",200]
[null,null,"Weather Corrected MD 10% POE","MVA","Non-Coincident",243]
[null,null,null,null,"Coincident",212]
[null,null,"Weather Corrected MD 50% POE","MW","Non-Coincident",230]
[null,null,null,null,"Coincident",184]
[null,null,"Weather Corrected MD 50% POE","MVA","Non-Coincident",233]
[null,null,null,null,"Coincident",196]
[null,"Hawks Nest","Connection Point Rating","MVA","Non-Coincident",50]
[null,null,null,null,"Coincident",50]
[null,null,"Raw Adjusted MD","MW","Non-Coincident",10.199999999999999]
[null,null,null,null,"Coincident",7.52]
[null,null,"Raw Adjusted MD","MVA","Non-Coincident",10.199999999999999]
[null,null,null,null,"Coincident",7.53]
[null,null,"Date MD occurred",null,"Non-Coincident","2016-01-14T16:44:59.996"]
[null,null,null,null,"Coincident","2016-06-27T18:14:59.993"]
[null,null,"Half hour time period MD occurred",null,"Non-Coincident",42383.697916620637]
[null,null,null,null,"Coincident",42548.760416582205]
[null,null,"Winter/Summer Peaking",null,"Non-Coincident","Summer"]
[null,null,null,null,"Coincident","Winter"]
[null,null,"Adjustments - Embedded generation","MW","Non-Coincident",0]
[null,null,null,null,"Coincident",0]
[null,null,"Weather Corrected MD 10% POE","MW","Non-Coincident",10.4]
[null,null,null,null,"Coincident",5.7]
[null,null,"Weather Corrected MD 10% POE","MVA","Non-Coincident",10.4]
[null,null,null,null,"Coincident",5.7]
[null,null,"Weather Corrected MD 50% POE","MW","Non-Coincident",9.77]
[null,null,null,null,"Coincident",5.23]
[null,null,"Weather Corrected MD 50% POE","MVA","Non-Coincident",9.7899999999999991]
[null,null,null,null,"Coincident",5.24]
[null,"Stroud","Connection Point Rating","MVA","Non-Coincident",120]
[null,null,null,null,"Coincident",120]
[null,null,"Raw Adjusted MD","MW","Non-Coincident",38.799999999999997]
[null,null,null,null,"Coincident",26.3]
[null,null,"Raw Adjusted MD","MVA","Non-Coincident",38.9]
[null,null,null,null,"Coincident",26.9]
[null,null,"Date MD occurred",null,"Non-Coincident","2016-02-25T17:44:59.995"]
[null,null,null,null,"Coincident","2016-06-27T18:14:59.993"]
[null,null,"Half hour time period MD occurred",null,"Non-Coincident",42425.739583277515]
[null,null,null,null,"Coincident",42548.760416582205]
[null,null,"Winter/Summer Peaking",null,"Non-Coincident","Summer"]
[null,null,null,null,"Coincident","Winter"]
[null,null,"Adjustments - Embedded generation","MW","Non-Coincident",0]
[null,null,null,null,"Coincident",0]
[null,null,"Weather Corrected MD 10% POE","MW","Non-Coincident",40]
[null,null,null,null,"Coincident",26]
[null,null,"Weather Corrected MD 10% POE","MVA","Non-Coincident",40.1]
[null,null,null,null,"Coincident",26.6]
[null,null,"Weather Corrected MD 50% POE","MW","Non-Coincident",38.1]
[null,null,null,null,"Coincident",23.5]
[null,null,"Weather Corrected MD 50% POE","MVA","Non-Coincident",38.200000000000003]
[null,null,null,null,"Coincident",24.1]
[null,"Taree 33 kV","Connection Point Rating","MVA","Non-Coincident",120]
[null,null,null,null,"Coincident",120]
[null,null,"Raw Adjusted MD","MW","Non-Coincident",29.7]
[null,null,null,null,"Coincident",25.6]
[null,null,"Raw Adjusted MD","MVA","Non-Coincident",29.7]
[null,null,null,null,"Coincident",25.7]
[null,null,"Date MD occurred",null,"Non-Coincident","2016-01-14T15:14:59.996"]
[null,null,null,null,"Coincident","2016-06-27T18:14:59.993"]
[null,null,"Half hour time period MD occurred",null,"Non-Coincident",42383.635416620651]
[null,null,null,null,"Coincident",42548.760416582205]
[null,null,"Winter/Summer Peaking",null,"Non-Coincident","Summer"]
[null,null,null,null,"Coincident","Winter"]
[null,null,"Adjustments - Embedded generation","MW","Non-Coincident",0]
[null,null,null,null,"Coincident",0]
[null,null,"Weather Corrected MD 10% POE","MW","Non-Coincident",30.5]
[null,null,null,null,"Coincident",25.2]
[null,null,"Weather Corrected MD 10% POE","MVA","Non-Coincident",30.5]
[null,null,null,null,"Coincident",25.3]
[null,null,"Weather Corrected MD 50% POE","MW","Non-Coincident",29.1]
[null,null,null,null,"Coincident",23.6]
[null,null,"Weather Corrected MD 50% POE","MVA","Non-Coincident",29.2]
[null,null,null,null,"Coincident",23.7]
[null,"Taree 66 kV","Connection Point Rating","MVA","Non-Coincident",120]
[null,null,null,null,"Coincident",120]
[null,null,"Raw Adjusted MD","MW","Non-Coincident",53.5]
[null,null,null,null,"Coincident",53.3]
[null,null,"Raw Adjusted MD","MVA","Non-Coincident",53.8]
[null,null,null,null,"Coincident",53.6]
[null,null,"Date MD occurred",null,"Non-Coincident","2016-06-27T17:59:59.993"]
[null,null,null,null,"Coincident","2016-06-27T18:14:59.993"]
[null,null,"Half hour time period MD occurred",null,"Non-Coincident",42548.749999915541]
[null,null,null,null,"Coincident",42548.760416582205]
[null,null,"Winter/Summer Peaking",null,"Non-Coincident","Winter"]
[null,null,null,null,"Coincident","Winter"]
[null,null,"Adjustments - Embedded generation","MW","Non-Coincident",0]
[null,null,null,null,"Coincident",0]
[null,null,"Weather Corrected MD 10% POE","MW","Non-Coincident",54.9]
[null,null,null,null,"Coincident",52.6]
[null,null,"Weather Corrected MD 10% POE","MVA","Non-Coincident",55.2]
[null,null,null,null,"Coincident",52.9]
[null,null,"Weather Corrected MD 50% POE","MW","Non-Coincident",52.5]
[null,null,null,null,"Coincident",49.2]
[null,null,"Weather Corrected MD 50% POE","MVA","Non-Coincident",52.8]
[null,null,null,null,"Coincident",49.5]
[null,"Herons Creek","Connection Point Rating","MVA","Non-Coincident",60]
[null,null,null,null,"Coincident",60]
[null,null,"Raw Adjusted MD","MW","Non-Coincident",10.9]
[null,null,null,null,"Coincident",10.5]
[null,null,"Raw Adjusted MD","MVA","Non-Coincident",11.2]
[null,null,null,null,"Coincident",10.7]
[null,null,"Date MD occurred",null,"Non-Coincident","2015-07-17T08:15:00"]
[null,null,null,null,"Coincident","2016-06-27T18:14:59.993"]
[null,null,"Half hour time period MD occurred",null,"Non-Coincident",42202.343749996195]
[null,null,null,null,"Coincident",42548.760416582205]
[null,null,"Winter/Summer Peaking",null,"Non-Coincident","Winter"]
[null,null,null,null,"Coincident","Winter"]
[null,null,"Adjustments - Embedded generation","MW","Non-Coincident",0]
[null,null,null,null,"Coincident",0]
[null,null,"Weather Corrected MD 10% POE","MW","Non-Coincident",10.8]
[null,null,null,null,"Coincident",9.73]
[null,null,"Weather Corrected MD 10% POE","MVA","Non-Coincident",11.1]
[null,null,null,null,"Coincident",9.9]
[null,null,"Weather Corrected MD 50% POE","MW","Non-Coincident",10.3]
[null,null,null,null,"Coincident",9.25]
[null,null,"Weather Corrected MD 50% POE","MVA","Non-Coincident",10.6]
[null,null,null,null,"Coincident",9.41]
[null,"Port Macquarie","Connection Point Rating","MVA","Non-Coincident",180]
[null,null,null,null,"Coincident",180]
[null,null,"Raw Adjusted MD","MW","Non-Coincident",73]
[null,null,null,null,"Coincident",73]
[null,null,"Raw Adjusted MD","MVA","Non-Coincident",73.7]
[null,null,null,null,"Coincident",73.7]
[null,null,"Date MD occurred",null,"Non-Coincident","2016-06-27T18:14:59.993"]
[null,null,null,null,"Coincident","2016-06-27T18:14:59.993"]
[null,null,"Half hour time period MD occurred",null,"Non-Coincident",42548.760416582205]
[null,null,null,null,"Coincident",42548.760416582205]
[null,null,"Winter/Summer Peaking",null,"Non-Coincident","Winter"]
[null,null,null,null,"Coincident","Winter"]
[null,null,"Adjustments - Embedded generation","MW","Non-Coincident",0]
[null,null,null,null,"Coincident",0]
[null,null,"Weather Corrected MD 10% POE","MW","Non-Coincident",77.3]
[null,null,null,null,"Coincident",76.7]
[null,null,"Weather Corrected MD 10% POE","MVA","Non-Coincident",78.099999999999994]
[null,null,null,null,"Coincident",77.5]
[null,null,"Weather Corrected MD 50% POE","MW","Non-Coincident",73.8]
[null,null,null,null,"Coincident",72.5]
[null,null,"Weather Corrected MD 50% POE","MVA","Non-Coincident",74.5]
[null,null,null,null,"Coincident",73.2]
[null,"Kempsey 33 kV","Connection Point Rating","MVA","Non-Coincident",120]
[null,null,null,null,"Coincident",120]
[null,null,"Raw Adjusted MD","MW","Non-Coincident",29.7]
[null,null,null,null,"Coincident",29.7]
[null,null,"Raw Adjusted MD","MVA","Non-Coincident",29.9]
[null,null,null,null,"Coincident",29.9]
[null,null,"Date MD occurred",null,"Non-Coincident","2016-06-27T18:14:59.993"]
[null,null,null,null,"Coincident","2016-06-27T18:14:59.993"]
[null,null,"Half hour time period MD occurred",null,"Non-Coincident",42548.760416582205]
[null,null,null,null,"Coincident",42548.760416582205]
[null,null,"Winter/Summer Peaking",null,"Non-Coincident","Winter"]
[null,null,null,null,"Coincident","Winter"]
[null,null,"Adjustments - Embedded generation","MW","Non-Coincident",0]
[null,null,null,null,"Coincident",0]
[null,null,"Weather Corrected MD 10% POE","MW","Non-Coincident",31.6]
[null,null,null,null,"Coincident",30.8]
[null,null,"Weather Corrected MD 10% POE","MVA","Non-Coincident",31.8]
[null,null,null,null,"Coincident",30.9]
[null,null,"Weather Corrected MD 50% POE","MW","Non-Coincident",30.4]
[null,null,null,null,"Coincident",29.3]
[null,null,"Weather Corrected MD 50% POE","MVA","Non-Coincident",30.6]
[null,null,null,null,"Coincident",29.5]
[null,"Tomago 330 kV","Connection Point Rating","MVA","Non-Coincident"]
[null,null,null,null,"Coincident"]
[null,null,"Raw Adjusted MD","MW","Non-Coincident"]
[null,null,null,null,"Coincident"]
[null,null,"Raw Adjusted MD","MVA","Non-Coincident"]
[null,null,null,null,"Coincident"]
[null,null,"Date MD occurred",null,"Non-Coincident"]
[null,null,null,null,"Coincident"]
[null,null,"Half hour time period MD occurred",null,"Non-Coincident"]
[null,null,null,null,"Coincident"]
[null,null,"Winter/Summer Peaking",null,"Non-Coincident"]
[null,null,null,null,"Coincident"]
[null,null,"Adjustments - Embedded generation","MW","Non-Coincident"]
[null,null,null,null,"Coincident"]
[null,null,"Weather Corrected MD 10% POE","MW","Non-Coincident"]
[null,null,null,null,"Coincident"]
[null,null,"Weather Corrected MD 10% POE","MVA","Non-Coincident"]
[null,null,null,null,"Coincident"]
[null,null,"Weather Corrected MD 50% POE","MW","Non-Coincident"]
[null,null,null,null,"Coincident"]
[null,null,"Weather Corrected MD 50% POE","MVA","Non-Coincident"]
[null,null,null,null,"Coincident"]
[null,"Newcastle","Connection Point Rating","MVA","Non-Coincident",1125]
[null,null,null,null,"Coincident",1125]
[null,null,"Raw Adjusted MD","MW","Non-Coincident",508]
[null,null,null,null,"Coincident",397]
[null,null,"Raw Adjusted MD","MVA","Non-Coincident",508]
[null,null,null,null,"Coincident",399]
[null,null,"Date MD occurred",null,"Non-Coincident","2015-07-17T18:00:00"]
[null,null,null,null,"Coincident","2016-06-27T18:14:59.993"]
[null,null,"Half hour time period MD occurred",null,"Non-Coincident",42202.7499999961]
[null,null,null,null,"Coincident",42548.760416582205]
[null,null,"Winter/Summer Peaking",null,"Non-Coincident","Winter"]
[null,null,null,null,"Coincident","Winter"]
[null,null,"Adjustments - Embedded generation","MW","Non-Coincident",0]
[null,null,null,null,"Coincident",0]
[null,null,"Weather Corrected MD 10% POE","MW","Non-Coincident",534]
[null,null,null,null,"Coincident",419]
[null,null,"Weather Corrected MD 10% POE","MVA","Non-Coincident",534]
[null,null,null,null,"Coincident",421]
[null,null,"Weather Corrected MD 50% POE","MW","Non-Coincident",513]
[null,null,null,null,"Coincident",386]
[null,null,"Weather Corrected MD 50% POE","MVA","Non-Coincident",513]
[null,null,null,null,"Coincident",388]
[null,"Waratah West","Connection Point Rating","MVA","Non-Coincident",750]
[null,null,null,null,"Coincident",750]
[null,null,"Raw Adjusted MD","MW","Non-Coincident",168]
[null,null,null,null,"Coincident",145]
[null,null,"Raw Adjusted MD","MVA","Non-Coincident",174]
[null,null,null,null,"Coincident",152]
[null,null,"Date MD occurred",null,"Non-Coincident","2016-01-14T14:29:59.996"]
[null,null,null,null,"Coincident","2016-06-27T18:14:59.993"]
[null,null,"Half hour time period MD occurred",null,"Non-Coincident",42383.604166620658]
[null,null,null,null,"Coincident",42548.760416582205]
[null,null,"Winter/Summer Peaking",null,"Non-Coincident","Summer"]
[null,null,null,null,"Coincident","Winter"]
[null,null,"Adjustments - Embedded generation","MW","Non-Coincident",0]
[null,null,null,null,"Coincident",0]
[null,null,"Weather Corrected MD 10% POE","MW","Non-Coincident",176]
[null,null,null,null,"Coincident",153]
[null,null,"Weather Corrected MD 10% POE","MVA","Non-Coincident",183]
[null,null,null,null,"Coincident",160]
[null,null,"Weather Corrected MD 50% POE","MW","Non-Coincident",169]
[null,null,null,null,"Coincident",141]
[null,null,"Weather Corrected MD 50% POE","MVA","Non-Coincident",176]
[null,null,null,null,"Coincident",148]
[null,"Tomago 132","Connection Point Rating","MVA","Non-Coincident",1125]
[null,null,null,null,"Coincident",1125]
[null,null,"Raw Adjusted MD","MW","Non-Coincident",210]
[null,null,null,null,"Coincident",154]
[null,null,"Raw Adjusted MD","MVA","Non-Coincident",219]
[null,null,null,null,"Coincident",172]
[null,null,"Date MD occurred",null,"Non-Coincident","2015-11-20T16:44:59.997"]
[null,null,null,null,"Coincident","2016-06-27T18:14:59.993"]
[null,null,"Half hour time period MD occurred",null,"Non-Coincident",42328.697916633442]
[null,null,null,null,"Coincident",42548.760416582205]
[null,null,"Winter/Summer Peaking",null,"Non-Coincident","Summer"]
[null,null,null,null,"Coincident","Winter"]
[null,null,"Adjustments - Embedded generation","MW","Non-Coincident",0]
[null,null,null,null,"Coincident",0]
[null,null,"Weather Corrected MD 10% POE","MW","Non-Coincident",221]
[null,null,null,null,"Coincident",163]
[null,null,"Weather Corrected MD 10% POE","MVA","Non-Coincident",230]
[null,null,null,null,"Coincident",182]
[null,null,"Weather Corrected MD 50% POE","MW","Non-Coincident",213]
[null,null,null,null,"Coincident",150]
[null,null,"Weather Corrected MD 50% POE","MVA","Non-Coincident",221]
[null,null,null,null,"Coincident",167]
[null,"Brandy Hill","Connection Point Rating","MVA","Non-Coincident",75]
[null,null,null,null,"Coincident",75]
[null,null,"Raw Adjusted MD","MW","Non-Coincident",8.59]
[null,null,null,null,"Coincident",6.04]
[null,null,"Raw Adjusted MD","MVA","Non-Coincident",8.61]
[null,null,null,null,"Coincident",6.07]
[null,null,"Date MD occurred",null,"Non-Coincident","2016-02-25T17:44:59.995"]
[null,null,null,null,"Coincident","2016-06-27T18:14:59.993"]
[null,null,"Half hour time period MD occurred",null,"Non-Coincident",42425.739583277515]
[null,null,null,null,"Coincident",42548.760416582205]
[null,null,"Winter/Summer Peaking",null,"Non-Coincident","Summer"]
[null,null,null,null,"Coincident","Winter"]
[null,null,"Adjustments - Embedded generation","MW","Non-Coincident",0]
[null,null,null,null,"Coincident",0]
[null,null,"Weather Corrected MD 10% POE","MW","Non-Coincident",8.59]
[null,null,null,null,"Coincident",6.04]
[null,null,"Weather Corrected MD 10% POE","MVA","Non-Coincident",8.61]
[null,null,null,null,"Coincident",6.07]
[null,null,"Weather Corrected MD 50% POE","MW","Non-Coincident",8.59]
[null,null,null,null,"Coincident",6.04]
[null,null,"Weather Corrected MD 50% POE","MVA","Non-Coincident",8.61]
[null,null,null,null,"Coincident",6.07]
[null,"Armidale 66 kV","Connection Point Rating","MVA","Non-Coincident",120]
[null,null,null,null,"Coincident",120]
[null,null,"Raw Adjusted MD","MW","Non-Coincident",44.5]
[null,null,null,null,"Coincident",41.1]
[null,null,"Raw Adjusted MD","MVA","Non-Coincident",45.4]
[null,null,null,null,"Coincident",41.4]
[null,null,"Date MD occurred",null,"Non-Coincident","2015-07-13T10:15:00"]
[null,null,null,null,"Coincident","2016-06-27T18:14:59.993"]
[null,null,"Half hour time period MD occurred",null,"Non-Coincident",42198.42708333044]
[null,null,null,null,"Coincident",42548.760416582205]
[null,null,"Winter/Summer Peaking",null,"Non-Coincident","Winter"]
[null,null,null,null,"Coincident","Winter"]
[null,null,"Adjustments - Embedded generation","MW","Non-Coincident",0]
[null,null,null,null,"Coincident",0]
[null,null,"Weather Corrected MD 10% POE","MW","Non-Coincident",42.3]
[null,null,null,null,"Coincident",45.1]
[null,null,"Weather Corrected MD 10% POE","MVA","Non-Coincident",43.1]
[null,null,null,null,"Coincident",45.5]
[null,null,"Weather Corrected MD 50% POE","MW","Non-Coincident",40.700000000000003]
[null,null,null,null,"Coincident",43.1]
[null,null,"Weather Corrected MD 50% POE","MVA","Non-Coincident",41.5]
[null,null,null,null,"Coincident",43.5]
[null,"Tamworth 66 kV","Connection Point Rating","MVA","Non-Coincident",240]
[null,null,null,null,"Coincident",240]
[null,null,"Raw Adjusted MD","MW","Non-Coincident",148]
[null,null,null,null,"Coincident",104]
[null,null,"Raw Adjusted MD","MVA","Non-Coincident",151]
[null,null,null,null,"Coincident",105]
[null,null,"Date MD occurred",null,"Non-Coincident","2015-12-14T17:59:59.997"]
[null,null,null,null,"Coincident","2016-06-27T18:14:59.993"]
[null,null,"Half hour time period MD occurred",null,"Non-Coincident",42352.749999961175]
[null,null,null,null,"Coincident",42548.760416582205]
[null,null,"Winter/Summer Peaking",null,"Non-Coincident","Summer"]
[null,null,null,null,"Coincident","Winter"]
[null,null,"Adjustments - Embedded generation","MW","Non-Coincident",0]
[null,null,null,null,"Coincident",0]
[null,null,"Weather Corrected MD 10% POE","MW","Non-Coincident",151]
[null,null,null,null,"Coincident",116]
[null,null,"Weather Corrected MD 10% POE","MVA","Non-Coincident",154]
[null,null,null,null,"Coincident",117]
[null,null,"Weather Corrected MD 50% POE","MW","Non-Coincident",145]
[null,null,null,null,"Coincident",106]
[null,null,"Weather Corrected MD 50% POE","MVA","Non-Coincident",148]
[null,null,null,null,"Coincident",107]
[null,"Gunnedah 66 kV","Connection Point Rating","MVA","Non-Coincident",120]
[null,null,null,null,"Coincident",120]
[null,null,"Raw Adjusted MD","MW","Non-Coincident",24.7]
[null,null,null,null,"Coincident",24]
[null,null,"Raw Adjusted MD","MVA","Non-Coincident",24.9]
[null,null,null,null,"Coincident",24.4]
[null,null,"Date MD occurred",null,"Non-Coincident","2016-02-25T17:59:59.995"]
[null,null,null,null,"Coincident","2016-06-27T18:14:59.993"]
[null,null,"Half hour time period MD occurred",null,"Non-Coincident",42425.749999944179]
[null,null,null,null,"Coincident",42548.760416582205]
[null,null,"Winter/Summer Peaking",null,"Non-Coincident","Summer"]
[null,null,null,null,"Coincident","Winter"]
[null,null,"Adjustments - Embedded generation","MW","Non-Coincident",0]
[null,null,null,null,"Coincident",0]
[null,null,"Weather Corrected MD 10% POE","MW","Non-Coincident",25.9]
[null,null,null,null,"Coincident",25.7]
[null,null,"Weather Corrected MD 10% POE","MVA","Non-Coincident",26.1]
[null,null,null,null,"Coincident",26.1]
[null,null,"Weather Corrected MD 50% POE","MW","Non-Coincident",24.5]
[null,null,null,null,"Coincident",23.5]
[null,null,"Weather Corrected MD 50% POE","MVA","Non-Coincident",24.7]
[null,null,null,null,"Coincident",23.9]
[null,"Narrabri 66 kV","Connection Point Rating","MVA","Non-Coincident",120]
[null,null,null,null,"Coincident",120]
[null,null,"Raw Adjusted MD","MW","Non-Coincident",49.3]
[null,null,null,null,"Coincident",41.7]
[null,null,"Raw Adjusted MD","MVA","Non-Coincident",49.3]
[null,null,null,null,"Coincident",41.7]
[null,null,"Date MD occurred",null,"Non-Coincident","2015-11-26T18:29:59.997"]
[null,null,null,null,"Coincident","2016-06-27T18:14:59.993"]
[null,null,"Half hour time period MD occurred",null,"Non-Coincident",42334.770833298695]
[null,null,null,null,"Coincident",42548.760416582205]
[null,null,"Winter/Summer Peaking",null,"Non-Coincident","Summer"]
[null,null,null,null,"Coincident","Winter"]
[null,null,"Adjustments - Embedded generation","MW","Non-Coincident",0]
[null,null,null,null,"Coincident",0]
[null,null,"Weather Corrected MD 10% POE","MW","Non-Coincident",54.2]
[null,null,null,null,"Coincident",46.7]
[null,null,"Weather Corrected MD 10% POE","MVA","Non-Coincident",54.3]
[null,null,null,null,"Coincident",46.8]
[null,null,"Weather Corrected MD 50% POE","MW","Non-Coincident",51.2]
[null,null,null,null,"Coincident",43.8]
[null,null,"Weather Corrected MD 50% POE","MVA","Non-Coincident",51.3]
[null,null,null,null,"Coincident",43.9]
[null,"Moree 66 kV","Connection Point Rating","MVA","Non-Coincident",120]
[null,null,null,null,"Coincident",120]
[null,null,"Raw Adjusted MD","MW","Non-Coincident",38.299999999999997]
[null,null,null,null,"Coincident",37.799999999999997]
[null,null,"Raw Adjusted MD","MVA","Non-Coincident",38.299999999999997]
[null,null,null,null,"Coincident",37.799999999999997]
[null,null,"Date MD occurred",null,"Non-Coincident","2016-06-27T18:29:59.993"]
[null,null,null,null,"Coincident","2016-06-27T18:14:59.993"]
[null,null,"Half hour time period MD occurred",null,"Non-Coincident",42548.770833248869]
[null,null,null,null,"Coincident",42548.760416582205]
[null,null,"Winter/Summer Peaking",null,"Non-Coincident","Winter"]
[null,null,null,null,"Coincident","Winter"]
[null,null,"Adjustments - Embedded generation","MW","Non-Coincident",0]
[null,null,null,null,"Coincident",0]
[null,null,"Weather Corrected MD 10% POE","MW","Non-Coincident",48.1]
[null,null,null,null,"Coincident",40.4]
[null,null,"Weather Corrected MD 10% POE","MVA","Non-Coincident",48.2]
[null,null,null,null,"Coincident",40.5]
[null,null,"Weather Corrected MD 50% POE","MW","Non-Coincident",43.8]
[null,null,null,null,"Coincident",37.5]
[null,null,"Weather Corrected MD 50% POE","MVA","Non-Coincident",43.9]
[null,null,null,null,"Coincident",37.6]
[null,"Inverell 66 kV","Connection Point Rating","MVA","Non-Coincident",240]
[null,null,null,null,"Coincident",240]
[null,null,"Raw Adjusted MD","MW","Non-Coincident",52.8]
[null,null,null,null,"Coincident",52.3]
[null,null,"Raw Adjusted MD","MVA","Non-Coincident",52.9]
[null,null,null,null,"Coincident",52.3]
[null,null,"Date MD occurred",null,"Non-Coincident","2016-06-28T18:59:59.993"]
[null,null,null,null,"Coincident","2016-06-27T18:14:59.993"]
[null,null,"Half hour time period MD occurred",null,"Non-Coincident",42549.791666581965]
[null,null,null,null,"Coincident",42548.760416582205]
[null,null,"Winter/Summer Peaking",null,"Non-Coincident","Winter"]
[null,null,null,null,"Coincident","Winter"]
[null,null,"Adjustments - Embedded generation","MW","Non-Coincident",0]
[null,null,null,null,"Coincident",0]
[null,null,"Weather Corrected MD 10% POE","MW","Non-Coincident",54.2]
[null,null,null,null,"Coincident",38.5]
[null,null,"Weather Corrected MD 10% POE","MVA","Non-Coincident",54.2]
[null,null,null,null,"Coincident",38.6]
[null,null,"Weather Corrected MD 50% POE","MW","Non-Coincident",52.1]
[null,null,null,null,"Coincident",35.799999999999997]
[null,null,"Weather Corrected MD 50% POE","MVA","Non-Coincident",52.2]
[null,null,null,null,"Coincident",35.9]
[null,"Glen Innes 66 kV","Connection Point Rating","MVA","Non-Coincident",120]
[null,null,null,null,"Coincident",120]
[null,null,"Raw Adjusted MD","MW","Non-Coincident",14]
[null,null,null,null,"Coincident",14]
[null,null,"Raw Adjusted MD","MVA","Non-Coincident",14.1]
[null,null,null,null,"Coincident",14.1]
[null,null,"Date MD occurred",null,"Non-Coincident","2016-06-27T18:14:59.993"]
[null,null,null,null,"Coincident","2016-06-27T18:14:59.993"]
[null,null,"Half hour time period MD occurred",null,"Non-Coincident",42548.760416582205]
[null,null,null,null,"Coincident",42548.760416582205]
[null,null,"Winter/Summer Peaking",null,"Non-Coincident","Winter"]
[null,null,null,null,"Coincident","Winter"]
[null,null,"Adjustments - Embedded generation","MW","Non-Coincident",0]
[null,null,null,null,"Coincident",0]
[null,null,"Weather Corrected MD 10% POE","MW","Non-Coincident",14.1]
[null,null,null,null,"Coincident",15]
[null,null,"Weather Corrected MD 10% POE","MVA","Non-Coincident",14.1]
[null,null,null,null,"Coincident",15]
[null,null,"Weather Corrected MD 50% POE","MW","Non-Coincident",13.7]
[null,null,null,null,"Coincident",14.6]
[null,null,"Weather Corrected MD 50% POE","MVA","Non-Coincident",13.7]
[null,null,null,null,"Coincident",14.6]
[null,"Murrumbateman","Connection Point Rating","MVA","Non-Coincident",10]
[null,null,null,null,"Coincident",10]
[null,null,"Raw Adjusted MD","MW","Non-Coincident",5.86]
[null,null,null,null,"Coincident",5.3]
[null,null,"Raw Adjusted MD","MVA","Non-Coincident",5.86]
[null,null,null,null,"Coincident",5.3]
[null,null,"Date MD occurred",null,"Non-Coincident","2015-08-04T19:14:59.999"]
[null,null,null,null,"Coincident","2016-06-27T18:14:59.993"]
[null,null,"Half hour time period MD occurred",null,"Non-Coincident",42220.80208332523]
[null,null,null,null,"Coincident",42548.760416582205]
[null,null,"Winter/Summer Peaking",null,"Non-Coincident","Winter"]
[null,null,null,null,"Coincident","Winter"]
[null,null,"Adjustments - Embedded generation","MW","Non-Coincident",0]
[null,null,null,null,"Coincident",0]
[null,null,"Weather Corrected MD 10% POE","MW","Non-Coincident",6.05]
[null,null,null,null,"Coincident",5.7]
[null,null,"Weather Corrected MD 10% POE","MVA","Non-Coincident",6.05]
[null,null,null,null,"Coincident",5.71]
[null,null,"Weather Corrected MD 50% POE","MW","Non-Coincident",5.84]
[null,null,null,null,"Coincident",5.16]
[null,null,"Weather Corrected MD 50% POE","MVA","Non-Coincident",5.84]
[null,null,null,null,"Coincident",5.16]
[null,"Munyang","Connection Point Rating","MVA","Non-Coincident",120]
[null,null,null,null,"Coincident",120]
[null,null,"Raw Adjusted MD","MW","Non-Coincident",30.2]
[null,null,null,null,"Coincident",23.7]
[null,null,"Raw Adjusted MD","MVA","Non-Coincident",30.2]
[null,null,null,null,"Coincident",23.7]
[null,null,"Date MD occurred",null,"Non-Coincident","2015-07-02T18:15:00"]
[null,null,null,null,"Coincident","2016-06-27T18:14:59.993"]
[null,null,"Half hour time period MD occurred",null,"Non-Coincident",42187.760416666257]
[null,null,null,null,"Coincident",42548.760416582205]
[null,null,"Winter/Summer Peaking",null,"Non-Coincident","Winter"]
[null,null,null,null,"Coincident","Winter"]
[null,null,"Adjustments - Embedded generation","MW","Non-Coincident",0]
[null,null,null,null,"Coincident",0]
[null,null,"Weather Corrected MD 10% POE","MW","Non-Coincident",35.799999999999997]
[null,null,null,null,"Coincident",18.8]
[null,null,"Weather Corrected MD 10% POE","MVA","Non-Coincident",35.799999999999997]
[null,null,null,null,"Coincident",18.8]
[null,null,"Weather Corrected MD 50% POE","MW","Non-Coincident",32.200000000000003]
[null,null,null,null,"Coincident",17.7]
[null,null,"Weather Corrected MD 50% POE","MVA","Non-Coincident",32.200000000000003]
[null,null,null,null,"Coincident",17.7]
[null,"Cooma 11 kV","Connection Point Rating","MVA","Non-Coincident",30]
[null,null,null,null,"Coincident",30]
[null,null,"Raw Adjusted MD","MW","Non-Coincident",13.2]
[null,null,null,null,"Coincident",0]
[null,null,"Raw Adjusted MD","MVA","Non-Coincident",13.2]
[null,null,null,null,"Coincident",0]
[null,null,"Date MD occurred",null,"Non-Coincident","2015-07-03T23:15:00"]
[null,null,null,null,"Coincident","2016-06-27T18:14:59.993"]
[null,null,"Half hour time period MD occurred",null,"Non-Coincident",42188.968749999309]
[null,null,null,null,"Coincident",42548.760416582205]
[null,null,"Winter/Summer Peaking",null,"Non-Coincident","Winter"]
[null,null,null,null,"Coincident","Winter"]
[null,null,"Adjustments - Embedded generation","MW","Non-Coincident",0]
[null,null,null,null,"Coincident",0]
[null,null,"Weather Corrected MD 10% POE","MW","Non-Coincident",13.6]
[null,null,null,null,"Coincident",0]
[null,null,"Weather Corrected MD 10% POE","MVA","Non-Coincident",13.6]
[null,null,null,null,"Coincident",0]
[null,null,"Weather Corrected MD 50% POE","MW","Non-Coincident",13.1]
[null,null,null,null,"Coincident",0]
[null,null,"Weather Corrected MD 50% POE","MVA","Non-Coincident",13.1]
[null,null,null,null,"Coincident",0]
[null,"Cooma 66 kV","Connection Point Rating","MVA","Non-Coincident",120]
[null,null,null,null,"Coincident",120]
[null,null,"Raw Adjusted MD","MW","Non-Coincident",18.2]
[null,null,null,null,"Coincident",0]
[null,null,"Raw Adjusted MD","MVA","Non-Coincident",18.2]
[null,null,null,null,"Coincident",0]
[null,null,"Date MD occurred",null,"Non-Coincident","2015-07-26T19:29:59.999"]
[null,null,null,null,"Coincident","2016-06-27T18:14:59.993"]
[null,null,"Half hour time period MD occurred",null,"Non-Coincident",42211.81249999399]
[null,null,null,null,"Coincident",42548.760416582205]
[null,null,"Winter/Summer Peaking",null,"Non-Coincident","Winter"]
[null,null,null,null,"Coincident","Winter"]
[null,null,"Adjustments - Embedded generation","MW","Non-Coincident",0]
[null,null,null,null,"Coincident",0]
[null,null,"Weather Corrected MD 10% POE","MW","Non-Coincident",18.7]
[null,null,null,null,"Coincident",0]
[null,null,"Weather Corrected MD 10% POE","MVA","Non-Coincident",18.7]
[null,null,null,null,"Coincident",0]
[null,null,"Weather Corrected MD 50% POE","MW","Non-Coincident",18.100000000000001]
[null,null,null,null,"Coincident",0]
[null,null,"Weather Corrected MD 50% POE","MVA","Non-Coincident",18.100000000000001]
[null,null,null,null,"Coincident",0]
[null,"Cooma 132 kV","Connection Point Rating","MVA","Non-Coincident",267]
[null,null,null,null,"Coincident",267]
[null,null,"Raw Adjusted MD","MW","Non-Coincident",56.4]
[null,null,null,null,"Coincident",27.7]
[null,null,"Raw Adjusted MD","MVA","Non-Coincident",57.6]
[null,null,null,null,"Coincident",30.1]
[null,null,"Date MD occurred",null,"Non-Coincident","2016-05-30T18:14:59.993"]
[null,null,null,null,"Coincident","2016-06-27T18:14:59.993"]
[null,null,"Half hour time period MD occurred",null,"Non-Coincident",42520.760416588724]
[null,null,null,null,"Coincident",42548.760416582205]
[null,null,"Winter/Summer Peaking",null,"Non-Coincident","Winter"]
[null,null,null,null,"Coincident","Winter"]
[null,null,"Adjustments - Embedded generation","MW","Non-Coincident",0]
[null,null,null,null,"Coincident",0]
[null,null,"Weather Corrected MD 10% POE","MW","Non-Coincident",58.1]
[null,null,null,null,"Coincident",28.6]
[null,null,"Weather Corrected MD 10% POE","MVA","Non-Coincident",59.3]
[null,null,null,null,"Coincident",31]
[null,null,"Weather Corrected MD 50% POE","MW","Non-Coincident",56]
[null,null,null,null,"Coincident",26.9]
[null,null,"Weather Corrected MD 50% POE","MVA","Non-Coincident",57.2]
[null,null,null,null,"Coincident",29.1]
[null,"Snowy Adit","Connection Point Rating","MVA","Non-Coincident",15]
[null,null,null,null,"Coincident",15]
[null,null,"Raw Adjusted MD","MW","Non-Coincident",9.1]
[null,null,null,null,"Coincident",4.05]
[null,null,"Raw Adjusted MD","MVA","Non-Coincident",9.1300000000000008]
[null,null,null,null,"Coincident",4]
[null,null,"Date MD occurred",null,"Non-Coincident","2015-07-15T18:00:00"]
[null,null,null,null,"Coincident","2016-06-27T18:14:59.993"]
[null,null,"Half hour time period MD occurred",null,"Non-Coincident",42200.749999996566]
[null,null,null,null,"Coincident",42548.760416582205]
[null,null,"Winter/Summer Peaking",null,"Non-Coincident","Winter"]
[null,null,null,null,"Coincident","Winter"]
[null,null,"Adjustments - Embedded generation","MW","Non-Coincident",0]
[null,null,null,null,"Coincident",0]
[null,null,"Weather Corrected MD 10% POE","MW","Non-Coincident",9.1]
[null,null,null,null,"Coincident",4.05]
[null,null,"Weather Corrected MD 10% POE","MVA","Non-Coincident",9.1300000000000008]
[null,null,null,null,"Coincident",4]
[null,null,"Weather Corrected MD 50% POE","MW","Non-Coincident",9.1]
[null,null,null,null,"Coincident",4.05]
[null,null,"Weather Corrected MD 50% POE","MVA","Non-Coincident",9.1300000000000008]
[null,null,null,null,"Coincident",4]
[null,"Queanbeyan 66 kV","Connection Point Rating","MVA","Non-Coincident",240]
[null,null,null,null,"Coincident",240]
[null,null,"Raw Adjusted MD","MW","Non-Coincident",74.5]
[null,null,null,null,"Coincident",64.7]
[null,null,"Raw Adjusted MD","MVA","Non-Coincident",74.5]
[null,null,null,null,"Coincident",64.7]
[null,null,"Date MD occurred",null,"Non-Coincident","2015-08-12T18:29:59.999"]
[null,null,null,null,"Coincident","2016-06-27T18:14:59.993"]
[null,null,"Half hour time period MD occurred",null,"Non-Coincident",42228.770833323375]
[null,null,null,null,"Coincident",42548.760416582205]
[null,null,"Winter/Summer Peaking",null,"Non-Coincident","Winter"]
[null,null,null,null,"Coincident","Winter"]
[null,null,"Adjustments - Embedded generation","MW","Non-Coincident",0]
[null,null,null,null,"Coincident",0]
[null,null,"Weather Corrected MD 10% POE","MW","Non-Coincident",75.3]
[null,null,null,null,"Coincident",68.599999999999994]
[null,null,"Weather Corrected MD 10% POE","MVA","Non-Coincident",75.3]
[null,null,null,null,"Coincident",68.599999999999994]
[null,null,"Weather Corrected MD 50% POE","MW","Non-Coincident",72.7]
[null,null,null,null,"Coincident",62.4]
[null,null,"Weather Corrected MD 50% POE","MVA","Non-Coincident",72.7]
[null,null,null,null,"Coincident",62.4]
[null,"Queanbeyan 132 kV","Connection Point Rating","MVA","Non-Coincident",80]
[null,null,null,null,"Coincident",80]
[null,null,"Raw Adjusted MD","MW","Non-Coincident",5.12]
[null,null,null,null,"Coincident",4.3]
[null,null,"Raw Adjusted MD","MVA","Non-Coincident",5.12]
[null,null,null,null,"Coincident",4.33]
[null,null,"Date MD occurred",null,"Non-Coincident","2016-06-30T18:44:59.993"]
[null,null,null,null,"Coincident","2016-06-27T18:14:59.993"]
[null,null,"Half hour time period MD occurred",null,"Non-Coincident",42551.781249914835]
[null,null,null,null,"Coincident",42548.760416582205]
[null,null,"Winter/Summer Peaking",null,"Non-Coincident","Winter"]
[null,null,null,null,"Coincident","Winter"]
[null,null,"Adjustments - Embedded generation","MW","Non-Coincident",0]
[null,null,null,null,"Coincident",0]
[null,null,"Weather Corrected MD 10% POE","MW","Non-Coincident",5.17]
[null,null,null,null,"Coincident",4.5599999999999996]
[null,null,"Weather Corrected MD 10% POE","MVA","Non-Coincident",5.18]
[null,null,null,null,"Coincident",4.59]
[null,null,"Weather Corrected MD 50% POE","MW","Non-Coincident",5]
[null,null,null,null,"Coincident",4.1500000000000004]
[null,null,"Weather Corrected MD 50% POE","MVA","Non-Coincident",5]
[null,null,null,null,"Coincident",4.18]
[null,"Canberra ActewAGL","Connection Point Rating","MVA","Non-Coincident",1150]
[null,null,null,null,"Coincident",1150]
[null,null,"Raw Adjusted MD","MW","Non-Coincident",445]
[null,null,null,null,"Coincident",410]
[null,null,"Raw Adjusted MD","MVA","Non-Coincident",445]
[null,null,null,null,"Coincident",410]
[null,null,"Date MD occurred",null,"Non-Coincident","2015-08-12T18:44:59.999"]
[null,null,null,null,"Coincident","2016-06-27T18:14:59.993"]
[null,null,"Half hour time period MD occurred",null,"Non-Coincident",42228.781249990039]
[null,null,null,null,"Coincident",42548.760416582205]
[null,null,"Winter/Summer Peaking",null,"Non-Coincident","Winter"]
[null,null,null,null,"Coincident","Winter"]
[null,null,"Adjustments - Embedded generation","MW","Non-Coincident",0]
[null,null,null,null,"Coincident",0]
[null,null,"Weather Corrected MD 10% POE","MW","Non-Coincident",458]
[null,null,null,null,"Coincident",432]
[null,null,"Weather Corrected MD 10% POE","MVA","Non-Coincident",458]
[null,null,null,null,"Coincident",432]
[null,null,"Weather Corrected MD 50% POE","MW","Non-Coincident",443]
[null,null,null,null,"Coincident",400]
[null,null,"Weather Corrected MD 50% POE","MVA","Non-Coincident",443]
[null,null,null,null,"Coincident",400]
[null,"Williamsdale","Connection Point Rating","MVA","Non-Coincident",750]
[null,null,null,null,"Coincident",750]
[null,null,"Raw Adjusted MD","MW","Non-Coincident",198]
[null,null,null,null,"Coincident",155]
[null,null,"Raw Adjusted MD","MVA","Non-Coincident",198]
[null,null,null,null,"Coincident",155]
[null,null,"Date MD occurred",null,"Non-Coincident","2016-02-25T15:59:59.995"]
[null,null,null,null,"Coincident","2016-06-27T18:14:59.993"]
[null,null,"Half hour time period MD occurred",null,"Non-Coincident",42425.666666610865]
[null,null,null,null,"Coincident",42548.760416582205]
[null,null,"Winter/Summer Peaking",null,"Non-Coincident","Summer"]
[null,null,null,null,"Coincident","Winter"]
[null,null,"Adjustments - Embedded generation","MW","Non-Coincident",0]
[null,null,null,null,"Coincident",0]
[null,null,"Weather Corrected MD 10% POE","MW","Non-Coincident",204]
[null,null,null,null,"Coincident",163]
[null,null,"Weather Corrected MD 10% POE","MVA","Non-Coincident",204]
[null,null,null,null,"Coincident",163]
[null,null,"Weather Corrected MD 50% POE","MW","Non-Coincident",197]
[null,null,null,null,"Coincident",151]
[null,null,"Weather Corrected MD 50% POE","MVA","Non-Coincident",197]
[null,null,null,null,"Coincident",151]
[null,"Marulan","Connection Point Rating","MVA","Non-Coincident",160]
[null,null,null,null,"Coincident",160]
[null,null,"Raw Adjusted MD","MW","Non-Coincident",129]
[null,null,null,null,"Coincident",82.2]
[null,null,"Raw Adjusted MD","MVA","Non-Coincident",129]
[null,null,null,null,"Coincident",82.2]
[null,null,"Date MD occurred",null,"Non-Coincident","2016-06-30T18:14:59.993"]
[null,null,null,null,"Coincident","2016-06-27T18:14:59.993"]
[null,null,"Half hour time period MD occurred",null,"Non-Coincident",42551.760416581506]
[null,null,null,null,"Coincident",42548.760416582205]
[null,null,"Winter/Summer Peaking",null,"Non-Coincident","Winter"]
[null,null,null,null,"Coincident","Winter"]
[null,null,"Adjustments - Embedded generation","MW","Non-Coincident",0]
[null,null,null,null,"Coincident",0]
[null,null,"Weather Corrected MD 10% POE","MW","Non-Coincident",131]
[null,null,null,null,"Coincident",79.400000000000006]
[null,null,"Weather Corrected MD 10% POE","MVA","Non-Coincident",131]
[null,null,null,null,"Coincident",79.400000000000006]
[null,null,"Weather Corrected MD 50% POE","MW","Non-Coincident",128]
[null,null,null,null,"Coincident",75.7]
[null,null,"Weather Corrected MD 50% POE","MVA","Non-Coincident",128]
[null,null,null,null,"Coincident",75.7]
[null,"Dapto","Connection Point Rating","MVA","Non-Coincident",1500]
[null,null,null,null,"Coincident",1500]
[null,null,"Raw Adjusted MD","MW","Non-Coincident",580]
[null,null,null,null,"Coincident",251]
[null,null,"Raw Adjusted MD","MVA","Non-Coincident",582]
[null,null,null,null,"Coincident",258]
[null,null,"Date MD occurred",null,"Non-Coincident","2016-06-26T18:14:59.993"]
[null,null,null,null,"Coincident","2016-06-27T18:14:59.993"]
[null,null,"Half hour time period MD occurred",null,"Non-Coincident",42547.760416582438]
[null,null,null,null,"Coincident",42548.760416582205]
[null,null,"Winter/Summer Peaking",null,"Non-Coincident","Winter"]
[null,null,null,null,"Coincident","Winter"]
[null,null,"Adjustments - Embedded generation","MW","Non-Coincident",0]
[null,null,null,null,"Coincident",0]
[null,null,"Weather Corrected MD 10% POE","MW","Non-Coincident",584]
[null,null,null,null,"Coincident",238]
[null,null,"Weather Corrected MD 10% POE","MVA","Non-Coincident",587]
[null,null,null,null,"Coincident",244]
[null,null,"Weather Corrected MD 50% POE","MW","Non-Coincident",566]
[null,null,null,null,"Coincident",226]
[null,null,"Weather Corrected MD 50% POE","MVA","Non-Coincident",568]
[null,null,null,null,"Coincident",232]
[null,"Yass 132 kV","Connection Point Rating","MVA","Non-Coincident",143]
[null,null,null,null,"Coincident",143]
[null,null,"Raw Adjusted MD","MW","Non-Coincident",45.6]
[null,null,null,null,"Coincident",0]
[null,null,"Raw Adjusted MD","MVA","Non-Coincident",45.8]
[null,null,null,null,"Coincident",2.17]
[null,null,"Date MD occurred",null,"Non-Coincident","2016-06-29T18:59:59.993"]
[null,null,null,null,"Coincident","2016-06-27T18:14:59.993"]
[null,null,"Half hour time period MD occurred",null,"Non-Coincident",42550.791666581732]
[null,null,null,null,"Coincident",42548.760416582205]
[null,null,"Winter/Summer Peaking",null,"Non-Coincident","Winter"]
[null,null,null,null,"Coincident","Winter"]
[null,null,"Adjustments - Embedded generation","MW","Non-Coincident",0]
[null,null,null,null,"Coincident",0]
[null,null,"Weather Corrected MD 10% POE","MW","Non-Coincident",3.06]
[null,null,null,null,"Coincident",0]
[null,null,"Weather Corrected MD 10% POE","MVA","Non-Coincident",3.08]
[null,null,null,null,"Coincident",0]
[null,null,"Weather Corrected MD 50% POE","MW","Non-Coincident",2.61]
[null,null,null,null,"Coincident",0]
[null,null,"Weather Corrected MD 50% POE","MVA","Non-Coincident",2.63]
[null,null,null,null,"Coincident",0]
[null,"Yass 66 kV","Connection Point Rating","MVA","Non-Coincident",30]
[null,null,null,null,"Coincident",30]
[null,null,"Raw Adjusted MD","MW","Non-Coincident",13.6]
[null,null,null,null,"Coincident",12.3]
[null,null,"Raw Adjusted MD","MVA","Non-Coincident",13.9]
[null,null,null,null,"Coincident",12.5]
[null,null,"Date MD occurred",null,"Non-Coincident","2015-08-12T18:59:59.999"]
[null,null,null,null,"Coincident","2016-06-27T18:14:59.993"]
[null,null,"Half hour time period MD occurred",null,"Non-Coincident",42228.791666656703]
[null,null,null,null,"Coincident",42548.760416582205]
[null,null,"Winter/Summer Peaking",null,"Non-Coincident","Winter"]
[null,null,null,null,"Coincident","Winter"]
[null,null,"Adjustments - Embedded generation","MW","Non-Coincident",0]
[null,null,null,null,"Coincident",0]
[null,null,"Weather Corrected MD 10% POE","MW","Non-Coincident",13.2]
[null,null,null,null,"Coincident",13]
[null,null,"Weather Corrected MD 10% POE","MVA","Non-Coincident",13.4]
[null,null,null,null,"Coincident",13.2]
[null,null,"Weather Corrected MD 50% POE","MW","Non-Coincident",12.7]
[null,null,null,null,"Coincident",11.8]
[null,null,"Weather Corrected MD 50% POE","MVA","Non-Coincident",12.9]
[null,null,null,null,"Coincident",12]
[null,"Albury","Connection Point Rating","MVA","Non-Coincident",396]
[null,null,null,null,"Coincident",406]
[null,null,"Raw Adjusted MD","MW","Non-Coincident",123]
[null,null,null,null,"Coincident",77]
[null,null,"Raw Adjusted MD","MVA","Non-Coincident",123]
[null,null,null,null,"Coincident",77]
[null,null,"Date MD occurred",null,"Non-Coincident","2016-02-24T19:14:59.995"]
[null,null,null,null,"Coincident","2016-06-27T18:14:59.993"]
[null,null,"Half hour time period MD occurred",null,"Non-Coincident",42424.802083277733]
[null,null,null,null,"Coincident",42548.760416582205]
[null,null,"Winter/Summer Peaking",null,"Non-Coincident","Summer"]
[null,null,null,null,"Coincident","Winter"]
[null,null,"Adjustments - Embedded generation","MW","Non-Coincident",0]
[null,null,null,null,"Coincident",0]
[null,null,"Weather Corrected MD 10% POE","MW","Non-Coincident",128]
[null,null,null,null,"Coincident",84.2]
[null,null,"Weather Corrected MD 10% POE","MVA","Non-Coincident",128]
[null,null,null,null,"Coincident",84.2]
[null,null,"Weather Corrected MD 50% POE","MW","Non-Coincident",124]
[null,null,null,null,"Coincident",77.2]
[null,null,"Weather Corrected MD 50% POE","MVA","Non-Coincident",124]
[null,null,null,null,"Coincident",77.2]
[null,"ANM","Connection Point Rating","MVA","Non-Coincident"]
[null,null,null,null,"Coincident"]
[null,null,"Raw Adjusted MD","MW","Non-Coincident"]
[null,null,null,null,"Coincident"]
[null,null,"Raw Adjusted MD","MVA","Non-Coincident"]
[null,null,null,null,"Coincident"]
[null,null,"Date MD occurred",null,"Non-Coincident"]
[null,null,null,null,"Coincident"]
[null,null,"Half hour time period MD occurred",null,"Non-Coincident"]
[null,null,null,null,"Coincident"]
[null,null,"Winter/Summer Peaking",null,"Non-Coincident"]
[null,null,null,null,"Coincident"]
[null,null,"Adjustments - Embedded generation","MW","Non-Coincident"]
[null,null,null,null,"Coincident"]
[null,null,"Weather Corrected MD 10% POE","MW","Non-Coincident"]
[null,null,null,null,"Coincident"]
[null,null,"Weather Corrected MD 10% POE","MVA","Non-Coincident"]
[null,null,null,null,"Coincident"]
[null,null,"Weather Corrected MD 50% POE","MW","Non-Coincident"]
[null,null,null,null,"Coincident"]
[null,null,"Weather Corrected MD 50% POE","MVA","Non-Coincident"]
[null,null,null,null,"Coincident"]
[null,"Balranald","Connection Point Rating","MVA","Non-Coincident",30]
[null,null,null,null,"Coincident",30]
[null,null,"Raw Adjusted MD","MW","Non-Coincident",3.68]
[null,null,null,null,"Coincident",2.11]
[null,null,"Raw Adjusted MD","MVA","Non-Coincident",3.72]
[null,null,null,null,"Coincident",2.14]
[null,null,"Date MD occurred",null,"Non-Coincident","2016-02-23T17:44:59.995"]
[null,null,null,null,"Coincident","2016-06-27T18:14:59.993"]
[null,null,"Half hour time period MD occurred",null,"Non-Coincident",42423.73958327798]
[null,null,null,null,"Coincident",42548.760416582205]
[null,null,"Winter/Summer Peaking",null,"Non-Coincident","Summer"]
[null,null,null,null,"Coincident","Winter"]
[null,null,"Adjustments - Embedded generation","MW","Non-Coincident",0]
[null,null,null,null,"Coincident",0]
[null,null,"Weather Corrected MD 10% POE","MW","Non-Coincident",3.18]
[null,null,null,null,"Coincident",2.36]
[null,null,"Weather Corrected MD 10% POE","MVA","Non-Coincident",3.21]
[null,null,null,null,"Coincident",2.39]
[null,null,"Weather Corrected MD 50% POE","MW","Non-Coincident",3.07]
[null,null,null,null,"Coincident",2.2000000000000002]
[null,null,"Weather Corrected MD 50% POE","MVA","Non-Coincident",3.1]
[null,null,null,null,"Coincident",2.23]
[null,"Coleambally","Connection Point Rating","MVA","Non-Coincident",50]
[null,null,null,null,"Coincident",50]
[null,null,"Raw Adjusted MD","MW","Non-Coincident",12]
[null,null,null,null,"Coincident",3.64]
[null,null,"Raw Adjusted MD","MVA","Non-Coincident",13.1]
[null,null,null,null,"Coincident",3.64]
[null,null,"Date MD occurred",null,"Non-Coincident","2016-01-13T11:29:59.996"]
[null,null,null,null,"Coincident","2016-06-27T18:14:59.993"]
[null,null,"Half hour time period MD occurred",null,"Non-Coincident",42382.47916662092]
[null,null,null,null,"Coincident",42548.760416582205]
[null,null,"Winter/Summer Peaking",null,"Non-Coincident","Summer"]
[null,null,null,null,"Coincident","Winter"]
[null,null,"Adjustments - Embedded generation","MW","Non-Coincident",0]
[null,null,null,null,"Coincident",0]
[null,null,"Weather Corrected MD 10% POE","MW","Non-Coincident",13]
[null,null,null,null,"Coincident",3.94]
[null,null,"Weather Corrected MD 10% POE","MVA","Non-Coincident",14.2]
[null,null,null,null,"Coincident",3.94]
[null,null,"Weather Corrected MD 50% POE","MW","Non-Coincident",12]
[null,null,null,null,"Coincident",3.56]
[null,null,"Weather Corrected MD 50% POE","MVA","Non-Coincident",13.1]
[null,null,null,null,"Coincident",3.56]
[null,"Darlington Point","Connection Point Rating","MVA","Non-Coincident",560]
[null,null,null,null,"Coincident",560]
[null,null,"Raw Adjusted MD","MW","Non-Coincident",21.3]
[null,null,null,null,"Coincident",19.899999999999999]
[null,null,"Raw Adjusted MD","MVA","Non-Coincident",23.9]
[null,null,null,null,"Coincident",23.6]
[null,null,"Date MD occurred",null,"Non-Coincident","2016-01-13T18:29:59.996"]
[null,null,null,null,"Coincident","2016-06-27T18:14:59.993"]
[null,null,"Half hour time period MD occurred",null,"Non-Coincident",42382.770833287519]
[null,null,null,null,"Coincident",42548.760416582205]
[null,null,"Winter/Summer Peaking",null,"Non-Coincident","Summer"]
[null,null,null,null,"Coincident","Winter"]
[null,null,"Adjustments - Embedded generation","MW","Non-Coincident",0]
[null,null,null,null,"Coincident",0]
[null,null,"Weather Corrected MD 10% POE","MW","Non-Coincident",20.100000000000001]
[null,null,null,null,"Coincident",20.2]
[null,null,"Weather Corrected MD 10% POE","MVA","Non-Coincident",22.6]
[null,null,null,null,"Coincident",24.1]
[null,null,"Weather Corrected MD 50% POE","MW","Non-Coincident",19.100000000000001]
[null,null,null,null,"Coincident",18.600000000000001]
[null,null,"Weather Corrected MD 50% POE","MVA","Non-Coincident",21.4]
[null,null,null,null,"Coincident",22.1]
[null,"Deniliquin","Connection Point Rating","MVA","Non-Coincident",120]
[null,null,null,null,"Coincident",120]
[null,null,"Raw Adjusted MD","MW","Non-Coincident",47.6]
[null,null,null,null,"Coincident",29]
[null,null,"Raw Adjusted MD","MVA","Non-Coincident",47.7]
[null,null,null,null,"Coincident",29]
[null,null,"Date MD occurred",null,"Non-Coincident","2016-01-13T17:14:59.996"]
[null,null,null,null,"Coincident","2016-06-27T18:14:59.993"]
[null,null,"Half hour time period MD occurred",null,"Non-Coincident",42382.718749954198]
[null,null,null,null,"Coincident",42548.760416582205]
[null,null,"Winter/Summer Peaking",null,"Non-Coincident","Summer"]
[null,null,null,null,"Coincident","Winter"]
[null,null,"Adjustments - Embedded generation","MW","Non-Coincident",0]
[null,null,null,null,"Coincident",0]
[null,null,"Weather Corrected MD 10% POE","MW","Non-Coincident",44.9]
[null,null,null,null,"Coincident",30.5]
[null,null,"Weather Corrected MD 10% POE","MVA","Non-Coincident",45]
[null,null,null,null,"Coincident",30.6]
[null,null,"Weather Corrected MD 50% POE","MW","Non-Coincident",43.5]
[null,null,null,null,"Coincident",28.1]
[null,null,"Weather Corrected MD 50% POE","MVA","Non-Coincident",43.6]
[null,null,null,null,"Coincident",28.1]
[null,"Finley 132 kV","Connection Point Rating","MVA","Non-Coincident",140]
[null,null,null,null,"Coincident",184]
[null,null,"Raw Adjusted MD","MW","Non-Coincident",24.6]
[null,null,null,null,"Coincident",6.51]
[null,null,"Raw Adjusted MD","MVA","Non-Coincident",26.6]
[null,null,null,null,"Coincident",6.73]
[null,null,"Date MD occurred",null,"Non-Coincident","2015-11-09T15:14:59.997"]
[null,null,null,null,"Coincident","2016-06-27T18:14:59.993"]
[null,null,"Half hour time period MD occurred",null,"Non-Coincident",42317.635416636018]
[null,null,null,null,"Coincident",42548.760416582205]
[null,null,"Winter/Summer Peaking",null,"Non-Coincident","Summer"]
[null,null,null,null,"Coincident","Winter"]
[null,null,"Adjustments - Embedded generation","MW","Non-Coincident",0]
[null,null,null,null,"Coincident",0]
[null,null,"Weather Corrected MD 10% POE","MW","Non-Coincident",25.6]
[null,null,null,null,"Coincident",7.12]
[null,null,"Weather Corrected MD 10% POE","MVA","Non-Coincident",27.8]
[null,null,null,null,"Coincident",7.36]
[null,null,"Weather Corrected MD 50% POE","MW","Non-Coincident",24.9]
[null,null,null,null,"Coincident",6.52]
[null,null,"Weather Corrected MD 50% POE","MVA","Non-Coincident",27]
[null,null,null,null,"Coincident",6.75]
[null,"Finley 66 kV","Connection Point Rating","MVA","Non-Coincident",120]
[null,null,null,null,"Coincident",120]
[null,null,"Raw Adjusted MD","MW","Non-Coincident",38.5]
[null,null,null,null,"Coincident",18]
[null,null,"Raw Adjusted MD","MVA","Non-Coincident",38.6]
[null,null,null,null,"Coincident",18]
[null,null,"Date MD occurred",null,"Non-Coincident","2015-11-19T16:44:59.997"]
[null,null,null,null,"Coincident","2016-06-27T18:14:59.993"]
[null,null,"Half hour time period MD occurred",null,"Non-Coincident",42327.697916633675]
[null,null,null,null,"Coincident",42548.760416582205]
[null,null,"Winter/Summer Peaking",null,"Non-Coincident","Summer"]
[null,null,null,null,"Coincident","Winter"]
[null,null,"Adjustments - Embedded generation","MW","Non-Coincident",0]
[null,null,null,null,"Coincident",0]
[null,null,"Weather Corrected MD 10% POE","MW","Non-Coincident",40.200000000000003]
[null,null,null,null,"Coincident",19.7]
[null,null,"Weather Corrected MD 10% POE","MVA","Non-Coincident",40.200000000000003]
[null,null,null,null,"Coincident",19.7]
[null,null,"Weather Corrected MD 50% POE","MW","Non-Coincident",39]
[null,null,null,null,"Coincident",18]
[null,null,"Weather Corrected MD 50% POE","MVA","Non-Coincident",39.1]
[null,null,null,null,"Coincident",18]
[null,"Gadara","Connection Point Rating","MVA","Non-Coincident"]
[null,null,null,null,"Coincident"]
[null,null,"Raw Adjusted MD","MW","Non-Coincident"]
[null,null,null,null,"Coincident"]
[null,null,"Raw Adjusted MD","MVA","Non-Coincident"]
[null,null,null,null,"Coincident"]
[null,null,"Date MD occurred",null,"Non-Coincident"]
[null,null,null,null,"Coincident"]
[null,null,"Half hour time period MD occurred",null,"Non-Coincident"]
[null,null,null,null,"Coincident"]
[null,null,"Winter/Summer Peaking",null,"Non-Coincident"]
[null,null,null,null,"Coincident"]
[null,null,"Adjustments - Embedded generation","MW","Non-Coincident"]
[null,null,null,null,"Coincident"]
[null,null,"Weather Corrected MD 10% POE","MW","Non-Coincident"]
[null,null,null,null,"Coincident"]
[null,null,"Weather Corrected MD 10% POE","MVA","Non-Coincident"]
[null,null,null,null,"Coincident"]
[null,null,"Weather Corrected MD 50% POE","MW","Non-Coincident"]
[null,null,null,null,"Coincident"]
[null,null,"Weather Corrected MD 50% POE","MVA","Non-Coincident"]
[null,null,null,null,"Coincident"]
[null,"Griffith","Connection Point Rating","MVA","Non-Coincident",180]
[null,null,null,null,"Coincident",180]
[null,null,"Raw Adjusted MD","MW","Non-Coincident",86.1]
[null,null,null,null,"Coincident",47.9]
[null,null,"Raw Adjusted MD","MVA","Non-Coincident",86.7]
[null,null,null,null,"Coincident",48.2]
[null,null,"Date MD occurred",null,"Non-Coincident","2016-02-24T17:29:59.995"]
[null,null,null,null,"Coincident","2016-06-27T18:14:59.993"]
[null,null,"Half hour time period MD occurred",null,"Non-Coincident",42424.729166611083]
[null,null,null,null,"Coincident",42548.760416582205]
[null,null,"Winter/Summer Peaking",null,"Non-Coincident","Summer"]
[null,null,null,null,"Coincident","Winter"]
[null,null,"Adjustments - Embedded generation","MW","Non-Coincident",0]
[null,null,null,null,"Coincident",0]
[null,null,"Weather Corrected MD 10% POE","MW","Non-Coincident",87.6]
[null,null,null,null,"Coincident",51.4]
[null,null,"Weather Corrected MD 10% POE","MVA","Non-Coincident",88.2]
[null,null,null,null,"Coincident",51.8]
[null,null,"Weather Corrected MD 50% POE","MW","Non-Coincident",84.7]
[null,null,null,null,"Coincident",47.2]
[null,null,"Weather Corrected MD 50% POE","MVA","Non-Coincident",85.2]
[null,null,null,null,"Coincident",47.5]
[null,"Murrumburrah","Connection Point Rating","MVA","Non-Coincident",120]
[null,null,null,null,"Coincident",120]
[null,null,"Raw Adjusted MD","MW","Non-Coincident",39.200000000000003]
[null,null,null,null,"Coincident",34.700000000000003]
[null,null,"Raw Adjusted MD","MVA","Non-Coincident",39.200000000000003]
[null,null,null,null,"Coincident",34.700000000000003]
[null,null,"Date MD occurred",null,"Non-Coincident","2016-01-13T17:44:59.996"]
[null,null,null,null,"Coincident","2016-06-27T18:14:59.993"]
[null,null,"Half hour time period MD occurred",null,"Non-Coincident",42382.739583287526]
[null,null,null,null,"Coincident",42548.760416582205]
[null,null,"Winter/Summer Peaking",null,"Non-Coincident","Summer"]
[null,null,null,null,"Coincident","Winter"]
[null,null,"Adjustments - Embedded generation","MW","Non-Coincident",0]
[null,null,null,null,"Coincident",0]
[null,null,"Weather Corrected MD 10% POE","MW","Non-Coincident",38.799999999999997]
[null,null,null,null,"Coincident",39.700000000000003]
[null,null,"Weather Corrected MD 10% POE","MVA","Non-Coincident",38.799999999999997]
[null,null,null,null,"Coincident",39.700000000000003]
[null,null,"Weather Corrected MD 50% POE","MW","Non-Coincident",37.5]
[null,null,null,null,"Coincident",36.4]
[null,null,"Weather Corrected MD 50% POE","MVA","Non-Coincident",37.5]
[null,null,null,null,"Coincident",36.4]
[null,"Tumut","Connection Point Rating","MVA","Non-Coincident",120]
[null,null,null,null,"Coincident",120]
[null,null,"Raw Adjusted MD","MW","Non-Coincident",31.4]
[null,null,null,null,"Coincident",18.5]
[null,null,"Raw Adjusted MD","MVA","Non-Coincident",31.7]
[null,null,null,null,"Coincident",20.8]
[null,null,"Date MD occurred",null,"Non-Coincident","2015-07-08T23:15:00"]
[null,null,null,null,"Coincident","2016-06-27T18:14:59.993"]
[null,null,"Half hour time period MD occurred",null,"Non-Coincident",42193.968749998145]
[null,null,null,null,"Coincident",42548.760416582205]
[null,null,"Winter/Summer Peaking",null,"Non-Coincident","Winter"]
[null,null,null,null,"Coincident","Winter"]
[null,null,"Adjustments - Embedded generation","MW","Non-Coincident",0]
[null,null,null,null,"Coincident",0]
[null,null,"Weather Corrected MD 10% POE","MW","Non-Coincident",31.4]
[null,null,null,null,"Coincident",19.100000000000001]
[null,null,"Weather Corrected MD 10% POE","MVA","Non-Coincident",31.7]
[null,null,null,null,"Coincident",21.5]
[null,null,"Weather Corrected MD 50% POE","MW","Non-Coincident",30.5]
[null,null,null,null,"Coincident",18]
[null,null,"Weather Corrected MD 50% POE","MVA","Non-Coincident",30.8]
[null,null,null,null,"Coincident",20.3]
[null,"Morven","Connection Point Rating","MVA","Non-Coincident",30]
[null,null,null,null,"Coincident",30]
[null,null,"Raw Adjusted MD","MW","Non-Coincident",9.07]
[null,null,null,null,"Coincident",5.62]
[null,null,"Raw Adjusted MD","MVA","Non-Coincident",9.07]
[null,null,null,null,"Coincident",5.62]
[null,null,"Date MD occurred",null,"Non-Coincident","2015-08-03T09:14:59.999"]
[null,null,null,null,"Coincident","2016-06-27T18:14:59.993"]
[null,null,"Half hour time period MD occurred",null,"Non-Coincident",42219.385416658894]
[null,null,null,null,"Coincident",42548.760416582205]
[null,null,"Winter/Summer Peaking",null,"Non-Coincident","Winter"]
[null,null,null,null,"Coincident","Winter"]
[null,null,"Adjustments - Embedded generation","MW","Non-Coincident",0]
[null,null,null,null,"Coincident",0]
[null,null,"Weather Corrected MD 10% POE","MW","Non-Coincident",6.15]
[null,null,null,null,"Coincident",5.53]
[null,null,"Weather Corrected MD 10% POE","MVA","Non-Coincident",6.15]
[null,null,null,null,"Coincident",5.53]
[null,null,"Weather Corrected MD 50% POE","MW","Non-Coincident",5.84]
[null,null,null,null,"Coincident",5.13]
[null,null,"Weather Corrected MD 50% POE","MVA","Non-Coincident",5.84]
[null,null,null,null,"Coincident",5.13]
[null,"Wagga 66 kV","Connection Point Rating","MVA","Non-Coincident",180]
[null,null,null,null,"Coincident",180]
[null,null,"Raw Adjusted MD","MW","Non-Coincident",98.8]
[null,null,null,null,"Coincident",72.400000000000006]
[null,null,"Raw Adjusted MD","MVA","Non-Coincident",98.8]
[null,null,null,null,"Coincident",72.400000000000006]
[null,null,"Date MD occurred",null,"Non-Coincident","2016-02-24T17:44:59.995"]
[null,null,null,null,"Coincident","2016-06-27T18:14:59.993"]
[null,null,"Half hour time period MD occurred",null,"Non-Coincident",42424.739583277747]
[null,null,null,null,"Coincident",42548.760416582205]
[null,null,"Winter/Summer Peaking",null,"Non-Coincident","Summer"]
[null,null,null,null,"Coincident","Winter"]
[null,null,"Adjustments - Embedded generation","MW","Non-Coincident",0]
[null,null,null,null,"Coincident",0]
[null,null,"Weather Corrected MD 10% POE","MW","Non-Coincident",101]
[null,null,null,null,"Coincident",76.8]
[null,null,"Weather Corrected MD 10% POE","MVA","Non-Coincident",101]
[null,null,null,null,"Coincident",76.8]
[null,null,"Weather Corrected MD 50% POE","MW","Non-Coincident",97]
[null,null,null,null,"Coincident",71.099999999999994]
[null,null,"Weather Corrected MD 50% POE","MVA","Non-Coincident",97]
[null,null,null,null,"Coincident",71.099999999999994]
[null,"Wagga Nth 66","Connection Point Rating","MVA","Non-Coincident",60]
[null,null,null,null,"Coincident",60]
[null,null,"Raw Adjusted MD","MW","Non-Coincident",34.9]
[null,null,null,null,"Coincident",10.4]
[null,null,"Raw Adjusted MD","MVA","Non-Coincident",35.6]
[null,null,null,null,"Coincident",10.4]
[null,null,"Date MD occurred",null,"Non-Coincident","2015-07-10T09:30:00"]
[null,null,null,null,"Coincident","2016-06-27T18:14:59.993"]
[null,null,"Half hour time period MD occurred",null,"Non-Coincident",42195.395833331146]
[null,null,null,null,"Coincident",42548.760416582205]
[null,null,"Winter/Summer Peaking",null,"Non-Coincident","Winter"]
[null,null,null,null,"Coincident","Winter"]
[null,null,"Adjustments - Embedded generation","MW","Non-Coincident",0]
[null,null,null,null,"Coincident",0]
[null,null,"Weather Corrected MD 10% POE","MW","Non-Coincident",19.5]
[null,null,null,null,"Coincident",8.1300000000000008]
[null,null,"Weather Corrected MD 10% POE","MVA","Non-Coincident",19.899999999999999]
[null,null,null,null,"Coincident",8.14]
[null,null,"Weather Corrected MD 50% POE","MW","Non-Coincident",18.100000000000001]
[null,null,null,null,"Coincident",7.41]
[null,null,"Weather Corrected MD 50% POE","MVA","Non-Coincident",18.5]
[null,null,null,null,"Coincident",7.41]
[null,"Wagga Nth 132 kV","Connection Point Rating","MVA","Non-Coincident",112]
[null,null,null,null,"Coincident",112]
[null,null,"Raw Adjusted MD","MW","Non-Coincident",76]
[null,null,null,null,"Coincident",57]
[null,null,"Raw Adjusted MD","MVA","Non-Coincident",76.599999999999994]
[null,null,null,null,"Coincident",57.2]
[null,null,"Date MD occurred",null,"Non-Coincident","2016-02-24T18:14:59.995"]
[null,null,null,null,"Coincident","2016-06-27T18:14:59.993"]
[null,null,"Half hour time period MD occurred",null,"Non-Coincident",42424.760416611076]
[null,null,null,null,"Coincident",42548.760416582205]
[null,null,"Winter/Summer Peaking",null,"Non-Coincident","Summer"]
[null,null,null,null,"Coincident","Winter"]
[null,null,"Adjustments - Embedded generation","MW","Non-Coincident",0]
[null,null,null,null,"Coincident",0]
[null,null,"Weather Corrected MD 10% POE","MW","Non-Coincident",82.9]
[null,null,null,null,"Coincident",47.9]
[null,null,"Weather Corrected MD 10% POE","MVA","Non-Coincident",83.5]
[null,null,null,null,"Coincident",48]
[null,null,"Weather Corrected MD 50% POE","MW","Non-Coincident",82.2]
[null,null,null,null,"Coincident",46.2]
[null,null,"Weather Corrected MD 50% POE","MVA","Non-Coincident",82.8]
[null,null,null,null,"Coincident",46.3]
[null,"Yanco","Connection Point Rating","MVA","Non-Coincident",120]
[null,null,null,null,"Coincident",120]
[null,null,"Raw Adjusted MD","MW","Non-Coincident",38.5]
[null,null,null,null,"Coincident",29.9]
[null,null,"Raw Adjusted MD","MVA","Non-Coincident",41]
[null,null,null,null,"Coincident",30.5]
[null,null,"Date MD occurred",null,"Non-Coincident","2015-12-19T17:59:59.997"]
[null,null,null,null,"Coincident","2016-06-27T18:14:59.993"]
[null,null,"Half hour time period MD occurred",null,"Non-Coincident",42357.749999960011]
[null,null,null,null,"Coincident",42548.760416582205]
[null,null,"Winter/Summer Peaking",null,"Non-Coincident","Summer"]
[null,null,null,null,"Coincident","Winter"]
[null,null,"Adjustments - Embedded generation","MW","Non-Coincident",0]
[null,null,null,null,"Coincident",0]
[null,null,"Weather Corrected MD 10% POE","MW","Non-Coincident",40.799999999999997]
[null,null,null,null,"Coincident",33.299999999999997]
[null,null,"Weather Corrected MD 10% POE","MVA","Non-Coincident",43.5]
[null,null,null,null,"Coincident",33.9]
[null,null,"Weather Corrected MD 50% POE","MW","Non-Coincident",39.4]
[null,null,null,null,"Coincident",31.1]
[null,null,"Weather Corrected MD 50% POE","MVA","Non-Coincident",41.9]
[null,null,null,null,"Coincident",31.7]
[null,"Beaconsfield","Connection Point Rating","MVA","Non-Coincident",1125]
[null,null,null,null,"Coincident",1125]
[null,null,"Raw Adjusted MD","MW","Non-Coincident",551]
[null,null,null,null,"Coincident",319]
[null,null,"Raw Adjusted MD","MVA","Non-Coincident",551]
[null,null,null,null,"Coincident",319]
[null,null,"Date MD occurred",null,"Non-Coincident","2015-08-10T18:44:59.999"]
[null,null,null,null,"Coincident","2016-06-27T18:14:59.993"]
[null,null,"Half hour time period MD occurred",null,"Non-Coincident",42226.781249990505]
[null,null,null,null,"Coincident",42548.760416582205]
[null,null,"Winter/Summer Peaking",null,"Non-Coincident","Winter"]
[null,null,null,null,"Coincident","Winter"]
[null,null,"Adjustments - Embedded generation","MW","Non-Coincident",0]
[null,null,null,null,"Coincident",0]
[null,null,"Weather Corrected MD 10% POE","MW","Non-Coincident",569]
[null,null,null,null,"Coincident",317]
[null,null,"Weather Corrected MD 10% POE","MVA","Non-Coincident",569]
[null,null,null,null,"Coincident",317]
[null,null,"Weather Corrected MD 50% POE","MW","Non-Coincident",548]
[null,null,null,null,"Coincident",300]
[null,null,"Weather Corrected MD 50% POE","MVA","Non-Coincident",548]
[null,null,null,null,"Coincident",300]
[null,"Haymarket","Connection Point Rating","MVA","Non-Coincident",1200]
[null,null,null,null,"Coincident",1200]
[null,null,"Raw Adjusted MD","MW","Non-Coincident",624]
[null,null,null,null,"Coincident",466]
[null,null,"Raw Adjusted MD","MVA","Non-Coincident",653]
[null,null,null,null,"Coincident",471]
[null,null,"Date MD occurred",null,"Non-Coincident","2015-11-20T15:59:59.997"]
[null,null,null,null,"Coincident","2016-06-27T18:14:59.993"]
[null,null,"Half hour time period MD occurred",null,"Non-Coincident",42328.666666633449]
[null,null,null,null,"Coincident",42548.760416582205]
[null,null,"Winter/Summer Peaking",null,"Non-Coincident","Summer"]
[null,null,null,null,"Coincident","Winter"]
[null,null,"Adjustments - Embedded generation","MW","Non-Coincident",0]
[null,null,null,null,"Coincident",0]
[null,null,"Weather Corrected MD 10% POE","MW","Non-Coincident",645]
[null,null,null,null,"Coincident",462]
[null,null,"Weather Corrected MD 10% POE","MVA","Non-Coincident",674]
[null,null,null,null,"Coincident",467]
[null,null,"Weather Corrected MD 50% POE","MW","Non-Coincident",621]
[null,null,null,null,"Coincident",438]
[null,null,"Weather Corrected MD 50% POE","MVA","Non-Coincident",650]
[null,null,null,null,"Coincident",443]
[null,"Ingleburn","Connection Point Rating","MVA","Non-Coincident",500]
[null,null,null,null,"Coincident",500]
[null,null,"Raw Adjusted MD","MW","Non-Coincident",128]
[null,null,null,null,"Coincident",111]
[null,null,"Raw Adjusted MD","MVA","Non-Coincident",136]
[null,null,null,null,"Coincident",113]
[null,null,"Date MD occurred",null,"Non-Coincident","2016-02-25T16:29:59.995"]
[null,null,null,null,"Coincident","2016-06-27T18:14:59.993"]
[null,null,"Half hour time period MD occurred",null,"Non-Coincident",42425.687499944193]
[null,null,null,null,"Coincident",42548.760416582205]
[null,null,"Winter/Summer Peaking",null,"Non-Coincident","Summer"]
[null,null,null,null,"Coincident","Winter"]
[null,null,"Adjustments - Embedded generation","MW","Non-Coincident",0]
[null,null,null,null,"Coincident",0]
[null,null,"Weather Corrected MD 10% POE","MW","Non-Coincident",132]
[null,null,null,null,"Coincident",116]
[null,null,"Weather Corrected MD 10% POE","MVA","Non-Coincident",141]
[null,null,null,null,"Coincident",118]
[null,null,"Weather Corrected MD 50% POE","MW","Non-Coincident",127]
[null,null,null,null,"Coincident",107]
[null,null,"Weather Corrected MD 50% POE","MVA","Non-Coincident",135]
[null,null,null,null,"Coincident",109]
[null,"Liverpool","Connection Point Rating","MVA","Non-Coincident",1125]
[null,null,null,null,"Coincident",1125]
[null,null,"Raw Adjusted MD","MW","Non-Coincident",398]
[null,null,null,null,"Coincident",302]
[null,null,"Raw Adjusted MD","MVA","Non-Coincident",408]
[null,null,null,null,"Coincident",308]
[null,null,"Date MD occurred",null,"Non-Coincident","2016-03-14T14:29:59.995"]
[null,null,null,null,"Coincident","2016-06-27T18:14:59.993"]
[null,null,"Half hour time period MD occurred",null,"Non-Coincident",42443.604166606689]
[null,null,null,null,"Coincident",42548.760416582205]
[null,null,"Winter/Summer Peaking",null,"Non-Coincident","Summer"]
[null,null,null,null,"Coincident","Winter"]
[null,null,"Adjustments - Embedded generation","MW","Non-Coincident",0]
[null,null,null,null,"Coincident",0]
[null,null,"Weather Corrected MD 10% POE","MW","Non-Coincident",411]
[null,null,null,null,"Coincident",316]
[null,null,"Weather Corrected MD 10% POE","MVA","Non-Coincident",421]
[null,null,null,null,"Coincident",322]
[null,null,"Weather Corrected MD 50% POE","MW","Non-Coincident",395]
[null,null,null,null,"Coincident",290]
[null,null,"Weather Corrected MD 50% POE","MVA","Non-Coincident",404]
[null,null,null,null,"Coincident",297]
[null,"Macarthur 66","Connection Point Rating","MVA","Non-Coincident",250]
[null,null,null,null,"Coincident",250]
[null,null,"Raw Adjusted MD","MW","Non-Coincident",171]
[null,null,null,null,"Coincident",112]
[null,null,"Raw Adjusted MD","MVA","Non-Coincident",172]
[null,null,null,null,"Coincident",113]
[null,null,"Date MD occurred",null,"Non-Coincident","2016-02-25T17:44:59.995"]
[null,null,null,null,"Coincident","2016-06-27T18:14:59.993"]
[null,null,"Half hour time period MD occurred",null,"Non-Coincident",42425.739583277515]
[null,null,null,null,"Coincident",42548.760416582205]
[null,null,"Winter/Summer Peaking",null,"Non-Coincident","Summer"]
[null,null,null,null,"Coincident","Winter"]
[null,null,"Adjustments - Embedded generation","MW","Non-Coincident",0]
[null,null,null,null,"Coincident",0]
[null,null,"Weather Corrected MD 10% POE","MW","Non-Coincident",177]
[null,null,null,null,"Coincident",117]
[null,null,"Weather Corrected MD 10% POE","MVA","Non-Coincident",178]
[null,null,null,null,"Coincident",118]
[null,null,"Weather Corrected MD 50% POE","MW","Non-Coincident",170]
[null,null,null,null,"Coincident",108]
[null,null,"Weather Corrected MD 50% POE","MVA","Non-Coincident",171]
[null,null,null,null,"Coincident",109]
[null,"Macarthur 132","Connection Point Rating","MVA","Non-Coincident",375]
[null,null,null,null,"Coincident",375]
[null,null,"Raw Adjusted MD","MW","Non-Coincident",256]
[null,null,null,null,"Coincident",109]
[null,null,"Raw Adjusted MD","MVA","Non-Coincident",261]
[null,null,null,null,"Coincident",110]
[null,null,"Date MD occurred",null,"Non-Coincident","2016-03-09T14:14:59.995"]
[null,null,null,null,"Coincident","2016-06-27T18:14:59.993"]
[null,null,"Half hour time period MD occurred",null,"Non-Coincident",42438.593749941188]
[null,null,null,null,"Coincident",42548.760416582205]
[null,null,"Winter/Summer Peaking",null,"Non-Coincident","Summer"]
[null,null,null,null,"Coincident","Winter"]
[null,null,"Adjustments - Embedded generation","MW","Non-Coincident",0]
[null,null,null,null,"Coincident",0]
[null,null,"Weather Corrected MD 10% POE","MW","Non-Coincident",264]
[null,null,null,null,"Coincident",114]
[null,null,"Weather Corrected MD 10% POE","MVA","Non-Coincident",269]
[null,null,null,null,"Coincident",115]
[null,null,"Weather Corrected MD 50% POE","MW","Non-Coincident",254]
[null,null,null,null,"Coincident",105]
[null,null,"Weather Corrected MD 50% POE","MVA","Non-Coincident",259]
[null,null,null,null,"Coincident",106]
[null,"Regentville","Connection Point Rating","MVA","Non-Coincident",750]
[null,null,null,null,"Coincident",750]
[null,null,"Raw Adjusted MD","MW","Non-Coincident",395]
[null,null,null,null,"Coincident",208]
[null,null,"Raw Adjusted MD","MVA","Non-Coincident",395]
[null,null,null,null,"Coincident",208]
[null,null,"Date MD occurred",null,"Non-Coincident","2016-02-25T16:29:59.995"]
[null,null,null,null,"Coincident","2016-06-27T18:14:59.993"]
[null,null,"Half hour time period MD occurred",null,"Non-Coincident",42425.687499944193]
[null,null,null,null,"Coincident",42548.760416582205]
[null,null,"Winter/Summer Peaking",null,"Non-Coincident","Summer"]
[null,null,null,null,"Coincident","Winter"]
[null,null,"Adjustments - Embedded generation","MW","Non-Coincident",0]
[null,null,null,null,"Coincident",0]
[null,null,"Weather Corrected MD 10% POE","MW","Non-Coincident",408]
[null,null,null,null,"Coincident",218]
[null,null,"Weather Corrected MD 10% POE","MVA","Non-Coincident",408]
[null,null,null,null,"Coincident",218]
[null,null,"Weather Corrected MD 50% POE","MW","Non-Coincident",392]
[null,null,null,null,"Coincident",200]
[null,null,"Weather Corrected MD 50% POE","MVA","Non-Coincident",392]
[null,null,null,null,"Coincident",200]
[null,"Sydney East","Connection Point Rating","MVA","Non-Coincident",1575]
[null,null,null,null,"Coincident",1575]
[null,null,"Raw Adjusted MD","MW","Non-Coincident",772]
[null,null,null,null,"Coincident",743]
[null,null,"Raw Adjusted MD","MVA","Non-Coincident",773]
[null,null,null,null,"Coincident",745]
[null,null,"Date MD occurred",null,"Non-Coincident","2015-07-17T09:30:00"]
[null,null,null,null,"Coincident","2016-06-27T18:14:59.993"]
[null,null,"Half hour time period MD occurred",null,"Non-Coincident",42202.395833329516]
[null,null,null,null,"Coincident",42548.760416582205]
[null,null,"Winter/Summer Peaking",null,"Non-Coincident","Winter"]
[null,null,null,null,"Coincident","Winter"]
[null,null,"Adjustments - Embedded generation","MW","Non-Coincident",0]
[null,null,null,null,"Coincident",0]
[null,null,"Weather Corrected MD 10% POE","MW","Non-Coincident",797]
[null,null,null,null,"Coincident",737]
[null,null,"Weather Corrected MD 10% POE","MVA","Non-Coincident",798]
[null,null,null,null,"Coincident",739]
[null,null,"Weather Corrected MD 50% POE","MW","Non-Coincident",768]
[null,null,null,null,"Coincident",698]
[null,null,"Weather Corrected MD 50% POE","MVA","Non-Coincident",769]
[null,null,null,null,"Coincident",701]
[null,"Sydney North","Connection Point Rating","MVA","Non-Coincident",1875]
[null,null,null,null,"Coincident",1875]
[null,null,"Raw Adjusted MD","MW","Non-Coincident",942]
[null,null,null,null,"Coincident",745]
[null,null,"Raw Adjusted MD","MVA","Non-Coincident",942]
[null,null,null,null,"Coincident",745]
[null,null,"Date MD occurred",null,"Non-Coincident","2015-12-09T15:59:59.997"]
[null,null,null,null,"Coincident","2016-06-27T18:14:59.993"]
[null,null,"Half hour time period MD occurred",null,"Non-Coincident",42347.666666629026]
[null,null,null,null,"Coincident",42548.760416582205]
[null,null,"Winter/Summer Peaking",null,"Non-Coincident","Summer"]
[null,null,null,null,"Coincident","Winter"]
[null,null,"Adjustments - Embedded generation","MW","Non-Coincident",0]
[null,null,null,null,"Coincident",0]
[null,null,"Weather Corrected MD 10% POE","MW","Non-Coincident",972]
[null,null,null,null,"Coincident",739]
[null,null,"Weather Corrected MD 10% POE","MVA","Non-Coincident",972]
[null,null,null,null,"Coincident",739]
[null,null,"Weather Corrected MD 50% POE","MW","Non-Coincident",937]
[null,null,null,null,"Coincident",701]
[null,null,"Weather Corrected MD 50% POE","MVA","Non-Coincident",937]
[null,null,null,null,"Coincident",701]
[null,"Sydney South","Connection Point Rating","MVA","Non-Coincident",2250]
[null,null,null,null,"Coincident",2250]
[null,null,"Raw Adjusted MD","MW","Non-Coincident",1160]
[null,null,null,null,"Coincident",1050]
[null,null,"Raw Adjusted MD","MVA","Non-Coincident",1160]
[null,null,null,null,"Coincident",1050]
[null,null,"Date MD occurred",null,"Non-Coincident","2015-12-09T15:44:59.997"]
[null,null,null,null,"Coincident","2016-06-27T18:14:59.993"]
[null,null,"Half hour time period MD occurred",null,"Non-Coincident",42347.656249962361]
[null,null,null,null,"Coincident",42548.760416582205]
[null,null,"Winter/Summer Peaking",null,"Non-Coincident","Summer"]
[null,null,null,null,"Coincident","Winter"]
[null,null,"Adjustments - Embedded generation","MW","Non-Coincident",0]
[null,null,null,null,"Coincident",0]
[null,null,"Weather Corrected MD 10% POE","MW","Non-Coincident",1200]
[null,null,null,null,"Coincident",1040]
[null,null,"Weather Corrected MD 10% POE","MVA","Non-Coincident",1200]
[null,null,null,null,"Coincident",1040]
[null,null,"Weather Corrected MD 50% POE","MW","Non-Coincident",1160]
[null,null,null,null,"Coincident",986]
[null,null,"Weather Corrected MD 50% POE","MVA","Non-Coincident",1160]
[null,null,null,null,"Coincident",986]
[null,"Sydney West","Connection Point Rating","MVA","Non-Coincident",1875]
[null,null,null,null,"Coincident",1875]
[null,null,"Raw Adjusted MD","MW","Non-Coincident",1090]
[null,null,null,null,"Coincident",872]
[null,null,"Raw Adjusted MD","MVA","Non-Coincident",1110]
[null,null,null,null,"Coincident",942]
[null,null,"Date MD occurred",null,"Non-Coincident","2016-02-25T17:14:59.995"]
[null,null,null,null,"Coincident","2016-06-27T18:14:59.993"]
[null,null,"Half hour time period MD occurred",null,"Non-Coincident",42425.718749944186]
[null,null,null,null,"Coincident",42548.760416582205]
[null,null,"Winter/Summer Peaking",null,"Non-Coincident","Summer"]
[null,null,null,null,"Coincident","Winter"]
[null,null,"Adjustments - Embedded generation","MW","Non-Coincident",0]
[null,null,null,null,"Coincident",0]
[null,null,"Weather Corrected MD 10% POE","MW","Non-Coincident",1130]
[null,null,null,null,"Coincident",911]
[null,null,"Weather Corrected MD 10% POE","MVA","Non-Coincident",1140]
[null,null,null,null,"Coincident",985]
[null,null,"Weather Corrected MD 50% POE","MW","Non-Coincident",1080]
[null,null,null,null,"Coincident",839]
[null,null,"Weather Corrected MD 50% POE","MVA","Non-Coincident",1100]
[null,null,null,null,"Coincident",907]
[null,"Holroyd","Connection Point Rating","MVA","Non-Coincident",750]
[null,null,null,null,"Coincident",750]
[null,null,"Raw Adjusted MD","MW","Non-Coincident",248]
[null,null,null,null,"Coincident",123]
[null,null,"Raw Adjusted MD","MVA","Non-Coincident",263]
[null,null,null,null,"Coincident",158]
[null,null,"Date MD occurred",null,"Non-Coincident","2016-02-09T14:44:59.996"]
[null,null,null,null,"Coincident","2016-06-27T18:14:59.993"]
[null,null,"Half hour time period MD occurred",null,"Non-Coincident",42409.614583281269]
[null,null,null,null,"Coincident",42548.760416582205]
[null,null,"Winter/Summer Peaking",null,"Non-Coincident","Summer"]
[null,null,null,null,"Coincident","Winter"]
[null,null,"Adjustments - Embedded generation","MW","Non-Coincident",0]
[null,null,null,null,"Coincident",0]
[null,null,"Weather Corrected MD 10% POE","MW","Non-Coincident",256]
[null,null,null,null,"Coincident",128]
[null,null,"Weather Corrected MD 10% POE","MVA","Non-Coincident",271]
[null,null,null,null,"Coincident",165]
[null,null,"Weather Corrected MD 50% POE","MW","Non-Coincident",246]
[null,null,null,null,"Coincident",118]
[null,null,"Weather Corrected MD 50% POE","MVA","Non-Coincident",261]
[null,null,null,null,"Coincident",152]
[null,"Rookwood Road","Connection Point Rating","MVA","Non-Coincident",1125]
[null,null,null,null,"Coincident",1125]
[null,null,"Raw Adjusted MD","MW","Non-Coincident",314]
[null,null,null,null,"Coincident",310]
[null,null,"Raw Adjusted MD","MVA","Non-Coincident",314]
[null,null,null,null,"Coincident",316]
[null,null,"Date MD occurred",null,"Non-Coincident","2016-01-21T14:14:59.996"]
[null,null,null,null,"Coincident","2016-06-27T18:14:59.993"]
[null,null,"Half hour time period MD occurred",null,"Non-Coincident",42390.593749952364]
[null,null,null,null,"Coincident",42548.760416582205]
[null,null,"Winter/Summer Peaking",null,"Non-Coincident","Summer"]
[null,null,null,null,"Coincident","Winter"]
[null,null,"Adjustments - Embedded generation","MW","Non-Coincident",0]
[null,null,null,null,"Coincident",0]
[null,null,"Weather Corrected MD 10% POE","MW","Non-Coincident",324]
[null,null,null,null,"Coincident",324]
[null,null,"Weather Corrected MD 10% POE","MVA","Non-Coincident",324]
[null,null,null,null,"Coincident",331]
[null,null,"Weather Corrected MD 50% POE","MW","Non-Coincident",311]
[null,null,null,null,"Coincident",298]
[null,null,"Weather Corrected MD 50% POE","MVA","Non-Coincident",311]
[null,null,null,null,"Coincident",304]
[null,"Vineyard","Connection Point Rating","MVA","Non-Coincident",1125]
[null,null,null,null,"Coincident",1125]
[null,null,"Raw Adjusted MD","MW","Non-Coincident",445]
[null,null,null,null,"Coincident",311]
[null,null,"Raw Adjusted MD","MVA","Non-Coincident",469]
[null,null,null,null,"Coincident",313]
[null,null,"Date MD occurred",null,"Non-Coincident","2016-02-25T17:14:59.995"]
[null,null,null,null,"Coincident","2016-06-27T18:14:59.993"]
[null,null,"Half hour time period MD occurred",null,"Non-Coincident",42425.718749944186]
[null,null,null,null,"Coincident",42548.760416582205]
[null,null,"Winter/Summer Peaking",null,"Non-Coincident","Summer"]
[null,null,null,null,"Coincident","Winter"]
[null,null,"Adjustments - Embedded generation","MW","Non-Coincident",0]
[null,null,null,null,"Coincident",0]
[null,null,"Weather Corrected MD 10% POE","MW","Non-Coincident",460]
[null,null,null,null,"Coincident",326]
[null,null,"Weather Corrected MD 10% POE","MVA","Non-Coincident",484]
[null,null,null,null,"Coincident",327]
[null,null,"Weather Corrected MD 50% POE","MW","Non-Coincident",441]
[null,null,null,null,"Coincident",300]
[null,null,"Weather Corrected MD 50% POE","MVA","Non-Coincident",465]
[null,null,null,null,"Coincident",301]
[null,"Manildra","Connection Point Rating","MVA","Non-Coincident",48]
[null,null,null,null,"Coincident",48]
[null,null,"Raw Adjusted MD","MW","Non-Coincident",10.5]
[null,null,null,null,"Coincident",9.98]
[null,null,"Raw Adjusted MD","MVA","Non-Coincident",11.1]
[null,null,null,null,"Coincident",10.5]
[null,null,"Date MD occurred",null,"Non-Coincident","2016-06-27T19:29:59.993"]
[null,null,null,null,"Coincident","2016-06-27T18:14:59.993"]
[null,null,"Half hour time period MD occurred",null,"Non-Coincident",42548.812499915526]
[null,null,null,null,"Coincident",42548.760416582205]
[null,null,"Winter/Summer Peaking",null,"Non-Coincident","Winter"]
[null,null,null,null,"Coincident","Winter"]
[null,null,"Adjustments - Embedded generation","MW","Non-Coincident",0]
[null,null,null,null,"Coincident",0]
[null,null,"Weather Corrected MD 10% POE","MW","Non-Coincident",10.8]
[null,null,null,null,"Coincident",10.4]
[null,null,"Weather Corrected MD 10% POE","MVA","Non-Coincident",11.4]
[null,null,null,null,"Coincident",10.9]
[null,null,"Weather Corrected MD 50% POE","MW","Non-Coincident",10.6]
[null,null,null,null,"Coincident",10.1]
[null,null,"Weather Corrected MD 50% POE","MVA","Non-Coincident",11.3]
[null,null,null,null,"Coincident",10.6]
[null,"Molong","Connection Point Rating","MVA","Non-Coincident",30]
[null,null,null,null,"Coincident",30]
[null,null,"Raw Adjusted MD","MW","Non-Coincident",4.93]
[null,null,null,null,"Coincident",4.8600000000000003]
[null,null,"Raw Adjusted MD","MVA","Non-Coincident",4.9400000000000004]
[null,null,null,null,"Coincident",4.8600000000000003]
[null,null,"Date MD occurred",null,"Non-Coincident","2016-06-26T18:14:59.993"]
[null,null,null,null,"Coincident","2016-06-27T18:14:59.993"]
[null,null,"Half hour time period MD occurred",null,"Non-Coincident",42547.760416582438]
[null,null,null,null,"Coincident",42548.760416582205]
[null,null,"Winter/Summer Peaking",null,"Non-Coincident","Winter"]
[null,null,null,null,"Coincident","Winter"]
[null,null,"Adjustments - Embedded generation","MW","Non-Coincident",0]
[null,null,null,null,"Coincident",0]
[null,null,"Weather Corrected MD 10% POE","MW","Non-Coincident",4.8]
[null,null,null,null,"Coincident",5.64]
[null,null,"Weather Corrected MD 10% POE","MVA","Non-Coincident",4.8099999999999996]
[null,null,null,null,"Coincident",5.64]
[null,null,"Weather Corrected MD 50% POE","MW","Non-Coincident",4.63]
[null,null,null,null,"Coincident",5.0999999999999996]
[null,null,"Weather Corrected MD 50% POE","MVA","Non-Coincident",4.6399999999999997]
[null,null,null,null,"Coincident",5.0999999999999996]
[null,"Orange 132 kV","Connection Point Rating","MVA","Non-Coincident"]
[null,null,null,null,"Coincident"]
[null,null,"Raw Adjusted MD","MW","Non-Coincident"]
[null,null,null,null,"Coincident"]
[null,null,"Raw Adjusted MD","MVA","Non-Coincident"]
[null,null,null,null,"Coincident"]
[null,null,"Date MD occurred",null,"Non-Coincident"]
[null,null,null,null,"Coincident"]
[null,null,"Half hour time period MD occurred",null,"Non-Coincident"]
[null,null,null,null,"Coincident"]
[null,null,"Winter/Summer Peaking",null,"Non-Coincident"]
[null,null,null,null,"Coincident"]
[null,null,"Adjustments - Embedded generation","MW","Non-Coincident"]
[null,null,null,null,"Coincident"]
[null,null,"Weather Corrected MD 10% POE","MW","Non-Coincident"]
[null,null,null,null,"Coincident"]
[null,null,"Weather Corrected MD 10% POE","MVA","Non-Coincident"]
[null,null,null,null,"Coincident"]
[null,null,"Weather Corrected MD 50% POE","MW","Non-Coincident"]
[null,null,null,null,"Coincident"]
[null,null,"Weather Corrected MD 50% POE","MVA","Non-Coincident"]
[null,null,null,null,"Coincident"]
[null,"Orange 66 kV","Connection Point Rating","MVA","Non-Coincident",120]
[null,null,null,null,"Coincident",120]
[null,null,"Raw Adjusted MD","MW","Non-Coincident",63.2]
[null,null,null,null,"Coincident",61.9]
[null,null,"Raw Adjusted MD","MVA","Non-Coincident",64.7]
[null,null,null,null,"Coincident",63.5]
[null,null,"Date MD occurred",null,"Non-Coincident","2015-07-12T18:30:00"]
[null,null,null,null,"Coincident","2016-06-27T18:14:59.993"]
[null,null,"Half hour time period MD occurred",null,"Non-Coincident",42197.770833330593]
[null,null,null,null,"Coincident",42548.760416582205]
[null,null,"Winter/Summer Peaking",null,"Non-Coincident","Winter"]
[null,null,null,null,"Coincident","Winter"]
[null,null,"Adjustments - Embedded generation","MW","Non-Coincident",0]
[null,null,null,null,"Coincident",0]
[null,null,"Weather Corrected MD 10% POE","MW","Non-Coincident",65.3]
[null,null,null,null,"Coincident",64.099999999999994]
[null,null,"Weather Corrected MD 10% POE","MVA","Non-Coincident",66.8]
[null,null,null,null,"Coincident",65.8]
[null,null,"Weather Corrected MD 50% POE","MW","Non-Coincident",62.7]
[null,null,null,null,"Coincident",59.9]
[null,null,"Weather Corrected MD 50% POE","MVA","Non-Coincident",64.2]
[null,null,null,null,"Coincident",61.5]
[null,"Panorama","Connection Point Rating","MVA","Non-Coincident",240]
[null,null,null,null,"Coincident",240]
[null,null,"Raw Adjusted MD","MW","Non-Coincident",66.7]
[null,null,null,null,"Coincident",64.8]
[null,null,"Raw Adjusted MD","MVA","Non-Coincident",67.599999999999994]
[null,null,null,null,"Coincident",65.2]
[null,null,"Date MD occurred",null,"Non-Coincident","2015-07-27T18:29:59.999"]
[null,null,null,null,"Coincident","2016-06-27T18:14:59.993"]
[null,null,"Half hour time period MD occurred",null,"Non-Coincident",42212.7708333271]
[null,null,null,null,"Coincident",42548.760416582205]
[null,null,"Winter/Summer Peaking",null,"Non-Coincident","Winter"]
[null,null,null,null,"Coincident","Winter"]
[null,null,"Adjustments - Embedded generation","MW","Non-Coincident",0]
[null,null,null,null,"Coincident",0]
[null,null,"Weather Corrected MD 10% POE","MW","Non-Coincident",71.5]
[null,null,null,null,"Coincident",69.2]
[null,null,"Weather Corrected MD 10% POE","MVA","Non-Coincident",72.5]
[null,null,null,null,"Coincident",69.599999999999994]
[null,null,"Weather Corrected MD 50% POE","MW","Non-Coincident",68.8]
[null,null,null,null,"Coincident",64.7]
[null,null,"Weather Corrected MD 50% POE","MVA","Non-Coincident",69.8]
[null,null,null,null,"Coincident",65.099999999999994]
[null,"Cowra","Connection Point Rating","MVA","Non-Coincident",120]
[null,null,null,null,"Coincident",120]
[null,null,"Raw Adjusted MD","MW","Non-Coincident",26.1]
[null,null,null,null,"Coincident",25]
[null,null,"Raw Adjusted MD","MVA","Non-Coincident",29]
[null,null,null,null,"Coincident",25]
[null,null,"Date MD occurred",null,"Non-Coincident","2015-12-20T17:59:59.997"]
[null,null,null,null,"Coincident","2016-06-27T18:14:59.993"]
[null,null,"Half hour time period MD occurred",null,"Non-Coincident",42358.749999959779]
[null,null,null,null,"Coincident",42548.760416582205]
[null,null,"Winter/Summer Peaking",null,"Non-Coincident","Summer"]
[null,null,null,null,"Coincident","Winter"]
[null,null,"Adjustments - Embedded generation","MW","Non-Coincident",0]
[null,null,null,null,"Coincident",0]
[null,null,"Weather Corrected MD 10% POE","MW","Non-Coincident",26.3]
[null,null,null,null,"Coincident",27.4]
[null,null,"Weather Corrected MD 10% POE","MVA","Non-Coincident",29.2]
[null,null,null,null,"Coincident",27.4]
[null,null,"Weather Corrected MD 50% POE","MW","Non-Coincident",25.4]
[null,null,null,null,"Coincident",24.9]
[null,null,"Weather Corrected MD 50% POE","MVA","Non-Coincident",28.2]
[null,null,null,null,"Coincident",24.9]
[null,"Forbes","Connection Point Rating","MVA","Non-Coincident",120]
[null,null,null,null,"Coincident",120]
[null,null,"Raw Adjusted MD","MW","Non-Coincident",32.1]
[null,null,null,null,"Coincident",24.5]
[null,null,"Raw Adjusted MD","MVA","Non-Coincident",32.1]
[null,null,null,null,"Coincident",25.3]
[null,null,"Date MD occurred",null,"Non-Coincident","2016-01-13T16:59:59.996"]
[null,null,null,null,"Coincident","2016-06-27T18:14:59.993"]
[null,null,"Half hour time period MD occurred",null,"Non-Coincident",42382.708333287534]
[null,null,null,null,"Coincident",42548.760416582205]
[null,null,"Winter/Summer Peaking",null,"Non-Coincident","Summer"]
[null,null,null,null,"Coincident","Winter"]
[null,null,"Adjustments - Embedded generation","MW","Non-Coincident",0]
[null,null,null,null,"Coincident",0]
[null,null,"Weather Corrected MD 10% POE","MW","Non-Coincident",30.7]
[null,null,null,null,"Coincident",28.7]
[null,null,"Weather Corrected MD 10% POE","MVA","Non-Coincident",30.7]
[null,null,null,null,"Coincident",29.7]
[null,null,"Weather Corrected MD 50% POE","MW","Non-Coincident",29.8]
[null,null,null,null,"Coincident",26.6]
[null,null,"Weather Corrected MD 50% POE","MVA","Non-Coincident",29.8]
[null,null,null,null,"Coincident",27.4]
[null,"Parkes 132 kV","Connection Point Rating","MVA","Non-Coincident"]
[null,null,null,null,"Coincident"]
[null,null,"Raw Adjusted MD","MW","Non-Coincident"]
[null,null,null,null,"Coincident"]
[null,null,"Raw Adjusted MD","MVA","Non-Coincident"]
[null,null,null,null,"Coincident"]
[null,null,"Date MD occurred",null,"Non-Coincident"]
[null,null,null,null,"Coincident"]
[null,null,"Half hour time period MD occurred",null,"Non-Coincident"]
[null,null,null,null,"Coincident"]
[null,null,"Winter/Summer Peaking",null,"Non-Coincident"]
[null,null,null,null,"Coincident"]
[null,null,"Adjustments - Embedded generation","MW","Non-Coincident"]
[null,null,null,null,"Coincident"]
[null,null,"Weather Corrected MD 10% POE","MW","Non-Coincident"]
[null,null,null,null,"Coincident"]
[null,null,"Weather Corrected MD 10% POE","MVA","Non-Coincident"]
[null,null,null,null,"Coincident"]
[null,null,"Weather Corrected MD 50% POE","MW","Non-Coincident"]
[null,null,null,null,"Coincident"]
[null,null,"Weather Corrected MD 50% POE","MVA","Non-Coincident"]
[null,null,null,null,"Coincident"]
[null,"Parkes 66 kV","Connection Point Rating","MVA","Non-Coincident",120]
[null,null,null,null,"Coincident",120]
[null,null,"Raw Adjusted MD","MW","Non-Coincident",26.9]
[null,null,null,null,"Coincident",24.3]
[null,null,"Raw Adjusted MD","MVA","Non-Coincident",27]
[null,null,null,null,"Coincident",24.6]
[null,null,"Date MD occurred",null,"Non-Coincident","2016-01-13T17:59:59.996"]
[null,null,null,null,"Coincident","2016-06-27T18:14:59.993"]
[null,null,"Half hour time period MD occurred",null,"Non-Coincident",42382.749999954191]
[null,null,null,null,"Coincident",42548.760416582205]
[null,null,"Winter/Summer Peaking",null,"Non-Coincident","Summer"]
[null,null,null,null,"Coincident","Winter"]
[null,null,"Adjustments - Embedded generation","MW","Non-Coincident",0]
[null,null,null,null,"Coincident",0]
[null,null,"Weather Corrected MD 10% POE","MW","Non-Coincident",26.7]
[null,null,null,null,"Coincident",26.5]
[null,null,"Weather Corrected MD 10% POE","MVA","Non-Coincident",26.7]
[null,null,null,null,"Coincident",26.8]
[null,null,"Weather Corrected MD 50% POE","MW","Non-Coincident",25.9]
[null,null,null,null,"Coincident",24.8]
[null,null,"Weather Corrected MD 50% POE","MVA","Non-Coincident",26]
[null,null,null,null,"Coincident",25.1]
[null,"Beryl","Connection Point Rating","MVA","Non-Coincident",240]
[null,null,null,null,"Coincident",240]
[null,null,"Raw Adjusted MD","MW","Non-Coincident",81]
[null,null,null,null,"Coincident",48.5]
[null,null,"Raw Adjusted MD","MVA","Non-Coincident",87.7]
[null,null,null,null,"Coincident",48.8]
[null,null,"Date MD occurred",null,"Non-Coincident","2016-04-19T22:59:59.994"]
[null,null,null,null,"Coincident","2016-06-27T18:14:59.993"]
[null,null,"Half hour time period MD occurred",null,"Non-Coincident",42479.958333264891]
[null,null,null,null,"Coincident",42548.760416582205]
[null,null,"Winter/Summer Peaking",null,"Non-Coincident","Winter"]
[null,null,null,null,"Coincident","Winter"]
[null,null,"Adjustments - Embedded generation","MW","Non-Coincident",0]
[null,null,null,null,"Coincident",0]
[null,null,"Weather Corrected MD 10% POE","MW","Non-Coincident",78.599999999999994]
[null,null,null,null,"Coincident",37.4]
[null,null,"Weather Corrected MD 10% POE","MVA","Non-Coincident",85]
[null,null,null,null,"Coincident",37.6]
[null,null,"Weather Corrected MD 50% POE","MW","Non-Coincident",77]
[null,null,null,null,"Coincident",35.6]
[null,null,"Weather Corrected MD 50% POE","MVA","Non-Coincident",83.4]
[null,null,null,null,"Coincident",35.799999999999997]
[null,"Mudgee","Connection Point Rating","MVA","Non-Coincident",30]
[null,null,null,null,"Coincident",30]
[null,null,"Raw Adjusted MD","MW","Non-Coincident",22.7]
[null,null,null,null,"Coincident",22]
[null,null,"Raw Adjusted MD","MVA","Non-Coincident",22.7]
[null,null,null,null,"Coincident",22]
[null,null,"Date MD occurred",null,"Non-Coincident","2015-07-12T18:15:00"]
[null,null,null,null,"Coincident","2016-06-27T18:14:59.993"]
[null,null,"Half hour time period MD occurred",null,"Non-Coincident",42197.760416663928]
[null,null,null,null,"Coincident",42548.760416582205]
[null,null,"Winter/Summer Peaking",null,"Non-Coincident","Winter"]
[null,null,null,null,"Coincident","Winter"]
[null,null,"Adjustments - Embedded generation","MW","Non-Coincident",0]
[null,null,null,null,"Coincident",0]
[null,null,"Weather Corrected MD 10% POE","MW","Non-Coincident",21.6]
[null,null,null,null,"Coincident",26.4]
[null,null,"Weather Corrected MD 10% POE","MVA","Non-Coincident",21.6]
[null,null,null,null,"Coincident",26.4]
[null,null,"Weather Corrected MD 50% POE","MW","Non-Coincident",20.7]
[null,null,null,null,"Coincident",23.5]
[null,null,"Weather Corrected MD 50% POE","MVA","Non-Coincident",20.7]
[null,null,null,null,"Coincident",23.5]
[null,"Wellington 132 kV","Connection Point Rating","MVA","Non-Coincident",360]
[null,null,null,null,"Coincident",404]
[null,null,"Raw Adjusted MD","MW","Non-Coincident",163]
[null,null,null,null,"Coincident",154]
[null,null,"Raw Adjusted MD","MVA","Non-Coincident",163]
[null,null,null,null,"Coincident",154]
[null,null,"Date MD occurred",null,"Non-Coincident","2016-01-13T19:14:59.996"]
[null,null,null,null,"Coincident","2016-06-27T18:14:59.993"]
[null,null,"Half hour time period MD occurred",null,"Non-Coincident",42382.802083287512]
[null,null,null,null,"Coincident",42548.760416582205]
[null,null,"Winter/Summer Peaking",null,"Non-Coincident","Summer"]
[null,null,null,null,"Coincident","Winter"]
[null,null,"Adjustments - Embedded generation","MW","Non-Coincident",0]
[null,null,null,null,"Coincident",0]
[null,null,"Weather Corrected MD 10% POE","MW","Non-Coincident",161]
[null,null,null,null,"Coincident",162]
[null,null,"Weather Corrected MD 10% POE","MVA","Non-Coincident",161]
[null,null,null,null,"Coincident",162]
[null,null,"Weather Corrected MD 50% POE","MW","Non-Coincident",156]
[null,null,null,null,"Coincident",152]
[null,null,"Weather Corrected MD 50% POE","MVA","Non-Coincident",156]
[null,null,null,null,"Coincident",152]
[null,"Wellington Town","Connection Point Rating","MVA","Non-Coincident",15]
[null,null,null,null,"Coincident",15]
[null,null,"Raw Adjusted MD","MW","Non-Coincident",10.4]
[null,null,null,null,"Coincident",8.8000000000000007]
[null,null,"Raw Adjusted MD","MVA","Non-Coincident",10.4]
[null,null,null,null,"Coincident",8.8000000000000007]
[null,null,"Date MD occurred",null,"Non-Coincident","2016-01-13T18:14:59.996"]
[null,null,null,null,"Coincident","2016-06-27T18:14:59.993"]
[null,null,"Half hour time period MD occurred",null,"Non-Coincident",42382.760416620855]
[null,null,null,null,"Coincident",42548.760416582205]
[null,null,"Winter/Summer Peaking",null,"Non-Coincident","Summer"]
[null,null,null,null,"Coincident","Winter"]
[null,null,"Adjustments - Embedded generation","MW","Non-Coincident",0]
[null,null,null,null,"Coincident",0]
[null,null,"Weather Corrected MD 10% POE","MW","Non-Coincident",10.3]
[null,null,null,null,"Coincident",9.24]
[null,null,"Weather Corrected MD 10% POE","MVA","Non-Coincident",10.3]
[null,null,null,null,"Coincident",9.24]
[null,null,"Weather Corrected MD 50% POE","MW","Non-Coincident",9.99]
[null,null,null,null,"Coincident",8.65]
[null,null,"Weather Corrected MD 50% POE","MVA","Non-Coincident",9.99]
[null,null,null,null,"Coincident",8.65]
[null,"Ilford","Connection Point Rating","MVA","Non-Coincident",60]
[null,null,null,null,"Coincident",60]
[null,null,"Raw Adjusted MD","MW","Non-Coincident",5.96]
[null,null,null,null,"Coincident",4.72]
[null,null,"Raw Adjusted MD","MVA","Non-Coincident",5.96]
[null,null,null,null,"Coincident",4.72]
[null,null,"Date MD occurred",null,"Non-Coincident","2016-06-15T18:29:59.993"]
[null,null,null,null,"Coincident","2016-06-27T18:14:59.993"]
[null,null,"Half hour time period MD occurred",null,"Non-Coincident",42536.770833251663]
[null,null,null,null,"Coincident",42548.760416582205]
[null,null,"Winter/Summer Peaking",null,"Non-Coincident","Winter"]
[null,null,null,null,"Coincident","Winter"]
[null,null,"Adjustments - Embedded generation","MW","Non-Coincident",0]
[null,null,null,null,"Coincident",0]
[null,null,"Weather Corrected MD 10% POE","MW","Non-Coincident",7.24]
[null,null,null,null,"Coincident",6.34]
[null,null,"Weather Corrected MD 10% POE","MVA","Non-Coincident",7.24]
[null,null,null,null,"Coincident",6.34]
[null,null,"Weather Corrected MD 50% POE","MW","Non-Coincident",6.79]
[null,null,null,null,"Coincident",5.92]
[null,null,"Weather Corrected MD 50% POE","MVA","Non-Coincident",6.79]
[null,null,null,null,"Coincident",5.92]
[null,"Mount Piper 66 kV","Connection Point Rating","MVA","Non-Coincident",240]
[null,null,null,null,"Coincident",240]
[null,null,"Raw Adjusted MD","MW","Non-Coincident",26.8]
[null,null,null,null,"Coincident",23.9]
[null,null,"Raw Adjusted MD","MVA","Non-Coincident",28.2]
[null,null,null,null,"Coincident",24.4]
[null,null,"Date MD occurred",null,"Non-Coincident","2016-03-10T17:59:59.995"]
[null,null,null,null,"Coincident","2016-06-27T18:14:59.993"]
[null,null,"Half hour time period MD occurred",null,"Non-Coincident",42439.749999940919]
[null,null,null,null,"Coincident",42548.760416582205]
[null,null,"Winter/Summer Peaking",null,"Non-Coincident","Summer"]
[null,null,null,null,"Coincident","Winter"]
[null,null,"Adjustments - Embedded generation","MW","Non-Coincident",0]
[null,null,null,null,"Coincident",0]
[null,null,"Weather Corrected MD 10% POE","MW","Non-Coincident",34.700000000000003]
[null,null,null,null,"Coincident",28.5]
[null,null,"Weather Corrected MD 10% POE","MVA","Non-Coincident",36.4]
[null,null,null,null,"Coincident",29.1]
[null,null,"Weather Corrected MD 50% POE","MW","Non-Coincident",32.799999999999997]
[null,null,null,null,"Coincident",27.2]
[null,null,"Weather Corrected MD 50% POE","MVA","Non-Coincident",34.4]
[null,null,null,null,"Coincident",27.7]
[null,"Wang 66 kV","Connection Point Rating","MVA","Non-Coincident",120]
[null,null,null,null,"Coincident",120]
[null,null,"Raw Adjusted MD","MW","Non-Coincident",31.8]
[null,null,null,null,"Coincident",21.8]
[null,null,"Raw Adjusted MD","MVA","Non-Coincident",31.8]
[null,null,null,null,"Coincident",21.8]
[null,null,"Date MD occurred",null,"Non-Coincident","2016-02-10T16:59:59.995"]
[null,null,null,null,"Coincident","2016-06-27T18:14:59.993"]
[null,null,"Half hour time period MD occurred",null,"Non-Coincident",42410.708333281014]
[null,null,null,null,"Coincident",42548.760416582205]
[null,null,"Winter/Summer Peaking",null,"Non-Coincident","Summer"]
[null,null,null,null,"Coincident","Winter"]
[null,null,"Adjustments - Embedded generation","MW","Non-Coincident",0]
[null,null,null,null,"Coincident",0]
[null,null,"Weather Corrected MD 10% POE","MW","Non-Coincident",31.8]
[null,null,null,null,"Coincident",21.8]
[null,null,"Weather Corrected MD 10% POE","MVA","Non-Coincident",31.8]
[null,null,null,null,"Coincident",21.8]
[null,null,"Weather Corrected MD 50% POE","MW","Non-Coincident",31.8]
[null,null,null,null,"Coincident",21.8]
[null,null,"Weather Corrected MD 50% POE","MVA","Non-Coincident",31.8]
[null,null,null,null,"Coincident",21.8]
[null,"Wang 132 kV","Connection Point Rating","MVA","Non-Coincident",750]
[null,null,null,null,"Coincident",750]
[null,null,"Raw Adjusted MD","MW","Non-Coincident",109]
[null,null,null,null,"Coincident",56.2]
[null,null,"Raw Adjusted MD","MVA","Non-Coincident",109]
[null,null,null,null,"Coincident",56.2]
[null,null,"Date MD occurred",null,"Non-Coincident","2015-08-12T18:44:59.999"]
[null,null,null,null,"Coincident","2016-06-27T18:14:59.993"]
[null,null,"Half hour time period MD occurred",null,"Non-Coincident",42228.781249990039]
[null,null,null,null,"Coincident",42548.760416582205]
[null,null,"Winter/Summer Peaking",null,"Non-Coincident","Winter"]
[null,null,null,null,"Coincident","Winter"]
[null,null,"Adjustments - Embedded generation","MW","Non-Coincident",0]
[null,null,null,null,"Coincident",0]
[null,null,"Weather Corrected MD 10% POE","MW","Non-Coincident",109]
[null,null,null,null,"Coincident",56.2]
[null,null,"Weather Corrected MD 10% POE","MVA","Non-Coincident",109]
[null,null,null,null,"Coincident",56.2]
[null,null,"Weather Corrected MD 50% POE","MW","Non-Coincident",109]
[null,null,null,null,"Coincident",56.2]
[null,null,"Weather Corrected MD 50% POE","MVA","Non-Coincident",109]
[null,null,null,null,"Coincident",56.2]
[null,"Liddell 33 kV (EA)","Connection Point Rating","MVA","Non-Coincident",200]
[null,null,null,null,"Coincident",200]
[null,null,"Raw Adjusted MD","MW","Non-Coincident",23]
[null,null,null,null,"Coincident",16]
[null,null,"Raw Adjusted MD","MVA","Non-Coincident",23]
[null,null,null,null,"Coincident",16]
[null,null,"Date MD occurred",null,"Non-Coincident","2016-02-19T13:59:59.995"]
[null,null,null,null,"Coincident","2016-06-27T18:14:59.993"]
[null,null,"Half hour time period MD occurred",null,"Non-Coincident",42419.583333278948]
[null,null,null,null,"Coincident",42548.760416582205]
[null,null,"Winter/Summer Peaking",null,"Non-Coincident","Summer"]
[null,null,null,null,"Coincident","Winter"]
[null,null,"Adjustments - Embedded generation","MW","Non-Coincident",0]
[null,null,null,null,"Coincident",0]
[null,null,"Weather Corrected MD 10% POE","MW","Non-Coincident",23]
[null,null,null,null,"Coincident",16]
[null,null,"Weather Corrected MD 10% POE","MVA","Non-Coincident",23]
[null,null,null,null,"Coincident",16]
[null,null,"Weather Corrected MD 50% POE","MW","Non-Coincident",23]
[null,null,null,null,"Coincident",16]
[null,null,"Weather Corrected MD 50% POE","MVA","Non-Coincident",23]
[null,null,null,null,"Coincident",16]
[null,"Khancoban 11 kV","Connection Point Rating","MVA","Non-Coincident",10]
[null,null,null,null,"Coincident",10]
[null,null,"Raw Adjusted MD","MW","Non-Coincident",0.49]
[null,null,null,null,"Coincident",0.34]
[null,null,"Raw Adjusted MD","MVA","Non-Coincident",0.49]
[null,null,null,null,"Coincident",0.34]
[null,null,"Date MD occurred",null,"Non-Coincident","2015-07-14T23:00:00"]
[null,null,null,null,"Coincident","2016-06-27T18:14:59.993"]
[null,null,"Half hour time period MD occurred",null,"Non-Coincident",42199.958333330083]
[null,null,null,null,"Coincident",42548.760416582205]
[null,null,"Winter/Summer Peaking",null,"Non-Coincident","Winter"]
[null,null,null,null,"Coincident","Winter"]
[null,null,"Adjustments - Embedded generation","MW","Non-Coincident",0]
[null,null,null,null,"Coincident",0]
[null,null,"Weather Corrected MD 10% POE","MW","Non-Coincident",0.49]
[null,null,null,null,"Coincident",0.34]
[null,null,"Weather Corrected MD 10% POE","MVA","Non-Coincident",0.49]
[null,null,null,null,"Coincident",0.34]
[null,null,"Weather Corrected MD 50% POE","MW","Non-Coincident",0.49]
[null,null,null,null,"Coincident",0.34]
[null,null,"Weather Corrected MD 50% POE","MVA","Non-Coincident",0.49]
[null,null,null,null,"Coincident",0.34]
[null,"Boggabri East","Connection Point Rating","MVA","Non-Coincident"]
[null,null,null,null,"Coincident"]
[null,null,"Raw Adjusted MD","MW","Non-Coincident"]
[null,null,null,null,"Coincident"]
[null,null,"Raw Adjusted MD","MVA","Non-Coincident"]
[null,null,null,null,"Coincident"]
[null,null,"Date MD occurred",null,"Non-Coincident"]
[null,null,null,null,"Coincident"]
[null,null,"Half hour time period MD occurred",null,"Non-Coincident"]
[null,null,null,null,"Coincident"]
[null,null,"Winter/Summer Peaking",null,"Non-Coincident"]
[null,null,null,null,"Coincident"]
[null,null,"Adjustments - Embedded generation","MW","Non-Coincident"]
[null,null,null,null,"Coincident"]
[null,null,"Weather Corrected MD 10% POE","MW","Non-Coincident"]
[null,null,null,null,"Coincident"]
[null,null,"Weather Corrected MD 10% POE","MVA","Non-Coincident"]
[null,null,null,null,"Coincident"]
[null,null,"Weather Corrected MD 50% POE","MW","Non-Coincident"]
[null,null,null,null,"Coincident"]
[null,null,"Weather Corrected MD 50% POE","MVA","Non-Coincident"]
[null,null,null,null,"Coincident"]
[null,"Boggabri North","Connection Point Rating","MVA","Non-Coincident"]
[null,null,null,null,"Coincident"]
[null,null,"Raw Adjusted MD","MW","Non-Coincident"]
[null,null,null,null,"Coincident"]
[null,null,"Raw Adjusted MD","MVA","Non-Coincident"]
[null,null,null,null,"Coincident"]
[null,null,"Date MD occurred",null,"Non-Coincident"]
[null,null,null,null,"Coincident"]
[null,null,"Half hour time period MD occurred",null,"Non-Coincident"]
[null,null,null,null,"Coincident"]
[null,null,"Winter/Summer Peaking",null,"Non-Coincident"]
[null,null,null,null,"Coincident"]
[null,null,"Adjustments - Embedded generation","MW","Non-Coincident"]
[null,null,null,null,"Coincident"]
[null,null,"Weather Corrected MD 10% POE","MW","Non-Coincident"]
[null,null,null,null,"Coincident"]
[null,null,"Weather Corrected MD 10% POE","MVA","Non-Coincident"]
[null,null,null,null,"Coincident"]
[null,null,"Weather Corrected MD 50% POE","MW","Non-Coincident"]
[null,null,null,null,"Coincident"]
[null,null,"Weather Corrected MD 50% POE","MVA","Non-Coincident"]
[null,null,null,null,"Coincident"]
[null,"<Enter connection point name>","Connection Point Rating","MVA","Non-Coincident"]
[null,null,null,null,"Coincident"]
[null,null,"Raw Adjusted MD","MW","Non-Coincident"]
[null,null,null,null,"Coincident"]
[null,null,"Raw Adjusted MD","MVA","Non-Coincident"]
[null,null,null,null,"Coincident"]
[null,null,"Date MD occurred",null,"Non-Coincident"]
[null,null,null,null,"Coincident"]
[null,null,"Half hour time period MD occurred",null,"Non-Coincident"]
[null,null,null,null,"Coincident"]
[null,null,"Winter/Summer Peaking",null,"Non-Coincident"]
[null,null,null,null,"Coincident"]
[null,null,"Adjustments - Embedded generation","MW","Non-Coincident"]
[null,null,null,null,"Coincident"]
[null,null,"Weather Corrected MD 10% POE","MW","Non-Coincident"]
[null,null,null,null,"Coincident"]
[null,null,"Weather Corrected MD 10% POE","MVA","Non-Coincident"]
[null,null,null,null,"Coincident"]
[null,null,"Weather Corrected MD 50% POE","MW","Non-Coincident"]
[null,null,null,null,"Coincident"]
[null,null,"Weather Corrected MD 50% POE","MVA","Non-Coincident"]
[null,null,null,null,"Coincident"]
[null,"<Enter connection point name>","Connection Point Rating","MVA","Non-Coincident"]
[null,null,null,null,"Coincident"]
[null,null,"Raw Adjusted MD","MW","Non-Coincident"]
[null,null,null,null,"Coincident"]
[null,null,"Raw Adjusted MD","MVA","Non-Coincident"]
[null,null,null,null,"Coincident"]
[null,null,"Date MD occurred",null,"Non-Coincident"]
[null,null,null,null,"Coincident"]
[null,null,"Half hour time period MD occurred",null,"Non-Coincident"]
[null,null,null,null,"Coincident"]
[null,null,"Winter/Summer Peaking",null,"Non-Coincident"]
[null,null,null,null,"Coincident"]
[null,null,"Adjustments - Embedded generation","MW","Non-Coincident"]
[null,null,null,null,"Coincident"]
[null,null,"Weather Corrected MD 10% POE","MW","Non-Coincident"]
[null,null,null,null,"Coincident"]
[null,null,"Weather Corrected MD 10% POE","MVA","Non-Coincident"]
[null,null,null,null,"Coincident"]
[null,null,"Weather Corrected MD 50% POE","MW","Non-Coincident"]
[null,null,null,null,"Coincident"]
[null,null,"Weather Corrected MD 50% POE","MVA","Non-Coincident"]
[null,null,null,null,"Coincident"]
[null,"<Enter connection point name>","Connection Point Rating","MVA","Non-Coincident"]
[null,null,null,null,"Coincident"]
[null,null,"Raw Adjusted MD","MW","Non-Coincident"]
[null,null,null,null,"Coincident"]
[null,null,"Raw Adjusted MD","MVA","Non-Coincident"]
[null,null,null,null,"Coincident"]
[null,null,"Date MD occurred",null,"Non-Coincident"]
[null,null,null,null,"Coincident"]
[null,null,"Half hour time period MD occurred",null,"Non-Coincident"]
[null,null,null,null,"Coincident"]
[null,null,"Winter/Summer Peaking",null,"Non-Coincident"]
[null,null,null,null,"Coincident"]
[null,null,"Adjustments - Embedded generation","MW","Non-Coincident"]
[null,null,null,null,"Coincident"]
[null,null,"Weather Corrected MD 10% POE","MW","Non-Coincident"]
[null,null,null,null,"Coincident"]
[null,null,"Weather Corrected MD 10% POE","MVA","Non-Coincident"]
[null,null,null,null,"Coincident"]
[null,null,"Weather Corrected MD 50% POE","MW","Non-Coincident"]
[null,null,null,null,"Coincident"]
[null,null,"Weather Corrected MD 50% POE","MVA","Non-Coincident"]
[null,null,null,null,"Coincident"]
[null,"<Enter connection point name>","Connection Point Rating","MVA","Non-Coincident"]
[null,null,null,null,"Coincident"]
[null,null,"Raw Adjusted MD","MW","Non-Coincident"]
[null,null,null,null,"Coincident"]
[null,null,"Raw Adjusted MD","MVA","Non-Coincident"]
[null,null,null,null,"Coincident"]
[null,null,"Date MD occurred",null,"Non-Coincident"]
[null,null,null,null,"Coincident"]
[null,null,"Half hour time period MD occurred",null,"Non-Coincident"]
[null,null,null,null,"Coincident"]
[null,null,"Winter/Summer Peaking",null,"Non-Coincident"]
[null,null,null,null,"Coincident"]
[null,null,"Adjustments - Embedded generation","MW","Non-Coincident"]
[null,null,null,null,"Coincident"]
[null,null,"Weather Corrected MD 10% POE","MW","Non-Coincident"]
[null,null,null,null,"Coincident"]
[null,null,"Weather Corrected MD 10% POE","MVA","Non-Coincident"]
[null,null,null,null,"Coincident"]
[null,null,"Weather Corrected MD 50% POE","MW","Non-Coincident"]
[null,null,null,null,"Coincident"]
[null,null,"Weather Corrected MD 50% POE","MVA","Non-Coincident"]
[null,null,null,null,"Coincident"]
[null,"<Enter connection point name>","Connection Point Rating","MVA","Non-Coincident"]
[null,null,null,null,"Coincident"]
[null,null,"Raw Adjusted MD","MW","Non-Coincident"]
[null,null,null,null,"Coincident"]
[null,null,"Raw Adjusted MD","MVA","Non-Coincident"]
[null,null,null,null,"Coincident"]
[null,null,"Date MD occurred",null,"Non-Coincident"]
[null,null,null,null,"Coincident"]
[null,null,"Half hour time period MD occurred",null,"Non-Coincident"]
[null,null,null,null,"Coincident"]
[null,null,"Winter/Summer Peaking",null,"Non-Coincident"]
[null,null,null,null,"Coincident"]
[null,null,"Adjustments - Embedded generation","MW","Non-Coincident"]
[null,null,null,null,"Coincident"]
[null,null,"Weather Corrected MD 10% POE","MW","Non-Coincident"]
[null,null,null,null,"Coincident"]
[null,null,"Weather Corrected MD 10% POE","MVA","Non-Coincident"]
[null,null,null,null,"Coincident"]
[null,null,"Weather Corrected MD 50% POE","MW","Non-Coincident"]
[null,null,null,null,"Coincident"]
[null,null,"Weather Corrected MD 50% POE","MVA","Non-Coincident"]
[null,null,null,null,"Coincident"]
[null,"<Enter connection point name>","Connection Point Rating","MVA","Non-Coincident"]
[null,null,null,null,"Coincident"]
[null,null,"Raw Adjusted MD","MW","Non-Coincident"]
[null,null,null,null,"Coincident"]
[null,null,"Raw Adjusted MD","MVA","Non-Coincident"]
[null,null,null,null,"Coincident"]
[null,null,"Date MD occurred",null,"Non-Coincident"]
[null,null,null,null,"Coincident"]
[null,null,"Half hour time period MD occurred",null,"Non-Coincident"]
[null,null,null,null,"Coincident"]
[null,null,"Winter/Summer Peaking",null,"Non-Coincident"]
[null,null,null,null,"Coincident"]
[null,null,"Adjustments - Embedded generation","MW","Non-Coincident"]
[null,null,null,null,"Coincident"]
[null,null,"Weather Corrected MD 10% POE","MW","Non-Coincident"]
[null,null,null,null,"Coincident"]
[null,null,"Weather Corrected MD 10% POE","MVA","Non-Coincident"]
[null,null,null,null,"Coincident"]
[null,null,"Weather Corrected MD 50% POE","MW","Non-Coincident"]
[null,null,null,null,"Coincident"]
[null,null,"Weather Corrected MD 50% POE","MVA","Non-Coincident"]
[null,null,null,null,"Coincident"]
[null,"<Enter connection point name>","Connection Point Rating","MVA","Non-Coincident"]
[null,null,null,null,"Coincident"]
[null,null,"Raw Adjusted MD","MW","Non-Coincident"]
[null,null,null,null,"Coincident"]
[null,null,"Raw Adjusted MD","MVA","Non-Coincident"]
[null,null,null,null,"Coincident"]
[null,null,"Date MD occurred",null,"Non-Coincident"]
[null,null,null,null,"Coincident"]
[null,null,"Half hour time period MD occurred",null,"Non-Coincident"]
[null,null,null,null,"Coincident"]
[null,null,"Winter/Summer Peaking",null,"Non-Coincident"]
[null,null,null,null,"Coincident"]
[null,null,"Adjustments - Embedded generation","MW","Non-Coincident"]
[null,null,null,null,"Coincident"]
[null,null,"Weather Corrected MD 10% POE","MW","Non-Coincident"]
[null,null,null,null,"Coincident"]
[null,null,"Weather Corrected MD 10% POE","MVA","Non-Coincident"]
[null,null,null,null,"Coincident"]
[null,null,"Weather Corrected MD 50% POE","MW","Non-Coincident"]
[null,null,null,null,"Coincident"]
[null,null,"Weather Corrected MD 50% POE","MVA","Non-Coincident"]
[null,null,null,null,"Coincident"]
[null,"<Enter connection point name>","Connection Point Rating","MVA","Non-Coincident"]
[null,null,null,null,"Coincident"]
[null,null,"Raw Adjusted MD","MW","Non-Coincident"]
[null,null,null,null,"Coincident"]
[null,null,"Raw Adjusted MD","MVA","Non-Coincident"]
[null,null,null,null,"Coincident"]
[null,null,"Date MD occurred",null,"Non-Coincident"]
[null,null,null,null,"Coincident"]
[null,null,"Half hour time period MD occurred",null,"Non-Coincident"]
[null,null,null,null,"Coincident"]
[null,null,"Winter/Summer Peaking",null,"Non-Coincident"]
[null,null,null,null,"Coincident"]
[null,null,"Adjustments - Embedded generation","MW","Non-Coincident"]
[null,null,null,null,"Coincident"]
[null,null,"Weather Corrected MD 10% POE","MW","Non-Coincident"]
[null,null,null,null,"Coincident"]
[null,null,"Weather Corrected MD 10% POE","MVA","Non-Coincident"]
[null,null,null,null,"Coincident"]
[null,null,"Weather Corrected MD 50% POE","MW","Non-Coincident"]
[null,null,null,null,"Coincident"]
[null,null,"Weather Corrected MD 50% POE","MVA","Non-Coincident"]
[null,null,null,null,"Coincident"]
[null,"<Enter connection point name>","Connection Point Rating","MVA","Non-Coincident"]
[null,null,null,null,"Coincident"]
[null,null,"Raw Adjusted MD","MW","Non-Coincident"]
[null,null,null,null,"Coincident"]
[null,null,"Raw Adjusted MD","MVA","Non-Coincident"]
[null,null,null,null,"Coincident"]
[null,null,"Date MD occurred",null,"Non-Coincident"]
[null,null,null,null,"Coincident"]
[null,null,"Half hour time period MD occurred",null,"Non-Coincident"]
[null,null,null,null,"Coincident"]
[null,null,"Winter/Summer Peaking",null,"Non-Coincident"]
[null,null,null,null,"Coincident"]
[null,null,"Adjustments - Embedded generation","MW","Non-Coincident"]
[null,null,null,null,"Coincident"]
[null,null,"Weather Corrected MD 10% POE","MW","Non-Coincident"]
[null,null,null,null,"Coincident"]
[null,null,"Weather Corrected MD 10% POE","MVA","Non-Coincident"]
[null,null,null,null,"Coincident"]
[null,null,"Weather Corrected MD 50% POE","MW","Non-Coincident"]
[null,null,null,null,"Coincident"]
[null,null,"Weather Corrected MD 50% POE","MVA","Non-Coincident"]
[null,null,null,null,"Coincident"]
[null,"<Enter connection point name>","Connection Point Rating","MVA","Non-Coincident"]
[null,null,null,null,"Coincident"]
[null,null,"Raw Adjusted MD","MW","Non-Coincident"]
[null,null,null,null,"Coincident"]
[null,null,"Raw Adjusted MD","MVA","Non-Coincident"]
[null,null,null,null,"Coincident"]
[null,null,"Date MD occurred",null,"Non-Coincident"]
[null,null,null,null,"Coincident"]
[null,null,"Half hour time period MD occurred",null,"Non-Coincident"]
[null,null,null,null,"Coincident"]
[null,null,"Winter/Summer Peaking",null,"Non-Coincident"]
[null,null,null,null,"Coincident"]
[null,null,"Adjustments - Embedded generation","MW","Non-Coincident"]
[null,null,null,null,"Coincident"]
[null,null,"Weather Corrected MD 10% POE","MW","Non-Coincident"]
[null,null,null,null,"Coincident"]
[null,null,"Weather Corrected MD 10% POE","MVA","Non-Coincident"]
[null,null,null,null,"Coincident"]
[null,null,"Weather Corrected MD 50% POE","MW","Non-Coincident"]
[null,null,null,null,"Coincident"]
[null,null,"Weather Corrected MD 50% POE","MVA","Non-Coincident"]
[null,null,null,null,"Coincident"]
[null,"<Enter connection point name>","Connection Point Rating","MVA","Non-Coincident"]
[null,null,null,null,"Coincident"]
[null,null,"Raw Adjusted MD","MW","Non-Coincident"]
[null,null,null,null,"Coincident"]
[null,null,"Raw Adjusted MD","MVA","Non-Coincident"]
[null,null,null,null,"Coincident"]
[null,null,"Date MD occurred",null,"Non-Coincident"]
[null,null,null,null,"Coincident"]
[null,null,"Half hour time period MD occurred",null,"Non-Coincident"]
[null,null,null,null,"Coincident"]
[null,null,"Winter/Summer Peaking",null,"Non-Coincident"]
[null,null,null,null,"Coincident"]
[null,null,"Adjustments - Embedded generation","MW","Non-Coincident"]
[null,null,null,null,"Coincident"]
[null,null,"Weather Corrected MD 10% POE","MW","Non-Coincident"]
[null,null,null,null,"Coincident"]
[null,null,"Weather Corrected MD 10% POE","MVA","Non-Coincident"]
[null,null,null,null,"Coincident"]
[null,null,"Weather Corrected MD 50% POE","MW","Non-Coincident"]
[null,null,null,null,"Coincident"]
[null,null,"Weather Corrected MD 50% POE","MVA","Non-Coincident"]
[null,null,null,null,"Coincident"]
[null,"<Enter connection point name>","Connection Point Rating","MVA","Non-Coincident"]
[null,null,null,null,"Coincident"]
[null,null,"Raw Adjusted MD","MW","Non-Coincident"]
[null,null,null,null,"Coincident"]
[null,null,"Raw Adjusted MD","MVA","Non-Coincident"]
[null,null,null,null,"Coincident"]
[null,null,"Date MD occurred",null,"Non-Coincident"]
[null,null,null,null,"Coincident"]
[null,null,"Half hour time period MD occurred",null,"Non-Coincident"]
[null,null,null,null,"Coincident"]
[null,null,"Winter/Summer Peaking",null,"Non-Coincident"]
[null,null,null,null,"Coincident"]
[null,null,"Adjustments - Embedded generation","MW","Non-Coincident"]
[null,null,null,null,"Coincident"]
[null,null,"Weather Corrected MD 10% POE","MW","Non-Coincident"]
[null,null,null,null,"Coincident"]
[null,null,"Weather Corrected MD 10% POE","MVA","Non-Coincident"]
[null,null,null,null,"Coincident"]
[null,null,"Weather Corrected MD 50% POE","MW","Non-Coincident"]
[null,null,null,null,"Coincident"]
[null,null,"Weather Corrected MD 50% POE","MVA","Non-Coincident"]
[null,null,null,null,"Coincident"]
[null,"<Enter connection point name>","Connection Point Rating","MVA","Non-Coincident"]
[null,null,null,null,"Coincident"]
[null,null,"Raw Adjusted MD","MW","Non-Coincident"]
[null,null,null,null,"Coincident"]
[null,null,"Raw Adjusted MD","MVA","Non-Coincident"]
[null,null,null,null,"Coincident"]
[null,null,"Date MD occurred",null,"Non-Coincident"]
[null,null,null,null,"Coincident"]
[null,null,"Half hour time period MD occurred",null,"Non-Coincident"]
[null,null,null,null,"Coincident"]
[null,null,"Winter/Summer Peaking",null,"Non-Coincident"]
[null,null,null,null,"Coincident"]
[null,null,"Adjustments - Embedded generation","MW","Non-Coincident"]
[null,null,null,null,"Coincident"]
[null,null,"Weather Corrected MD 10% POE","MW","Non-Coincident"]
[null,null,null,null,"Coincident"]
[null,null,"Weather Corrected MD 10% POE","MVA","Non-Coincident"]
[null,null,null,null,"Coincident"]
[null,null,"Weather Corrected MD 50% POE","MW","Non-Coincident"]
[null,null,null,null,"Coincident"]
[null,null,"Weather Corrected MD 50% POE","MVA","Non-Coincident"]
[null,null,null,null,"Coincident"]
[null,"<Enter connection point name>","Connection Point Rating","MVA","Non-Coincident"]
[null,null,null,null,"Coincident"]
[null,null,"Raw Adjusted MD","MW","Non-Coincident"]
[null,null,null,null,"Coincident"]
[null,null,"Raw Adjusted MD","MVA","Non-Coincident"]
[null,null,null,null,"Coincident"]
[null,null,"Date MD occurred",null,"Non-Coincident"]
[null,null,null,null,"Coincident"]
[null,null,"Half hour time period MD occurred",null,"Non-Coincident"]
[null,null,null,null,"Coincident"]
[null,null,"Winter/Summer Peaking",null,"Non-Coincident"]
[null,null,null,null,"Coincident"]
[null,null,"Adjustments - Embedded generation","MW","Non-Coincident"]
[null,null,null,null,"Coincident"]
[null,null,"Weather Corrected MD 10% POE","MW","Non-Coincident"]
[null,null,null,null,"Coincident"]
[null,null,"Weather Corrected MD 10% POE","MVA","Non-Coincident"]
[null,null,null,null,"Coincident"]
[null,null,"Weather Corrected MD 50% POE","MW","Non-Coincident"]
[null,null,null,null,"Coincident"]
[null,null,"Weather Corrected MD 50% POE","MVA","Non-Coincident"]
[null,null,null,null,"Coincident"]
[null,"<Enter connection point name>","Connection Point Rating","MVA","Non-Coincident"]
[null,null,null,null,"Coincident"]
[null,null,"Raw Adjusted MD","MW","Non-Coincident"]
[null,null,null,null,"Coincident"]
[null,null,"Raw Adjusted MD","MVA","Non-Coincident"]
[null,null,null,null,"Coincident"]
[null,null,"Date MD occurred",null,"Non-Coincident"]
[null,null,null,null,"Coincident"]
[null,null,"Half hour time period MD occurred",null,"Non-Coincident"]
[null,null,null,null,"Coincident"]
[null,null,"Winter/Summer Peaking",null,"Non-Coincident"]
[null,null,null,null,"Coincident"]
[null,null,"Adjustments - Embedded generation","MW","Non-Coincident"]
[null,null,null,null,"Coincident"]
[null,null,"Weather Corrected MD 10% POE","MW","Non-Coincident"]
[null,null,null,null,"Coincident"]
[null,null,"Weather Corrected MD 10% POE","MVA","Non-Coincident"]
[null,null,null,null,"Coincident"]
[null,null,"Weather Corrected MD 50% POE","MW","Non-Coincident"]
[null,null,null,null,"Coincident"]
[null,null,"Weather Corrected MD 50% POE","MVA","Non-Coincident"]
[null,null,null,null,"Coincident"]
[null,"<Enter connection point name>","Connection Point Rating","MVA","Non-Coincident"]
[null,null,null,null,"Coincident"]
[null,null,"Raw Adjusted MD","MW","Non-Coincident"]
[null,null,null,null,"Coincident"]
[null,null,"Raw Adjusted MD","MVA","Non-Coincident"]
[null,null,null,null,"Coincident"]
[null,null,"Date MD occurred",null,"Non-Coincident"]
[null,null,null,null,"Coincident"]
[null,null,"Half hour time period MD occurred",null,"Non-Coincident"]
[null,null,null,null,"Coincident"]
[null,null,"Winter/Summer Peaking",null,"Non-Coincident"]
[null,null,null,null,"Coincident"]
[null,null,"Adjustments - Embedded generation","MW","Non-Coincident"]
[null,null,null,null,"Coincident"]
[null,null,"Weather Corrected MD 10% POE","MW","Non-Coincident"]
[null,null,null,null,"Coincident"]
[null,null,"Weather Corrected MD 10% POE","MVA","Non-Coincident"]
[null,null,null,null,"Coincident"]
[null,null,"Weather Corrected MD 50% POE","MW","Non-Coincident"]
[null,null,null,null,"Coincident"]
[null,null,"Weather Corrected MD 50% POE","MVA","Non-Coincident"]
[null,null,null,null,"Coincident"]
[null,"<Enter connection point name>","Connection Point Rating","MVA","Non-Coincident"]
[null,null,null,null,"Coincident"]
[null,null,"Raw Adjusted MD","MW","Non-Coincident"]
[null,null,null,null,"Coincident"]
[null,null,"Raw Adjusted MD","MVA","Non-Coincident"]
[null,null,null,null,"Coincident"]
[null,null,"Date MD occurred",null,"Non-Coincident"]
[null,null,null,null,"Coincident"]
[null,null,"Half hour time period MD occurred",null,"Non-Coincident"]
[null,null,null,null,"Coincident"]
[null,null,"Winter/Summer Peaking",null,"Non-Coincident"]
[null,null,null,null,"Coincident"]
[null,null,"Adjustments - Embedded generation","MW","Non-Coincident"]
[null,null,null,null,"Coincident"]
[null,null,"Weather Corrected MD 10% POE","MW","Non-Coincident"]
[null,null,null,null,"Coincident"]
[null,null,"Weather Corrected MD 10% POE","MVA","Non-Coincident"]
[null,null,null,null,"Coincident"]
[null,null,"Weather Corrected MD 50% POE","MW","Non-Coincident"]
[null,null,null,null,"Coincident"]
[null,null,"Weather Corrected MD 50% POE","MVA","Non-Coincident"]
[null,null,null,null,"Coincident"]
[null,"<Enter connection point name>","Connection Point Rating","MVA","Non-Coincident"]
[null,null,null,null,"Coincident"]
[null,null,"Raw Adjusted MD","MW","Non-Coincident"]
[null,null,null,null,"Coincident"]
[null,null,"Raw Adjusted MD","MVA","Non-Coincident"]
[null,null,null,null,"Coincident"]
[null,null,"Date MD occurred",null,"Non-Coincident"]
[null,null,null,null,"Coincident"]
[null,null,"Half hour time period MD occurred",null,"Non-Coincident"]
[null,null,null,null,"Coincident"]
[null,null,"Winter/Summer Peaking",null,"Non-Coincident"]
[null,null,null,null,"Coincident"]
[null,null,"Adjustments - Embedded generation","MW","Non-Coincident"]
[null,null,null,null,"Coincident"]
[null,null,"Weather Corrected MD 10% POE","MW","Non-Coincident"]
[null,null,null,null,"Coincident"]
[null,null,"Weather Corrected MD 10% POE","MVA","Non-Coincident"]
[null,null,null,null,"Coincident"]
[null,null,"Weather Corrected MD 50% POE","MW","Non-Coincident"]
[null,null,null,null,"Coincident"]
[null,null,"Weather Corrected MD 50% POE","MVA","Non-Coincident"]
[null,null,null,null,"Coincident"]
[null,"<Enter connection point name>","Connection Point Rating","MVA","Non-Coincident"]
[null,null,null,null,"Coincident"]
[null,null,"Raw Adjusted MD","MW","Non-Coincident"]
[null,null,null,null,"Coincident"]
[null,null,"Raw Adjusted MD","MVA","Non-Coincident"]
[null,null,null,null,"Coincident"]
[null,null,"Date MD occurred",null,"Non-Coincident"]
[null,null,null,null,"Coincident"]
[null,null,"Half hour time period MD occurred",null,"Non-Coincident"]
[null,null,null,null,"Coincident"]
[null,null,"Winter/Summer Peaking",null,"Non-Coincident"]
[null,null,null,null,"Coincident"]
[null,null,"Adjustments - Embedded generation","MW","Non-Coincident"]
[null,null,null,null,"Coincident"]
[null,null,"Weather Corrected MD 10% POE","MW","Non-Coincident"]
[null,null,null,null,"Coincident"]
[null,null,"Weather Corrected MD 10% POE","MVA","Non-Coincident"]
[null,null,null,null,"Coincident"]
[null,null,"Weather Corrected MD 50% POE","MW","Non-Coincident"]
[null,null,null,null,"Coincident"]
[null,null,"Weather Corrected MD 50% POE","MVA","Non-Coincident"]
[null,null,null,null,"Coincident"]
[null,"<Enter connection point name>","Connection Point Rating","MVA","Non-Coincident"]
[null,null,null,null,"Coincident"]
[null,null,"Raw Adjusted MD","MW","Non-Coincident"]
[null,null,null,null,"Coincident"]
[null,null,"Raw Adjusted MD","MVA","Non-Coincident"]
[null,null,null,null,"Coincident"]
[null,null,"Date MD occurred",null,"Non-Coincident"]
[null,null,null,null,"Coincident"]
[null,null,"Half hour time period MD occurred",null,"Non-Coincident"]
[null,null,null,null,"Coincident"]
[null,null,"Winter/Summer Peaking",null,"Non-Coincident"]
[null,null,null,null,"Coincident"]
[null,null,"Adjustments - Embedded generation","MW","Non-Coincident"]
[null,null,null,null,"Coincident"]
[null,null,"Weather Corrected MD 10% POE","MW","Non-Coincident"]
[null,null,null,null,"Coincident"]
[null,null,"Weather Corrected MD 10% POE","MVA","Non-Coincident"]
[null,null,null,null,"Coincident"]
[null,null,"Weather Corrected MD 50% POE","MW","Non-Coincident"]
[null,null,null,null,"Coincident"]
[null,null,"Weather Corrected MD 50% POE","MVA","Non-Coincident"]
[null,null,null,null,"Coincident"]
[null,"<Enter connection point name>","Connection Point Rating","MVA","Non-Coincident"]
[null,null,null,null,"Coincident"]
[null,null,"Raw Adjusted MD","MW","Non-Coincident"]
[null,null,null,null,"Coincident"]
[null,null,"Raw Adjusted MD","MVA","Non-Coincident"]
[null,null,null,null,"Coincident"]
[null,null,"Date MD occurred",null,"Non-Coincident"]
[null,null,null,null,"Coincident"]
[null,null,"Half hour time period MD occurred",null,"Non-Coincident"]
[null,null,null,null,"Coincident"]
[null,null,"Winter/Summer Peaking",null,"Non-Coincident"]
[null,null,null,null,"Coincident"]
[null,null,"Adjustments - Embedded generation","MW","Non-Coincident"]
[null,null,null,null,"Coincident"]
[null,null,"Weather Corrected MD 10% POE","MW","Non-Coincident"]
[null,null,null,null,"Coincident"]
[null,null,"Weather Corrected MD 10% POE","MVA","Non-Coincident"]
[null,null,null,null,"Coincident"]
[null,null,"Weather Corrected MD 50% POE","MW","Non-Coincident"]
[null,null,null,null,"Coincident"]
[null,null,"Weather Corrected MD 50% POE","MVA","Non-Coincident"]
[null,null,null,null,"Coincident"]
[null,"<Enter connection point name>","Connection Point Rating","MVA","Non-Coincident"]
[null,null,null,null,"Coincident"]
[null,null,"Raw Adjusted MD","MW","Non-Coincident"]
[null,null,null,null,"Coincident"]
[null,null,"Raw Adjusted MD","MVA","Non-Coincident"]
[null,null,null,null,"Coincident"]
[null,null,"Date MD occurred",null,"Non-Coincident"]
[null,null,null,null,"Coincident"]
[null,null,"Half hour time period MD occurred",null,"Non-Coincident"]
[null,null,null,null,"Coincident"]
[null,null,"Winter/Summer Peaking",null,"Non-Coincident"]
[null,null,null,null,"Coincident"]
[null,null,"Adjustments - Embedded generation","MW","Non-Coincident"]
[null,null,null,null,"Coincident"]
[null,null,"Weather Corrected MD 10% POE","MW","Non-Coincident"]
[null,null,null,null,"Coincident"]
[null,null,"Weather Corrected MD 10% POE","MVA","Non-Coincident"]
[null,null,null,null,"Coincident"]
[null,null,"Weather Corrected MD 50% POE","MW","Non-Coincident"]
[null,null,null,null,"Coincident"]
[null,null,"Weather Corrected MD 50% POE","MVA","Non-Coincident"]
[null,null,null,null,"Coincident"]
[null,"<Enter connection point name>","Connection Point Rating","MVA","Non-Coincident"]
[null,null,null,null,"Coincident"]
[null,null,"Raw Adjusted MD","MW","Non-Coincident"]
[null,null,null,null,"Coincident"]
[null,null,"Raw Adjusted MD","MVA","Non-Coincident"]
[null,null,null,null,"Coincident"]
[null,null,"Date MD occurred",null,"Non-Coincident"]
[null,null,null,null,"Coincident"]
[null,null,"Half hour time period MD occurred",null,"Non-Coincident"]
[null,null,null,null,"Coincident"]
[null,null,"Winter/Summer Peaking",null,"Non-Coincident"]
[null,null,null,null,"Coincident"]
[null,null,"Adjustments - Embedded generation","MW","Non-Coincident"]
[null,null,null,null,"Coincident"]
[null,null,"Weather Corrected MD 10% POE","MW","Non-Coincident"]
[null,null,null,null,"Coincident"]
[null,null,"Weather Corrected MD 10% POE","MVA","Non-Coincident"]
[null,null,null,null,"Coincident"]
[null,null,"Weather Corrected MD 50% POE","MW","Non-Coincident"]
[null,null,null,null,"Coincident"]
[null,null,"Weather Corrected MD 50% POE","MVA","Non-Coincident"]
[null,null,null,null,"Coincident"]
[null,"<Enter connection point name>","Connection Point Rating","MVA","Non-Coincident"]
[null,null,null,null,"Coincident"]
[null,null,"Raw Adjusted MD","MW","Non-Coincident"]
[null,null,null,null,"Coincident"]
[null,null,"Raw Adjusted MD","MVA","Non-Coincident"]
[null,null,null,null,"Coincident"]
[null,null,"Date MD occurred",null,"Non-Coincident"]
[null,null,null,null,"Coincident"]
[null,null,"Half hour time period MD occurred",null,"Non-Coincident"]
[null,null,null,null,"Coincident"]
[null,null,"Winter/Summer Peaking",null,"Non-Coincident"]
[null,null,null,null,"Coincident"]
[null,null,"Adjustments - Embedded generation","MW","Non-Coincident"]
[null,null,null,null,"Coincident"]
[null,null,"Weather Corrected MD 10% POE","MW","Non-Coincident"]
[null,null,null,null,"Coincident"]
[null,null,"Weather Corrected MD 10% POE","MVA","Non-Coincident"]
[null,null,null,null,"Coincident"]
[null,null,"Weather Corrected MD 50% POE","MW","Non-Coincident"]
[null,null,null,null,"Coincident"]
[null,null,"Weather Corrected MD 50% POE","MVA","Non-Coincident"]
[null,null,null,null,"Coincident"]
[null,"<Enter connection point name>","Connection Point Rating","MVA","Non-Coincident"]
[null,null,null,null,"Coincident"]
[null,null,"Raw Adjusted MD","MW","Non-Coincident"]
[null,null,null,null,"Coincident"]
[null,null,"Raw Adjusted MD","MVA","Non-Coincident"]
[null,null,null,null,"Coincident"]
[null,null,"Date MD occurred",null,"Non-Coincident"]
[null,null,null,null,"Coincident"]
[null,null,"Half hour time period MD occurred",null,"Non-Coincident"]
[null,null,null,null,"Coincident"]
[null,null,"Winter/Summer Peaking",null,"Non-Coincident"]
[null,null,null,null,"Coincident"]
[null,null,"Adjustments - Embedded generation","MW","Non-Coincident"]
[null,null,null,null,"Coincident"]
[null,null,"Weather Corrected MD 10% POE","MW","Non-Coincident"]
[null,null,null,null,"Coincident"]
[null,null,"Weather Corrected MD 10% POE","MVA","Non-Coincident"]
[null,null,null,null,"Coincident"]
[null,null,"Weather Corrected MD 50% POE","MW","Non-Coincident"]
[null,null,null,null,"Coincident"]
[null,null,"Weather Corrected MD 50% POE","MVA","Non-Coincident"]
[null,null,null,null,"Coincident"]
[null,"<Enter connection point name>","Connection Point Rating","MVA","Non-Coincident"]
[null,null,null,null,"Coincident"]
[null,null,"Raw Adjusted MD","MW","Non-Coincident"]
[null,null,null,null,"Coincident"]
[null,null,"Raw Adjusted MD","MVA","Non-Coincident"]
[null,null,null,null,"Coincident"]
[null,null,"Date MD occurred",null,"Non-Coincident"]
[null,null,null,null,"Coincident"]
[null,null,"Half hour time period MD occurred",null,"Non-Coincident"]
[null,null,null,null,"Coincident"]
[null,null,"Winter/Summer Peaking",null,"Non-Coincident"]
[null,null,null,null,"Coincident"]
[null,null,"Adjustments - Embedded generation","MW","Non-Coincident"]
[null,null,null,null,"Coincident"]
[null,null,"Weather Corrected MD 10% POE","MW","Non-Coincident"]
[null,null,null,null,"Coincident"]
[null,null,"Weather Corrected MD 10% POE","MVA","Non-Coincident"]
[null,null,null,null,"Coincident"]
[null,null,"Weather Corrected MD 50% POE","MW","Non-Coincident"]
[null,null,null,null,"Coincident"]
[null,null,"Weather Corrected MD 50% POE","MVA","Non-Coincident"]
[null,null,null,null,"Coincident"]
[null,"<Enter connection point name>","Connection Point Rating","MVA","Non-Coincident"]
[null,null,null,null,"Coincident"]
[null,null,"Raw Adjusted MD","MW","Non-Coincident"]
[null,null,null,null,"Coincident"]
[null,null,"Raw Adjusted MD","MVA","Non-Coincident"]
[null,null,null,null,"Coincident"]
[null,null,"Date MD occurred",null,"Non-Coincident"]
[null,null,null,null,"Coincident"]
[null,null,"Half hour time period MD occurred",null,"Non-Coincident"]
[null,null,null,null,"Coincident"]
[null,null,"Winter/Summer Peaking",null,"Non-Coincident"]
[null,null,null,null,"Coincident"]
[null,null,"Adjustments - Embedded generation","MW","Non-Coincident"]
[null,null,null,null,"Coincident"]
[null,null,"Weather Corrected MD 10% POE","MW","Non-Coincident"]
[null,null,null,null,"Coincident"]
[null,null,"Weather Corrected MD 10% POE","MVA","Non-Coincident"]
[null,null,null,null,"Coincident"]
[null,null,"Weather Corrected MD 50% POE","MW","Non-Coincident"]
[null,null,null,null,"Coincident"]
[null,null,"Weather Corrected MD 50% POE","MVA","Non-Coincident"]
[null,null,null,null,"Coincident"]
[null,"<Enter connection point name>","Connection Point Rating","MVA","Non-Coincident"]
[null,null,null,null,"Coincident"]
[null,null,"Raw Adjusted MD","MW","Non-Coincident"]
[null,null,null,null,"Coincident"]
[null,null,"Raw Adjusted MD","MVA","Non-Coincident"]
[null,null,null,null,"Coincident"]
[null,null,"Date MD occurred",null,"Non-Coincident"]
[null,null,null,null,"Coincident"]
[null,null,"Half hour time period MD occurred",null,"Non-Coincident"]
[null,null,null,null,"Coincident"]
[null,null,"Winter/Summer Peaking",null,"Non-Coincident"]
[null,null,null,null,"Coincident"]
[null,null,"Adjustments - Embedded generation","MW","Non-Coincident"]
[null,null,null,null,"Coincident"]
[null,null,"Weather Corrected MD 10% POE","MW","Non-Coincident"]
[null,null,null,null,"Coincident"]
[null,null,"Weather Corrected MD 10% POE","MVA","Non-Coincident"]
[null,null,null,null,"Coincident"]
[null,null,"Weather Corrected MD 50% POE","MW","Non-Coincident"]
[null,null,null,null,"Coincident"]
[null,null,"Weather Corrected MD 50% POE","MVA","Non-Coincident"]
[null,null,null,null,"Coincident"]
[null,"<Enter connection point name>","Connection Point Rating","MVA","Non-Coincident"]
[null,null,null,null,"Coincident"]
[null,null,"Raw Adjusted MD","MW","Non-Coincident"]
[null,null,null,null,"Coincident"]
[null,null,"Raw Adjusted MD","MVA","Non-Coincident"]
[null,null,null,null,"Coincident"]
[null,null,"Date MD occurred",null,"Non-Coincident"]
[null,null,null,null,"Coincident"]
[null,null,"Half hour time period MD occurred",null,"Non-Coincident"]
[null,null,null,null,"Coincident"]
[null,null,"Winter/Summer Peaking",null,"Non-Coincident"]
[null,null,null,null,"Coincident"]
[null,null,"Adjustments - Embedded generation","MW","Non-Coincident"]
[null,null,null,null,"Coincident"]
[null,null,"Weather Corrected MD 10% POE","MW","Non-Coincident"]
[null,null,null,null,"Coincident"]
[null,null,"Weather Corrected MD 10% POE","MVA","Non-Coincident"]
[null,null,null,null,"Coincident"]
[null,null,"Weather Corrected MD 50% POE","MW","Non-Coincident"]
[null,null,null,null,"Coincident"]
[null,null,"Weather Corrected MD 50% POE","MVA","Non-Coincident"]
[null,null,null,null,"Coincident"]
[null,"<Enter connection point name>","Connection Point Rating","MVA","Non-Coincident"]
[null,null,null,null,"Coincident"]
[null,null,"Raw Adjusted MD","MW","Non-Coincident"]
[null,null,null,null,"Coincident"]
[null,null,"Raw Adjusted MD","MVA","Non-Coincident"]
[null,null,null,null,"Coincident"]
[null,null,"Date MD occurred",null,"Non-Coincident"]
[null,null,null,null,"Coincident"]
[null,null,"Half hour time period MD occurred",null,"Non-Coincident"]
[null,null,null,null,"Coincident"]
[null,null,"Winter/Summer Peaking",null,"Non-Coincident"]
[null,null,null,null,"Coincident"]
[null,null,"Adjustments - Embedded generation","MW","Non-Coincident"]
[null,null,null,null,"Coincident"]
[null,null,"Weather Corrected MD 10% POE","MW","Non-Coincident"]
[null,null,null,null,"Coincident"]
[null,null,"Weather Corrected MD 10% POE","MVA","Non-Coincident"]
[null,null,null,null,"Coincident"]
[null,null,"Weather Corrected MD 50% POE","MW","Non-Coincident"]
[null,null,null,null,"Coincident"]
[null,null,"Weather Corrected MD 50% POE","MVA","Non-Coincident"]
[null,null,null,null,"Coincident"]
[null,"<Enter connection point name>","Connection Point Rating","MVA","Non-Coincident"]
[null,null,null,null,"Coincident"]
[null,null,"Raw Adjusted MD","MW","Non-Coincident"]
[null,null,null,null,"Coincident"]
[null,null,"Raw Adjusted MD","MVA","Non-Coincident"]
[null,null,null,null,"Coincident"]
[null,null,"Date MD occurred",null,"Non-Coincident"]
[null,null,null,null,"Coincident"]
[null,null,"Half hour time period MD occurred",null,"Non-Coincident"]
[null,null,null,null,"Coincident"]
[null,null,"Winter/Summer Peaking",null,"Non-Coincident"]
[null,null,null,null,"Coincident"]
[null,null,"Adjustments - Embedded generation","MW","Non-Coincident"]
[null,null,null,null,"Coincident"]
[null,null,"Weather Corrected MD 10% POE","MW","Non-Coincident"]
[null,null,null,null,"Coincident"]
[null,null,"Weather Corrected MD 10% POE","MVA","Non-Coincident"]
[null,null,null,null,"Coincident"]
[null,null,"Weather Corrected MD 50% POE","MW","Non-Coincident"]
[null,null,null,null,"Coincident"]
[null,null,"Weather Corrected MD 50% POE","MVA","Non-Coincident"]
[null,null,null,null,"Coincident"]
[null,"<Enter connection point name>","Connection Point Rating","MVA","Non-Coincident"]
[null,null,null,null,"Coincident"]
[null,null,"Raw Adjusted MD","MW","Non-Coincident"]
[null,null,null,null,"Coincident"]
[null,null,"Raw Adjusted MD","MVA","Non-Coincident"]
[null,null,null,null,"Coincident"]
[null,null,"Date MD occurred",null,"Non-Coincident"]
[null,null,null,null,"Coincident"]
[null,null,"Half hour time period MD occurred",null,"Non-Coincident"]
[null,null,null,null,"Coincident"]
[null,null,"Winter/Summer Peaking",null,"Non-Coincident"]
[null,null,null,null,"Coincident"]
[null,null,"Adjustments - Embedded generation","MW","Non-Coincident"]
[null,null,null,null,"Coincident"]
[null,null,"Weather Corrected MD 10% POE","MW","Non-Coincident"]
[null,null,null,null,"Coincident"]
[null,null,"Weather Corrected MD 10% POE","MVA","Non-Coincident"]
[null,null,null,null,"Coincident"]
[null,null,"Weather Corrected MD 50% POE","MW","Non-Coincident"]
[null,null,null,null,"Coincident"]
[null,null,"Weather Corrected MD 50% POE","MVA","Non-Coincident"]
[null,null,null,null,"Coincident"]
[null,"<Enter connection point name>","Connection Point Rating","MVA","Non-Coincident"]
[null,null,null,null,"Coincident"]
[null,null,"Raw Adjusted MD","MW","Non-Coincident"]
[null,null,null,null,"Coincident"]
[null,null,"Raw Adjusted MD","MVA","Non-Coincident"]
[null,null,null,null,"Coincident"]
[null,null,"Date MD occurred",null,"Non-Coincident"]
[null,null,null,null,"Coincident"]
[null,null,"Half hour time period MD occurred",null,"Non-Coincident"]
[null,null,null,null,"Coincident"]
[null,null,"Winter/Summer Peaking",null,"Non-Coincident"]
[null,null,null,null,"Coincident"]
[null,null,"Adjustments - Embedded generation","MW","Non-Coincident"]
[null,null,null,null,"Coincident"]
[null,null,"Weather Corrected MD 10% POE","MW","Non-Coincident"]
[null,null,null,null,"Coincident"]
[null,null,"Weather Corrected MD 10% POE","MVA","Non-Coincident"]
[null,null,null,null,"Coincident"]
[null,null,"Weather Corrected MD 50% POE","MW","Non-Coincident"]
[null,null,null,null,"Coincident"]
[null,null,"Weather Corrected MD 50% POE","MVA","Non-Coincident"]
[null,null,null,null,"Coincident"]
[null,"<Enter connection point name>","Connection Point Rating","MVA","Non-Coincident"]
[null,null,null,null,"Coincident"]
[null,null,"Raw Adjusted MD","MW","Non-Coincident"]
[null,null,null,null,"Coincident"]
[null,null,"Raw Adjusted MD","MVA","Non-Coincident"]
[null,null,null,null,"Coincident"]
[null,null,"Date MD occurred",null,"Non-Coincident"]
[null,null,null,null,"Coincident"]
[null,null,"Half hour time period MD occurred",null,"Non-Coincident"]
[null,null,null,null,"Coincident"]
[null,null,"Winter/Summer Peaking",null,"Non-Coincident"]
[null,null,null,null,"Coincident"]
[null,null,"Adjustments - Embedded generation","MW","Non-Coincident"]
[null,null,null,null,"Coincident"]
[null,null,"Weather Corrected MD 10% POE","MW","Non-Coincident"]
[null,null,null,null,"Coincident"]
[null,null,"Weather Corrected MD 10% POE","MVA","Non-Coincident"]
[null,null,null,null,"Coincident"]
[null,null,"Weather Corrected MD 50% POE","MW","Non-Coincident"]
[null,null,null,null,"Coincident"]
[null,null,"Weather Corrected MD 50% POE","MVA","Non-Coincident"]
[null,null,null,null,"Coincident"]
[null,"<Enter connection point name>","Connection Point Rating","MVA","Non-Coincident"]
[null,null,null,null,"Coincident"]
[null,null,"Raw Adjusted MD","MW","Non-Coincident"]
[null,null,null,null,"Coincident"]
[null,null,"Raw Adjusted MD","MVA","Non-Coincident"]
[null,null,null,null,"Coincident"]
[null,null,"Date MD occurred",null,"Non-Coincident"]
[null,null,null,null,"Coincident"]
[null,null,"Half hour time period MD occurred",null,"Non-Coincident"]
[null,null,null,null,"Coincident"]
[null,null,"Winter/Summer Peaking",null,"Non-Coincident"]
[null,null,null,null,"Coincident"]
[null,null,"Adjustments - Embedded generation","MW","Non-Coincident"]
[null,null,null,null,"Coincident"]
[null,null,"Weather Corrected MD 10% POE","MW","Non-Coincident"]
[null,null,null,null,"Coincident"]
[null,null,"Weather Corrected MD 10% POE","MVA","Non-Coincident"]
[null,null,null,null,"Coincident"]
[null,null,"Weather Corrected MD 50% POE","MW","Non-Coincident"]
[null,null,null,null,"Coincident"]
[null,null,"Weather Corrected MD 50% POE","MVA","Non-Coincident"]
[null,null,null,null,"Coincident"]
[null,"<Enter connection point name>","Connection Point Rating","MVA","Non-Coincident"]
[null,null,null,null,"Coincident"]
[null,null,"Raw Adjusted MD","MW","Non-Coincident"]
[null,null,null,null,"Coincident"]
[null,null,"Raw Adjusted MD","MVA","Non-Coincident"]
[null,null,null,null,"Coincident"]
[null,null,"Date MD occurred",null,"Non-Coincident"]
[null,null,null,null,"Coincident"]
[null,null,"Half hour time period MD occurred",null,"Non-Coincident"]
[null,null,null,null,"Coincident"]
[null,null,"Winter/Summer Peaking",null,"Non-Coincident"]
[null,null,null,null,"Coincident"]
[null,null,"Adjustments - Embedded generation","MW","Non-Coincident"]
[null,null,null,null,"Coincident"]
[null,null,"Weather Corrected MD 10% POE","MW","Non-Coincident"]
[null,null,null,null,"Coincident"]
[null,null,"Weather Corrected MD 10% POE","MVA","Non-Coincident"]
[null,null,null,null,"Coincident"]
[null,null,"Weather Corrected MD 50% POE","MW","Non-Coincident"]
[null,null,null,null,"Coincident"]
[null,null,"Weather Corrected MD 50% POE","MVA","Non-Coincident"]
[null,null,null,null,"Coincident"]
[null,"<Enter connection point name>","Connection Point Rating","MVA","Non-Coincident"]
[null,null,null,null,"Coincident"]
[null,null,"Raw Adjusted MD","MW","Non-Coincident"]
[null,null,null,null,"Coincident"]
[null,null,"Raw Adjusted MD","MVA","Non-Coincident"]
[null,null,null,null,"Coincident"]
[null,null,"Date MD occurred",null,"Non-Coincident"]
[null,null,null,null,"Coincident"]
[null,null,"Half hour time period MD occurred",null,"Non-Coincident"]
[null,null,null,null,"Coincident"]
[null,null,"Winter/Summer Peaking",null,"Non-Coincident"]
[null,null,null,null,"Coincident"]
[null,null,"Adjustments - Embedded generation","MW","Non-Coincident"]
[null,null,null,null,"Coincident"]
[null,null,"Weather Corrected MD 10% POE","MW","Non-Coincident"]
[null,null,null,null,"Coincident"]
[null,null,"Weather Corrected MD 10% POE","MVA","Non-Coincident"]
[null,null,null,null,"Coincident"]
[null,null,"Weather Corrected MD 50% POE","MW","Non-Coincident"]
[null,null,null,null,"Coincident"]
[null,null,"Weather Corrected MD 50% POE","MVA","Non-Coincident"]
[null,null,null,null,"Coincident"]
[null,"<Enter connection point name>","Connection Point Rating","MVA","Non-Coincident"]
[null,null,null,null,"Coincident"]
[null,null,"Raw Adjusted MD","MW","Non-Coincident"]
[null,null,null,null,"Coincident"]
[null,null,"Raw Adjusted MD","MVA","Non-Coincident"]
[null,null,null,null,"Coincident"]
[null,null,"Date MD occurred",null,"Non-Coincident"]
[null,null,null,null,"Coincident"]
[null,null,"Half hour time period MD occurred",null,"Non-Coincident"]
[null,null,null,null,"Coincident"]
[null,null,"Winter/Summer Peaking",null,"Non-Coincident"]
[null,null,null,null,"Coincident"]
[null,null,"Adjustments - Embedded generation","MW","Non-Coincident"]
[null,null,null,null,"Coincident"]
[null,null,"Weather Corrected MD 10% POE","MW","Non-Coincident"]
[null,null,null,null,"Coincident"]
[null,null,"Weather Corrected MD 10% POE","MVA","Non-Coincident"]
[null,null,null,null,"Coincident"]
[null,null,"Weather Corrected MD 50% POE","MW","Non-Coincident"]
[null,null,null,null,"Coincident"]
[null,null,"Weather Corrected MD 50% POE","MVA","Non-Coincident"]
[null,null,null,null,"Coincident"]
[null,"<Enter connection point name>","Connection Point Rating","MVA","Non-Coincident"]
[null,null,null,null,"Coincident"]
[null,null,"Raw Adjusted MD","MW","Non-Coincident"]
[null,null,null,null,"Coincident"]
[null,null,"Raw Adjusted MD","MVA","Non-Coincident"]
[null,null,null,null,"Coincident"]
[null,null,"Date MD occurred",null,"Non-Coincident"]
[null,null,null,null,"Coincident"]
[null,null,"Half hour time period MD occurred",null,"Non-Coincident"]
[null,null,null,null,"Coincident"]
[null,null,"Winter/Summer Peaking",null,"Non-Coincident"]
[null,null,null,null,"Coincident"]
[null,null,"Adjustments - Embedded generation","MW","Non-Coincident"]
[null,null,null,null,"Coincident"]
[null,null,"Weather Corrected MD 10% POE","MW","Non-Coincident"]
[null,null,null,null,"Coincident"]
[null,null,"Weather Corrected MD 10% POE","MVA","Non-Coincident"]
[null,null,null,null,"Coincident"]
[null,null,"Weather Corrected MD 50% POE","MW","Non-Coincident"]
[null,null,null,null,"Coincident"]
[null,null,"Weather Corrected MD 50% POE","MVA","Non-Coincident"]
[null,null,null,null,"Coincident"]
[null,"<Enter connection point name>","Connection Point Rating","MVA","Non-Coincident"]
[null,null,null,null,"Coincident"]
[null,null,"Raw Adjusted MD","MW","Non-Coincident"]
[null,null,null,null,"Coincident"]
[null,null,"Raw Adjusted MD","MVA","Non-Coincident"]
[null,null,null,null,"Coincident"]
[null,null,"Date MD occurred",null,"Non-Coincident"]
[null,null,null,null,"Coincident"]
[null,null,"Half hour time period MD occurred",null,"Non-Coincident"]
[null,null,null,null,"Coincident"]
[null,null,"Winter/Summer Peaking",null,"Non-Coincident"]
[null,null,null,null,"Coincident"]
[null,null,"Adjustments - Embedded generation","MW","Non-Coincident"]
[null,null,null,null,"Coincident"]
[null,null,"Weather Corrected MD 10% POE","MW","Non-Coincident"]
[null,null,null,null,"Coincident"]
[null,null,"Weather Corrected MD 10% POE","MVA","Non-Coincident"]
[null,null,null,null,"Coincident"]
[null,null,"Weather Corrected MD 50% POE","MW","Non-Coincident"]
[null,null,null,null,"Coincident"]
[null,null,"Weather Corrected MD 50% POE","MVA","Non-Coincident"]
[null,null,null,null,"Coincident"]
[null,"<Enter connection point name>","Connection Point Rating","MVA","Non-Coincident"]
[null,null,null,null,"Coincident"]
[null,null,"Raw Adjusted MD","MW","Non-Coincident"]
[null,null,null,null,"Coincident"]
[null,null,"Raw Adjusted MD","MVA","Non-Coincident"]
[null,null,null,null,"Coincident"]
[null,null,"Date MD occurred",null,"Non-Coincident"]
[null,null,null,null,"Coincident"]
[null,null,"Half hour time period MD occurred",null,"Non-Coincident"]
[null,null,null,null,"Coincident"]
[null,null,"Winter/Summer Peaking",null,"Non-Coincident"]
[null,null,null,null,"Coincident"]
[null,null,"Adjustments - Embedded generation","MW","Non-Coincident"]
[null,null,null,null,"Coincident"]
[null,null,"Weather Corrected MD 10% POE","MW","Non-Coincident"]
[null,null,null,null,"Coincident"]
[null,null,"Weather Corrected MD 10% POE","MVA","Non-Coincident"]
[null,null,null,null,"Coincident"]
[null,null,"Weather Corrected MD 50% POE","MW","Non-Coincident"]
[null,null,null,null,"Coincident"]
[null,null,"Weather Corrected MD 50% POE","MVA","Non-Coincident"]
[null,null,null,null,"Coincident"]
[null,"<Enter connection point name>","Connection Point Rating","MVA","Non-Coincident"]
[null,null,null,null,"Coincident"]
[null,null,"Raw Adjusted MD","MW","Non-Coincident"]
[null,null,null,null,"Coincident"]
[null,null,"Raw Adjusted MD","MVA","Non-Coincident"]
[null,null,null,null,"Coincident"]
[null,null,"Date MD occurred",null,"Non-Coincident"]
[null,null,null,null,"Coincident"]
[null,null,"Half hour time period MD occurred",null,"Non-Coincident"]
[null,null,null,null,"Coincident"]
[null,null,"Winter/Summer Peaking",null,"Non-Coincident"]
[null,null,null,null,"Coincident"]
[null,null,"Adjustments - Embedded generation","MW","Non-Coincident"]
[null,null,null,null,"Coincident"]
[null,null,"Weather Corrected MD 10% POE","MW","Non-Coincident"]
[null,null,null,null,"Coincident"]
[null,null,"Weather Corrected MD 10% POE","MVA","Non-Coincident"]
[null,null,null,null,"Coincident"]
[null,null,"Weather Corrected MD 50% POE","MW","Non-Coincident"]
[null,null,null,null,"Coincident"]
[null,null,"Weather Corrected MD 50% POE","MVA","Non-Coincident"]
[null,null,null,null,"Coincident"]
[null,"<Enter connection point name>","Connection Point Rating","MVA","Non-Coincident"]
[null,null,null,null,"Coincident"]
[null,null,"Raw Adjusted MD","MW","Non-Coincident"]
[null,null,null,null,"Coincident"]
[null,null,"Raw Adjusted MD","MVA","Non-Coincident"]
[null,null,null,null,"Coincident"]
[null,null,"Date MD occurred",null,"Non-Coincident"]
[null,null,null,null,"Coincident"]
[null,null,"Half hour time period MD occurred",null,"Non-Coincident"]
[null,null,null,null,"Coincident"]
[null,null,"Winter/Summer Peaking",null,"Non-Coincident"]
[null,null,null,null,"Coincident"]
[null,null,"Adjustments - Embedded generation","MW","Non-Coincident"]
[null,null,null,null,"Coincident"]
[null,null,"Weather Corrected MD 10% POE","MW","Non-Coincident"]
[null,null,null,null,"Coincident"]
[null,null,"Weather Corrected MD 10% POE","MVA","Non-Coincident"]
[null,null,null,null,"Coincident"]
[null,null,"Weather Corrected MD 50% POE","MW","Non-Coincident"]
[null,null,null,null,"Coincident"]
[null,null,"Weather Corrected MD 50% POE","MVA","Non-Coincident"]
[null,null,null,null,"Coincident"]
[null,"<Enter connection point name>","Connection Point Rating","MVA","Non-Coincident"]
[null,null,null,null,"Coincident"]
[null,null,"Raw Adjusted MD","MW","Non-Coincident"]
[null,null,null,null,"Coincident"]
[null,null,"Raw Adjusted MD","MVA","Non-Coincident"]
[null,null,null,null,"Coincident"]
[null,null,"Date MD occurred",null,"Non-Coincident"]
[null,null,null,null,"Coincident"]
[null,null,"Half hour time period MD occurred",null,"Non-Coincident"]
[null,null,null,null,"Coincident"]
[null,null,"Winter/Summer Peaking",null,"Non-Coincident"]
[null,null,null,null,"Coincident"]
[null,null,"Adjustments - Embedded generation","MW","Non-Coincident"]
[null,null,null,null,"Coincident"]
[null,null,"Weather Corrected MD 10% POE","MW","Non-Coincident"]
[null,null,null,null,"Coincident"]
[null,null,"Weather Corrected MD 10% POE","MVA","Non-Coincident"]
[null,null,null,null,"Coincident"]
[null,null,"Weather Corrected MD 50% POE","MW","Non-Coincident"]
[null,null,null,null,"Coincident"]
[null,null,"Weather Corrected MD 50% POE","MVA","Non-Coincident"]
[null,null,null,null,"Coincident"]
[null,"<Enter connection point name>","Connection Point Rating","MVA","Non-Coincident"]
[null,null,null,null,"Coincident"]
[null,null,"Raw Adjusted MD","MW","Non-Coincident"]
[null,null,null,null,"Coincident"]
[null,null,"Raw Adjusted MD","MVA","Non-Coincident"]
[null,null,null,null,"Coincident"]
[null,null,"Date MD occurred",null,"Non-Coincident"]
[null,null,null,null,"Coincident"]
[null,null,"Half hour time period MD occurred",null,"Non-Coincident"]
[null,null,null,null,"Coincident"]
[null,null,"Winter/Summer Peaking",null,"Non-Coincident"]
[null,null,null,null,"Coincident"]
[null,null,"Adjustments - Embedded generation","MW","Non-Coincident"]
[null,null,null,null,"Coincident"]
[null,null,"Weather Corrected MD 10% POE","MW","Non-Coincident"]
[null,null,null,null,"Coincident"]
[null,null,"Weather Corrected MD 10% POE","MVA","Non-Coincident"]
[null,null,null,null,"Coincident"]
[null,null,"Weather Corrected MD 50% POE","MW","Non-Coincident"]
[null,null,null,null,"Coincident"]
[null,null,"Weather Corrected MD 50% POE","MVA","Non-Coincident"]
[null,null,null,null,"Coincident"]
[null,"<Enter connection point name>","Connection Point Rating","MVA","Non-Coincident"]
[null,null,null,null,"Coincident"]
[null,null,"Raw Adjusted MD","MW","Non-Coincident"]
[null,null,null,null,"Coincident"]
[null,null,"Raw Adjusted MD","MVA","Non-Coincident"]
[null,null,null,null,"Coincident"]
[null,null,"Date MD occurred",null,"Non-Coincident"]
[null,null,null,null,"Coincident"]
[null,null,"Half hour time period MD occurred",null,"Non-Coincident"]
[null,null,null,null,"Coincident"]
[null,null,"Winter/Summer Peaking",null,"Non-Coincident"]
[null,null,null,null,"Coincident"]
[null,null,"Adjustments - Embedded generation","MW","Non-Coincident"]
[null,null,null,null,"Coincident"]
[null,null,"Weather Corrected MD 10% POE","MW","Non-Coincident"]
[null,null,null,null,"Coincident"]
[null,null,"Weather Corrected MD 10% POE","MVA","Non-Coincident"]
[null,null,null,null,"Coincident"]
[null,null,"Weather Corrected MD 50% POE","MW","Non-Coincident"]
[null,null,null,null,"Coincident"]
[null,null,"Weather Corrected MD 50% POE","MVA","Non-Coincident"]
[null,null,null,null,"Coincident"]
[null,"<Enter connection point name>","Connection Point Rating","MVA","Non-Coincident"]
[null,null,null,null,"Coincident"]
[null,null,"Raw Adjusted MD","MW","Non-Coincident"]
[null,null,null,null,"Coincident"]
[null,null,"Raw Adjusted MD","MVA","Non-Coincident"]
[null,null,null,null,"Coincident"]
[null,null,"Date MD occurred",null,"Non-Coincident"]
[null,null,null,null,"Coincident"]
[null,null,"Half hour time period MD occurred",null,"Non-Coincident"]
[null,null,null,null,"Coincident"]
[null,null,"Winter/Summer Peaking",null,"Non-Coincident"]
[null,null,null,null,"Coincident"]
[null,null,"Adjustments - Embedded generation","MW","Non-Coincident"]
[null,null,null,null,"Coincident"]
[null,null,"Weather Corrected MD 10% POE","MW","Non-Coincident"]
[null,null,null,null,"Coincident"]
[null,null,"Weather Corrected MD 10% POE","MVA","Non-Coincident"]
[null,null,null,null,"Coincident"]
[null,null,"Weather Corrected MD 50% POE","MW","Non-Coincident"]
[null,null,null,null,"Coincident"]
[null,null,"Weather Corrected MD 50% POE","MVA","Non-Coincident"]
[null,null,null,null,"Coincident"]
[null,"<Enter connection point name>","Connection Point Rating","MVA","Non-Coincident"]
[null,null,null,null,"Coincident"]
[null,null,"Raw Adjusted MD","MW","Non-Coincident"]
[null,null,null,null,"Coincident"]
[null,null,"Raw Adjusted MD","MVA","Non-Coincident"]
[null,null,null,null,"Coincident"]
[null,null,"Date MD occurred",null,"Non-Coincident"]
[null,null,null,null,"Coincident"]
[null,null,"Half hour time period MD occurred",null,"Non-Coincident"]
[null,null,null,null,"Coincident"]
[null,null,"Winter/Summer Peaking",null,"Non-Coincident"]
[null,null,null,null,"Coincident"]
[null,null,"Adjustments - Embedded generation","MW","Non-Coincident"]
[null,null,null,null,"Coincident"]
[null,null,"Weather Corrected MD 10% POE","MW","Non-Coincident"]
[null,null,null,null,"Coincident"]
[null,null,"Weather Corrected MD 10% POE","MVA","Non-Coincident"]
[null,null,null,null,"Coincident"]
[null,null,"Weather Corrected MD 50% POE","MW","Non-Coincident"]
[null,null,null,null,"Coincident"]
[null,null,"Weather Corrected MD 50% POE","MVA","Non-Coincident"]
[null,null,null,null,"Coincident"]
[null,"<Enter connection point name>","Connection Point Rating","MVA","Non-Coincident"]
[null,null,null,null,"Coincident"]
[null,null,"Raw Adjusted MD","MW","Non-Coincident"]
[null,null,null,null,"Coincident"]
[null,null,"Raw Adjusted MD","MVA","Non-Coincident"]
[null,null,null,null,"Coincident"]
[null,null,"Date MD occurred",null,"Non-Coincident"]
[null,null,null,null,"Coincident"]
[null,null,"Half hour time period MD occurred",null,"Non-Coincident"]
[null,null,null,null,"Coincident"]
[null,null,"Winter/Summer Peaking",null,"Non-Coincident"]
[null,null,null,null,"Coincident"]
[null,null,"Adjustments - Embedded generation","MW","Non-Coincident"]
[null,null,null,null,"Coincident"]
[null,null,"Weather Corrected MD 10% POE","MW","Non-Coincident"]
[null,null,null,null,"Coincident"]
[null,null,"Weather Corrected MD 10% POE","MVA","Non-Coincident"]
[null,null,null,null,"Coincident"]
[null,null,"Weather Corrected MD 50% POE","MW","Non-Coincident"]
[null,null,null,null,"Coincident"]
[null,null,"Weather Corrected MD 50% POE","MVA","Non-Coincident"]
[null,null,null,null,"Coincident"]
[null,"<Enter connection point name>","Connection Point Rating","MVA","Non-Coincident"]
[null,null,null,null,"Coincident"]
[null,null,"Raw Adjusted MD","MW","Non-Coincident"]
[null,null,null,null,"Coincident"]
[null,null,"Raw Adjusted MD","MVA","Non-Coincident"]
[null,null,null,null,"Coincident"]
[null,null,"Date MD occurred",null,"Non-Coincident"]
[null,null,null,null,"Coincident"]
[null,null,"Half hour time period MD occurred",null,"Non-Coincident"]
[null,null,null,null,"Coincident"]
[null,null,"Winter/Summer Peaking",null,"Non-Coincident"]
[null,null,null,null,"Coincident"]
[null,null,"Adjustments - Embedded generation","MW","Non-Coincident"]
[null,null,null,null,"Coincident"]
[null,null,"Weather Corrected MD 10% POE","MW","Non-Coincident"]
[null,null,null,null,"Coincident"]
[null,null,"Weather Corrected MD 10% POE","MVA","Non-Coincident"]
[null,null,null,null,"Coincident"]
[null,null,"Weather Corrected MD 50% POE","MW","Non-Coincident"]
[null,null,null,null,"Coincident"]
[null,null,"Weather Corrected MD 50% POE","MVA","Non-Coincident"]
[null,null,null,null,"Coincident"]
[null,"<Enter connection point name>","Connection Point Rating","MVA","Non-Coincident"]
[null,null,null,null,"Coincident"]
[null,null,"Raw Adjusted MD","MW","Non-Coincident"]
[null,null,null,null,"Coincident"]
[null,null,"Raw Adjusted MD","MVA","Non-Coincident"]
[null,null,null,null,"Coincident"]
[null,null,"Date MD occurred",null,"Non-Coincident"]
[null,null,null,null,"Coincident"]
[null,null,"Half hour time period MD occurred",null,"Non-Coincident"]
[null,null,null,null,"Coincident"]
[null,null,"Winter/Summer Peaking",null,"Non-Coincident"]
[null,null,null,null,"Coincident"]
[null,null,"Adjustments - Embedded generation","MW","Non-Coincident"]
[null,null,null,null,"Coincident"]
[null,null,"Weather Corrected MD 10% POE","MW","Non-Coincident"]
[null,null,null,null,"Coincident"]
[null,null,"Weather Corrected MD 10% POE","MVA","Non-Coincident"]
[null,null,null,null,"Coincident"]
[null,null,"Weather Corrected MD 50% POE","MW","Non-Coincident"]
[null,null,null,null,"Coincident"]
[null,null,"Weather Corrected MD 50% POE","MVA","Non-Coincident"]
[null,null,null,null,"Coincident"]
[null,"<Enter connection point name>","Connection Point Rating","MVA","Non-Coincident"]
[null,null,null,null,"Coincident"]
[null,null,"Raw Adjusted MD","MW","Non-Coincident"]
[null,null,null,null,"Coincident"]
[null,null,"Raw Adjusted MD","MVA","Non-Coincident"]
[null,null,null,null,"Coincident"]
[null,null,"Date MD occurred",null,"Non-Coincident"]
[null,null,null,null,"Coincident"]
[null,null,"Half hour time period MD occurred",null,"Non-Coincident"]
[null,null,null,null,"Coincident"]
[null,null,"Winter/Summer Peaking",null,"Non-Coincident"]
[null,null,null,null,"Coincident"]
[null,null,"Adjustments - Embedded generation","MW","Non-Coincident"]
[null,null,null,null,"Coincident"]
[null,null,"Weather Corrected MD 10% POE","MW","Non-Coincident"]
[null,null,null,null,"Coincident"]
[null,null,"Weather Corrected MD 10% POE","MVA","Non-Coincident"]
[null,null,null,null,"Coincident"]
[null,null,"Weather Corrected MD 50% POE","MW","Non-Coincident"]
[null,null,null,null,"Coincident"]
[null,null,"Weather Corrected MD 50% POE","MVA","Non-Coincident"]
[null,null,null,null,"Coincident"]
[null,"<Enter connection point name>","Connection Point Rating","MVA","Non-Coincident"]
[null,null,null,null,"Coincident"]
[null,null,"Raw Adjusted MD","MW","Non-Coincident"]
[null,null,null,null,"Coincident"]
[null,null,"Raw Adjusted MD","MVA","Non-Coincident"]
[null,null,null,null,"Coincident"]
[null,null,"Date MD occurred",null,"Non-Coincident"]
[null,null,null,null,"Coincident"]
[null,null,"Half hour time period MD occurred",null,"Non-Coincident"]
[null,null,null,null,"Coincident"]
[null,null,"Winter/Summer Peaking",null,"Non-Coincident"]
[null,null,null,null,"Coincident"]
[null,null,"Adjustments - Embedded generation","MW","Non-Coincident"]
[null,null,null,null,"Coincident"]
[null,null,"Weather Corrected MD 10% POE","MW","Non-Coincident"]
[null,null,null,null,"Coincident"]
[null,null,"Weather Corrected MD 10% POE","MVA","Non-Coincident"]
[null,null,null,null,"Coincident"]
[null,null,"Weather Corrected MD 50% POE","MW","Non-Coincident"]
[null,null,null,null,"Coincident"]
[null,null,"Weather Corrected MD 50% POE","MVA","Non-Coincident"]
[null,null,null,null,"Coincident"]
[null,"<Enter connection point name>","Connection Point Rating","MVA","Non-Coincident"]
[null,null,null,null,"Coincident"]
[null,null,"Raw Adjusted MD","MW","Non-Coincident"]
[null,null,null,null,"Coincident"]
[null,null,"Raw Adjusted MD","MVA","Non-Coincident"]
[null,null,null,null,"Coincident"]
[null,null,"Date MD occurred",null,"Non-Coincident"]
[null,null,null,null,"Coincident"]
[null,null,"Half hour time period MD occurred",null,"Non-Coincident"]
[null,null,null,null,"Coincident"]
[null,null,"Winter/Summer Peaking",null,"Non-Coincident"]
[null,null,null,null,"Coincident"]
[null,null,"Adjustments - Embedded generation","MW","Non-Coincident"]
[null,null,null,null,"Coincident"]
[null,null,"Weather Corrected MD 10% POE","MW","Non-Coincident"]
[null,null,null,null,"Coincident"]
[null,null,"Weather Corrected MD 10% POE","MVA","Non-Coincident"]
[null,null,null,null,"Coincident"]
[null,null,"Weather Corrected MD 50% POE","MW","Non-Coincident"]
[null,null,null,null,"Coincident"]
[null,null,"Weather Corrected MD 50% POE","MVA","Non-Coincident"]
[null,null,null,null,"Coincident"]
[null,"<Enter connection point name>","Connection Point Rating","MVA","Non-Coincident"]
[null,null,null,null,"Coincident"]
[null,null,"Raw Adjusted MD","MW","Non-Coincident"]
[null,null,null,null,"Coincident"]
[null,null,"Raw Adjusted MD","MVA","Non-Coincident"]
[null,null,null,null,"Coincident"]
[null,null,"Date MD occurred",null,"Non-Coincident"]
[null,null,null,null,"Coincident"]
[null,null,"Half hour time period MD occurred",null,"Non-Coincident"]
[null,null,null,null,"Coincident"]
[null,null,"Winter/Summer Peaking",null,"Non-Coincident"]
[null,null,null,null,"Coincident"]
[null,null,"Adjustments - Embedded generation","MW","Non-Coincident"]
[null,null,null,null,"Coincident"]
[null,null,"Weather Corrected MD 10% POE","MW","Non-Coincident"]
[null,null,null,null,"Coincident"]
[null,null,"Weather Corrected MD 10% POE","MVA","Non-Coincident"]
[null,null,null,null,"Coincident"]
[null,null,"Weather Corrected MD 50% POE","MW","Non-Coincident"]
[null,null,null,null,"Coincident"]
[null,null,"Weather Corrected MD 50% POE","MVA","Non-Coincident"]
[null,null,null,null,"Coincident"]
[null,"<Enter connection point name>","Connection Point Rating","MVA","Non-Coincident"]
[null,null,null,null,"Coincident"]
[null,null,"Raw Adjusted MD","MW","Non-Coincident"]
[null,null,null,null,"Coincident"]
[null,null,"Raw Adjusted MD","MVA","Non-Coincident"]
[null,null,null,null,"Coincident"]
[null,null,"Date MD occurred",null,"Non-Coincident"]
[null,null,null,null,"Coincident"]
[null,null,"Half hour time period MD occurred",null,"Non-Coincident"]
[null,null,null,null,"Coincident"]
[null,null,"Winter/Summer Peaking",null,"Non-Coincident"]
[null,null,null,null,"Coincident"]
[null,null,"Adjustments - Embedded generation","MW","Non-Coincident"]
[null,null,null,null,"Coincident"]
[null,null,"Weather Corrected MD 10% POE","MW","Non-Coincident"]
[null,null,null,null,"Coincident"]
[null,null,"Weather Corrected MD 10% POE","MVA","Non-Coincident"]
[null,null,null,null,"Coincident"]
[null,null,"Weather Corrected MD 50% POE","MW","Non-Coincident"]
[null,null,null,null,"Coincident"]
[null,null,"Weather Corrected MD 50% POE","MVA","Non-Coincident"]
[null,null,null,null,"Coincident"]
[null,"<Enter connection point name>","Connection Point Rating","MVA","Non-Coincident"]
[null,null,null,null,"Coincident"]
[null,null,"Raw Adjusted MD","MW","Non-Coincident"]
[null,null,null,null,"Coincident"]
[null,null,"Raw Adjusted MD","MVA","Non-Coincident"]
[null,null,null,null,"Coincident"]
[null,null,"Date MD occurred",null,"Non-Coincident"]
[null,null,null,null,"Coincident"]
[null,null,"Half hour time period MD occurred",null,"Non-Coincident"]
[null,null,null,null,"Coincident"]
[null,null,"Winter/Summer Peaking",null,"Non-Coincident"]
[null,null,null,null,"Coincident"]
[null,null,"Adjustments - Embedded generation","MW","Non-Coincident"]
[null,null,null,null,"Coincident"]
[null,null,"Weather Corrected MD 10% POE","MW","Non-Coincident"]
[null,null,null,null,"Coincident"]
[null,null,"Weather Corrected MD 10% POE","MVA","Non-Coincident"]
[null,null,null,null,"Coincident"]
[null,null,"Weather Corrected MD 50% POE","MW","Non-Coincident"]
[null,null,null,null,"Coincident"]
[null,null,"Weather Corrected MD 50% POE","MVA","Non-Coincident"]
[null,null,null,null,"Coincident"]
[null,"<Enter connection point name>","Connection Point Rating","MVA","Non-Coincident"]
[null,null,null,null,"Coincident"]
[null,null,"Raw Adjusted MD","MW","Non-Coincident"]
[null,null,null,null,"Coincident"]
[null,null,"Raw Adjusted MD","MVA","Non-Coincident"]
[null,null,null,null,"Coincident"]
[null,null,"Date MD occurred",null,"Non-Coincident"]
[null,null,null,null,"Coincident"]
[null,null,"Half hour time period MD occurred",null,"Non-Coincident"]
[null,null,null,null,"Coincident"]
[null,null,"Winter/Summer Peaking",null,"Non-Coincident"]
[null,null,null,null,"Coincident"]
[null,null,"Adjustments - Embedded generation","MW","Non-Coincident"]
[null,null,null,null,"Coincident"]
[null,null,"Weather Corrected MD 10% POE","MW","Non-Coincident"]
[null,null,null,null,"Coincident"]
[null,null,"Weather Corrected MD 10% POE","MVA","Non-Coincident"]
[null,null,null,null,"Coincident"]
[null,null,"Weather Corrected MD 50% POE","MW","Non-Coincident"]
[null,null,null,null,"Coincident"]
[null,null,"Weather Corrected MD 50% POE","MVA","Non-Coincident"]
[null,null,null,null,"Coincident"]
[null,"<Enter connection point name>","Connection Point Rating","MVA","Non-Coincident"]
[null,null,null,null,"Coincident"]
[null,null,"Raw Adjusted MD","MW","Non-Coincident"]
[null,null,null,null,"Coincident"]
[null,null,"Raw Adjusted MD","MVA","Non-Coincident"]
[null,null,null,null,"Coincident"]
[null,null,"Date MD occurred",null,"Non-Coincident"]
[null,null,null,null,"Coincident"]
[null,null,"Half hour time period MD occurred",null,"Non-Coincident"]
[null,null,null,null,"Coincident"]
[null,null,"Winter/Summer Peaking",null,"Non-Coincident"]
[null,null,null,null,"Coincident"]
[null,null,"Adjustments - Embedded generation","MW","Non-Coincident"]
[null,null,null,null,"Coincident"]
[null,null,"Weather Corrected MD 10% POE","MW","Non-Coincident"]
[null,null,null,null,"Coincident"]
[null,null,"Weather Corrected MD 10% POE","MVA","Non-Coincident"]
[null,null,null,null,"Coincident"]
[null,null,"Weather Corrected MD 50% POE","MW","Non-Coincident"]
[null,null,null,null,"Coincident"]
[null,null,"Weather Corrected MD 50% POE","MVA","Non-Coincident"]
[null,null,null,null,"Coincident"]
[null,"<Enter connection point name>","Connection Point Rating","MVA","Non-Coincident"]
[null,null,null,null,"Coincident"]
[null,null,"Raw Adjusted MD","MW","Non-Coincident"]
[null,null,null,null,"Coincident"]
[null,null,"Raw Adjusted MD","MVA","Non-Coincident"]
[null,null,null,null,"Coincident"]
[null,null,"Date MD occurred",null,"Non-Coincident"]
[null,null,null,null,"Coincident"]
[null,null,"Half hour time period MD occurred",null,"Non-Coincident"]
[null,null,null,null,"Coincident"]
[null,null,"Winter/Summer Peaking",null,"Non-Coincident"]
[null,null,null,null,"Coincident"]
[null,null,"Adjustments - Embedded generation","MW","Non-Coincident"]
[null,null,null,null,"Coincident"]
[null,null,"Weather Corrected MD 10% POE","MW","Non-Coincident"]
[null,null,null,null,"Coincident"]
[null,null,"Weather Corrected MD 10% POE","MVA","Non-Coincident"]
[null,null,null,null,"Coincident"]
[null,null,"Weather Corrected MD 50% POE","MW","Non-Coincident"]
[null,null,null,null,"Coincident"]
[null,null,"Weather Corrected MD 50% POE","MVA","Non-Coincident"]
[null,null,null,null,"Coincident"]
[null,"<Enter connection point name>","Connection Point Rating","MVA","Non-Coincident"]
[null,null,null,null,"Coincident"]
[null,null,"Raw Adjusted MD","MW","Non-Coincident"]
[null,null,null,null,"Coincident"]
[null,null,"Raw Adjusted MD","MVA","Non-Coincident"]
[null,null,null,null,"Coincident"]
[null,null,"Date MD occurred",null,"Non-Coincident"]
[null,null,null,null,"Coincident"]
[null,null,"Half hour time period MD occurred",null,"Non-Coincident"]
[null,null,null,null,"Coincident"]
[null,null,"Winter/Summer Peaking",null,"Non-Coincident"]
[null,null,null,null,"Coincident"]
[null,null,"Adjustments - Embedded generation","MW","Non-Coincident"]
[null,null,null,null,"Coincident"]
[null,null,"Weather Corrected MD 10% POE","MW","Non-Coincident"]
[null,null,null,null,"Coincident"]
[null,null,"Weather Corrected MD 10% POE","MVA","Non-Coincident"]
[null,null,null,null,"Coincident"]
[null,null,"Weather Corrected MD 50% POE","MW","Non-Coincident"]
[null,null,null,null,"Coincident"]
[null,null,"Weather Corrected MD 50% POE","MVA","Non-Coincident"]
[null,null,null,null,"Coincident"]
[null,"<Enter connection point name>","Connection Point Rating","MVA","Non-Coincident"]
[null,null,null,null,"Coincident"]
[null,null,"Raw Adjusted MD","MW","Non-Coincident"]
[null,null,null,null,"Coincident"]
[null,null,"Raw Adjusted MD","MVA","Non-Coincident"]
[null,null,null,null,"Coincident"]
[null,null,"Date MD occurred",null,"Non-Coincident"]
[null,null,null,null,"Coincident"]
[null,null,"Half hour time period MD occurred",null,"Non-Coincident"]
[null,null,null,null,"Coincident"]
[null,null,"Winter/Summer Peaking",null,"Non-Coincident"]
[null,null,null,null,"Coincident"]
[null,null,"Adjustments - Embedded generation","MW","Non-Coincident"]
[null,null,null,null,"Coincident"]
[null,null,"Weather Corrected MD 10% POE","MW","Non-Coincident"]
[null,null,null,null,"Coincident"]
[null,null,"Weather Corrected MD 10% POE","MVA","Non-Coincident"]
[null,null,null,null,"Coincident"]
[null,null,"Weather Corrected MD 50% POE","MW","Non-Coincident"]
[null,null,null,null,"Coincident"]
[null,null,"Weather Corrected MD 50% POE","MVA","Non-Coincident"]
[null,null,null,null,"Coincident"]
[null,"<Enter connection point name>","Connection Point Rating","MVA","Non-Coincident"]
[null,null,null,null,"Coincident"]
[null,null,"Raw Adjusted MD","MW","Non-Coincident"]
[null,null,null,null,"Coincident"]
[null,null,"Raw Adjusted MD","MVA","Non-Coincident"]
[null,null,null,null,"Coincident"]
[null,null,"Date MD occurred",null,"Non-Coincident"]
[null,null,null,null,"Coincident"]
[null,null,"Half hour time period MD occurred",null,"Non-Coincident"]
[null,null,null,null,"Coincident"]
[null,null,"Winter/Summer Peaking",null,"Non-Coincident"]
[null,null,null,null,"Coincident"]
[null,null,"Adjustments - Embedded generation","MW","Non-Coincident"]
[null,null,null,null,"Coincident"]
[null,null,"Weather Corrected MD 10% POE","MW","Non-Coincident"]
[null,null,null,null,"Coincident"]
[null,null,"Weather Corrected MD 10% POE","MVA","Non-Coincident"]
[null,null,null,null,"Coincident"]
[null,null,"Weather Corrected MD 50% POE","MW","Non-Coincident"]
[null,null,null,null,"Coincident"]
[null,null,"Weather Corrected MD 50% POE","MVA","Non-Coincident"]
[null,null,null,null,"Coincident"]
[null,"<Enter connection point name>","Connection Point Rating","MVA","Non-Coincident"]
[null,null,null,null,"Coincident"]
[null,null,"Raw Adjusted MD","MW","Non-Coincident"]
[null,null,null,null,"Coincident"]
[null,null,"Raw Adjusted MD","MVA","Non-Coincident"]
[null,null,null,null,"Coincident"]
[null,null,"Date MD occurred",null,"Non-Coincident"]
[null,null,null,null,"Coincident"]
[null,null,"Half hour time period MD occurred",null,"Non-Coincident"]
[null,null,null,null,"Coincident"]
[null,null,"Winter/Summer Peaking",null,"Non-Coincident"]
[null,null,null,null,"Coincident"]
[null,null,"Adjustments - Embedded generation","MW","Non-Coincident"]
[null,null,null,null,"Coincident"]
[null,null,"Weather Corrected MD 10% POE","MW","Non-Coincident"]
[null,null,null,null,"Coincident"]
[null,null,"Weather Corrected MD 10% POE","MVA","Non-Coincident"]
[null,null,null,null,"Coincident"]
[null,null,"Weather Corrected MD 50% POE","MW","Non-Coincident"]
[null,null,null,null,"Coincident"]
[null,null,"Weather Corrected MD 50% POE","MVA","Non-Coincident"]
[null,null,null,null,"Coincident"]
[null,"<Enter connection point name>","Connection Point Rating","MVA","Non-Coincident"]
[null,null,null,null,"Coincident"]
[null,null,"Raw Adjusted MD","MW","Non-Coincident"]
[null,null,null,null,"Coincident"]
[null,null,"Raw Adjusted MD","MVA","Non-Coincident"]
[null,null,null,null,"Coincident"]
[null,null,"Date MD occurred",null,"Non-Coincident"]
[null,null,null,null,"Coincident"]
[null,null,"Half hour time period MD occurred",null,"Non-Coincident"]
[null,null,null,null,"Coincident"]
[null,null,"Winter/Summer Peaking",null,"Non-Coincident"]
[null,null,null,null,"Coincident"]
[null,null,"Adjustments - Embedded generation","MW","Non-Coincident"]
[null,null,null,null,"Coincident"]
[null,null,"Weather Corrected MD 10% POE","MW","Non-Coincident"]
[null,null,null,null,"Coincident"]
[null,null,"Weather Corrected MD 10% POE","MVA","Non-Coincident"]
[null,null,null,null,"Coincident"]
[null,null,"Weather Corrected MD 50% POE","MW","Non-Coincident"]
[null,null,null,null,"Coincident"]
[null,null,"Weather Corrected MD 50% POE","MVA","Non-Coincident"]
[null,null,null,null,"Coincident"]
[null,"<Enter connection point name>","Connection Point Rating","MVA","Non-Coincident"]
[null,null,null,null,"Coincident"]
[null,null,"Raw Adjusted MD","MW","Non-Coincident"]
[null,null,null,null,"Coincident"]
[null,null,"Raw Adjusted MD","MVA","Non-Coincident"]
[null,null,null,null,"Coincident"]
[null,null,"Date MD occurred",null,"Non-Coincident"]
[null,null,null,null,"Coincident"]
[null,null,"Half hour time period MD occurred",null,"Non-Coincident"]
[null,null,null,null,"Coincident"]
[null,null,"Winter/Summer Peaking",null,"Non-Coincident"]
[null,null,null,null,"Coincident"]
[null,null,"Adjustments - Embedded generation","MW","Non-Coincident"]
[null,null,null,null,"Coincident"]
[null,null,"Weather Corrected MD 10% POE","MW","Non-Coincident"]
[null,null,null,null,"Coincident"]
[null,null,"Weather Corrected MD 10% POE","MVA","Non-Coincident"]
[null,null,null,null,"Coincident"]
[null,null,"Weather Corrected MD 50% POE","MW","Non-Coincident"]
[null,null,null,null,"Coincident"]
[null,null,"Weather Corrected MD 50% POE","MVA","Non-Coincident"]
[null,null,null,null,"Coincident"]
[null,"<Enter connection point name>","Connection Point Rating","MVA","Non-Coincident"]
[null,null,null,null,"Coincident"]
[null,null,"Raw Adjusted MD","MW","Non-Coincident"]
[null,null,null,null,"Coincident"]
[null,null,"Raw Adjusted MD","MVA","Non-Coincident"]
[null,null,null,null,"Coincident"]
[null,null,"Date MD occurred",null,"Non-Coincident"]
[null,null,null,null,"Coincident"]
[null,null,"Half hour time period MD occurred",null,"Non-Coincident"]
[null,null,null,null,"Coincident"]
[null,null,"Winter/Summer Peaking",null,"Non-Coincident"]
[null,null,null,null,"Coincident"]
[null,null,"Adjustments - Embedded generation","MW","Non-Coincident"]
[null,null,null,null,"Coincident"]
[null,null,"Weather Corrected MD 10% POE","MW","Non-Coincident"]
[null,null,null,null,"Coincident"]
[null,null,"Weather Corrected MD 10% POE","MVA","Non-Coincident"]
[null,null,null,null,"Coincident"]
[null,null,"Weather Corrected MD 50% POE","MW","Non-Coincident"]
[null,null,null,null,"Coincident"]
[null,null,"Weather Corrected MD 50% POE","MVA","Non-Coincident"]
[null,null,null,null,"Coincident"]
[null,"<Enter connection point name>","Connection Point Rating","MVA","Non-Coincident"]
[null,null,null,null,"Coincident"]
[null,null,"Raw Adjusted MD","MW","Non-Coincident"]
[null,null,null,null,"Coincident"]
[null,null,"Raw Adjusted MD","MVA","Non-Coincident"]
[null,null,null,null,"Coincident"]
[null,null,"Date MD occurred",null,"Non-Coincident"]
[null,null,null,null,"Coincident"]
[null,null,"Half hour time period MD occurred",null,"Non-Coincident"]
[null,null,null,null,"Coincident"]
[null,null,"Winter/Summer Peaking",null,"Non-Coincident"]
[null,null,null,null,"Coincident"]
[null,null,"Adjustments - Embedded generation","MW","Non-Coincident"]
[null,null,null,null,"Coincident"]
[null,null,"Weather Corrected MD 10% POE","MW","Non-Coincident"]
[null,null,null,null,"Coincident"]
[null,null,"Weather Corrected MD 10% POE","MVA","Non-Coincident"]
[null,null,null,null,"Coincident"]
[null,null,"Weather Corrected MD 50% POE","MW","Non-Coincident"]
[null,null,null,null,"Coincident"]
[null,null,"Weather Corrected MD 50% POE","MVA","Non-Coincident"]
[null,null,null,null,"Coincident"]
[null,"<Enter connection point name>","Connection Point Rating","MVA","Non-Coincident"]
[null,null,null,null,"Coincident"]
[null,null,"Raw Adjusted MD","MW","Non-Coincident"]
[null,null,null,null,"Coincident"]
[null,null,"Raw Adjusted MD","MVA","Non-Coincident"]
[null,null,null,null,"Coincident"]
[null,null,"Date MD occurred",null,"Non-Coincident"]
[null,null,null,null,"Coincident"]
[null,null,"Half hour time period MD occurred",null,"Non-Coincident"]
[null,null,null,null,"Coincident"]
[null,null,"Winter/Summer Peaking",null,"Non-Coincident"]
[null,null,null,null,"Coincident"]
[null,null,"Adjustments - Embedded generation","MW","Non-Coincident"]
[null,null,null,null,"Coincident"]
[null,null,"Weather Corrected MD 10% POE","MW","Non-Coincident"]
[null,null,null,null,"Coincident"]
[null,null,"Weather Corrected MD 10% POE","MVA","Non-Coincident"]
[null,null,null,null,"Coincident"]
[null,null,"Weather Corrected MD 50% POE","MW","Non-Coincident"]
[null,null,null,null,"Coincident"]
[null,null,"Weather Corrected MD 50% POE","MVA","Non-Coincident"]
[null,null,null,null,"Coincident"]
[null,"<Enter connection point name>","Connection Point Rating","MVA","Non-Coincident"]
[null,null,null,null,"Coincident"]
[null,null,"Raw Adjusted MD","MW","Non-Coincident"]
[null,null,null,null,"Coincident"]
[null,null,"Raw Adjusted MD","MVA","Non-Coincident"]
[null,null,null,null,"Coincident"]
[null,null,"Date MD occurred",null,"Non-Coincident"]
[null,null,null,null,"Coincident"]
[null,null,"Half hour time period MD occurred",null,"Non-Coincident"]
[null,null,null,null,"Coincident"]
[null,null,"Winter/Summer Peaking",null,"Non-Coincident"]
[null,null,null,null,"Coincident"]
[null,null,"Adjustments - Embedded generation","MW","Non-Coincident"]
[null,null,null,null,"Coincident"]
[null,null,"Weather Corrected MD 10% POE","MW","Non-Coincident"]
[null,null,null,null,"Coincident"]
[null,null,"Weather Corrected MD 10% POE","MVA","Non-Coincident"]
[null,null,null,null,"Coincident"]
[null,null,"Weather Corrected MD 50% POE","MW","Non-Coincident"]
[null,null,null,null,"Coincident"]
[null,null,"Weather Corrected MD 50% POE","MVA","Non-Coincident"]
[null,null,null,null,"Coincident"]
[null,"<Enter connection point name>","Connection Point Rating","MVA","Non-Coincident"]
[null,null,null,null,"Coincident"]
[null,null,"Raw Adjusted MD","MW","Non-Coincident"]
[null,null,null,null,"Coincident"]
[null,null,"Raw Adjusted MD","MVA","Non-Coincident"]
[null,null,null,null,"Coincident"]
[null,null,"Date MD occurred",null,"Non-Coincident"]
[null,null,null,null,"Coincident"]
[null,null,"Half hour time period MD occurred",null,"Non-Coincident"]
[null,null,null,null,"Coincident"]
[null,null,"Winter/Summer Peaking",null,"Non-Coincident"]
[null,null,null,null,"Coincident"]
[null,null,"Adjustments - Embedded generation","MW","Non-Coincident"]
[null,null,null,null,"Coincident"]
[null,null,"Weather Corrected MD 10% POE","MW","Non-Coincident"]
[null,null,null,null,"Coincident"]
[null,null,"Weather Corrected MD 10% POE","MVA","Non-Coincident"]
[null,null,null,null,"Coincident"]
[null,null,"Weather Corrected MD 50% POE","MW","Non-Coincident"]
[null,null,null,null,"Coincident"]
[null,null,"Weather Corrected MD 50% POE","MVA","Non-Coincident"]
[null,null,null,null,"Coincident"]
[null,"<Enter connection point name>","Connection Point Rating","MVA","Non-Coincident"]
[null,null,null,null,"Coincident"]
[null,null,"Raw Adjusted MD","MW","Non-Coincident"]
[null,null,null,null,"Coincident"]
[null,null,"Raw Adjusted MD","MVA","Non-Coincident"]
[null,null,null,null,"Coincident"]
[null,null,"Date MD occurred",null,"Non-Coincident"]
[null,null,null,null,"Coincident"]
[null,null,"Half hour time period MD occurred",null,"Non-Coincident"]
[null,null,null,null,"Coincident"]
[null,null,"Winter/Summer Peaking",null,"Non-Coincident"]
[null,null,null,null,"Coincident"]
[null,null,"Adjustments - Embedded generation","MW","Non-Coincident"]
[null,null,null,null,"Coincident"]
[null,null,"Weather Corrected MD 10% POE","MW","Non-Coincident"]
[null,null,null,null,"Coincident"]
[null,null,"Weather Corrected MD 10% POE","MVA","Non-Coincident"]
[null,null,null,null,"Coincident"]
[null,null,"Weather Corrected MD 50% POE","MW","Non-Coincident"]
[null,null,null,null,"Coincident"]
[null,null,"Weather Corrected MD 50% POE","MVA","Non-Coincident"]
[null,null,null,null,"Coincident"]
[null,"<Enter connection point name>","Connection Point Rating","MVA","Non-Coincident"]
[null,null,null,null,"Coincident"]
[null,null,"Raw Adjusted MD","MW","Non-Coincident"]
[null,null,null,null,"Coincident"]
[null,null,"Raw Adjusted MD","MVA","Non-Coincident"]
[null,null,null,null,"Coincident"]
[null,null,"Date MD occurred",null,"Non-Coincident"]
[null,null,null,null,"Coincident"]
[null,null,"Half hour time period MD occurred",null,"Non-Coincident"]
[null,null,null,null,"Coincident"]
[null,null,"Winter/Summer Peaking",null,"Non-Coincident"]
[null,null,null,null,"Coincident"]
[null,null,"Adjustments - Embedded generation","MW","Non-Coincident"]
[null,null,null,null,"Coincident"]
[null,null,"Weather Corrected MD 10% POE","MW","Non-Coincident"]
[null,null,null,null,"Coincident"]
[null,null,"Weather Corrected MD 10% POE","MVA","Non-Coincident"]
[null,null,null,null,"Coincident"]
[null,null,"Weather Corrected MD 50% POE","MW","Non-Coincident"]
[null,null,null,null,"Coincident"]
[null,null,"Weather Corrected MD 50% POE","MVA","Non-Coincident"]
[null,null,null,null,"Coincident"]
[null,"<Enter connection point name>","Connection Point Rating","MVA","Non-Coincident"]
[null,null,null,null,"Coincident"]
[null,null,"Raw Adjusted MD","MW","Non-Coincident"]
[null,null,null,null,"Coincident"]
[null,null,"Raw Adjusted MD","MVA","Non-Coincident"]
[null,null,null,null,"Coincident"]
[null,null,"Date MD occurred",null,"Non-Coincident"]
[null,null,null,null,"Coincident"]
[null,null,"Half hour time period MD occurred",null,"Non-Coincident"]
[null,null,null,null,"Coincident"]
[null,null,"Winter/Summer Peaking",null,"Non-Coincident"]
[null,null,null,null,"Coincident"]
[null,null,"Adjustments - Embedded generation","MW","Non-Coincident"]
[null,null,null,null,"Coincident"]
[null,null,"Weather Corrected MD 10% POE","MW","Non-Coincident"]
[null,null,null,null,"Coincident"]
[null,null,"Weather Corrected MD 10% POE","MVA","Non-Coincident"]
[null,null,null,null,"Coincident"]
[null,null,"Weather Corrected MD 50% POE","MW","Non-Coincident"]
[null,null,null,null,"Coincident"]
[null,null,"Weather Corrected MD 50% POE","MVA","Non-Coincident"]
[null,null,null,null,"Coincident"]
[null,"<Enter connection point name>","Connection Point Rating","MVA","Non-Coincident"]
[null,null,null,null,"Coincident"]
[null,null,"Raw Adjusted MD","MW","Non-Coincident"]
[null,null,null,null,"Coincident"]
[null,null,"Raw Adjusted MD","MVA","Non-Coincident"]
[null,null,null,null,"Coincident"]
[null,null,"Date MD occurred",null,"Non-Coincident"]
[null,null,null,null,"Coincident"]
[null,null,"Half hour time period MD occurred",null,"Non-Coincident"]
[null,null,null,null,"Coincident"]
[null,null,"Winter/Summer Peaking",null,"Non-Coincident"]
[null,null,null,null,"Coincident"]
[null,null,"Adjustments - Embedded generation","MW","Non-Coincident"]
[null,null,null,null,"Coincident"]
[null,null,"Weather Corrected MD 10% POE","MW","Non-Coincident"]
[null,null,null,null,"Coincident"]
[null,null,"Weather Corrected MD 10% POE","MVA","Non-Coincident"]
[null,null,null,null,"Coincident"]
[null,null,"Weather Corrected MD 50% POE","MW","Non-Coincident"]
[null,null,null,null,"Coincident"]
[null,null,"Weather Corrected MD 50% POE","MVA","Non-Coincident"]
[null,null,null,null,"Coincident"]
[null,"<Enter connection point name>","Connection Point Rating","MVA","Non-Coincident"]
[null,null,null,null,"Coincident"]
[null,null,"Raw Adjusted MD","MW","Non-Coincident"]
[null,null,null,null,"Coincident"]
[null,null,"Raw Adjusted MD","MVA","Non-Coincident"]
[null,null,null,null,"Coincident"]
[null,null,"Date MD occurred",null,"Non-Coincident"]
[null,null,null,null,"Coincident"]
[null,null,"Half hour time period MD occurred",null,"Non-Coincident"]
[null,null,null,null,"Coincident"]
[null,null,"Winter/Summer Peaking",null,"Non-Coincident"]
[null,null,null,null,"Coincident"]
[null,null,"Adjustments - Embedded generation","MW","Non-Coincident"]
[null,null,null,null,"Coincident"]
[null,null,"Weather Corrected MD 10% POE","MW","Non-Coincident"]
[null,null,null,null,"Coincident"]
[null,null,"Weather Corrected MD 10% POE","MVA","Non-Coincident"]
[null,null,null,null,"Coincident"]
[null,null,"Weather Corrected MD 50% POE","MW","Non-Coincident"]
[null,null,null,null,"Coincident"]
[null,null,"Weather Corrected MD 50% POE","MVA","Non-Coincident"]
[null,null,null,null,"Coincident"]
[null,"<Enter connection point name>","Connection Point Rating","MVA","Non-Coincident"]
[null,null,null,null,"Coincident"]
[null,null,"Raw Adjusted MD","MW","Non-Coincident"]
[null,null,null,null,"Coincident"]
[null,null,"Raw Adjusted MD","MVA","Non-Coincident"]
[null,null,null,null,"Coincident"]
[null,null,"Date MD occurred",null,"Non-Coincident"]
[null,null,null,null,"Coincident"]
[null,null,"Half hour time period MD occurred",null,"Non-Coincident"]
[null,null,null,null,"Coincident"]
[null,null,"Winter/Summer Peaking",null,"Non-Coincident"]
[null,null,null,null,"Coincident"]
[null,null,"Adjustments - Embedded generation","MW","Non-Coincident"]
[null,null,null,null,"Coincident"]
[null,null,"Weather Corrected MD 10% POE","MW","Non-Coincident"]
[null,null,null,null,"Coincident"]
[null,null,"Weather Corrected MD 10% POE","MVA","Non-Coincident"]
[null,null,null,null,"Coincident"]
[null,null,"Weather Corrected MD 50% POE","MW","Non-Coincident"]
[null,null,null,null,"Coincident"]
[null,null,"Weather Corrected MD 50% POE","MVA","Non-Coincident"]
[null,null,null,null,"Coincident"]
[null,"<Enter connection point name>","Connection Point Rating","MVA","Non-Coincident"]
[null,null,null,null,"Coincident"]
[null,null,"Raw Adjusted MD","MW","Non-Coincident"]
[null,null,null,null,"Coincident"]
[null,null,"Raw Adjusted MD","MVA","Non-Coincident"]
[null,null,null,null,"Coincident"]
[null,null,"Date MD occurred",null,"Non-Coincident"]
[null,null,null,null,"Coincident"]
[null,null,"Half hour time period MD occurred",null,"Non-Coincident"]
[null,null,null,null,"Coincident"]
[null,null,"Winter/Summer Peaking",null,"Non-Coincident"]
[null,null,null,null,"Coincident"]
[null,null,"Adjustments - Embedded generation","MW","Non-Coincident"]
[null,null,null,null,"Coincident"]
[null,null,"Weather Corrected MD 10% POE","MW","Non-Coincident"]
[null,null,null,null,"Coincident"]
[null,null,"Weather Corrected MD 10% POE","MVA","Non-Coincident"]
[null,null,null,null,"Coincident"]
[null,null,"Weather Corrected MD 50% POE","MW","Non-Coincident"]
[null,null,null,null,"Coincident"]
[null,null,"Weather Corrected MD 50% POE","MVA","Non-Coincident"]
[null,null,null,null,"Coincident"]
[null,"<Enter connection point name>","Connection Point Rating","MVA","Non-Coincident"]
[null,null,null,null,"Coincident"]
[null,null,"Raw Adjusted MD","MW","Non-Coincident"]
[null,null,null,null,"Coincident"]
[null,null,"Raw Adjusted MD","MVA","Non-Coincident"]
[null,null,null,null,"Coincident"]
[null,null,"Date MD occurred",null,"Non-Coincident"]
[null,null,null,null,"Coincident"]
[null,null,"Half hour time period MD occurred",null,"Non-Coincident"]
[null,null,null,null,"Coincident"]
[null,null,"Winter/Summer Peaking",null,"Non-Coincident"]
[null,null,null,null,"Coincident"]
[null,null,"Adjustments - Embedded generation","MW","Non-Coincident"]
[null,null,null,null,"Coincident"]
[null,null,"Weather Corrected MD 10% POE","MW","Non-Coincident"]
[null,null,null,null,"Coincident"]
[null,null,"Weather Corrected MD 10% POE","MVA","Non-Coincident"]
[null,null,null,null,"Coincident"]
[null,null,"Weather Corrected MD 50% POE","MW","Non-Coincident"]
[null,null,null,null,"Coincident"]
[null,null,"Weather Corrected MD 50% POE","MVA","Non-Coincident"]
[null,null,null,null,"Coincident"]
[null,"<Enter connection point name>","Connection Point Rating","MVA","Non-Coincident"]
[null,null,null,null,"Coincident"]
[null,null,"Raw Adjusted MD","MW","Non-Coincident"]
[null,null,null,null,"Coincident"]
[null,null,"Raw Adjusted MD","MVA","Non-Coincident"]
[null,null,null,null,"Coincident"]
[null,null,"Date MD occurred",null,"Non-Coincident"]
[null,null,null,null,"Coincident"]
[null,null,"Half hour time period MD occurred",null,"Non-Coincident"]
[null,null,null,null,"Coincident"]
[null,null,"Winter/Summer Peaking",null,"Non-Coincident"]
[null,null,null,null,"Coincident"]
[null,null,"Adjustments - Embedded generation","MW","Non-Coincident"]
[null,null,null,null,"Coincident"]
[null,null,"Weather Corrected MD 10% POE","MW","Non-Coincident"]
[null,null,null,null,"Coincident"]
[null,null,"Weather Corrected MD 10% POE","MVA","Non-Coincident"]
[null,null,null,null,"Coincident"]
[null,null,"Weather Corrected MD 50% POE","MW","Non-Coincident"]
[null,null,null,null,"Coincident"]
[null,null,"Weather Corrected MD 50% POE","MVA","Non-Coincident"]
[null,null,null,null,"Coincident"]
[null,"<Enter connection point name>","Connection Point Rating","MVA","Non-Coincident"]
[null,null,null,null,"Coincident"]
[null,null,"Raw Adjusted MD","MW","Non-Coincident"]
[null,null,null,null,"Coincident"]
[null,null,"Raw Adjusted MD","MVA","Non-Coincident"]
[null,null,null,null,"Coincident"]
[null,null,"Date MD occurred",null,"Non-Coincident"]
[null,null,null,null,"Coincident"]
[null,null,"Half hour time period MD occurred",null,"Non-Coincident"]
[null,null,null,null,"Coincident"]
[null,null,"Winter/Summer Peaking",null,"Non-Coincident"]
[null,null,null,null,"Coincident"]
[null,null,"Adjustments - Embedded generation","MW","Non-Coincident"]
[null,null,null,null,"Coincident"]
[null,null,"Weather Corrected MD 10% POE","MW","Non-Coincident"]
[null,null,null,null,"Coincident"]
[null,null,"Weather Corrected MD 10% POE","MVA","Non-Coincident"]
[null,null,null,null,"Coincident"]
[null,null,"Weather Corrected MD 50% POE","MW","Non-Coincident"]
[null,null,null,null,"Coincident"]
[null,null,"Weather Corrected MD 50% POE","MVA","Non-Coincident"]
[null,null,null,null,"Coincident"]
[null,"<Enter connection point name>","Connection Point Rating","MVA","Non-Coincident"]
[null,null,null,null,"Coincident"]
[null,null,"Raw Adjusted MD","MW","Non-Coincident"]
[null,null,null,null,"Coincident"]
[null,null,"Raw Adjusted MD","MVA","Non-Coincident"]
[null,null,null,null,"Coincident"]
[null,null,"Date MD occurred",null,"Non-Coincident"]
[null,null,null,null,"Coincident"]
[null,null,"Half hour time period MD occurred",null,"Non-Coincident"]
[null,null,null,null,"Coincident"]
[null,null,"Winter/Summer Peaking",null,"Non-Coincident"]
[null,null,null,null,"Coincident"]
[null,null,"Adjustments - Embedded generation","MW","Non-Coincident"]
[null,null,null,null,"Coincident"]
[null,null,"Weather Corrected MD 10% POE","MW","Non-Coincident"]
[null,null,null,null,"Coincident"]
[null,null,"Weather Corrected MD 10% POE","MVA","Non-Coincident"]
[null,null,null,null,"Coincident"]
[null,null,"Weather Corrected MD 50% POE","MW","Non-Coincident"]
[null,null,null,null,"Coincident"]
[null,null,"Weather Corrected MD 50% POE","MVA","Non-Coincident"]
[null,null,null,null,"Coincident"]
[null,"<Enter connection point name>","Connection Point Rating","MVA","Non-Coincident"]
[null,null,null,null,"Coincident"]
[null,null,"Raw Adjusted MD","MW","Non-Coincident"]
[null,null,null,null,"Coincident"]
[null,null,"Raw Adjusted MD","MVA","Non-Coincident"]
[null,null,null,null,"Coincident"]
[null,null,"Date MD occurred",null,"Non-Coincident"]
[null,null,null,null,"Coincident"]
[null,null,"Half hour time period MD occurred",null,"Non-Coincident"]
[null,null,null,null,"Coincident"]
[null,null,"Winter/Summer Peaking",null,"Non-Coincident"]
[null,null,null,null,"Coincident"]
[null,null,"Adjustments - Embedded generation","MW","Non-Coincident"]
[null,null,null,null,"Coincident"]
[null,null,"Weather Corrected MD 10% POE","MW","Non-Coincident"]
[null,null,null,null,"Coincident"]
[null,null,"Weather Corrected MD 10% POE","MVA","Non-Coincident"]
[null,null,null,null,"Coincident"]
[null,null,"Weather Corrected MD 50% POE","MW","Non-Coincident"]
[null,null,null,null,"Coincident"]
[null,null,"Weather Corrected MD 50% POE","MVA","Non-Coincident"]
[null,null,null,null,"Coincident"]
[null,"<Enter connection point name>","Connection Point Rating","MVA","Non-Coincident"]
[null,null,null,null,"Coincident"]
[null,null,"Raw Adjusted MD","MW","Non-Coincident"]
[null,null,null,null,"Coincident"]
[null,null,"Raw Adjusted MD","MVA","Non-Coincident"]
[null,null,null,null,"Coincident"]
[null,null,"Date MD occurred",null,"Non-Coincident"]
[null,null,null,null,"Coincident"]
[null,null,"Half hour time period MD occurred",null,"Non-Coincident"]
[null,null,null,null,"Coincident"]
[null,null,"Winter/Summer Peaking",null,"Non-Coincident"]
[null,null,null,null,"Coincident"]
[null,null,"Adjustments - Embedded generation","MW","Non-Coincident"]
[null,null,null,null,"Coincident"]
[null,null,"Weather Corrected MD 10% POE","MW","Non-Coincident"]
[null,null,null,null,"Coincident"]
[null,null,"Weather Corrected MD 10% POE","MVA","Non-Coincident"]
[null,null,null,null,"Coincident"]
[null,null,"Weather Corrected MD 50% POE","MW","Non-Coincident"]
[null,null,null,null,"Coincident"]
[null,null,"Weather Corrected MD 50% POE","MVA","Non-Coincident"]
[null,null,null,null,"Coincident"]
[null,"<Enter connection point name>","Connection Point Rating","MVA","Non-Coincident"]
[null,null,null,null,"Coincident"]
[null,null,"Raw Adjusted MD","MW","Non-Coincident"]
[null,null,null,null,"Coincident"]
[null,null,"Raw Adjusted MD","MVA","Non-Coincident"]
[null,null,null,null,"Coincident"]
[null,null,"Date MD occurred",null,"Non-Coincident"]
[null,null,null,null,"Coincident"]
[null,null,"Half hour time period MD occurred",null,"Non-Coincident"]
[null,null,null,null,"Coincident"]
[null,null,"Winter/Summer Peaking",null,"Non-Coincident"]
[null,null,null,null,"Coincident"]
[null,null,"Adjustments - Embedded generation","MW","Non-Coincident"]
[null,null,null,null,"Coincident"]
[null,null,"Weather Corrected MD 10% POE","MW","Non-Coincident"]
[null,null,null,null,"Coincident"]
[null,null,"Weather Corrected MD 10% POE","MVA","Non-Coincident"]
[null,null,null,null,"Coincident"]
[null,null,"Weather Corrected MD 50% POE","MW","Non-Coincident"]
[null,null,null,null,"Coincident"]
[null,null,"Weather Corrected MD 50% POE","MVA","Non-Coincident"]
[null,null,null,null,"Coincident"]
[null,"<Enter connection point name>","Connection Point Rating","MVA","Non-Coincident"]
[null,null,null,null,"Coincident"]
[null,null,"Raw Adjusted MD","MW","Non-Coincident"]
[null,null,null,null,"Coincident"]
[null,null,"Raw Adjusted MD","MVA","Non-Coincident"]
[null,null,null,null,"Coincident"]
[null,null,"Date MD occurred",null,"Non-Coincident"]
[null,null,null,null,"Coincident"]
[null,null,"Half hour time period MD occurred",null,"Non-Coincident"]
[null,null,null,null,"Coincident"]
[null,null,"Winter/Summer Peaking",null,"Non-Coincident"]
[null,null,null,null,"Coincident"]
[null,null,"Adjustments - Embedded generation","MW","Non-Coincident"]
[null,null,null,null,"Coincident"]
[null,null,"Weather Corrected MD 10% POE","MW","Non-Coincident"]
[null,null,null,null,"Coincident"]
[null,null,"Weather Corrected MD 10% POE","MVA","Non-Coincident"]
[null,null,null,null,"Coincident"]
[null,null,"Weather Corrected MD 50% POE","MW","Non-Coincident"]
[null,null,null,null,"Coincident"]
[null,null,"Weather Corrected MD 50% POE","MVA","Non-Coincident"]
[null,null,null,null,"Coincident"]
[null,"<Enter connection point name>","Connection Point Rating","MVA","Non-Coincident"]
[null,null,null,null,"Coincident"]
[null,null,"Raw Adjusted MD","MW","Non-Coincident"]
[null,null,null,null,"Coincident"]
[null,null,"Raw Adjusted MD","MVA","Non-Coincident"]
[null,null,null,null,"Coincident"]
[null,null,"Date MD occurred",null,"Non-Coincident"]
[null,null,null,null,"Coincident"]
[null,null,"Half hour time period MD occurred",null,"Non-Coincident"]
[null,null,null,null,"Coincident"]
[null,null,"Winter/Summer Peaking",null,"Non-Coincident"]
[null,null,null,null,"Coincident"]
[null,null,"Adjustments - Embedded generation","MW","Non-Coincident"]
[null,null,null,null,"Coincident"]
[null,null,"Weather Corrected MD 10% POE","MW","Non-Coincident"]
[null,null,null,null,"Coincident"]
[null,null,"Weather Corrected MD 10% POE","MVA","Non-Coincident"]
[null,null,null,null,"Coincident"]
[null,null,"Weather Corrected MD 50% POE","MW","Non-Coincident"]
[null,null,null,null,"Coincident"]
[null,null,"Weather Corrected MD 50% POE","MVA","Non-Coincident"]
[null,null,null,null,"Coincident"]
[null,"<Enter connection point name>","Connection Point Rating","MVA","Non-Coincident"]
[null,null,null,null,"Coincident"]
[null,null,"Raw Adjusted MD","MW","Non-Coincident"]
[null,null,null,null,"Coincident"]
[null,null,"Raw Adjusted MD","MVA","Non-Coincident"]
[null,null,null,null,"Coincident"]
[null,null,"Date MD occurred",null,"Non-Coincident"]
[null,null,null,null,"Coincident"]
[null,null,"Half hour time period MD occurred",null,"Non-Coincident"]
[null,null,null,null,"Coincident"]
[null,null,"Winter/Summer Peaking",null,"Non-Coincident"]
[null,null,null,null,"Coincident"]
[null,null,"Adjustments - Embedded generation","MW","Non-Coincident"]
[null,null,null,null,"Coincident"]
[null,null,"Weather Corrected MD 10% POE","MW","Non-Coincident"]
[null,null,null,null,"Coincident"]
[null,null,"Weather Corrected MD 10% POE","MVA","Non-Coincident"]
[null,null,null,null,"Coincident"]
[null,null,"Weather Corrected MD 50% POE","MW","Non-Coincident"]
[null,null,null,null,"Coincident"]
[null,null,"Weather Corrected MD 50% POE","MVA","Non-Coincident"]
[null,null,null,null,"Coincident"]
[null,"<Enter connection point name>","Connection Point Rating","MVA","Non-Coincident"]
[null,null,null,null,"Coincident"]
[null,null,"Raw Adjusted MD","MW","Non-Coincident"]
[null,null,null,null,"Coincident"]
[null,null,"Raw Adjusted MD","MVA","Non-Coincident"]
[null,null,null,null,"Coincident"]
[null,null,"Date MD occurred",null,"Non-Coincident"]
[null,null,null,null,"Coincident"]
[null,null,"Half hour time period MD occurred",null,"Non-Coincident"]
[null,null,null,null,"Coincident"]
[null,null,"Winter/Summer Peaking",null,"Non-Coincident"]
[null,null,null,null,"Coincident"]
[null,null,"Adjustments - Embedded generation","MW","Non-Coincident"]
[null,null,null,null,"Coincident"]
[null,null,"Weather Corrected MD 10% POE","MW","Non-Coincident"]
[null,null,null,null,"Coincident"]
[null,null,"Weather Corrected MD 10% POE","MVA","Non-Coincident"]
[null,null,null,null,"Coincident"]
[null,null,"Weather Corrected MD 50% POE","MW","Non-Coincident"]
[null,null,null,null,"Coincident"]
[null,null,"Weather Corrected MD 50% POE","MVA","Non-Coincident"]
[null,null,null,null,"Coincident"]
[null,"<Enter connection point name>","Connection Point Rating","MVA","Non-Coincident"]
[null,null,null,null,"Coincident"]
[null,null,"Raw Adjusted MD","MW","Non-Coincident"]
[null,null,null,null,"Coincident"]
[null,null,"Raw Adjusted MD","MVA","Non-Coincident"]
[null,null,null,null,"Coincident"]
[null,null,"Date MD occurred",null,"Non-Coincident"]
[null,null,null,null,"Coincident"]
[null,null,"Half hour time period MD occurred",null,"Non-Coincident"]
[null,null,null,null,"Coincident"]
[null,null,"Winter/Summer Peaking",null,"Non-Coincident"]
[null,null,null,null,"Coincident"]
[null,null,"Adjustments - Embedded generation","MW","Non-Coincident"]
[null,null,null,null,"Coincident"]
[null,null,"Weather Corrected MD 10% POE","MW","Non-Coincident"]
[null,null,null,null,"Coincident"]
[null,null,"Weather Corrected MD 10% POE","MVA","Non-Coincident"]
[null,null,null,null,"Coincident"]
[null,null,"Weather Corrected MD 50% POE","MW","Non-Coincident"]
[null,null,null,null,"Coincident"]
[null,null,"Weather Corrected MD 50% POE","MVA","Non-Coincident"]
[null,null,null,null,"Coincident"]
[null,"<Enter connection point name>","Connection Point Rating","MVA","Non-Coincident"]
[null,null,null,null,"Coincident"]
[null,null,"Raw Adjusted MD","MW","Non-Coincident"]
[null,null,null,null,"Coincident"]
[null,null,"Raw Adjusted MD","MVA","Non-Coincident"]
[null,null,null,null,"Coincident"]
[null,null,"Date MD occurred",null,"Non-Coincident"]
[null,null,null,null,"Coincident"]
[null,null,"Half hour time period MD occurred",null,"Non-Coincident"]
[null,null,null,null,"Coincident"]
[null,null,"Winter/Summer Peaking",null,"Non-Coincident"]
[null,null,null,null,"Coincident"]
[null,null,"Adjustments - Embedded generation","MW","Non-Coincident"]
[null,null,null,null,"Coincident"]
[null,null,"Weather Corrected MD 10% POE","MW","Non-Coincident"]
[null,null,null,null,"Coincident"]
[null,null,"Weather Corrected MD 10% POE","MVA","Non-Coincident"]
[null,null,null,null,"Coincident"]
[null,null,"Weather Corrected MD 50% POE","MW","Non-Coincident"]
[null,null,null,null,"Coincident"]
[null,null,"Weather Corrected MD 50% POE","MVA","Non-Coincident"]
[null,null,null,null,"Coincident"]
[null,"<Enter connection point name>","Connection Point Rating","MVA","Non-Coincident"]
[null,null,null,null,"Coincident"]
[null,null,"Raw Adjusted MD","MW","Non-Coincident"]
[null,null,null,null,"Coincident"]
[null,null,"Raw Adjusted MD","MVA","Non-Coincident"]
[null,null,null,null,"Coincident"]
[null,null,"Date MD occurred",null,"Non-Coincident"]
[null,null,null,null,"Coincident"]
[null,null,"Half hour time period MD occurred",null,"Non-Coincident"]
[null,null,null,null,"Coincident"]
[null,null,"Winter/Summer Peaking",null,"Non-Coincident"]
[null,null,null,null,"Coincident"]
[null,null,"Adjustments - Embedded generation","MW","Non-Coincident"]
[null,null,null,null,"Coincident"]
[null,null,"Weather Corrected MD 10% POE","MW","Non-Coincident"]
[null,null,null,null,"Coincident"]
[null,null,"Weather Corrected MD 10% POE","MVA","Non-Coincident"]
[null,null,null,null,"Coincident"]
[null,null,"Weather Corrected MD 50% POE","MW","Non-Coincident"]
[null,null,null,null,"Coincident"]
[null,null,"Weather Corrected MD 50% POE","MVA","Non-Coincident"]
[null,null,null,null,"Coincident"]
[null,"<Enter connection point name>","Connection Point Rating","MVA","Non-Coincident"]
[null,null,null,null,"Coincident"]
[null,null,"Raw Adjusted MD","MW","Non-Coincident"]
[null,null,null,null,"Coincident"]
[null,null,"Raw Adjusted MD","MVA","Non-Coincident"]
[null,null,null,null,"Coincident"]
[null,null,"Date MD occurred",null,"Non-Coincident"]
[null,null,null,null,"Coincident"]
[null,null,"Half hour time period MD occurred",null,"Non-Coincident"]
[null,null,null,null,"Coincident"]
[null,null,"Winter/Summer Peaking",null,"Non-Coincident"]
[null,null,null,null,"Coincident"]
[null,null,"Adjustments - Embedded generation","MW","Non-Coincident"]
[null,null,null,null,"Coincident"]
[null,null,"Weather Corrected MD 10% POE","MW","Non-Coincident"]
[null,null,null,null,"Coincident"]
[null,null,"Weather Corrected MD 10% POE","MVA","Non-Coincident"]
[null,null,null,null,"Coincident"]
[null,null,"Weather Corrected MD 50% POE","MW","Non-Coincident"]
[null,null,null,null,"Coincident"]
[null,null,"Weather Corrected MD 50% POE","MVA","Non-Coincident"]
[null,null,null,null,"Coincident"]
[null,"<Enter connection point name>","Connection Point Rating","MVA","Non-Coincident"]
[null,null,null,null,"Coincident"]
[null,null,"Raw Adjusted MD","MW","Non-Coincident"]
[null,null,null,null,"Coincident"]
[null,null,"Raw Adjusted MD","MVA","Non-Coincident"]
[null,null,null,null,"Coincident"]
[null,null,"Date MD occurred",null,"Non-Coincident"]
[null,null,null,null,"Coincident"]
[null,null,"Half hour time period MD occurred",null,"Non-Coincident"]
[null,null,null,null,"Coincident"]
[null,null,"Winter/Summer Peaking",null,"Non-Coincident"]
[null,null,null,null,"Coincident"]
[null,null,"Adjustments - Embedded generation","MW","Non-Coincident"]
[null,null,null,null,"Coincident"]
[null,null,"Weather Corrected MD 10% POE","MW","Non-Coincident"]
[null,null,null,null,"Coincident"]
[null,null,"Weather Corrected MD 10% POE","MVA","Non-Coincident"]
[null,null,null,null,"Coincident"]
[null,null,"Weather Corrected MD 50% POE","MW","Non-Coincident"]
[null,null,null,null,"Coincident"]
[null,null,"Weather Corrected MD 50% POE","MVA","Non-Coincident"]
[null,null,null,null,"Coincident"]
[null,"<Enter connection point name>","Connection Point Rating","MVA","Non-Coincident"]
[null,null,null,null,"Coincident"]
[null,null,"Raw Adjusted MD","MW","Non-Coincident"]
[null,null,null,null,"Coincident"]
[null,null,"Raw Adjusted MD","MVA","Non-Coincident"]
[null,null,null,null,"Coincident"]
[null,null,"Date MD occurred",null,"Non-Coincident"]
[null,null,null,null,"Coincident"]
[null,null,"Half hour time period MD occurred",null,"Non-Coincident"]
[null,null,null,null,"Coincident"]
[null,null,"Winter/Summer Peaking",null,"Non-Coincident"]
[null,null,null,null,"Coincident"]
[null,null,"Adjustments - Embedded generation","MW","Non-Coincident"]
[null,null,null,null,"Coincident"]
[null,null,"Weather Corrected MD 10% POE","MW","Non-Coincident"]
[null,null,null,null,"Coincident"]
[null,null,"Weather Corrected MD 10% POE","MVA","Non-Coincident"]
[null,null,null,null,"Coincident"]
[null,null,"Weather Corrected MD 50% POE","MW","Non-Coincident"]
[null,null,null,null,"Coincident"]
[null,null,"Weather Corrected MD 50% POE","MVA","Non-Coincident"]
[null,null,null,null,"Coincident"]
[null,"<Enter connection point name>","Connection Point Rating","MVA","Non-Coincident"]
[null,null,null,null,"Coincident"]
[null,null,"Raw Adjusted MD","MW","Non-Coincident"]
[null,null,null,null,"Coincident"]
[null,null,"Raw Adjusted MD","MVA","Non-Coincident"]
[null,null,null,null,"Coincident"]
[null,null,"Date MD occurred",null,"Non-Coincident"]
[null,null,null,null,"Coincident"]
[null,null,"Half hour time period MD occurred",null,"Non-Coincident"]
[null,null,null,null,"Coincident"]
[null,null,"Winter/Summer Peaking",null,"Non-Coincident"]
[null,null,null,null,"Coincident"]
[null,null,"Adjustments - Embedded generation","MW","Non-Coincident"]
[null,null,null,null,"Coincident"]
[null,null,"Weather Corrected MD 10% POE","MW","Non-Coincident"]
[null,null,null,null,"Coincident"]
[null,null,"Weather Corrected MD 10% POE","MVA","Non-Coincident"]
[null,null,null,null,"Coincident"]
[null,null,"Weather Corrected MD 50% POE","MW","Non-Coincident"]
[null,null,null,null,"Coincident"]
[null,null,"Weather Corrected MD 50% POE","MVA","Non-Coincident"]
[null,null,null,null,"Coincident"]
[null,"<Enter connection point name>","Connection Point Rating","MVA","Non-Coincident"]
[null,null,null,null,"Coincident"]
[null,null,"Raw Adjusted MD","MW","Non-Coincident"]
[null,null,null,null,"Coincident"]
[null,null,"Raw Adjusted MD","MVA","Non-Coincident"]
[null,null,null,null,"Coincident"]
[null,null,"Date MD occurred",null,"Non-Coincident"]
[null,null,null,null,"Coincident"]
[null,null,"Half hour time period MD occurred",null,"Non-Coincident"]
[null,null,null,null,"Coincident"]
[null,null,"Winter/Summer Peaking",null,"Non-Coincident"]
[null,null,null,null,"Coincident"]
[null,null,"Adjustments - Embedded generation","MW","Non-Coincident"]
[null,null,null,null,"Coincident"]
[null,null,"Weather Corrected MD 10% POE","MW","Non-Coincident"]
[null,null,null,null,"Coincident"]
[null,null,"Weather Corrected MD 10% POE","MVA","Non-Coincident"]
[null,null,null,null,"Coincident"]
[null,null,"Weather Corrected MD 50% POE","MW","Non-Coincident"]
[null,null,null,null,"Coincident"]
[null,null,"Weather Corrected MD 50% POE","MVA","Non-Coincident"]
[null,null,null,null,"Coincident"]
[null,"<Enter connection point name>","Connection Point Rating","MVA","Non-Coincident"]
[null,null,null,null,"Coincident"]
[null,null,"Raw Adjusted MD","MW","Non-Coincident"]
[null,null,null,null,"Coincident"]
[null,null,"Raw Adjusted MD","MVA","Non-Coincident"]
[null,null,null,null,"Coincident"]
[null,null,"Date MD occurred",null,"Non-Coincident"]
[null,null,null,null,"Coincident"]
[null,null,"Half hour time period MD occurred",null,"Non-Coincident"]
[null,null,null,null,"Coincident"]
[null,null,"Winter/Summer Peaking",null,"Non-Coincident"]
[null,null,null,null,"Coincident"]
[null,null,"Adjustments - Embedded generation","MW","Non-Coincident"]
[null,null,null,null,"Coincident"]
[null,null,"Weather Corrected MD 10% POE","MW","Non-Coincident"]
[null,null,null,null,"Coincident"]
[null,null,"Weather Corrected MD 10% POE","MVA","Non-Coincident"]
[null,null,null,null,"Coincident"]
[null,null,"Weather Corrected MD 50% POE","MW","Non-Coincident"]
[null,null,null,null,"Coincident"]
[null,null,"Weather Corrected MD 50% POE","MVA","Non-Coincident"]
[null,null,null,null,"Coincident"]
[null,"<Enter connection point name>","Connection Point Rating","MVA","Non-Coincident"]
[null,null,null,null,"Coincident"]
[null,null,"Raw Adjusted MD","MW","Non-Coincident"]
[null,null,null,null,"Coincident"]
[null,null,"Raw Adjusted MD","MVA","Non-Coincident"]
[null,null,null,null,"Coincident"]
[null,null,"Date MD occurred",null,"Non-Coincident"]
[null,null,null,null,"Coincident"]
[null,null,"Half hour time period MD occurred",null,"Non-Coincident"]
[null,null,null,null,"Coincident"]
[null,null,"Winter/Summer Peaking",null,"Non-Coincident"]
[null,null,null,null,"Coincident"]
[null,null,"Adjustments - Embedded generation","MW","Non-Coincident"]
[null,null,null,null,"Coincident"]
[null,null,"Weather Corrected MD 10% POE","MW","Non-Coincident"]
[null,null,null,null,"Coincident"]
[null,null,"Weather Corrected MD 10% POE","MVA","Non-Coincident"]
[null,null,null,null,"Coincident"]
[null,null,"Weather Corrected MD 50% POE","MW","Non-Coincident"]
[null,null,null,null,"Coincident"]
[null,null,"Weather Corrected MD 50% POE","MVA","Non-Coincident"]
[null,null,null,null,"Coincident"]

{"sheet":"Amendments","index":17,"n_rows":2,"n_cols":4,"rows_kept":2,"cut":false,"hidden":false,"merged":[[0,1,0,3]]}
[null,"NSP data amendments"]
[null,{"$f":"INDEX(dms_TradingNameFull_List,MATCH(dms_TradingName,dms_TradingName_List))","v":"TransGrid"},"Table","Comments"]

{"sheet":"Unlocked worksheet","index":18,"n_rows":0,"n_cols":0,"rows_kept":0,"cut":false,"hidden":false,"merged":[]}